Workbook

Sheet Data
D1: JOU | E1: Non- | H1: Transferred | I1: Contingent | M1: Event Detection | N1: Recovery Target Freq: | O1: Max Absolute Delta Hz | P1: Lowest Delta Hz | Q1: Highest Delta Hz | R1: Rows of data to shift to align T(0)
C2: Net | D2: Dynamic | E2: Conforming | F2: Pumped | G2: Not | H2: Frequency | I2: BA | J2: BA | K2: BA | M2: Row | N2: =IF(Evaluation!G6<0,MIN(Evaluation!G4,60),MAX(Evaluation!G4,60)) -> 60 | O2: =MAX(ABS(P7:P1643)) -> 0.1259994507 | P2: =MIN($P6:$P1806) -> -0.1259994507 | Q2: =MAX($P6:$P1806) -> 0.03300094604 | R2: ='Graph 20 to 52s'!Q3 -> 1
C3: Actual | D3: Schedules | E3: Load | F3: Hydro | G3: Used | H3: Response | I3: Lost Generation | J3: Bias | K3: Load | M3: =IF('Copy Results'!E4="Auto",MATCH(O$2,Q$7:Q$1806,0)+6-R2,'Copy Results'!E5) -> 306 | N3: =INDEX(A:A,M3) -> 40098.10238 | O3: t(0)
C4: Interchange | D4: Imp(-) Exp (+) | E4: Load (-) | F4: Load (-) Gen (+) | H4: Rec (-) Del (+) | I4: Load (-) Gen (+) | J4: Setting | M4: =IF('Copy Results'!$E$4="Auto",MATCH(1,N7:N1806,0)+6,'Copy Results'!$E$6) -> 473 | N4: =INDEX(A:A,M4) -> 40098.10625 | O4: t(Recovery) | P4: Delta | Q4: Absolute
A5: Time (T) | B5: Hz | C5: MW | D5: MW | E5: MW | F5: MW | H5: MW/0.1 Hz | I5: MW | J5: MW/0.1 Hz | K5: MW | M5: =MATCH(O$2,Q$7:Q$1806,0)+6 -> 307 | N5: =N4-N3 -> 00:05:34 | O5: Event Length mm:ss | P5: Hz | Q5: Delta Hz
A6: 2009-10-12T02:17:26 | B6: 60.00699997 | C6: 3679.946045 | D6: 350 | E6: -331.8529663 | F6: 0 | G6: 81.5 | H6: 10 | I6: 15 | J6: -103 | K6: 7553.79 | N6: 0
A7: 2009-10-12T02:17:28 | B7: 60.00899887 | C7: 3679.439941 | D7: 350 | E7: -331.8529663 | F7: 0 | G7: 82 | H7: 10 | I7: 15 | J7: -103 | K7: 7554.12 | M7: =IF(ROW()<$M$5,0,1) -> 0 | N7: =IF((M7=1)*(B7>$N$2),1,0) -> 0 | O7: =IF(ROW()<$M$3,0,1) -> 0 | P7: =B7-B6 -> 0.001998901367 | Q7: =ABS(P7) -> 0.001998901367
A8: 2009-10-12T02:17:30 | B8: 60.00899887 | C8: 3679.911865 | D8: 350 | E8: -331.8529663 | F8: 0 | G8: 82.5 | H8: 10 | I8: 15 | J8: -103 | K8: 7554.45 | M8: =IF(ROW()<$M$5,0,1) -> 0 | N8: =IF((M8=1)*(B8>$N$2),1,0) -> 0 | O8: 0 | P8: =B8-B7 -> 0 | Q8: =ABS(P8) -> 0
A9: 2009-10-12T02:17:32 | B9: 60.00600052 | C9: 3679.516602 | D9: 350 | E9: -331.8529663 | F9: 0 | G9: 83 | H9: 10 | I9: 15 | J9: -103 | K9: 7554.78 | M9: 0 | N9: 0 | O9: 0 | P9: -0.002998352051 | Q9: 0.002998352051
A10: 2009-10-12T02:17:34 | B10: 60.00600052 | C10: 3679.887939 | D10: 350 | E10: -331.8529663 | F10: 0 | G10: 83.5 | H10: 10 | I10: 15 | J10: -103 | K10: 7555.11 | M10: 0 | N10: 0 | O10: 0 | P10: 0 | Q10: 0 | R10: =IF(Q10>(AVERAGE(Q6:Q9)+0.003),1," ") -> 
A11: 2009-10-12T02:17:36 | B11: 60.00899887 | C11: 3679.608154 | D11: 350 | E11: -329.9882202 | F11: 0 | G11: 84 | H11: 10 | I11: 15 | J11: -103 | K11: 7555.44 | M11: 0 | N11: 0 | O11: 0 | P11: 0.002998352051 | Q11: 0.002998352051 | R11: =IF(Q11>(AVERAGE(Q7:Q10)+R$2),1," ") -> 
A12: 2009-10-12T02:17:38 | B12: 60.00899887 | C12: 3679.05957 | D12: 350 | E12: -329.9882202 | F12: 0 | G12: 84.5 | H12: 10 | I12: 15 | J12: -103 | K12: 7555.77 | M12: 0 | N12: 0 | O12: 0 | P12: 0 | Q12: 0
A13: 2009-10-12T02:17:40 | B13: 60.00799942 | C13: 3679.260742 | D13: 350 | E13: -329.9882202 | F13: 0 | G13: 85 | H13: 10 | I13: 15 | J13: -103 | K13: 7556.1 | M13: 0 | N13: 0 | O13: 0 | P13: -0.0009994506836 | Q13: 0.0009994506836
A14: 2009-10-12T02:17:42 | B14: 60.00899887 | C14: 3679.164062 | D14: 350 | E14: -329.9882202 | F14: 0 | G14: 85.5 | H14: 10 | I14: 15 | J14: -103 | K14: 7556.43 | M14: 0 | N14: 0 | O14: 0 | P14: 0.0009994506836 | Q14: 0.0009994506836
A15: 2009-10-12T02:17:44 | B15: 60.00899887 | C15: 3679.024658 | D15: 350 | E15: -329.9882202 | F15: 0 | G15: 86 | H15: 10 | I15: 15 | J15: -103 | K15: 7556.76 | M15: 0 | N15: 0 | O15: 0 | P15: 0 | Q15: 0
A16: 2009-10-12T02:17:46 | B16: 60.00500107 | C16: 3679.1521 | D16: 350 | E16: -255.4441681 | F16: 0 | G16: 86.5 | H16: 10 | I16: 15 | J16: -103 | K16: 7557.09 | M16: 0 | N16: 0 | O16: 0 | P16: -0.003997802734 | Q16: 0.003997802734
A17: 2009-10-12T02:17:48 | B17: 60.00400162 | C17: 3678.572266 | D17: 350 | E17: -255.4441681 | F17: 0 | G17: 87 | H17: 10 | I17: 15 | J17: -103 | K17: 7557.42 | M17: 0 | N17: 0 | O17: 0 | P17: -0.0009994506836 | Q17: 0.0009994506836
A18: 2009-10-12T02:17:50 | B18: 60.00099945 | C18: 3678.295166 | D18: 350 | E18: -255.4441681 | F18: 0 | G18: 87.5 | H18: 10 | I18: 15 | J18: -103 | K18: 7557.75 | M18: 0 | N18: 0 | O18: 0 | P18: -0.003002166748 | Q18: 0.003002166748
A19: 2009-10-12T02:17:52 | B19: 59.99900055 | C19: 3678.248779 | D19: 350 | E19: -255.4441681 | F19: 0 | G19: 88 | H19: 10 | I19: 15 | J19: -103 | K19: 7558.08 | M19: 0 | N19: 0 | O19: 0 | P19: -0.001998901367 | Q19: 0.001998901367
A20: 2009-10-12T02:17:54 | B20: 59.99300003 | C20: 3678.23584 | D20: 350 | E20: -255.4441681 | F20: 0 | G20: 88.5 | H20: 10 | I20: 15 | J20: -103 | K20: 7558.41 | M20: 0 | N20: 0 | O20: 0 | P20: -0.006000518799 | Q20: 0.006000518799
A21: 2009-10-12T02:17:56 | B21: 59.99100113 | C21: 3677.82959 | D21: 350 | E21: -254.8383026 | F21: 0 | G21: 89 | H21: 10 | I21: 15 | J21: -103 | K21: 7558.74 | M21: 0 | N21: 0 | O21: 0 | P21: -0.001998901367 | Q21: 0.001998901367
A22: 2009-10-12T02:17:58 | B22: 59.99399948 | C22: 3677.954834 | D22: 350 | E22: -254.8383026 | F22: 0 | G22: 89.5 | H22: 10 | I22: 15 | J22: -103 | K22: 7559.07 | M22: 0 | N22: 0 | O22: 0 | P22: 0.002998352051 | Q22: 0.002998352051
A23: 2009-10-12T02:18:00 | B23: 59.99200058 | C23: 3677.772217 | D23: 350 | E23: -254.8383026 | F23: 0 | G23: 90 | H23: 10 | I23: 15 | J23: -103 | K23: 7559.4 | M23: 0 | N23: 0 | O23: 0 | P23: -0.001998901367 | Q23: 0.001998901367
A24: 2009-10-12T02:18:02 | B24: 59.99399948 | C24: 3676.665771 | D24: 350 | E24: -254.8383026 | F24: 0 | G24: 90.5 | H24: 10 | I24: 15 | J24: -103 | K24: 7559.73 | M24: 0 | N24: 0 | O24: 0 | P24: 0.001998901367 | Q24: 0.001998901367
A25: 2009-10-12T02:18:04 | B25: 59.99200058 | C25: 3677.093262 | D25: 350 | E25: -254.8383026 | F25: 0 | G25: 91 | H25: 10 | I25: 15 | J25: -103 | K25: 7560.06 | M25: 0 | N25: 0 | O25: 0 | P25: -0.001998901367 | Q25: 0.001998901367
A26: 2009-10-12T02:18:06 | B26: 59.99399948 | C26: 3677.140625 | D26: 350 | E26: -257.1469727 | F26: 0 | G26: 91.5 | H26: 10 | I26: 15 | J26: -103 | K26: 7560.39 | M26: 0 | N26: 0 | O26: 0 | P26: 0.001998901367 | Q26: 0.001998901367
A27: 2009-10-12T02:18:08 | B27: 59.99499893 | C27: 3676.400635 | D27: 350 | E27: -257.1469727 | F27: 0 | G27: 92 | H27: 10 | I27: 15 | J27: -103 | K27: 7560.72 | M27: 0 | N27: 0 | O27: 0 | P27: 0.0009994506836 | Q27: 0.0009994506836
A28: 2009-10-12T02:18:10 | B28: 59.99300003 | C28: 3678.515625 | D28: 350 | E28: -257.1469727 | F28: 0 | G28: 92.5 | H28: 10 | I28: 15 | J28: -103 | K28: 7561.05 | M28: 0 | N28: 0 | O28: 0 | P28: -0.001998901367 | Q28: 0.001998901367
A29: 2009-10-12T02:18:12 | B29: 59.99000168 | C29: 3679.87207 | D29: 350 | E29: -257.1469727 | F29: 0 | G29: 93 | H29: 10 | I29: 15 | J29: -103 | K29: 7561.38 | M29: 0 | N29: 0 | O29: 0 | P29: -0.002998352051 | Q29: 0.002998352051
A30: 2009-10-12T02:18:14 | B30: 59.99000168 | C30: 3680.196533 | D30: 350 | E30: -257.1469727 | F30: 0 | G30: 93.5 | H30: 10 | I30: 15 | J30: -103 | K30: 7561.71 | M30: 0 | N30: 0 | O30: 0 | P30: 0 | Q30: 0
A31: 2009-10-12T02:18:16 | B31: 59.98699951 | C31: 3678.743164 | D31: 350 | E31: -262.2893677 | F31: 0 | G31: 94 | H31: 10 | I31: 15 | J31: -103 | K31: 7562.04 | M31: 0 | N31: 0 | O31: 0 | P31: -0.003002166748 | Q31: 0.003002166748
A32: 2009-10-12T02:18:18 | B32: 59.98300171 | C32: 3678.427979 | D32: 350 | E32: -262.2893677 | F32: 0 | G32: 94.5 | H32: 10 | I32: 15 | J32: -103 | K32: 7562.37 | M32: 0 | N32: 0 | O32: 0 | P32: -0.003997802734 | Q32: 0.003997802734
A33: 2009-10-12T02:18:20 | B33: 59.97700119 | C33: 3677.921143 | D33: 350 | E33: -262.2893677 | F33: 0 | G33: 95 | H33: 10 | I33: 15 | J33: -103 | K33: 7562.7 | M33: 0 | N33: 0 | O33: 0 | P33: -0.006000518799 | Q33: 0.006000518799
A34: 2009-10-12T02:18:22 | B34: 59.97700119 | C34: 3680.253662 | D34: 350 | E34: -262.2893677 | F34: 0 | G34: 95.5 | H34: 10 | I34: 15 | J34: -103 | K34: 7563.03 | M34: 0 | N34: 0 | O34: 0 | P34: 0 | Q34: 0
A35: 2009-10-12T02:18:24 | B35: 59.98899841 | C35: 3682.070068 | D35: 350 | E35: -262.2893677 | F35: 0 | G35: 96 | H35: 10 | I35: 15 | J35: -103 | K35: 7563.36 | M35: 0 | N35: 0 | O35: 0 | P35: 0.0119972229 | Q35: 0.0119972229
A36: 2009-10-12T02:18:26 | B36: 59.99499893 | C36: 3681.329346 | D36: 350 | E36: -256.6479492 | F36: 0 | G36: 96.5 | H36: 10 | I36: 15 | J36: -103 | K36: 7563.69 | M36: 0 | N36: 0 | O36: 0 | P36: 0.006000518799 | Q36: 0.006000518799
A37: 2009-10-12T02:18:28 | B37: 59.99900055 | C37: 3678.655518 | D37: 350 | E37: -256.6479492 | F37: 0 | G37: 97 | H37: 10 | I37: 15 | J37: -103 | K37: 7564.02 | M37: 0 | N37: 0 | O37: 0 | P37: 0.004001617432 | Q37: 0.004001617432
A38: 2009-10-12T02:18:30 | B38: 59.99399948 | C38: 3678.07666 | D38: 350 | E38: -256.6479492 | F38: 0 | G38: 97.5 | H38: 10 | I38: 15 | J38: -103 | K38: 7564.35 | M38: 0 | N38: 0 | O38: 0 | P38: -0.005001068115 | Q38: 0.005001068115
A39: 2009-10-12T02:18:32 | B39: 59.98899841 | C39: 3677.780029 | D39: 350 | E39: -256.6479492 | F39: 0 | G39: 98 | H39: 10 | I39: 15 | J39: -103 | K39: 7564.68 | M39: 0 | N39: 0 | O39: 0 | P39: -0.005001068115 | Q39: 0.005001068115
A40: 2009-10-12T02:18:34 | B40: 59.98699951 | C40: 3678.426758 | D40: 350 | E40: -256.6479492 | F40: 0 | G40: 98.5 | H40: 10 | I40: 15 | J40: -103 | K40: 7565.01 | M40: 0 | N40: 0 | O40: 0 | P40: -0.001998901367 | Q40: 0.001998901367
A41: 2009-10-12T02:18:36 | B41: 59.98600006 | C41: 3678.473145 | D41: 350 | E41: -256.307251 | F41: 0 | G41: 99 | H41: 10 | I41: 15 | J41: -103 | K41: 7565.34 | M41: 0 | N41: 0 | O41: 0 | P41: -0.0009994506836 | Q41: 0.0009994506836
A42: 2009-10-12T02:18:38 | B42: 59.98400116 | C42: 3678.277832 | D42: 350 | E42: -256.307251 | F42: 0 | G42: 99.5 | H42: 10 | I42: 15 | J42: -103 | K42: 7565.67 | M42: 0 | N42: 0 | O42: 0 | P42: -0.001998901367 | Q42: 0.001998901367
A43: 2009-10-12T02:18:40 | B43: 59.98300171 | C43: 3677.822266 | D43: 350 | E43: -256.307251 | F43: 0 | G43: 100 | H43: 10 | I43: 15 | J43: -103 | K43: 7566 | M43: 0 | N43: 0 | O43: 0 | P43: -0.0009994506836 | Q43: 0.0009994506836
A44: 2009-10-12T02:18:42 | B44: 59.98500061 | C44: 3676.61499 | D44: 350 | E44: -256.307251 | F44: 0 | G44: 100.5 | H44: 10 | I44: 15 | J44: -103 | K44: 7566.33 | M44: 0 | N44: 0 | O44: 0 | P44: 0.001998901367 | Q44: 0.001998901367
A45: 2009-10-12T02:18:44 | B45: 59.98600006 | C45: 3677.397461 | D45: 350 | E45: -256.307251 | F45: 0 | G45: 101 | H45: 10 | I45: 15 | J45: -103 | K45: 7566.66 | M45: 0 | N45: 0 | O45: 0 | P45: 0.0009994506836 | Q45: 0.0009994506836
A46: 2009-10-12T02:18:46 | B46: 59.98500061 | C46: 3677.916992 | D46: 350 | E46: -249.0863953 | F46: 0 | G46: 101.5 | H46: 10 | I46: 15 | J46: -103 | K46: 7566.99 | M46: 0 | N46: 0 | O46: 0 | P46: -0.0009994506836 | Q46: 0.0009994506836
A47: 2009-10-12T02:18:48 | B47: 59.98600006 | C47: 3677.949707 | D47: 350 | E47: -249.0863953 | F47: 0 | G47: 102 | H47: 10 | I47: 15 | J47: -103 | K47: 7567.32 | M47: 0 | N47: 0 | O47: 0 | P47: 0.0009994506836 | Q47: 0.0009994506836
A48: 2009-10-12T02:18:50 | B48: 59.97999954 | C48: 3678.616699 | D48: 350 | E48: -249.0863953 | F48: 0 | G48: 102.5 | H48: 10 | I48: 15 | J48: -103 | K48: 7567.65 | M48: 0 | N48: 0 | O48: 0 | P48: -0.006000518799 | Q48: 0.006000518799
A49: 2009-10-12T02:18:52 | B49: 59.98099899 | C49: 3678.962646 | D49: 350 | E49: -249.0863953 | F49: 0 | G49: 103 | H49: 10 | I49: 15 | J49: -103 | K49: 7567.98 | M49: 0 | N49: 0 | O49: 0 | P49: 0.0009994506836 | Q49: 0.0009994506836
A50: 2009-10-12T02:18:54 | B50: 59.98099899 | C50: 3681.252197 | D50: 350 | E50: -249.0863953 | F50: 0 | G50: 103.5 | H50: 10 | I50: 15 | J50: -103 | K50: 7568.31 | M50: 0 | N50: 0 | O50: 0 | P50: 0 | Q50: 0
A51: 2009-10-12T02:18:56 | B51: 59.98899841 | C51: 3680.737305 | D51: 350 | E51: -253.7424774 | F51: 0 | G51: 104 | H51: 10 | I51: 15 | J51: -103 | K51: 7568.64 | M51: 0 | N51: 0 | O51: 0 | P51: 0.007999420166 | Q51: 0.007999420166
A52: 2009-10-12T02:18:58 | B52: 59.9980011 | C52: 3680.044922 | D52: 350 | E52: -253.7424774 | F52: 0 | G52: 104.5 | H52: 10 | I52: 15 | J52: -103 | K52: 7568.97 | M52: 0 | N52: 0 | O52: 0 | P52: 0.009002685547 | Q52: 0.009002685547
A53: 2009-10-12T02:19:00 | B53: 60.00699997 | C53: 3678.161377 | D53: 350 | E53: -253.7424774 | F53: 0 | G53: 105 | H53: 10 | I53: 15 | J53: -103 | K53: 7569.3 | M53: 0 | N53: 0 | O53: 0 | P53: 0.00899887085 | Q53: 0.00899887085
A54: 2009-10-12T02:19:02 | B54: 60.00699997 | C54: 3674.076172 | D54: 350 | E54: -253.7424774 | F54: 0 | G54: 105.5 | H54: 10 | I54: 15 | J54: -103 | K54: 7569.63 | M54: 0 | N54: 0 | O54: 0 | P54: 0 | Q54: 0
A55: 2009-10-12T02:19:04 | B55: 59.99700165 | C55: 3676.222168 | D55: 350 | E55: -253.7424774 | F55: 0 | G55: 106 | H55: 10 | I55: 15 | J55: -103 | K55: 7569.96 | M55: 0 | N55: 0 | O55: 0 | P55: -0.009998321533 | Q55: 0.009998321533
A56: 2009-10-12T02:19:06 | B56: 59.98600006 | C56: 3676.669434 | D56: 350 | E56: -257.4212036 | F56: 0 | G56: 106.5 | H56: 10 | I56: 15 | J56: -103 | K56: 7570.29 | M56: 0 | N56: 0 | O56: 0 | P56: -0.01100158691 | Q56: 0.01100158691
A57: 2009-10-12T02:19:08 | B57: 59.98099899 | C57: 3677.49707 | D57: 350 | E57: -257.4212036 | F57: 0 | G57: 107 | H57: 10 | I57: 15 | J57: -103 | K57: 7570.62 | M57: 0 | N57: 0 | O57: 0 | P57: -0.005001068115 | Q57: 0.005001068115
A58: 2009-10-12T02:19:10 | B58: 59.97700119 | C58: 3677.48999 | D58: 350 | E58: -257.4212036 | F58: 0 | G58: 107.5 | H58: 10 | I58: 15 | J58: -103 | K58: 7570.95 | M58: 0 | N58: 0 | O58: 0 | P58: -0.003997802734 | Q58: 0.003997802734
A59: 2009-10-12T02:19:12 | B59: 59.97399902 | C59: 3675.185791 | D59: 350 | E59: -257.4212036 | F59: 0 | G59: 108 | H59: 10 | I59: 15 | J59: -103 | K59: 7571.28 | M59: 0 | N59: 0 | O59: 0 | P59: -0.003002166748 | Q59: 0.003002166748
A60: 2009-10-12T02:19:14 | B60: 59.97600174 | C60: 3675.437012 | D60: 350 | E60: -257.4212036 | F60: 0 | G60: 108.5 | H60: 10 | I60: 15 | J60: -103 | K60: 7571.61 | M60: 0 | N60: 0 | O60: 0 | P60: 0.002002716064 | Q60: 0.002002716064
A61: 2009-10-12T02:19:16 | B61: 59.97399902 | C61: 3680.450928 | D61: 350 | E61: -261.7382202 | F61: 0 | G61: 109 | H61: 10 | I61: 15 | J61: -103 | K61: 7571.94 | M61: 0 | N61: 0 | O61: 0 | P61: -0.002002716064 | Q61: 0.002002716064
A62: 2009-10-12T02:19:18 | B62: 59.97399902 | C62: 3682.031738 | D62: 350 | E62: -261.7382202 | F62: 0 | G62: 109.5 | H62: 10 | I62: 15 | J62: -103 | K62: 7572.27 | M62: 0 | N62: 0 | O62: 0 | P62: 0 | Q62: 0
A63: 2009-10-12T02:19:20 | B63: 59.97700119 | C63: 3683.828613 | D63: 350 | E63: -261.7382202 | F63: 0 | G63: 110 | H63: 10 | I63: 15 | J63: -103 | K63: 7572.6 | M63: 0 | N63: 0 | O63: 0 | P63: 0.003002166748 | Q63: 0.003002166748
A64: 2009-10-12T02:19:22 | B64: 59.97900009 | C64: 3682.843262 | D64: 350 | E64: -261.7382202 | F64: 0 | G64: 110.5 | H64: 10 | I64: 15 | J64: -103 | K64: 7572.93 | M64: 0 | N64: 0 | O64: 0 | P64: 0.001998901367 | Q64: 0.001998901367
A65: 2009-10-12T02:19:24 | B65: 59.97900009 | C65: 3681.108398 | D65: 350 | E65: -261.7382202 | F65: 0 | G65: 111 | H65: 10 | I65: 15 | J65: -103 | K65: 7573.26 | M65: 0 | N65: 0 | O65: 0 | P65: 0 | Q65: 0
A66: 2009-10-12T02:19:26 | B66: 59.98199844 | C66: 3680.565674 | D66: 350 | E66: -271.8759766 | F66: 0 | G66: 111.5 | H66: 10 | I66: 15 | J66: -103 | K66: 7573.59 | M66: 0 | N66: 0 | O66: 0 | P66: 0.002998352051 | Q66: 0.002998352051
A67: 2009-10-12T02:19:28 | B67: 59.98400116 | C67: 3678.229004 | D67: 350 | E67: -271.8759766 | F67: 0 | G67: 112 | H67: 10 | I67: 15 | J67: -103 | K67: 7573.92 | M67: 0 | N67: 0 | O67: 0 | P67: 0.002002716064 | Q67: 0.002002716064
A68: 2009-10-12T02:19:30 | B68: 59.98699951 | C68: 3676.751953 | D68: 350 | E68: -271.8759766 | F68: 0 | G68: 112.5 | H68: 10 | I68: 15 | J68: -103 | K68: 7574.25 | M68: 0 | N68: 0 | O68: 0 | P68: 0.002998352051 | Q68: 0.002998352051
A69: 2009-10-12T02:19:32 | B69: 59.98799896 | C69: 3675.759277 | D69: 350 | E69: -271.8759766 | F69: 0 | G69: 113 | H69: 10 | I69: 15 | J69: -103 | K69: 7574.58 | M69: 0 | N69: 0 | O69: 0 | P69: 0.0009994506836 | Q69: 0.0009994506836
A70: 2009-10-12T02:19:34 | B70: 59.98799896 | C70: 3671.942383 | D70: 350 | E70: -271.8759766 | F70: 0 | G70: 113.5 | H70: 10 | I70: 15 | J70: -103 | K70: 7574.91 | M70: 0 | N70: 0 | O70: 0 | P70: 0 | Q70: 0
A71: 2009-10-12T02:19:36 | B71: 59.98699951 | C71: 3671.165527 | D71: 350 | E71: -262.0734863 | F71: 0 | G71: 114 | H71: 10 | I71: 15 | J71: -103 | K71: 7575.24 | M71: 0 | N71: 0 | O71: =IF(ROW()<$M$3,0,1) -> 0 | P71: -0.0009994506836 | Q71: 0.0009994506836
A72: 2009-10-12T02:19:38 | B72: 59.98699951 | C72: 3670.47583 | D72: 350 | E72: -262.0734863 | F72: 0 | G72: 114.5 | H72: 10 | I72: 15 | J72: -103 | K72: 7575.57 | M72: =IF(ROW()<$M$5,0,1) -> 0 | N72: =IF((M72=1)*(B72>$N$2),1,0) -> 0 | O72: 0 | P72: =B72-B71 -> 0 | Q72: =ABS(P72) -> 0
A73: 2009-10-12T02:19:40 | B73: 59.98699951 | C73: 3670.128662 | D73: 350 | E73: -262.0734863 | F73: 0 | G73: 115 | H73: 10 | I73: 15 | J73: -103 | K73: 7575.9 | M73: 0 | N73: 0 | O73: 0 | P73: 0 | Q73: 0
A74: 2009-10-12T02:19:42 | B74: 59.98500061 | C74: 3671.541504 | D74: 350 | E74: -262.0734863 | F74: 0 | G74: 115.5 | H74: 10 | I74: 15 | J74: -103 | K74: 7576.23 | M74: 0 | N74: 0 | O74: 0 | P74: -0.001998901367 | Q74: 0.001998901367
A75: 2009-10-12T02:19:44 | B75: 59.98400116 | C75: 3672.047852 | D75: 350 | E75: -262.0734863 | F75: 0 | G75: 116 | H75: 10 | I75: 15 | J75: -103 | K75: 7576.56 | M75: 0 | N75: 0 | O75: 0 | P75: -0.0009994506836 | Q75: 0.0009994506836 | R75: =IF(Q75>(AVERAGE(Q71:Q74)+R$2),1," ") -> 
A76: 2009-10-12T02:19:46 | B76: 59.98199844 | C76: 3671.575684 | D76: 350 | E76: -260.3644104 | F76: 0 | G76: 116.5 | H76: 10 | I76: 15 | J76: -103 | K76: 7576.89 | M76: 0 | N76: 0 | O76: 0 | P76: -0.002002716064 | Q76: 0.002002716064
A77: 2009-10-12T02:19:48 | B77: 59.98300171 | C77: 3672.103516 | D77: 350 | E77: -260.3644104 | F77: 0 | G77: 117 | H77: 10 | I77: 15 | J77: -103 | K77: 7577.22 | M77: 0 | N77: 0 | O77: 0 | P77: 0.001003265381 | Q77: 0.001003265381
A78: 2009-10-12T02:19:50 | B78: 59.98899841 | C78: 3672.413574 | D78: 350 | E78: -260.3644104 | F78: 0 | G78: 117.5 | H78: 10 | I78: 15 | J78: -103 | K78: 7577.55 | M78: 0 | N78: 0 | O78: 0 | P78: 0.005996704102 | Q78: 0.005996704102
A79: 2009-10-12T02:19:52 | B79: 59.98899841 | C79: 3671.882324 | D79: 350 | E79: -260.3644104 | F79: 0 | G79: 118 | H79: 10 | I79: 15 | J79: -103 | K79: 7577.88 | M79: 0 | N79: 0 | O79: 0 | P79: 0 | Q79: 0
A80: 2009-10-12T02:19:54 | B80: 59.98799896 | C80: 3671.837158 | D80: 350 | E80: -260.3644104 | F80: 0 | G80: 118.5 | H80: 10 | I80: 15 | J80: -103 | K80: 7578.21 | M80: 0 | N80: 0 | O80: 0 | P80: -0.0009994506836 | Q80: 0.0009994506836
A81: 2009-10-12T02:19:56 | B81: 59.98400116 | C81: 3671.335938 | D81: 350 | E81: -352.6443787 | F81: 0 | G81: 119 | H81: 10 | I81: 15 | J81: -103 | K81: 7578.54 | M81: 0 | N81: 0 | O81: 0 | P81: -0.003997802734 | Q81: 0.003997802734
A82: 2009-10-12T02:19:58 | B82: 59.98199844 | C82: 3670.72583 | D82: 350 | E82: -352.6443787 | F82: 0 | G82: 119.5 | H82: 10 | I82: 15 | J82: -103 | K82: 7578.87 | M82: 0 | N82: 0 | O82: 0 | P82: -0.002002716064 | Q82: 0.002002716064
A83: 2009-10-12T02:20:00 | B83: 59.98300171 | C83: 3670.37207 | D83: 350 | E83: -352.6443787 | F83: 0 | G83: 120 | H83: 10 | I83: 15 | J83: -103 | K83: 7579.2 | M83: 0 | N83: 0 | O83: 0 | P83: 0.001003265381 | Q83: 0.001003265381
A84: 2009-10-12T02:20:02 | B84: 59.98099899 | C84: 3671.364014 | D84: 350 | E84: -352.6443787 | F84: 0 | G84: 120.5 | H84: 10 | I84: 15 | J84: -103 | K84: 7579.53 | M84: 0 | N84: 0 | O84: 0 | P84: -0.002002716064 | Q84: 0.002002716064
A85: 2009-10-12T02:20:04 | B85: 59.98199844 | C85: 3671.400879 | D85: 350 | E85: -352.6443787 | F85: 0 | G85: 121 | H85: 10 | I85: 15 | J85: -103 | K85: 7579.86 | M85: 0 | N85: 0 | O85: 0 | P85: 0.0009994506836 | Q85: 0.0009994506836
A86: 2009-10-12T02:20:06 | B86: 59.98300171 | C86: 3672.15625 | D86: 350 | E86: -354.8956604 | F86: 0 | G86: 121.5 | H86: 10 | I86: 15 | J86: -103 | K86: 7580.19 | M86: 0 | N86: 0 | O86: 0 | P86: 0.001003265381 | Q86: 0.001003265381
A87: 2009-10-12T02:20:08 | B87: 59.98600006 | C87: 3672.181396 | D87: 350 | E87: -354.8956604 | F87: 0 | G87: 122 | H87: 10 | I87: 15 | J87: -103 | K87: 7580.52 | M87: 0 | N87: 0 | O87: 0 | P87: 0.002998352051 | Q87: 0.002998352051
A88: 2009-10-12T02:20:10 | B88: 59.98899841 | C88: 3670.296387 | D88: 350 | E88: -354.8956604 | F88: 0 | G88: 122.5 | H88: 10 | I88: 15 | J88: -103 | K88: 7580.85 | M88: 0 | N88: 0 | O88: 0 | P88: 0.002998352051 | Q88: 0.002998352051
A89: 2009-10-12T02:20:12 | B89: 59.98699951 | C89: 3668.070801 | D89: 350 | E89: -354.8956604 | F89: 0 | G89: 123 | H89: 10 | I89: 15 | J89: -103 | K89: 7581.18 | M89: 0 | N89: 0 | O89: 0 | P89: -0.001998901367 | Q89: 0.001998901367
A90: 2009-10-12T02:20:14 | B90: 59.98500061 | C90: 3668.5896 | D90: 350 | E90: -354.8956604 | F90: 0 | G90: 123.5 | H90: 10 | I90: 15 | J90: -103 | K90: 7581.51 | M90: 0 | N90: 0 | O90: 0 | P90: -0.001998901367 | Q90: 0.001998901367
A91: 2009-10-12T02:20:16 | B91: 59.97999954 | C91: 3669.908203 | D91: 350 | E91: -340.4693604 | F91: 0 | G91: 124 | H91: 10 | I91: 15 | J91: -103 | K91: 7581.84 | M91: 0 | N91: 0 | O91: 0 | P91: -0.005001068115 | Q91: 0.005001068115
A92: 2009-10-12T02:20:18 | B92: 59.97999954 | C92: 3670.399414 | D92: 350 | E92: -340.4693604 | F92: 0 | G92: 124.5 | H92: 10 | I92: 15 | J92: -103 | K92: 7582.17 | M92: 0 | N92: 0 | O92: 0 | P92: 0 | Q92: 0
A93: 2009-10-12T02:20:20 | B93: 59.98300171 | C93: 3670.262695 | D93: 350 | E93: -340.4693604 | F93: 0 | G93: 125 | H93: 10 | I93: 15 | J93: -103 | K93: 7582.5 | M93: 0 | N93: 0 | O93: 0 | P93: 0.003002166748 | Q93: 0.003002166748
A94: 2009-10-12T02:20:22 | B94: 59.97999954 | C94: 3669.382324 | D94: 350 | E94: -340.4693604 | F94: 0 | G94: 125.5 | H94: 10 | I94: 15 | J94: -103 | K94: 7582.83 | M94: 0 | N94: 0 | O94: 0 | P94: -0.003002166748 | Q94: 0.003002166748
A95: 2009-10-12T02:20:24 | B95: 59.97900009 | C95: 3670.102051 | D95: 350 | E95: -340.4693604 | F95: 0 | G95: 126 | H95: 10 | I95: 15 | J95: -103 | K95: 7583.16 | M95: 0 | N95: 0 | O95: 0 | P95: -0.0009994506836 | Q95: 0.0009994506836
A96: 2009-10-12T02:20:26 | B96: 59.97900009 | C96: 3670.4375 | D96: 350 | E96: -337.6429138 | F96: 0 | G96: 126.5 | H96: 10 | I96: 15 | J96: -103 | K96: 7583.49 | M96: 0 | N96: 0 | O96: 0 | P96: 0 | Q96: 0
A97: 2009-10-12T02:20:28 | B97: 59.98099899 | C97: 3671.402588 | D97: 350 | E97: -337.6429138 | F97: 0 | G97: 127 | H97: 10 | I97: 15 | J97: -103 | K97: 7583.82 | M97: 0 | N97: 0 | O97: 0 | P97: 0.001998901367 | Q97: 0.001998901367
A98: 2009-10-12T02:20:30 | B98: 59.98099899 | C98: 3672.442383 | D98: 350 | E98: -337.6429138 | F98: 0 | G98: 127.5 | H98: 10 | I98: 15 | J98: -103 | K98: 7584.15 | M98: 0 | N98: 0 | O98: 0 | P98: 0 | Q98: 0
A99: 2009-10-12T02:20:32 | B99: 59.97999954 | C99: 3672.371826 | D99: 350 | E99: -337.6429138 | F99: 0 | G99: 128 | H99: 10 | I99: 15 | J99: -103 | K99: 7584.48 | M99: 0 | N99: 0 | O99: 0 | P99: -0.0009994506836 | Q99: 0.0009994506836
A100: 2009-10-12T02:20:34 | B100: 59.97999954 | C100: 3671.947021 | D100: 350 | E100: -337.6429138 | F100: 0 | G100: 128.5 | H100: 10 | I100: 15 | J100: -103 | K100: 7584.81 | M100: 0 | N100: 0 | O100: 0 | P100: 0 | Q100: 0
A101: 2009-10-12T02:20:36 | B101: 59.98099899 | C101: 3670.9375 | D101: 350 | E101: -284.3608398 | F101: 0 | G101: 129 | H101: 10 | I101: 15 | J101: -103 | K101: 7585.14 | M101: 0 | N101: 0 | O101: 0 | P101: 0.0009994506836 | Q101: 0.0009994506836
A102: 2009-10-12T02:20:38 | B102: 59.97999954 | C102: 3670.70459 | D102: 350 | E102: -284.3608398 | F102: 0 | G102: 129.5 | H102: 10 | I102: 15 | J102: -103 | K102: 7585.47 | M102: 0 | N102: 0 | O102: 0 | P102: -0.0009994506836 | Q102: 0.0009994506836
A103: 2009-10-12T02:20:40 | B103: 59.97999954 | C103: 3670.137207 | D103: 350 | E103: -284.3608398 | F103: 0 | G103: 130 | H103: 10 | I103: 15 | J103: -103 | K103: 7585.8 | M103: 0 | N103: 0 | O103: 0 | P103: 0 | Q103: 0
A104: 2009-10-12T02:20:42 | B104: 59.97700119 | C104: 3669.279297 | D104: 350 | E104: -284.3608398 | F104: 0 | G104: 130.5 | H104: 10 | I104: 15 | J104: -103 | K104: 7586.13 | M104: 0 | N104: 0 | O104: 0 | P104: -0.002998352051 | Q104: 0.002998352051
A105: 2009-10-12T02:20:44 | B105: 59.97900009 | C105: 3672.390869 | D105: 350 | E105: -284.3608398 | F105: 0 | G105: 131 | H105: 10 | I105: 15 | J105: -103 | K105: 7586.46 | M105: 0 | N105: 0 | O105: 0 | P105: 0.001998901367 | Q105: 0.001998901367
A106: 2009-10-12T02:20:46 | B106: 59.98099899 | C106: 3672.557861 | D106: 350 | E106: -260.4679871 | F106: 0 | G106: 131.5 | H106: 10 | I106: 15 | J106: -103 | K106: 7586.79 | M106: 0 | N106: 0 | O106: 0 | P106: 0.001998901367 | Q106: 0.001998901367
A107: 2009-10-12T02:20:48 | B107: 59.97900009 | C107: 3674.051758 | D107: 350 | E107: -260.4679871 | F107: 0 | G107: 132 | H107: 10 | I107: 15 | J107: -103 | K107: 7587.12 | M107: 0 | N107: 0 | O107: 0 | P107: -0.001998901367 | Q107: 0.001998901367
A108: 2009-10-12T02:20:50 | B108: 59.97600174 | C108: 3672.626465 | D108: 350 | E108: -260.4679871 | F108: 0 | G108: 132.5 | H108: 10 | I108: 15 | J108: -103 | K108: 7587.45 | M108: 0 | N108: 0 | O108: 0 | P108: -0.002998352051 | Q108: 0.002998352051
A109: 2009-10-12T02:20:52 | B109: 59.97700119 | C109: 3671.800293 | D109: 350 | E109: -260.4679871 | F109: 0 | G109: 133 | H109: 10 | I109: 15 | J109: -103 | K109: 7587.78 | M109: 0 | N109: 0 | O109: 0 | P109: 0.0009994506836 | Q109: 0.0009994506836
A110: 2009-10-12T02:20:54 | B110: 59.97200012 | C110: 3673.182861 | D110: 350 | E110: -260.4679871 | F110: 0 | G110: 133.5 | H110: 10 | I110: 15 | J110: -103 | K110: 7588.11 | M110: 0 | N110: 0 | O110: 0 | P110: -0.005001068115 | Q110: 0.005001068115
A111: 2009-10-12T02:20:56 | B111: 59.97100067 | C111: 3673.873535 | D111: 350 | E111: -253.1415405 | F111: 0 | G111: 134 | H111: 10 | I111: 15 | J111: -103 | K111: 7588.44 | M111: 0 | N111: 0 | O111: 0 | P111: -0.0009994506836 | Q111: 0.0009994506836
A112: 2009-10-12T02:20:58 | B112: 59.97299957 | C112: 3676.262695 | D112: 350 | E112: -253.1415405 | F112: 0 | G112: 134.5 | H112: 10 | I112: 15 | J112: -103 | K112: 7588.77 | M112: 0 | N112: 0 | O112: 0 | P112: 0.001998901367 | Q112: 0.001998901367
A113: 2009-10-12T02:21:00 | B113: 59.97299957 | C113: 3676.623291 | D113: 350 | E113: -253.1415405 | F113: 0 | G113: 135 | H113: 10 | I113: 15 | J113: -103 | K113: 7589.1 | M113: 0 | N113: 0 | O113: 0 | P113: 0 | Q113: 0
A114: 2009-10-12T02:21:02 | B114: 59.97299957 | C114: 3676.869873 | D114: 350 | E114: -253.1415405 | F114: 0 | G114: 135.5 | H114: 10 | I114: 15 | J114: -103 | K114: 7589.43 | M114: 0 | N114: 0 | O114: 0 | P114: 0 | Q114: 0
A115: 2009-10-12T02:21:04 | B115: 59.97399902 | C115: 3676.542969 | D115: 350 | E115: -253.1415405 | F115: 0 | G115: 136 | H115: 10 | I115: 15 | J115: -103 | K115: 7589.76 | M115: 0 | N115: 0 | O115: 0 | P115: 0.0009994506836 | Q115: 0.0009994506836
A116: 2009-10-12T02:21:06 | B116: 59.97100067 | C116: 3675.464111 | D116: 350 | E116: -251.9298706 | F116: 0 | G116: 136.5 | H116: 10 | I116: 15 | J116: -103 | K116: 7590.09 | M116: 0 | N116: 0 | O116: 0 | P116: -0.002998352051 | Q116: 0.002998352051
A117: 2009-10-12T02:21:08 | B117: 59.97499847 | C117: 3675.752441 | D117: 350 | E117: -251.9298706 | F117: 0 | G117: 137 | H117: 10 | I117: 15 | J117: -103 | K117: 7590.42 | M117: 0 | N117: 0 | O117: 0 | P117: 0.003997802734 | Q117: 0.003997802734
A118: 2009-10-12T02:21:10 | B118: 59.97700119 | C118: 3675.255859 | D118: 350 | E118: -251.9298706 | F118: 0 | G118: 137.5 | H118: 10 | I118: 15 | J118: -103 | K118: 7590.75 | M118: 0 | N118: 0 | O118: 0 | P118: 0.002002716064 | Q118: 0.002002716064
A119: 2009-10-12T02:21:12 | B119: 59.97700119 | C119: 3674.869629 | D119: 350 | E119: -251.9298706 | F119: 0 | G119: 138 | H119: 10 | I119: 15 | J119: -103 | K119: 7591.08 | M119: 0 | N119: 0 | O119: 0 | P119: 0 | Q119: 0
A120: 2009-10-12T02:21:14 | B120: 59.97499847 | C120: 3671.276855 | D120: 350 | E120: -251.9298706 | F120: 0 | G120: 138.5 | H120: 10 | I120: 15 | J120: -103 | K120: 7591.41 | M120: 0 | N120: 0 | O120: 0 | P120: -0.002002716064 | Q120: 0.002002716064
A121: 2009-10-12T02:21:16 | B121: 59.97600174 | C121: 3671.593262 | D121: 350 | E121: -250.6741943 | F121: 0 | G121: 139 | H121: 10 | I121: 15 | J121: -103 | K121: 7591.74 | M121: 0 | N121: 0 | O121: 0 | P121: 0.001003265381 | Q121: 0.001003265381
A122: 2009-10-12T02:21:18 | B122: 59.97999954 | C122: 3670.586914 | D122: 350 | E122: -250.6741943 | F122: 0 | G122: 139.5 | H122: 10 | I122: 15 | J122: -103 | K122: 7592.07 | M122: 0 | N122: 0 | O122: 0 | P122: 0.003997802734 | Q122: 0.003997802734
A123: 2009-10-12T02:21:20 | B123: 59.97900009 | C123: 3669.962891 | D123: 350 | E123: -250.6741943 | F123: 0 | G123: 140 | H123: 10 | I123: 15 | J123: -103 | K123: 7592.4 | M123: 0 | N123: 0 | O123: 0 | P123: -0.0009994506836 | Q123: 0.0009994506836
A124: 2009-10-12T02:21:22 | B124: 59.98099899 | C124: 3669.540039 | D124: 350 | E124: -250.6741943 | F124: 0 | G124: 140.5 | H124: 10 | I124: 15 | J124: -103 | K124: 7592.73 | M124: 0 | N124: 0 | O124: 0 | P124: 0.001998901367 | Q124: 0.001998901367
A125: 2009-10-12T02:21:24 | B125: 59.98199844 | C125: 3669.496826 | D125: 350 | E125: -250.6741943 | F125: 0 | G125: 141 | H125: 10 | I125: 15 | J125: -103 | K125: 7593.06 | M125: 0 | N125: 0 | O125: 0 | P125: 0.0009994506836 | Q125: 0.0009994506836
A126: 2009-10-12T02:21:26 | B126: 59.98199844 | C126: 3668.705566 | D126: 350 | E126: -253.6318665 | F126: 0 | G126: 141.5 | H126: 10 | I126: 15 | J126: -103 | K126: 7593.39 | M126: 0 | N126: 0 | O126: 0 | P126: 0 | Q126: 0
A127: 2009-10-12T02:21:28 | B127: 59.98199844 | C127: 3667.676514 | D127: 350 | E127: -253.6318665 | F127: 0 | G127: 142 | H127: 10 | I127: 15 | J127: -103 | K127: 7593.72 | M127: 0 | N127: 0 | O127: 0 | P127: 0 | Q127: 0
A128: 2009-10-12T02:21:30 | B128: 59.98199844 | C128: 3666.481689 | D128: 350 | E128: -253.6318665 | F128: 0 | G128: 142.5 | H128: 10 | I128: 15 | J128: -103 | K128: 7594.05 | M128: 0 | N128: 0 | O128: 0 | P128: 0 | Q128: 0
A129: 2009-10-12T02:21:32 | B129: 59.98099899 | C129: 3666.599365 | D129: 350 | E129: -253.6318665 | F129: 0 | G129: 143 | H129: 10 | I129: 15 | J129: -103 | K129: 7594.38 | M129: 0 | N129: 0 | O129: 0 | P129: -0.0009994506836 | Q129: 0.0009994506836
A130: 2009-10-12T02:21:34 | B130: 59.98199844 | C130: 3666.910645 | D130: 350 | E130: -253.6318665 | F130: 0 | G130: 143.5 | H130: 10 | I130: 15 | J130: -103 | K130: 7594.71 | M130: 0 | N130: 0 | O130: 0 | P130: 0.0009994506836 | Q130: 0.0009994506836
A131: 2009-10-12T02:21:36 | B131: 59.98400116 | C131: 3666.44165 | D131: 350 | E131: -246.9573059 | F131: 0 | G131: 144 | H131: 10 | I131: 15 | J131: -103 | K131: 7595.04 | M131: 0 | N131: 0 | O131: 0 | P131: 0.002002716064 | Q131: 0.002002716064
A132: 2009-10-12T02:21:38 | B132: 59.98500061 | C132: 3666.404785 | D132: 350 | E132: -246.9573059 | F132: 0 | G132: 144.5 | H132: 10 | I132: 15 | J132: -103 | K132: 7595.37 | M132: 0 | N132: 0 | O132: 0 | P132: 0.0009994506836 | Q132: 0.0009994506836
A133: 2009-10-12T02:21:40 | B133: 59.98699951 | C133: 3667.456299 | D133: 350 | E133: -246.9573059 | F133: 0 | G133: 145 | H133: 10 | I133: 15 | J133: -103 | K133: 7595.7 | M133: 0 | N133: 0 | O133: 0 | P133: 0.001998901367 | Q133: 0.001998901367
A134: 2009-10-12T02:21:42 | B134: 59.98899841 | C134: 3666.380371 | D134: 350 | E134: -246.9573059 | F134: 0 | G134: 145.5 | H134: 10 | I134: 15 | J134: -103 | K134: 7596.03 | M134: 0 | N134: 0 | O134: 0 | P134: 0.001998901367 | Q134: 0.001998901367
A135: 2009-10-12T02:21:44 | B135: 59.99300003 | C135: 3665.261719 | D135: 350 | E135: -246.9573059 | F135: 0 | G135: 146 | H135: 10 | I135: 15 | J135: -103 | K135: 7596.36 | M135: 0 | N135: 0 | O135: =IF(ROW()<$M$3,0,1) -> 0 | P135: 0.004001617432 | Q135: 0.004001617432
A136: 2009-10-12T02:21:46 | B136: 59.99599838 | C136: 3664.031006 | D136: 350 | E136: -254.5417786 | F136: 0 | G136: 146.5 | H136: 10 | I136: 15 | J136: -103 | K136: 7596.69 | M136: =IF(ROW()<$M$5,0,1) -> 0 | N136: =IF((M136=1)*(B136>$N$2),1,0) -> 0 | O136: 0 | P136: =B136-B135 -> 0.002998352051 | Q136: =ABS(P136) -> 0.002998352051
A137: 2009-10-12T02:21:48 | B137: 59.9980011 | C137: 3663.824951 | D137: 350 | E137: -254.5417786 | F137: 0 | G137: 147 | H137: 10 | I137: 15 | J137: -103 | K137: 7597.02 | M137: 0 | N137: 0 | O137: 0 | P137: 0.002002716064 | Q137: 0.002002716064
A138: 2009-10-12T02:21:50 | B138: 59.9980011 | C138: 3663.22876 | D138: 350 | E138: -254.5417786 | F138: 0 | G138: 147.5 | H138: 10 | I138: 15 | J138: -103 | K138: 7597.35 | M138: 0 | N138: 0 | O138: 0 | P138: 0 | Q138: 0
A139: 2009-10-12T02:21:52 | B139: 60.00400162 | C139: 3662.054932 | D139: 350 | E139: -254.5417786 | F139: 0 | G139: 148 | H139: 10 | I139: 15 | J139: -103 | K139: 7597.68 | M139: 0 | N139: 0 | O139: 0 | P139: 0.006000518799 | Q139: 0.006000518799 | R139: =IF(Q139>(AVERAGE(Q135:Q138)+R$2),1," ") -> 
A140: 2009-10-12T02:21:54 | B140: 60.00699997 | C140: 3661.695312 | D140: 350 | E140: -254.5417786 | F140: 0 | G140: 148.5 | H140: 10 | I140: 15 | J140: -103 | K140: 7598.01 | M140: 0 | N140: 0 | O140: 0 | P140: 0.002998352051 | Q140: 0.002998352051
A141: 2009-10-12T02:21:56 | B141: 60.00999832 | C141: 3662.076172 | D141: 350 | E141: -256.5715942 | F141: 0 | G141: 149 | H141: 10 | I141: 15 | J141: -103 | K141: 7598.34 | M141: 0 | N141: 0 | O141: 0 | P141: 0.002998352051 | Q141: 0.002998352051
A142: 2009-10-12T02:21:58 | B142: 60.01300049 | C142: 3662.223877 | D142: 350 | E142: -256.5715942 | F142: 0 | G142: 149.5 | H142: 10 | I142: 15 | J142: -103 | K142: 7598.67 | M142: 0 | N142: 0 | O142: 0 | P142: 0.003002166748 | Q142: 0.003002166748
A143: 2009-10-12T02:22:00 | B143: 60.01399994 | C143: 3662.959473 | D143: 350 | E143: -256.5715942 | F143: 0 | G143: 150 | H143: 10 | I143: 15 | J143: -103 | K143: 7599 | M143: 0 | N143: 0 | O143: 0 | P143: 0.0009994506836 | Q143: 0.0009994506836
A144: 2009-10-12T02:22:02 | B144: 60.01300049 | C144: 3663.794434 | D144: 350 | E144: -256.5715942 | F144: 0 | G144: 150.5 | H144: 10 | I144: 15 | J144: -103 | K144: 7599.33 | M144: 0 | N144: 0 | O144: 0 | P144: -0.0009994506836 | Q144: 0.0009994506836
A145: 2009-10-12T02:22:04 | B145: 60.00799942 | C145: 3664.13916 | D145: 350 | E145: -256.5715942 | F145: 0 | G145: 151 | H145: 10 | I145: 15 | J145: -103 | K145: 7599.66 | M145: 0 | N145: 0 | O145: 0 | P145: -0.005001068115 | Q145: 0.005001068115
A146: 2009-10-12T02:22:06 | B146: 60.00799942 | C146: 3665.277832 | D146: 350 | E146: -258.3726196 | F146: 0 | G146: 151.5 | H146: 10 | I146: 15 | J146: -103 | K146: 7599.99 | M146: 0 | N146: 0 | O146: 0 | P146: 0 | Q146: 0
A147: 2009-10-12T02:22:08 | B147: 60.00999832 | C147: 3664.158691 | D147: 350 | E147: -258.3726196 | F147: 0 | G147: 152 | H147: 10 | I147: 15 | J147: -103 | K147: 7600.32 | M147: 0 | N147: 0 | O147: 0 | P147: 0.001998901367 | Q147: 0.001998901367
A148: 2009-10-12T02:22:10 | B148: 60.01900101 | C148: 3663.264648 | D148: 350 | E148: -258.3726196 | F148: 0 | G148: 152.5 | H148: 10 | I148: 15 | J148: -103 | K148: 7600.65 | M148: 0 | N148: 0 | O148: 0 | P148: 0.009002685547 | Q148: 0.009002685547
A149: 2009-10-12T02:22:12 | B149: 60.01900101 | C149: 3663.183594 | D149: 350 | E149: -258.3726196 | F149: 0 | G149: 153 | H149: 10 | I149: 15 | J149: -103 | K149: 7600.98 | M149: 0 | N149: 0 | O149: 0 | P149: 0 | Q149: 0
A150: 2009-10-12T02:22:14 | B150: 60.02299881 | C150: 3661.929199 | D150: 350 | E150: -258.3726196 | F150: 0 | G150: 153.5 | H150: 10 | I150: 15 | J150: -103 | K150: 7601.31 | M150: 0 | N150: 0 | O150: 0 | P150: 0.003997802734 | Q150: 0.003997802734
A151: 2009-10-12T02:22:16 | B151: 60.02099991 | C151: 3661.512207 | D151: 350 | E151: -263.0473633 | F151: 0 | G151: 154 | H151: 10 | I151: 15 | J151: -103 | K151: 7601.64 | M151: 0 | N151: 0 | O151: 0 | P151: -0.001998901367 | Q151: 0.001998901367
A152: 2009-10-12T02:22:18 | B152: 60.02000046 | C152: 3659.172363 | D152: 350 | E152: -263.0473633 | F152: 0 | G152: 154.5 | H152: 10 | I152: 15 | J152: -103 | K152: 7601.97 | M152: 0 | N152: 0 | O152: 0 | P152: -0.0009994506836 | Q152: 0.0009994506836
A153: 2009-10-12T02:22:20 | B153: 60.02099991 | C153: 3658.661377 | D153: 350 | E153: -263.0473633 | F153: 0 | G153: 155 | H153: 10 | I153: 15 | J153: -103 | K153: 7602.3 | M153: 0 | N153: 0 | O153: 0 | P153: 0.0009994506836 | Q153: 0.0009994506836
A154: 2009-10-12T02:22:22 | B154: 60.02099991 | C154: 3656.7854 | D154: 350 | E154: -263.0473633 | F154: 0 | G154: 155.5 | H154: 10 | I154: 15 | J154: -103 | K154: 7602.63 | M154: 0 | N154: 0 | O154: 0 | P154: 0 | Q154: 0
A155: 2009-10-12T02:22:24 | B155: 60.02000046 | C155: 3657.571045 | D155: 350 | E155: -263.0473633 | F155: 0 | G155: 156 | H155: 10 | I155: 15 | J155: -103 | K155: 7602.96 | M155: 0 | N155: 0 | O155: 0 | P155: -0.0009994506836 | Q155: 0.0009994506836
A156: 2009-10-12T02:22:26 | B156: 60.01900101 | C156: 3658.125977 | D156: 350 | E156: -260.984375 | F156: 0 | G156: 156.5 | H156: 10 | I156: 15 | J156: -103 | K156: 7603.29 | M156: 0 | N156: 0 | O156: 0 | P156: -0.0009994506836 | Q156: 0.0009994506836
A157: 2009-10-12T02:22:28 | B157: 60.01900101 | C157: 3657.710449 | D157: 350 | E157: -260.984375 | F157: 0 | G157: 157 | H157: 10 | I157: 15 | J157: -103 | K157: 7603.62 | M157: 0 | N157: 0 | O157: 0 | P157: 0 | Q157: 0
A158: 2009-10-12T02:22:30 | B158: 60.02199936 | C158: 3658.014648 | D158: 350 | E158: -260.984375 | F158: 0 | G158: 157.5 | H158: 10 | I158: 15 | J158: -103 | K158: 7603.95 | M158: 0 | N158: 0 | O158: 0 | P158: 0.002998352051 | Q158: 0.002998352051
A159: 2009-10-12T02:22:32 | B159: 60.02500153 | C159: 3660.227539 | D159: 350 | E159: -260.984375 | F159: 0 | G159: 158 | H159: 10 | I159: 15 | J159: -103 | K159: 7604.28 | M159: 0 | N159: 0 | O159: 0 | P159: 0.003002166748 | Q159: 0.003002166748
A160: 2009-10-12T02:22:34 | B160: 60.02500153 | C160: 3659.223633 | D160: 350 | E160: -260.984375 | F160: 0 | G160: 158.5 | H160: 10 | I160: 15 | J160: -103 | K160: 7604.61 | M160: 0 | N160: 0 | O160: 0 | P160: 0 | Q160: 0
A161: 2009-10-12T02:22:36 | B161: 60.02600098 | C161: 3658.698242 | D161: 350 | E161: -261.3183289 | F161: 0 | G161: 159 | H161: 10 | I161: 15 | J161: -103 | K161: 7604.94 | M161: 0 | N161: 0 | O161: 0 | P161: 0.0009994506836 | Q161: 0.0009994506836
A162: 2009-10-12T02:22:38 | B162: 60.02000046 | C162: 3658.668701 | D162: 350 | E162: -261.3183289 | F162: 0 | G162: 159.5 | H162: 10 | I162: 15 | J162: -103 | K162: 7605.27 | M162: 0 | N162: 0 | O162: 0 | P162: -0.006000518799 | Q162: 0.006000518799
A163: 2009-10-12T02:22:40 | B163: 60.02000046 | C163: 3658.154541 | D163: 350 | E163: -261.3183289 | F163: 0 | G163: 160 | H163: 10 | I163: 15 | J163: -103 | K163: 7605.6 | M163: 0 | N163: 0 | O163: 0 | P163: 0 | Q163: 0
A164: 2009-10-12T02:22:42 | B164: 60.01800156 | C164: 3659.129639 | D164: 350 | E164: -261.3183289 | F164: 0 | G164: 160.5 | H164: 10 | I164: 15 | J164: -103 | K164: 7605.93 | M164: 0 | N164: 0 | O164: 0 | P164: -0.001998901367 | Q164: 0.001998901367
A165: 2009-10-12T02:22:44 | B165: 60.01800156 | C165: 3659.777588 | D165: 350 | E165: -261.3183289 | F165: 0 | G165: 161 | H165: 10 | I165: 15 | J165: -103 | K165: 7606.26 | M165: 0 | N165: 0 | O165: 0 | P165: 0 | Q165: 0
A166: 2009-10-12T02:22:46 | B166: 60.02000046 | C166: 3660.81958 | D166: 350 | E166: -262.1026001 | F166: 0 | G166: 161.5 | H166: 10 | I166: 15 | J166: -103 | K166: 7606.59 | M166: 0 | N166: 0 | O166: 0 | P166: 0.001998901367 | Q166: 0.001998901367
A167: 2009-10-12T02:22:48 | B167: 60.01900101 | C167: 3662.531494 | D167: 350 | E167: -262.1026001 | F167: 0 | G167: 162 | H167: 10 | I167: 15 | J167: -103 | K167: 7606.92 | M167: 0 | N167: 0 | O167: 0 | P167: -0.0009994506836 | Q167: 0.0009994506836
A168: 2009-10-12T02:22:50 | B168: 60.01900101 | C168: 3662.387207 | D168: 350 | E168: -262.1026001 | F168: 0 | G168: 162.5 | H168: 10 | I168: 15 | J168: -103 | K168: 7607.25 | M168: 0 | N168: 0 | O168: 0 | P168: 0 | Q168: 0
A169: 2009-10-12T02:22:52 | B169: 60.02299881 | C169: 3662.078857 | D169: 350 | E169: -262.1026001 | F169: 0 | G169: 163 | H169: 10 | I169: 15 | J169: -103 | K169: 7607.58 | M169: 0 | N169: 0 | O169: 0 | P169: 0.003997802734 | Q169: 0.003997802734
A170: 2009-10-12T02:22:54 | B170: 60.02199936 | C170: 3662.390137 | D170: 350 | E170: -262.1026001 | F170: 0 | G170: 163.5 | H170: 10 | I170: 15 | J170: -103 | K170: 7607.91 | M170: 0 | N170: 0 | O170: 0 | P170: -0.0009994506836 | Q170: 0.0009994506836
A171: 2009-10-12T02:22:56 | B171: 60.02199936 | C171: 3662.678223 | D171: 350 | E171: -262.7170105 | F171: 0 | G171: 164 | H171: 10 | I171: 15 | J171: -103 | K171: 7608.24 | M171: 0 | N171: 0 | O171: 0 | P171: 0 | Q171: 0
A172: 2009-10-12T02:22:58 | B172: 60.02500153 | C172: 3663.57666 | D172: 350 | E172: -262.7170105 | F172: 0 | G172: 164.5 | H172: 10 | I172: 15 | J172: -103 | K172: 7608.57 | M172: 0 | N172: 0 | O172: 0 | P172: 0.003002166748 | Q172: 0.003002166748
A173: 2009-10-12T02:23:00 | B173: 60.02000046 | C173: 3663.538574 | D173: 350 | E173: -262.7170105 | F173: 0 | G173: 165 | H173: 10 | I173: 15 | J173: -103 | K173: 7608.9 | M173: 0 | N173: 0 | O173: 0 | P173: -0.005001068115 | Q173: 0.005001068115
A174: 2009-10-12T02:23:02 | B174: 60.02000046 | C174: 3662.959229 | D174: 350 | E174: -262.7170105 | F174: 0 | G174: 165.5 | H174: 10 | I174: 15 | J174: -103 | K174: 7609.23 | M174: 0 | N174: 0 | O174: 0 | P174: 0 | Q174: 0
A175: 2009-10-12T02:23:04 | B175: 60.02000046 | C175: 3662.55249 | D175: 350 | E175: -262.7170105 | F175: 0 | G175: 166 | H175: 10 | I175: 15 | J175: -103 | K175: 7609.56 | M175: 0 | N175: 0 | O175: 0 | P175: 0 | Q175: 0
A176: 2009-10-12T02:23:06 | B176: 60.02000046 | C176: 3662.542969 | D176: 350 | E176: -260.0164795 | F176: 0 | G176: 166.5 | H176: 10 | I176: 15 | J176: -103 | K176: 7609.89 | M176: 0 | N176: 0 | O176: 0 | P176: 0 | Q176: 0
A177: 2009-10-12T02:23:08 | B177: 60.02000046 | C177: 3663.600586 | D177: 350 | E177: -260.0164795 | F177: 0 | G177: 167 | H177: 10 | I177: 15 | J177: -103 | K177: 7610.22 | M177: 0 | N177: 0 | O177: 0 | P177: 0 | Q177: 0
A178: 2009-10-12T02:23:10 | B178: 60.02099991 | C178: 3663.909668 | D178: 350 | E178: -260.0164795 | F178: 0 | G178: 167.5 | H178: 10 | I178: 15 | J178: -103 | K178: 7610.55 | M178: 0 | N178: 0 | O178: 0 | P178: 0.0009994506836 | Q178: 0.0009994506836
A179: 2009-10-12T02:23:12 | B179: 60.02099991 | C179: 3663.689941 | D179: 350 | E179: -260.0164795 | F179: 0 | G179: 168 | H179: 10 | I179: 15 | J179: -103 | K179: 7610.88 | M179: 0 | N179: 0 | O179: 0 | P179: 0 | Q179: 0
A180: 2009-10-12T02:23:14 | B180: 60.01800156 | C180: 3662.79126 | D180: 350 | E180: -260.0164795 | F180: 0 | G180: 168.5 | H180: 10 | I180: 15 | J180: -103 | K180: 7611.21 | M180: 0 | N180: 0 | O180: 0 | P180: -0.002998352051 | Q180: 0.002998352051
A181: 2009-10-12T02:23:16 | B181: 60.01399994 | C181: 3663.395752 | D181: 350 | E181: -263.87323 | F181: 0 | G181: 169 | H181: 10 | I181: 15 | J181: -103 | K181: 7611.54 | M181: 0 | N181: 0 | O181: 0 | P181: -0.004001617432 | Q181: 0.004001617432
A182: 2009-10-12T02:23:18 | B182: 60.01399994 | C182: 3663.697754 | D182: 350 | E182: -263.87323 | F182: 0 | G182: 169.5 | H182: 10 | I182: 15 | J182: -103 | K182: 7611.87 | M182: 0 | N182: 0 | O182: 0 | P182: 0 | Q182: 0
A183: 2009-10-12T02:23:20 | B183: 60.01399994 | C183: 3664.31543 | D183: 350 | E183: -263.87323 | F183: 0 | G183: 170 | H183: 10 | I183: 15 | J183: -103 | K183: 7612.2 | M183: 0 | N183: 0 | O183: 0 | P183: 0 | Q183: 0
A184: 2009-10-12T02:23:22 | B184: 60.01300049 | C184: 3665.312988 | D184: 350 | E184: -263.87323 | F184: 0 | G184: 170.5 | H184: 10 | I184: 15 | J184: -103 | K184: 7612.53 | M184: 0 | N184: 0 | O184: 0 | P184: -0.0009994506836 | Q184: 0.0009994506836
A185: 2009-10-12T02:23:24 | B185: 60.01300049 | C185: 3665.797607 | D185: 350 | E185: -263.87323 | F185: 0 | G185: 171 | H185: 10 | I185: 15 | J185: -103 | K185: 7612.86 | M185: 0 | N185: 0 | O185: 0 | P185: 0 | Q185: 0
A186: 2009-10-12T02:23:26 | B186: 60.00999832 | C186: 3666.141113 | D186: 350 | E186: -264.5979004 | F186: 0 | G186: 171.5 | H186: 10 | I186: 15 | J186: -103 | K186: 7613.19 | M186: 0 | N186: 0 | O186: 0 | P186: -0.003002166748 | Q186: 0.003002166748
A187: 2009-10-12T02:23:28 | B187: 60.00799942 | C187: 3666.72583 | D187: 350 | E187: -264.5979004 | F187: 0 | G187: 172 | H187: 10 | I187: 15 | J187: -103 | K187: 7613.52 | M187: 0 | N187: 0 | O187: 0 | P187: -0.001998901367 | Q187: 0.001998901367
A188: 2009-10-12T02:23:30 | B188: 60.01100159 | C188: 3667.676758 | D188: 350 | E188: -264.5979004 | F188: 0 | G188: 172.5 | H188: 10 | I188: 15 | J188: -103 | K188: 7613.85 | M188: 0 | N188: 0 | O188: 0 | P188: 0.003002166748 | Q188: 0.003002166748
A189: 2009-10-12T02:23:32 | B189: 60.01100159 | C189: 3667.54541 | D189: 350 | E189: -264.5979004 | F189: 0 | G189: 173 | H189: 10 | I189: 15 | J189: -103 | K189: 7614.18 | M189: 0 | N189: 0 | O189: 0 | P189: 0 | Q189: 0
A190: 2009-10-12T02:23:34 | B190: 60.01200104 | C190: 3666.688232 | D190: 350 | E190: -264.5979004 | F190: 0 | G190: 173.5 | H190: 10 | I190: 15 | J190: -103 | K190: 7614.51 | M190: 0 | N190: 0 | O190: 0 | P190: 0.0009994506836 | Q190: 0.0009994506836
A191: 2009-10-12T02:23:36 | B191: 60.01200104 | C191: 3666.44873 | D191: 350 | E191: -262.4159241 | F191: 0 | G191: 174 | H191: 10 | I191: 15 | J191: -103 | K191: 7614.84 | M191: 0 | N191: 0 | O191: 0 | P191: 0 | Q191: 0
A192: 2009-10-12T02:23:38 | B192: 60.00899887 | C192: 3666.710449 | D192: 350 | E192: -262.4159241 | F192: 0 | G192: 174.5 | H192: 10 | I192: 15 | J192: -103 | K192: 7615.17 | M192: 0 | N192: 0 | O192: 0 | P192: -0.003002166748 | Q192: 0.003002166748
A193: 2009-10-12T02:23:40 | B193: 60.00899887 | C193: 3667.696045 | D193: 350 | E193: -262.4159241 | F193: 0 | G193: 175 | H193: 10 | I193: 15 | J193: -103 | K193: 7615.5 | M193: 0 | N193: 0 | O193: 0 | P193: 0 | Q193: 0
A194: 2009-10-12T02:23:42 | B194: 60.00899887 | C194: 3667.398193 | D194: 350 | E194: -262.4159241 | F194: 0 | G194: 175.5 | H194: 10 | I194: 15 | J194: -103 | K194: 7615.83 | M194: 0 | N194: 0 | O194: 0 | P194: 0 | Q194: 0
A195: 2009-10-12T02:23:44 | B195: 60.00899887 | C195: 3667.042969 | D195: 350 | E195: -262.4159241 | F195: 0 | G195: 176 | H195: 10 | I195: 15 | J195: -103 | K195: 7616.16 | M195: 0 | N195: 0 | O195: 0 | P195: 0 | Q195: 0
A196: 2009-10-12T02:23:46 | B196: 60.00500107 | C196: 3666.623535 | D196: 350 | E196: -259.6852417 | F196: 0 | G196: 176.5 | H196: 10 | I196: 15 | J196: -103 | K196: 7616.49 | M196: 0 | N196: 0 | O196: 0 | P196: -0.003997802734 | Q196: 0.003997802734
A197: 2009-10-12T02:23:48 | B197: 60.0019989 | C197: 3666.222656 | D197: 350 | E197: -259.6852417 | F197: 0 | G197: 177 | H197: 10 | I197: 15 | J197: -103 | K197: 7616.82 | M197: 0 | N197: 0 | O197: 0 | P197: -0.003002166748 | Q197: 0.003002166748
A198: 2009-10-12T02:23:50 | B198: 59.99900055 | C198: 3665.879639 | D198: 350 | E198: -259.6852417 | F198: 0 | G198: 177.5 | H198: 10 | I198: 15 | J198: -103 | K198: 7617.15 | M198: 0 | N198: 0 | O198: 0 | P198: -0.002998352051 | Q198: 0.002998352051
A199: 2009-10-12T02:23:52 | B199: 59.99599838 | C199: 3665.40332 | D199: 350 | E199: -259.6852417 | F199: 0 | G199: 178 | H199: 10 | I199: 15 | J199: -103 | K199: 7617.48 | M199: 0 | N199: 0 | O199: =IF(ROW()<$M$3,0,1) -> 0 | P199: -0.003002166748 | Q199: 0.003002166748
A200: 2009-10-12T02:23:54 | B200: 59.99499893 | C200: 3665.801514 | D200: 350 | E200: -259.6852417 | F200: 0 | G200: 178.5 | H200: 10 | I200: 15 | J200: -103 | K200: 7617.81 | M200: =IF(ROW()<$M$5,0,1) -> 0 | N200: =IF((M200=1)*(B200>$N$2),1,0) -> 0 | O200: 0 | P200: =B200-B199 -> -0.0009994506836 | Q200: =ABS(P200) -> 0.0009994506836
... 1606 more rows

Sheet Copy Results
A1: Balancing Authority Name: | B1: MyBA | D1: =$B$1&TEXT($B$34,"\_yymmdd")&TEXT($B$35,"\_hhmm")&"_FRS_Form2.9.xlsm" -> MyBA_091012_0227_FRS_Form2.9.xlsm
B2: Interconnection Prevailing UFLS First Step Relay trip point | C2: 59.5 | D2: Hz
B3: Interconnection High Relay trip point | C3: =60-C2+60 -> 60.5 | D3: Hz
A4: Note: See "Instruction" tab for more detailed instructions. | E4: Auto | F4: Event Detection | Z4: Auto
D5: =Data!N3 -> 40098.10238 | E5: 1245 | F5: Manually selected row number of the Event Starting Time. | Z5: Manual
A6: Step 1. | B6: Copy and Paste Event Data into the appropriate cells of the "Data" worksheet. | D6: =Data!N4 -> 40098.10625 | E6: 1442 | F6: Manually selected row number of the Event Ending Time.
B7: Maintain date and time format of mm/dd/yy hh:mm:ss.
A8: Step 2. | B8: Data must start at least 2 full minutes before the beginning of the event. | C8: =Data!N3 -> 40098.10238
B9: Collect the same amount of data for each event. Suggest 2 to 3 minutes before to 15 minutes after (up to 60 minutes total). Delete unused rows of data in the Data worksheet below your data, columns A through R. You must also delete any un-used event detection formulas in columns N through R as well.
A10: Step 3. | B10: Enter your BA name in cell B1 of this worksheet.
A11: Step 4. | B11: Verify that the "Auto" Event Detection selected the correct event. Verify time and delta Hz | C11: =Data!N4 -> 40098.10625
B12: by comparing time of event and delta Hz on graph to the right to that on Form 1 for this event. If the wrong event was selected, in cell "E4" of this worksheet select "Manual" and manually select the beginning and ending row numbers of the desired event and enter these in cells "E5" and "E6". Only rarely should you have to use the "Manual" process.
A13: Step 5. | B13: Verify that the "Auto" selection of T(0) is correct by observing "Graph 20 to 52s".
B14: The very first frequency data point of the event on the graph
B15: must not be included in the "A Value" average. This is accomplished when the
B16: first frequency data point of the event is dead center of the graph on the center
B17: vertical grid line. The Auto event detection will select the single largest event in the
B18: data provided. An adjustment for T(0) alignment is provided in Cell Q3 on the Graph 20 to 52s.
A19: Step 6. | B19: When T(0) is properly aligned. Hit the big blue button to copy your data for pasting into FRS Form 1 "BA Event Data" worksheet.
A30: Step 7. | B30: Paste data into "FRS Form 1" in the appropriate row on the "BA Event Data" worksheet.
B31: Be sure to use the latest version of Form 1. This is Form 2.9 so use Form 1.9.
A33: Step 8. | B33: Save this workbook using the following file name in bold below:
B34: =Evaluation!G2 -> 2009-10-12T02:27:26 | C34: Date yymmdd
B35: =Evaluation!G2 -> 40098.10238 | C35: Time hh:ss of T(0)
B36: Where "MyBA" = your BA mnemonic
B38: =$B$1&TEXT($B$34,"\_yymmdd")&TEXT($B$35,"\_hhmm")&"_FRS_Form2.9.xlsm" -> MyBA_091012_0227_FRS_Form2.9.xlsm

Sheet Evaluation
B1: 2 | C1: seconds | F1: Date: | G1: =G2 -> 2009-10-12T02:27:26 | K1: Balancing Authority | L1: ='Copy Results'!B1 -> MyBA | R1: A Point | S1: =$B$78 -> 40098.10236 | Y1: Non-Conforming Load sign convention | Z1: + | AA1: (Data is positive for Load then enter "+" else "-" | AM1: Date: | AN1: =AN2 -> 2009-10-12T02:27:26 | AR1: Frequency Response Initiative - Additional Primary Frequency Response Evaluation Points
F2: Time of T(0) | G2: ='Copy Results'!C8 -> 40098.10238 | K2: Grid Nominal Frequency | L2: 60 | M2: Hz | R2: FPointA | S2: =$C$78 -> 60.03900146 | T2: =$B$78 -> 40098.10236 | AM2: Time of T(0) | AN2: =$G2 -> 40098.10238 | AR2: Frequency @ T(+46) | AS2: =C102 -> 59.88999939 | AT2: Hz
F3: Time of Frequency Recovery to 60 Hz or Pre-Perturbation Hz | G3: ='Copy Results'!C11 -> 40098.10625 | R3: A Value | S3: =AVERAGE($C$71:$C$78) -> 60.04212523 | AM3: Time of Frequency Recovery to 60 Hz or Pre-Perturbation Hz | AN3: =$G3 -> 40098.10625 | AR3: Frequency @ T(+76) | AS3: =C117 -> 59.86299896 | AT3: Hz | AU3: Actual | AW3: JOU | AX3: Non- | AZ3: Transferred | BA3: Contingent
F4: Value A Pre-Perturbation Average Frequency [T(-2 ) to T(-16)] | G4: =AVERAGE($C$71:$C$78) -> 60.04212523 | H4: Hz | K4: Droop Setting | L4: 0.05 | M4: =L4*L2 -> 3 | N4: Hz | R4: C Value | S4: =IF($K$16="Low Hz",MIN($C$79:$C$88),MAX($C$79:$C$88)) -> 59.83599854 | AM4: Value A Pre-Perturbation Average Frequency [T(-2 ) to T(-16)] | AN4: =AVERAGE($W$71:$W$78) -> 60.04212523 | AO4: Hz | AR4: Frequency @ T(+106) | AS4: =C132 -> 59.89899826 | AT4: Hz | AU4: Primary | AV4: Un-adjusted | AW4: Dynamic | AX4: Conforming | AY4: Pumped | AZ4: Frequency | BA4: BA | BB4: Adjusted
F5: Value B Post-Perturbation Average Frequency [T(+20 to T(+52)] | G5: =(AVERAGE($C$89:$C$105)) -> 59.88911775 | H5: Hz | K5: Deadband Setting | L5: 0 | M5: Hz | R5: Delta FC | AM5: Value B Post-Perturbation Average Frequency [T(+20 to T(+52)] | AN5: =AVERAGE($W$89:$W$105) -> 59.88911775 | AO5: Hz | AR5: Frequency @ T(+136) | AS5: =C147 -> 59.91999817 | AT5: Hz | AU5: Freq Response | AV5: P.U. | AW5: Schedules | AX5: Load | AY5: Hydro | AZ5: Response | BA5: Lost Generation | BB5: P.U.
F6: Pre to Post Perturbation Delta Frequency Actual | G6: =G5-G4 -> -0.1530074793 | H6: Hz | K6: Hz Span | L6: =M4-L5 -> 3 | M6: Hz | AM6: Pre to Post Perturbation Delta Frequency Actual | AN6: =AN5-AN4 -> -0.1530074793 | AO6: Hz | AR6: Frequency @ T(+166) | AS6: =C162 -> 59.93700027 | AT6: Hz | AU6: MW | AV6: Performance | AW6: Adjustment | AX6: Adjustment | AY6: Adjustment | AZ6: Adjustment | BA6: Adjustment | BB6: Performance
F7: Value A Pre-Perturbation Average Interchange MW [T(-2 ) to T(-16)] | G7: =AVERAGE($D$71:$D$78) -> 3645.727051 | H7: MW | AM7: Value A Pre-Perturbation Average Interchange MW [T(-2 ) to T(-16)] | AN7: =AVERAGE($D$71:$D$78) -> 3645.727051 | AO7: MW | AR7: EPFR @ T(+46) | AS7: =AG102 -> 113.3006287 | AT7: MW | AU7: =IF(G$6<0,MAX(AV102:AV107),MIN(AV102:AV107)) -> 158.5149217 | AV7: =AU7/AS7 -> 1.399064803 | AW7: =$Y102-$AN$15 -> -15 | AX7: =$Z102-$AN$16 -> 50.26229668 | AY7: =$AA102-$AN$17 -> 11 | AZ7: =$AC102*-10*(W102-$L$2)-$AN$19 -> 15.21258354 | BA7: =$AD102-$AN$20 -> -15 | BB7: =(AU7-SUM(AW7:AZ7))/AS7 -> 0.8564828158
F8: Value B Post-Perturbation Average Interchange MW [T(+20 to T(+52)] | G8: =AVERAGE($D$89:$D$105) -> 3788.354507 | H8: MW | AM8: Value B Post-Perturbation Average Interchange MW [T(+20 to T(+52)] | AN8: =AVERAGE($D$89:$D$105)-AN28+AN20 -> 3803.354507 | AO8: MW | AR8: EPFR @ T(+76) | AS8: =AG117 -> 141.1110687 | AT8: MW | AU8: =IF(G$6<0,MAX(AV117:AV122),MIN(AV117:AV122)) -> 182.4138475 | AV8: =AU8/AS8 -> 1.292696945 | AW8: =$Y117-$AN$15 -> -15 | AX8: =$Z117-$AN$16 -> 49.49447441 | AY8: =$AA117-$AN$17 -> 16 | AZ8: =$AC117*-10*(W117-$L$2)-$AN$19 -> 17.91262627 | BA8: =$AD117-$AN$20 -> -15 | BB8: =(AU8-SUM(AW8:AZ8))/AS8 -> 0.8079220704
F9: Pre to Post Perturbation Interchange Delta MW Actual | G9: =G8-G7-AN28+AN20 -> 157.6274558 | H9: MW | AM9: Pre to Post Perturbation Interchange Delta MW Actual | AN9: =AN8-AN7 -> 157.6274558 | AO9: MW | AR9: EPFR @ T(+106) | AS9: =AG132 -> 104.0317917 | AT9: MW | AU9: =IF(G$6<0,MAX(AV132:AV137),MIN(AV132:AV137)) -> 164.5417772 | AV9: 1.58164898 | AW9: =$Y132-$AN$15 -> -15 | AX9: =$Z132-$AN$16 -> 63.02927971 | AY9: =$AA132-$AN$17 -> 16 | AZ9: =$AC132*-10*(W132-$L$2)-$AN$19 -> 14.31269646 | BA9: =$AD132-$AN$20 -> -15 | BB9: =(AU9-SUM(AW9:AZ9))/AS9 -> 0.8285909489
F10: Initial Performance Ramp Magnitude Adjustment | G10: =(D77-D49)*0.59 -> -15.40208252 | H10: MW | AR10: EPFR @ T(+136) | AS10: =AG147 -> 82.40188599 | AT10: MW | AU10: =IF(G$6<0,MAX(AV147:AV152),MIN(AV147:AV152)) -> 129.4941697 | AV10: 1.571495217 | AW10: =$Y147-$AN$15 -> -15 | AX10: =$Z147-$AN$16 -> 64.13108635 | AY10: =$AA147-$AN$17 -> 16 | AZ10: =$AC147*-10*(W147-$L$2)-$AN$19 -> 12.21270561 | BA10: =$AD147-$AN$20 -> -15 | BB10: =(AU10-SUM(AW10:AZ10))/AS10 -> 0.6328784487
F11: EPFR Pre-Perturbation Average | G11: =AVERAGE(H71:H78) -> -43.38898182 | H11: MW | AM11: EPFR Pre-Perturbation Average | AN11: =AVERAGE(AT71:AT78) -> -43.38898182 | AO11: MW | AR11: EPFR @ T(+166) | AS11: =AG162 -> 64.8897171 | AT11: MW | AU11: =IF(G$6<0,MAX(AV162:AV167),MIN(AV162:AV167)) -> 119.9949022 | AV11: 1.849212903 | AW11: =$Y162-$AN$15 -> -15 | AX11: =$Z162-$AN$16 -> 63.75337029 | AY11: =$AA162-$AN$17 -> 16 | AZ11: =$AC162*-10*(W162-$L$2)-$AN$19 -> 10.51249504 | BA11: =$AD162-$AN$20 -> -15 | BB11: =(AU11-SUM(AW11:AZ11))/AS11 -> 0.6893085504
F12: EPFR Post-Perturbation Average | G12: =AVERAGE(H89:H105) -> 114.2087218 | H12: MW | AM12: EPFR Post-Perturbation Average | AN12: =AVERAGE($AG89:$AG105) -> 114.2087218 | AO12: MW
F13: EPFR Delta | G13: =G12-G11 -> 157.5977037 | H13: MW | K13: TC (frequency response filter constant) | L13: 0.35 | M13: Time Constant for delayed delivery of PFR during Sustained Measure | AM13: EPFR Unadjusted | AN13: =AN12-AN11 -> 157.5977037 | AO13: MW
AM14: EPFR Adjusted | AN14: =AN13+AN30 -> 198.0432287 | AO14: MW | AR14: T(20) to T(52) Evaluation
AM15: Pre JOU Dynamic Schedules MW | AN15: =AVERAGE($Y$71:$Y$78) -> 350 | AO15: MW | AR15: Pre-Perturbation Bias Setting | AS15: =AVERAGE($AE$71:$AE$78) -> -103 | AT15: MW/0.1 Hz
K16: =IF(G6<0,"Low Hz","High Hz") -> Low Hz | L16: Delta Hz Event | AM16: Pre Non-Conforming Load MW | AN16: =AVERAGE($Z$71:$Z$78) -> 165.3358784 | AO16: MW | AR16: Post-Perturbation Bias Setting | AS16: =AVERAGE($AE$89:$AE$105) -> -103 | AT16: MW/0.1 Hz
K17: =LOOKUP(G3,B43:B529,N43:N529) -> 3764.656131 | L17: Actual Interchange MW Average during frequency recovery period | AM17: Pre Pumped Hydro MW | AN17: =AVERAGE($AA$71:$AA$78) -> 0 | AO17: MW | AR17: EPFR for Bias Setting Pre-Perturbation Average | AS17: =(AN4-$L$2)*10*AS15 -> -43.38898182 | AT17: MW
K18: =LOOKUP(G3,B43:B529,O43:O529) -> 3804.234846 | L18: Target Interchange MW Average during frequency recovery period | AR18: EPFR for Bias Setting Post-Perturbation Average | AS18: =(AN5-$L$2)*10*AS16 -> 114.2087218 | AT18: MW
D19: EPFR = Expected Primary Frequency Response | F19: EPFR(Final) | G19: =G13+G10 -> 142.1956211 | H19: MW | K19: =LOOKUP(G3,B49:B529,Q49:Q529) -> 3719.843934 | L19: Interchange Average Ramp MW during frequency recovery period | AM19: Pre Transferred Frequency Response MW | AN19: =AVERAGE($AC$71:$AC$78)*-10*(AN4-$L$2) -> -4.212522507 | AO19: MW | AR19: EPFR for Bias Setting Delta | AS19: =AS18-AS17 -> 157.5977037 | AT19: MW
F20: MW Response in right direction for frequency delta | G20: =IF((G6*G9)<0,"Yes","No") -> Yes | K20: =D77 -> 3640.682129 | L20: Actual MW @ T(-4) | AM20: Pre Contingent BA Lost Generation MW | AN20: =AVERAGE($AD$71:$AD$78) -> 15 | AO20: MW | AR20: Primary Frequency Response Delivery % of Bias | AS20: =(AN9)/AS19 -> 1.000188785
K21: =LOOKUP(G3,B43:B524,D43:D524)-D77+I77-LOOKUP(G3,B43:B524,I43:I524)-AN28+AN20 -> 103.0350621 | L21: Starting and Ending Difference in Interchange MW during frequency recovery period (indicates ramp direction during recovery period) | AM21: Sum of Pre Perturbation Adjustments | AN21: =SUM(AN15:AN20) -> 526.1233559 | AO21: MW
K22: =G3-G2 -> 00:05:34 | L22: Event Duration (h:mm:ss)
K23: =IF(K18-K20<0,"Yes","No") -> No | L23: Target MW Average minus MW @ T(-4) less than zero | AM23: Post JOU Dynamic Schedules MW | AN23: =AVERAGE($Y$89:$Y$105) -> 335 | AO23: MW | AR23: Pre-Perturbation BA Load | AS23: =AVERAGE($AF$71:$AF$78) -> 7651.305 | AT23: MW
K24: =IF(K21>0,K18-K20,K18-(K20+K21)) -> 163.5527167 | L24: Interchange Target Relative Average Change - MW (Low Frequency Event) | AM24: Post Non-Conforming Load MW | AN24: =AVERAGE($Z$89:$Z$105) -> 214.1277143 | AO24: MW | AR24: Post-Perturbation BA Load | AS24: =AVERAGE($AF$89:$AF$105) -> 7632 | AT24: MW
K25: =IF(K21>0,K17-K20,K17-(K20+K21)) -> 123.9740019 | L25: Interchange Actual Relative Average Change - MW (Low Frequency Event) | AM25: Post Pumped Hydro MW | AN25: =AVERAGE($AA$89:$AA$105) -> 6.352941176 | AO25: MW | AR25: Pre to Post Perturbation BA Load Change | AS25: =AS24-AS23 -> -19.305 | AT25: MW
K26: =IF(K17-K20<0,"Yes","No") -> No | L26: Interchange Actual Average minus MW @ T(-4) less than zero | AR26: Load Dampening Frequency Response | AS26: =AS25/(AN6*-10) -> -12.61703029 | AT26: MW/0.1 Hz
K27: =IF(K17-K20>0,"Yes","No") -> Yes | L27: Interchange Average MW minus MW @ T(-4) greater than zero | AM27: Post Transferred Frequency Response MW | AN27: =AVERAGE($AC$89:$AC$105)*-10*(AN5-$L$2) -> 11.08822542 | AO27: MW | AR27: Load Dampening % of Total BA Frequency Response | AS27: =AS25/AN9*-1 -> 0.1224723187
K28: =IF(K18-K20>0,"Yes","No") -> Yes | L28: Interchange Target MW Average minus MW @ T(-4) greater than zero | AM28: Post Contingent BA Lost Generation MW | AN28: =AVERAGE($AD$89:$AD$105) -> 0 | AO28: MW
K29: =IF(K21>0,K18-(K20+K21),K18-K20) -> 60.51765462 | L29: Interchange Target Relative Average Change - MW (High Frequency Event) | AM29: Sum of Post Perturbation Adjustments | AN29: =SUM(AN23:AN27) -> 566.5688809 | AO29: MW
K30: =IF(K21>0,K17-(K20+K21),K17-K20) -> 20.93893983 | L30: Interchange Actual Relative Average Change - MW (High Frequency Event) | AM30: Net Total Adjustments MW | AN30: =AN29-AN21 -> 40.445525 | AO30: MW | AR30: Average Bias Setting when Hz is greater than +/-0.036 Hz | AS30: =AVERAGE(AY43:AY529) -> -103 | AT30: MW/0.1 Hz
K31: =IF(K21>=0,"Up","Down") -> Up | L31: Ramp Direction during frequency recovery period
V32: Frequency, Actual Interchange, Adjustment Data, Bias and Load used in the evaluation | AI32: 20 to 52 second Average Period Evaluation
F33: Initial Response P.U. Performance | G33: =IF(G20="Yes",G9/G19," ") -> 1.108525386 | H33: P.U. | K33: =IF(G33=" "," ",IF(K16="Low Hz",IF(K23="Yes",IF(K17>K18,1,IF(K17>K19,0.75,0)),IF(K27="Yes",IF((K25/K24)>2,2,K25/K24),IF(K17>K19,0.75,0))),IF(K23="Yes",IF(K27="Yes",IF(K17<K19,0.75,0),IF((K17/K18)>2,2,K17/K18)),IF(K17<K18,1,IF(K17<K19,0.75,0))))) -> 0.758006375 | L33: P.U. Sustianed Response P.U. Performance | AM33: Initial P.U. Performance for FRO | AN33: =AN9/AN13 -> 1.000188785 | AO33: P.U.
AM34: Initial P.U. Performance Adjusted for FRO | AN34: =(AN8-AN7-AN30)/AN13 -> 0.7435510039 | AO34: P.U.
K35: Initial | Y35: JOU | Z35: Non- | AC35: Transferred | AD35: Contingent | AL35: JOU | AM35: Non- | AP35: Transferred | AQ35: Contingent | AU35: Expected | AW35: Actual
H36: Bias | K36: Measure | N36: Average | O36: Average | Q36: Average | X36: Net | Y36: Dynamic | Z36: Conforming | AA36: Pumped | AC36: Frequency | AD36: BA | AE36: BA | AF36: BA | AG36: Expected Primary | AK36: Net | AL36: Dynamic | AM36: Conforming | AN36: Pumped | AP36: Frequency | AQ36: BA | AR36: BA | AS36: BA | AU36: Net | AV36: Actual | AW36: Primary
H37: (EPFR) | I37: (TC) | K37: Final | N37: Output | O37: Target | Q37: Ramp | X37: Actual | Y37: Schedules | Z37: Load | AA37: Hydro | AC37: Response | AD37: Lost Generation | AE37: Bias | AF37: Load | AG37: Freq Response | AK37: Actual | AL37: Schedules | AM37: Load | AN37: Hydro | AP37: Response | AQ37: Lost Generation | AR37: Bias | AS37: Load | AU37: Actual | AV37: Primary | AW37: Freq Response
E38: Value B | H38: Expected | I38: Delayed | K38: Expected | M38: Recovery | N38: During | O38: During | P38: Recovery | Q38: During | W38: Frequency | X38: Interchange | Y38: Imp(-) Exp (+) | Z38: Load (-) | AA38: Load (-) Gen (+) | AC38: Rec (-) Del (+) | AD38: Load (-) Gen (+) | AE38: Setting | AG38: Based on Bias Setting | AJ38: Frequency | AK38: Interchange | AL38: Imp(-) Exp (+) | AM38: Load (-) | AN38: Load (-) Gen (+) | AP38: Rec (-) Del (+) | AQ38: Load (-) Gen (+) | AR38: Setting | AT38: EPFR | AU38: Interchange | AV38: Freq Response | AW38: Beta
E39: 20 to 52 sec | H39: Primary | I39: Delivery | K39: Primary | L39: Average | M39: Period | N39: Recovery | O39: Recovery | P39: Period | Q39: Recovery | V39: T | W39: Hz | X39: MW | Y39: MW | Z39: MW | AA39: MW | AC39: MW/0.1 Hz | AD39: MW | AE39: MW/0.1 Hz | AF39: MW | AG39: MW | AI39: T | AJ39: Hz | AK39: MW | AL39: MW | AM39: MW | AN39: MW | AP39: MW/0.1 Hz | AQ39: MW | AR39: MW/0.1 Hz | AS39: MW | AT39: MW | AU39: MW | AV39: MW | AW39: MW/0.1 Hz
C40: Frequency | D40: Interchange | E40: Average | F40: Average | H40: Frequency | I40: Frequency | K40: Frequency | L40: Ramp | M40: Target | N40: Period | O40: Period | P40: Ramp | Q40: Period
B41: T | C41: Hz | D41: MW | E41: Frequency | F41: MW | H41: Response | I41: Response | K41: Response | L41: MW/scan | M41: MW | N41: MW | O41: MW | P41: MW | Q41: MW
A43: T-72 sec | B43: =B44-TIME(0,0,$B$1) -> 40098.10155 | C43: =LOOKUP($B43,Data!$A$6:$A$1806,Data!$B$6:$B$1806) -> 60.02700043 | D43: =LOOKUP(B43,Data!$A$6:$A$1806,Data!C$6:C$1806) -> 3671.188965 | G43: =AE43*-M$4*10 -> 3090 | H43: =(IF((C43-L$2)>0,((C43-L$2-L$5)/((L$4*L$2)-L$5)*G43*-1),((C43-L$2+L$5)/((L$4*L$2)-L$5)*G43*-1))) -> -27.81044006 | I43: =L$13*H43+(1-L$13)*I42 -> -9.733654022 | U43: T-72 sec | V43: =V44-TIME(0,0,$B$1) -> 40098.10155 | W43: =LOOKUP($V43,Data!$A$6:$A$1806,Data!$B$6:$B$1806) -> 60.02700043 | X43: =LOOKUP($V43,Data!$A$6:$A$1806,Data!$C$6:$C$1806) -> 3671.188965 | Y43: =LOOKUP($V43,Data!$A$6:$A$1806,Data!$D$6:$D$1806) -> 350 | Z43: =IF($Z$1="+",LOOKUP($V43,Data!$A$6:$A$1806,Data!$E$6:$E$1806)*-1,LOOKUP($V43,Data!$A$6:$A$1806,Data!$E$6:$E$1806)) -> 157.6280823 | AA43: =LOOKUP($V43,Data!$A$6:$A$1806,Data!$F$6:$F$1806) -> 0 | AC43: =LOOKUP($V43,Data!$A$6:$A$1806,Data!$H$6:$H$1806) -> 10 | AD43: =LOOKUP($V43,Data!$A$6:$A$1806,Data!$I$6:$I$1806) -> 15 | AE43: =IF(LOOKUP($V43,Data!$A$6:$A$1806,Data!$J$6:$J$1806)>0,(LOOKUP($V43,Data!$A$6:$A$1806,Data!$J$6:$J$1806)*-1),LOOKUP($V43,Data!$A$6:$A$1806,Data!$J$6:$J$1806)) -> -103 | AF43: =LOOKUP($V43,Data!$A$6:$A$1806,Data!$K$6:$K$1806) -> 7640.91 | AG43: =(IF((W43-$L$2)>0,((W43-$L$2-$L$5)/(($L$4*$L$2)-$L$5)*G43*-1),((W43-$L$2+$L$5)/(($L$4*$L$2)-$L$5)*G43*-1))) -> -27.81044006 | AH43: T-72 sec | AI43: =AI44-TIME(0,0,$B$1) -> 40098.10155 | AX43: =ABS(C43-60) -> 0.02700042725 | AY43: =IF(AX43>0.036,AE43," ") -> 
A44: T-70 sec | B44: 40098.10157 | C44: =LOOKUP(B44,Data!$A$6:$A$1806,Data!B$6:B$1806) -> 60.02600098 | D44: =LOOKUP(B44,Data!$A$6:$A$1806,Data!C$6:C$1806) -> 3668.610596 | G44: =AE44*-M$4*10 -> 3090 | H44: =(IF((C44-L$2)>0,((C44-L$2-L$5)/((L$4*L$2)-L$5)*G44*-1),((C44-L$2+L$5)/((L$4*L$2)-L$5)*G44*-1))) -> -26.78100586 | I44: -15.70022717 | U44: T-70 sec | V44: 40098.10157 | W44: =LOOKUP($V44,Data!$A$6:$A$1806,Data!$B$6:$B$1806) -> 60.02600098 | X44: =LOOKUP($V44,Data!$A$6:$A$1806,Data!$C$6:$C$1806) -> 3668.610596 | Y44: =LOOKUP($V44,Data!$A$6:$A$1806,Data!$D$6:$D$1806) -> 350 | Z44: =IF($Z$1="+",LOOKUP($V44,Data!$A$6:$A$1806,Data!$E$6:$E$1806)*-1,LOOKUP($V44,Data!$A$6:$A$1806,Data!$E$6:$E$1806)) -> 155.5317078 | AA44: =LOOKUP($V44,Data!$A$6:$A$1806,Data!$F$6:$F$1806) -> 0 | AC44: =LOOKUP($V44,Data!$A$6:$A$1806,Data!$H$6:$H$1806) -> 10 | AD44: =LOOKUP($V44,Data!$A$6:$A$1806,Data!$I$6:$I$1806) -> 15 | AE44: =IF(LOOKUP($V44,Data!$A$6:$A$1806,Data!$J$6:$J$1806)>0,(LOOKUP($V44,Data!$A$6:$A$1806,Data!$J$6:$J$1806)*-1),LOOKUP($V44,Data!$A$6:$A$1806,Data!$J$6:$J$1806)) -> -103 | AF44: =LOOKUP($V44,Data!$A$6:$A$1806,Data!$K$6:$K$1806) -> 7641.24 | AG44: =(IF((W44-$L$2)>0,((W44-$L$2-$L$5)/(($L$4*$L$2)-$L$5)*G44*-1),((W44-$L$2+$L$5)/(($L$4*$L$2)-$L$5)*G44*-1))) -> -26.78100586 | AH44: T-70 sec | AI44: 40098.10157 | AX44: =ABS(C44-60) -> 0.02600097656 | AY44: =IF(AX44>0.036,AE44," ") -> 
A45: T-68 sec | B45: 40098.1016 | C45: =LOOKUP(B45,Data!$A$6:$A$1806,Data!B$6:B$1806) -> 60.02600098 | D45: =LOOKUP(B45,Data!$A$6:$A$1806,Data!C$6:C$1806) -> 3665.232178 | G45: 3090 | H45: -26.78100586 | I45: -19.57849971 | U45: T-68 sec | V45: 40098.1016 | W45: =LOOKUP($V45,Data!$A$6:$A$1806,Data!$B$6:$B$1806) -> 60.02600098 | X45: =LOOKUP($V45,Data!$A$6:$A$1806,Data!$C$6:$C$1806) -> 3665.232178 | Y45: =LOOKUP($V45,Data!$A$6:$A$1806,Data!$D$6:$D$1806) -> 350 | Z45: =IF($Z$1="+",LOOKUP($V45,Data!$A$6:$A$1806,Data!$E$6:$E$1806)*-1,LOOKUP($V45,Data!$A$6:$A$1806,Data!$E$6:$E$1806)) -> 155.5317078 | AA45: =LOOKUP($V45,Data!$A$6:$A$1806,Data!$F$6:$F$1806) -> 0 | AC45: =LOOKUP($V45,Data!$A$6:$A$1806,Data!$H$6:$H$1806) -> 10 | AD45: =LOOKUP($V45,Data!$A$6:$A$1806,Data!$I$6:$I$1806) -> 15 | AE45: =IF(LOOKUP($V45,Data!$A$6:$A$1806,Data!$J$6:$J$1806)>0,(LOOKUP($V45,Data!$A$6:$A$1806,Data!$J$6:$J$1806)*-1),LOOKUP($V45,Data!$A$6:$A$1806,Data!$J$6:$J$1806)) -> -103 | AF45: =LOOKUP($V45,Data!$A$6:$A$1806,Data!$K$6:$K$1806) -> 7641.57 | AG45: -26.78100586 | AH45: T-68 sec | AI45: 40098.1016 | AX45: 0.02600097656
A46: T-66 sec | B46: =B47-TIME(0,0,$B$1) -> 40098.10162 | C46: =LOOKUP(B46,Data!$A$6:$A$1806,Data!B$6:B$1806) -> 60.02199936 | D46: =LOOKUP(B46,Data!$A$6:$A$1806,Data!C$6:C$1806) -> 3664.495117 | G46: 3090 | H46: -22.6593399 | I46: -20.65679378 | U46: T-66 sec | V46: 40098.10162 | W46: =LOOKUP($V46,Data!$A$6:$A$1806,Data!$B$6:$B$1806) -> 60.02199936 | X46: =LOOKUP($V46,Data!$A$6:$A$1806,Data!$C$6:$C$1806) -> 3664.495117 | Y46: =LOOKUP($V46,Data!$A$6:$A$1806,Data!$D$6:$D$1806) -> 350 | Z46: =IF($Z$1="+",LOOKUP($V46,Data!$A$6:$A$1806,Data!$E$6:$E$1806)*-1,LOOKUP($V46,Data!$A$6:$A$1806,Data!$E$6:$E$1806)) -> 155.5317078 | AA46: =LOOKUP($V46,Data!$A$6:$A$1806,Data!$F$6:$F$1806) -> 0 | AC46: =LOOKUP($V46,Data!$A$6:$A$1806,Data!$H$6:$H$1806) -> 10 | AD46: =LOOKUP($V46,Data!$A$6:$A$1806,Data!$I$6:$I$1806) -> 15 | AE46: =IF(LOOKUP($V46,Data!$A$6:$A$1806,Data!$J$6:$J$1806)>0,(LOOKUP($V46,Data!$A$6:$A$1806,Data!$J$6:$J$1806)*-1),LOOKUP($V46,Data!$A$6:$A$1806,Data!$J$6:$J$1806)) -> -103 | AF46: =LOOKUP($V46,Data!$A$6:$A$1806,Data!$K$6:$K$1806) -> 7641.9 | AG46: -22.6593399 | AH46: T-66 sec | AI46: 40098.10162 | AX46: 0.02199935913
A47: T-64 sec | B47: 40098.10164 | C47: =LOOKUP(B47,Data!$A$6:$A$1806,Data!B$6:B$1806) -> 60.01900101 | D47: =LOOKUP(B47,Data!$A$6:$A$1806,Data!C$6:C$1806) -> 3666.061768 | G47: 3090 | H47: -19.57103729 | I47: -20.27677901 | U47: T-64 sec | V47: 40098.10164 | W47: =LOOKUP($V47,Data!$A$6:$A$1806,Data!$B$6:$B$1806) -> 60.01900101 | X47: =LOOKUP($V47,Data!$A$6:$A$1806,Data!$C$6:$C$1806) -> 3666.061768 | Y47: =LOOKUP($V47,Data!$A$6:$A$1806,Data!$D$6:$D$1806) -> 350 | Z47: =IF($Z$1="+",LOOKUP($V47,Data!$A$6:$A$1806,Data!$E$6:$E$1806)*-1,LOOKUP($V47,Data!$A$6:$A$1806,Data!$E$6:$E$1806)) -> 155.5317078 | AA47: =LOOKUP($V47,Data!$A$6:$A$1806,Data!$F$6:$F$1806) -> 0 | AC47: =LOOKUP($V47,Data!$A$6:$A$1806,Data!$H$6:$H$1806) -> 10 | AD47: =LOOKUP($V47,Data!$A$6:$A$1806,Data!$I$6:$I$1806) -> 15 | AE47: =IF(LOOKUP($V47,Data!$A$6:$A$1806,Data!$J$6:$J$1806)>0,(LOOKUP($V47,Data!$A$6:$A$1806,Data!$J$6:$J$1806)*-1),LOOKUP($V47,Data!$A$6:$A$1806,Data!$J$6:$J$1806)) -> -103 | AF47: =LOOKUP($V47,Data!$A$6:$A$1806,Data!$K$6:$K$1806) -> 7642.23 | AG47: -19.57103729 | AH47: T-64 sec | AI47: 40098.10164 | AX47: 0.01900100708
A48: T-62 sec | B48: 40098.10167 | C48: =LOOKUP(B48,Data!$A$6:$A$1806,Data!B$6:B$1806) -> 60.01699829 | D48: =LOOKUP(B48,Data!$A$6:$A$1806,Data!C$6:C$1806) -> 3666.820801 | G48: 3090 | H48: -17.50823975 | I48: -19.30779027 | U48: T-62 sec | V48: 40098.10167 | W48: =LOOKUP($V48,Data!$A$6:$A$1806,Data!$B$6:$B$1806) -> 60.01699829 | X48: =LOOKUP($V48,Data!$A$6:$A$1806,Data!$C$6:$C$1806) -> 3666.820801 | Y48: =LOOKUP($V48,Data!$A$6:$A$1806,Data!$D$6:$D$1806) -> 350 | Z48: =IF($Z$1="+",LOOKUP($V48,Data!$A$6:$A$1806,Data!$E$6:$E$1806)*-1,LOOKUP($V48,Data!$A$6:$A$1806,Data!$E$6:$E$1806)) -> 155.5317078 | AA48: =LOOKUP($V48,Data!$A$6:$A$1806,Data!$F$6:$F$1806) -> 0 | AC48: =LOOKUP($V48,Data!$A$6:$A$1806,Data!$H$6:$H$1806) -> 10 | AD48: =LOOKUP($V48,Data!$A$6:$A$1806,Data!$I$6:$I$1806) -> 15 | AE48: =IF(LOOKUP($V48,Data!$A$6:$A$1806,Data!$J$6:$J$1806)>0,(LOOKUP($V48,Data!$A$6:$A$1806,Data!$J$6:$J$1806)*-1),LOOKUP($V48,Data!$A$6:$A$1806,Data!$J$6:$J$1806)) -> -103 | AF48: =LOOKUP($V48,Data!$A$6:$A$1806,Data!$K$6:$K$1806) -> 7642.56 | AG48: -17.50823975 | AH48: T-62 sec | AI48: 40098.10167 | AX48: 0.01699829102
A49: T-60 sec | B49: 40098.10169 | C49: =LOOKUP(B49,Data!$A$6:$A$1806,Data!B$6:B$1806) -> 60.01900101 | D49: =LOOKUP(B49,Data!$A$6:$A$1806,Data!C$6:C$1806) -> 3666.787354 | G49: 3090 | H49: -19.57103729 | I49: -19.39992673 | L49: =(D$78-D$49-I$78+I$49)/29 -> -0.1017396906 | M49: =M50-L49-(I50-I49) -> 3666.787354 | U49: T-60 sec | V49: 40098.10169 | W49: =LOOKUP($V49,Data!$A$6:$A$1806,Data!$B$6:$B$1806) -> 60.01900101 | X49: =LOOKUP($V49,Data!$A$6:$A$1806,Data!$C$6:$C$1806) -> 3666.787354 | Y49: =LOOKUP($V49,Data!$A$6:$A$1806,Data!$D$6:$D$1806) -> 350 | Z49: =IF($Z$1="+",LOOKUP($V49,Data!$A$6:$A$1806,Data!$E$6:$E$1806)*-1,LOOKUP($V49,Data!$A$6:$A$1806,Data!$E$6:$E$1806)) -> 160.4472351 | AA49: =LOOKUP($V49,Data!$A$6:$A$1806,Data!$F$6:$F$1806) -> 0 | AC49: =LOOKUP($V49,Data!$A$6:$A$1806,Data!$H$6:$H$1806) -> 10 | AD49: =LOOKUP($V49,Data!$A$6:$A$1806,Data!$I$6:$I$1806) -> 15 | AE49: =IF(LOOKUP($V49,Data!$A$6:$A$1806,Data!$J$6:$J$1806)>0,(LOOKUP($V49,Data!$A$6:$A$1806,Data!$J$6:$J$1806)*-1),LOOKUP($V49,Data!$A$6:$A$1806,Data!$J$6:$J$1806)) -> -103 | AF49: =LOOKUP($V49,Data!$A$6:$A$1806,Data!$K$6:$K$1806) -> 7642.89 | AG49: -19.57103729 | AH49: T-60 sec | AI49: 40098.10169 | AX49: 0.01900100708
A50: T-58 sec | B50: 40098.10171 | C50: =LOOKUP(B50,Data!$A$6:$A$1806,Data!B$6:B$1806) -> 60.02000046 | D50: =LOOKUP(B50,Data!$A$6:$A$1806,Data!C$6:C$1806) -> 3670.453613 | G50: 3090 | H50: -20.6004715 | I50: -19.8201174 | L50: -0.1017396906 | M50: =M51-L50-(I51-I50) -> 3666.265423 | U50: T-58 sec | V50: 40098.10171 | W50: =LOOKUP($V50,Data!$A$6:$A$1806,Data!$B$6:$B$1806) -> 60.02000046 | X50: =LOOKUP($V50,Data!$A$6:$A$1806,Data!$C$6:$C$1806) -> 3670.453613 | Y50: =LOOKUP($V50,Data!$A$6:$A$1806,Data!$D$6:$D$1806) -> 350 | Z50: =IF($Z$1="+",LOOKUP($V50,Data!$A$6:$A$1806,Data!$E$6:$E$1806)*-1,LOOKUP($V50,Data!$A$6:$A$1806,Data!$E$6:$E$1806)) -> 160.4472351 | AA50: =LOOKUP($V50,Data!$A$6:$A$1806,Data!$F$6:$F$1806) -> 0 | AC50: =LOOKUP($V50,Data!$A$6:$A$1806,Data!$H$6:$H$1806) -> 10 | AD50: =LOOKUP($V50,Data!$A$6:$A$1806,Data!$I$6:$I$1806) -> 15 | AE50: =IF(LOOKUP($V50,Data!$A$6:$A$1806,Data!$J$6:$J$1806)>0,(LOOKUP($V50,Data!$A$6:$A$1806,Data!$J$6:$J$1806)*-1),LOOKUP($V50,Data!$A$6:$A$1806,Data!$J$6:$J$1806)) -> -103 | AF50: =LOOKUP($V50,Data!$A$6:$A$1806,Data!$K$6:$K$1806) -> 7643.22 | AG50: -20.6004715 | AH50: T-58 sec | AI50: 40098.10171 | AX50: 0.02000045776
A51: T-56 sec | B51: 40098.10174 | C51: =LOOKUP(B51,Data!$A$6:$A$1806,Data!B$6:B$1806) -> 60.01900101 | D51: =LOOKUP(B51,Data!$A$6:$A$1806,Data!C$6:C$1806) -> 3670.266846 | G51: 3090 | H51: -19.57103729 | I51: -19.73293936 | L51: -0.1017396906 | M51: 3666.250862 | U51: T-56 sec | V51: 40098.10174 | W51: =LOOKUP($V51,Data!$A$6:$A$1806,Data!$B$6:$B$1806) -> 60.01900101 | X51: =LOOKUP($V51,Data!$A$6:$A$1806,Data!$C$6:$C$1806) -> 3670.266846 | Y51: =LOOKUP($V51,Data!$A$6:$A$1806,Data!$D$6:$D$1806) -> 350 | Z51: =IF($Z$1="+",LOOKUP($V51,Data!$A$6:$A$1806,Data!$E$6:$E$1806)*-1,LOOKUP($V51,Data!$A$6:$A$1806,Data!$E$6:$E$1806)) -> 160.4472351 | AA51: =LOOKUP($V51,Data!$A$6:$A$1806,Data!$F$6:$F$1806) -> 0 | AC51: =LOOKUP($V51,Data!$A$6:$A$1806,Data!$H$6:$H$1806) -> 10 | AD51: =LOOKUP($V51,Data!$A$6:$A$1806,Data!$I$6:$I$1806) -> 15 | AE51: =IF(LOOKUP($V51,Data!$A$6:$A$1806,Data!$J$6:$J$1806)>0,(LOOKUP($V51,Data!$A$6:$A$1806,Data!$J$6:$J$1806)*-1),LOOKUP($V51,Data!$A$6:$A$1806,Data!$J$6:$J$1806)) -> -103 | AF51: =LOOKUP($V51,Data!$A$6:$A$1806,Data!$K$6:$K$1806) -> 7643.55 | AG51: -19.57103729 | AH51: T-56 sec | AI51: 40098.10174 | AX51: 0.01900100708
A52: T-54 sec | B52: 40098.10176 | C52: =LOOKUP(B52,Data!$A$6:$A$1806,Data!B$6:B$1806) -> 60.02099991 | D52: =LOOKUP(B52,Data!$A$6:$A$1806,Data!C$6:C$1806) -> 3671.667969 | G52: 3090 | H52: -21.6299057 | I52: -20.39687758 | L52: -0.1017396906 | M52: 3665.485184 | U52: T-54 sec | V52: 40098.10176 | W52: =LOOKUP($V52,Data!$A$6:$A$1806,Data!$B$6:$B$1806) -> 60.02099991 | X52: =LOOKUP($V52,Data!$A$6:$A$1806,Data!$C$6:$C$1806) -> 3671.667969 | Y52: =LOOKUP($V52,Data!$A$6:$A$1806,Data!$D$6:$D$1806) -> 350 | Z52: =IF($Z$1="+",LOOKUP($V52,Data!$A$6:$A$1806,Data!$E$6:$E$1806)*-1,LOOKUP($V52,Data!$A$6:$A$1806,Data!$E$6:$E$1806)) -> 160.4472351 | AA52: =LOOKUP($V52,Data!$A$6:$A$1806,Data!$F$6:$F$1806) -> 0 | AC52: =LOOKUP($V52,Data!$A$6:$A$1806,Data!$H$6:$H$1806) -> 10 | AD52: =LOOKUP($V52,Data!$A$6:$A$1806,Data!$I$6:$I$1806) -> 15 | AE52: =IF(LOOKUP($V52,Data!$A$6:$A$1806,Data!$J$6:$J$1806)>0,(LOOKUP($V52,Data!$A$6:$A$1806,Data!$J$6:$J$1806)*-1),LOOKUP($V52,Data!$A$6:$A$1806,Data!$J$6:$J$1806)) -> -103 | AF52: =LOOKUP($V52,Data!$A$6:$A$1806,Data!$K$6:$K$1806) -> 7643.88 | AG52: -21.6299057 | AH52: T-54 sec | AI52: 40098.10176 | AX52: 0.02099990845
A53: T-52 sec | B53: 40098.10178 | C53: =LOOKUP(B53,Data!$A$6:$A$1806,Data!B$6:B$1806) -> 60.02099991 | D53: =LOOKUP(B53,Data!$A$6:$A$1806,Data!C$6:C$1806) -> 3672.493164 | G53: 3090 | H53: -21.6299057 | I53: -20.82843742 | L53: -0.1017396906 | M53: 3664.951884 | U53: T-52 sec | V53: 40098.10178 | W53: =LOOKUP($V53,Data!$A$6:$A$1806,Data!$B$6:$B$1806) -> 60.02099991 | X53: =LOOKUP($V53,Data!$A$6:$A$1806,Data!$C$6:$C$1806) -> 3672.493164 | Y53: =LOOKUP($V53,Data!$A$6:$A$1806,Data!$D$6:$D$1806) -> 350 | Z53: =IF($Z$1="+",LOOKUP($V53,Data!$A$6:$A$1806,Data!$E$6:$E$1806)*-1,LOOKUP($V53,Data!$A$6:$A$1806,Data!$E$6:$E$1806)) -> 160.4472351 | AA53: =LOOKUP($V53,Data!$A$6:$A$1806,Data!$F$6:$F$1806) -> 0 | AC53: =LOOKUP($V53,Data!$A$6:$A$1806,Data!$H$6:$H$1806) -> 10 | AD53: =LOOKUP($V53,Data!$A$6:$A$1806,Data!$I$6:$I$1806) -> 15 | AE53: =IF(LOOKUP($V53,Data!$A$6:$A$1806,Data!$J$6:$J$1806)>0,(LOOKUP($V53,Data!$A$6:$A$1806,Data!$J$6:$J$1806)*-1),LOOKUP($V53,Data!$A$6:$A$1806,Data!$J$6:$J$1806)) -> -103 | AF53: =LOOKUP($V53,Data!$A$6:$A$1806,Data!$K$6:$K$1806) -> 7644.21 | AG53: -21.6299057 | AH53: T-52 sec | AI53: 40098.10178 | AX53: 0.02099990845
A54: T-50 sec | B54: 40098.10181 | C54: =LOOKUP(B54,Data!$A$6:$A$1806,Data!B$6:B$1806) -> 60.02099991 | D54: =LOOKUP(B54,Data!$A$6:$A$1806,Data!C$6:C$1806) -> 3672.685059 | G54: 3090 | H54: -21.6299057 | I54: -21.10895132 | L54: -0.1017396906 | M54: 3664.56963 | U54: T-50 sec | V54: 40098.10181 | W54: =LOOKUP($V54,Data!$A$6:$A$1806,Data!$B$6:$B$1806) -> 60.02099991 | X54: =LOOKUP($V54,Data!$A$6:$A$1806,Data!$C$6:$C$1806) -> 3672.685059 | Y54: =LOOKUP($V54,Data!$A$6:$A$1806,Data!$D$6:$D$1806) -> 350 | Z54: =IF($Z$1="+",LOOKUP($V54,Data!$A$6:$A$1806,Data!$E$6:$E$1806)*-1,LOOKUP($V54,Data!$A$6:$A$1806,Data!$E$6:$E$1806)) -> 163.9586029 | AA54: =LOOKUP($V54,Data!$A$6:$A$1806,Data!$F$6:$F$1806) -> 0 | AC54: =LOOKUP($V54,Data!$A$6:$A$1806,Data!$H$6:$H$1806) -> 10 | AD54: =LOOKUP($V54,Data!$A$6:$A$1806,Data!$I$6:$I$1806) -> 15 | AE54: =IF(LOOKUP($V54,Data!$A$6:$A$1806,Data!$J$6:$J$1806)>0,(LOOKUP($V54,Data!$A$6:$A$1806,Data!$J$6:$J$1806)*-1),LOOKUP($V54,Data!$A$6:$A$1806,Data!$J$6:$J$1806)) -> -103 | AF54: =LOOKUP($V54,Data!$A$6:$A$1806,Data!$K$6:$K$1806) -> 7644.54 | AG54: -21.6299057 | AH54: T-50 sec | AI54: 40098.10181 | AX54: 0.02099990845
A55: T-48 sec | B55: 40098.10183 | C55: =LOOKUP(B55,Data!$A$6:$A$1806,Data!B$6:B$1806) -> 60.01900101 | D55: =LOOKUP(B55,Data!$A$6:$A$1806,Data!C$6:C$1806) -> 3672.857422 | G55: 3090 | H55: -19.57103729 | I55: -20.57068141 | L55: -0.1017396906 | M55: 3665.006161 | U55: T-48 sec | V55: 40098.10183 | W55: =LOOKUP($V55,Data!$A$6:$A$1806,Data!$B$6:$B$1806) -> 60.01900101 | X55: =LOOKUP($V55,Data!$A$6:$A$1806,Data!$C$6:$C$1806) -> 3672.857422 | Y55: =LOOKUP($V55,Data!$A$6:$A$1806,Data!$D$6:$D$1806) -> 350 | Z55: =IF($Z$1="+",LOOKUP($V55,Data!$A$6:$A$1806,Data!$E$6:$E$1806)*-1,LOOKUP($V55,Data!$A$6:$A$1806,Data!$E$6:$E$1806)) -> 163.9586029 | AA55: =LOOKUP($V55,Data!$A$6:$A$1806,Data!$F$6:$F$1806) -> 0 | AC55: =LOOKUP($V55,Data!$A$6:$A$1806,Data!$H$6:$H$1806) -> 10 | AD55: =LOOKUP($V55,Data!$A$6:$A$1806,Data!$I$6:$I$1806) -> 15 | AE55: =IF(LOOKUP($V55,Data!$A$6:$A$1806,Data!$J$6:$J$1806)>0,(LOOKUP($V55,Data!$A$6:$A$1806,Data!$J$6:$J$1806)*-1),LOOKUP($V55,Data!$A$6:$A$1806,Data!$J$6:$J$1806)) -> -103 | AF55: =LOOKUP($V55,Data!$A$6:$A$1806,Data!$K$6:$K$1806) -> 7644.87 | AG55: -19.57103729 | AH55: T-48 sec | AI55: 40098.10183 | AX55: 0.01900100708
A56: T-46 sec | B56: 40098.10185 | C56: =LOOKUP(B56,Data!$A$6:$A$1806,Data!B$6:B$1806) -> 60.01800156 | D56: =LOOKUP(B56,Data!$A$6:$A$1806,Data!C$6:C$1806) -> 3672.164062 | G56: 3090 | H56: -18.54160309 | I56: -19.860504 | L56: -0.1017396906 | M56: 3665.614598 | U56: T-46 sec | V56: 40098.10185 | W56: =LOOKUP($V56,Data!$A$6:$A$1806,Data!$B$6:$B$1806) -> 60.01800156 | X56: =LOOKUP($V56,Data!$A$6:$A$1806,Data!$C$6:$C$1806) -> 3672.164062 | Y56: =LOOKUP($V56,Data!$A$6:$A$1806,Data!$D$6:$D$1806) -> 350 | Z56: =IF($Z$1="+",LOOKUP($V56,Data!$A$6:$A$1806,Data!$E$6:$E$1806)*-1,LOOKUP($V56,Data!$A$6:$A$1806,Data!$E$6:$E$1806)) -> 163.9586029 | AA56: =LOOKUP($V56,Data!$A$6:$A$1806,Data!$F$6:$F$1806) -> 0 | AC56: =LOOKUP($V56,Data!$A$6:$A$1806,Data!$H$6:$H$1806) -> 10 | AD56: =LOOKUP($V56,Data!$A$6:$A$1806,Data!$I$6:$I$1806) -> 15 | AE56: =IF(LOOKUP($V56,Data!$A$6:$A$1806,Data!$J$6:$J$1806)>0,(LOOKUP($V56,Data!$A$6:$A$1806,Data!$J$6:$J$1806)*-1),LOOKUP($V56,Data!$A$6:$A$1806,Data!$J$6:$J$1806)) -> -103 | AF56: =LOOKUP($V56,Data!$A$6:$A$1806,Data!$K$6:$K$1806) -> 7645.2 | AG56: -18.54160309 | AH56: T-46 sec | AI56: 40098.10185 | AX56: 0.0180015564
A57: T-44 sec | B57: 40098.10188 | C57: =LOOKUP(B57,Data!$A$6:$A$1806,Data!B$6:B$1806) -> 60.02199936 | D57: =LOOKUP(B57,Data!$A$6:$A$1806,Data!C$6:C$1806) -> 3671.413086 | G57: 3090 | H57: -22.6593399 | I57: -20.84009656 | L57: -0.1017396906 | M57: 3664.533266 | U57: T-44 sec | V57: 40098.10188 | W57: =LOOKUP($V57,Data!$A$6:$A$1806,Data!$B$6:$B$1806) -> 60.02199936 | X57: =LOOKUP($V57,Data!$A$6:$A$1806,Data!$C$6:$C$1806) -> 3671.413086 | Y57: =LOOKUP($V57,Data!$A$6:$A$1806,Data!$D$6:$D$1806) -> 350 | Z57: =IF($Z$1="+",LOOKUP($V57,Data!$A$6:$A$1806,Data!$E$6:$E$1806)*-1,LOOKUP($V57,Data!$A$6:$A$1806,Data!$E$6:$E$1806)) -> 163.9586029 | AA57: =LOOKUP($V57,Data!$A$6:$A$1806,Data!$F$6:$F$1806) -> 0 | AC57: =LOOKUP($V57,Data!$A$6:$A$1806,Data!$H$6:$H$1806) -> 10 | AD57: =LOOKUP($V57,Data!$A$6:$A$1806,Data!$I$6:$I$1806) -> 15 | AE57: =IF(LOOKUP($V57,Data!$A$6:$A$1806,Data!$J$6:$J$1806)>0,(LOOKUP($V57,Data!$A$6:$A$1806,Data!$J$6:$J$1806)*-1),LOOKUP($V57,Data!$A$6:$A$1806,Data!$J$6:$J$1806)) -> -103 | AF57: =LOOKUP($V57,Data!$A$6:$A$1806,Data!$K$6:$K$1806) -> 7645.53 | AG57: -22.6593399 | AH57: T-44 sec | AI57: 40098.10188 | AX57: 0.02199935913
A58: T-42 sec | B58: 40098.1019 | C58: =LOOKUP(B58,Data!$A$6:$A$1806,Data!B$6:B$1806) -> 60.03099823 | D58: =LOOKUP(B58,Data!$A$6:$A$1806,Data!C$6:C$1806) -> 3669.98291 | G58: 3090 | H58: -31.92817688 | I58: -24.72092468 | L58: -0.1017396906 | M58: 3660.550698 | U58: T-42 sec | V58: 40098.1019 | W58: =LOOKUP($V58,Data!$A$6:$A$1806,Data!$B$6:$B$1806) -> 60.03099823 | X58: =LOOKUP($V58,Data!$A$6:$A$1806,Data!$C$6:$C$1806) -> 3669.98291 | Y58: =LOOKUP($V58,Data!$A$6:$A$1806,Data!$D$6:$D$1806) -> 350 | Z58: =IF($Z$1="+",LOOKUP($V58,Data!$A$6:$A$1806,Data!$E$6:$E$1806)*-1,LOOKUP($V58,Data!$A$6:$A$1806,Data!$E$6:$E$1806)) -> 163.9586029 | AA58: =LOOKUP($V58,Data!$A$6:$A$1806,Data!$F$6:$F$1806) -> 0 | AC58: =LOOKUP($V58,Data!$A$6:$A$1806,Data!$H$6:$H$1806) -> 10 | AD58: =LOOKUP($V58,Data!$A$6:$A$1806,Data!$I$6:$I$1806) -> 15 | AE58: =IF(LOOKUP($V58,Data!$A$6:$A$1806,Data!$J$6:$J$1806)>0,(LOOKUP($V58,Data!$A$6:$A$1806,Data!$J$6:$J$1806)*-1),LOOKUP($V58,Data!$A$6:$A$1806,Data!$J$6:$J$1806)) -> -103 | AF58: =LOOKUP($V58,Data!$A$6:$A$1806,Data!$K$6:$K$1806) -> 7645.86 | AG58: -31.92817688 | AH58: T-42 sec | AI58: 40098.1019 | AX58: 0.03099822998
A59: T-40 sec | B59: 40098.10192 | C59: =LOOKUP(B59,Data!$A$6:$A$1806,Data!B$6:B$1806) -> 60.03699875 | D59: =LOOKUP(B59,Data!$A$6:$A$1806,Data!C$6:C$1806) -> 3666.467285 | G59: 3090 | H59: -38.10871124 | I59: -29.40664997 | L59: -0.1017396906 | M59: 3655.763233 | U59: T-40 sec | V59: 40098.10192 | W59: =LOOKUP($V59,Data!$A$6:$A$1806,Data!$B$6:$B$1806) -> 60.03699875 | X59: =LOOKUP($V59,Data!$A$6:$A$1806,Data!$C$6:$C$1806) -> 3666.467285 | Y59: =LOOKUP($V59,Data!$A$6:$A$1806,Data!$D$6:$D$1806) -> 350 | Z59: =IF($Z$1="+",LOOKUP($V59,Data!$A$6:$A$1806,Data!$E$6:$E$1806)*-1,LOOKUP($V59,Data!$A$6:$A$1806,Data!$E$6:$E$1806)) -> 166.0724487 | AA59: =LOOKUP($V59,Data!$A$6:$A$1806,Data!$F$6:$F$1806) -> 0 | AC59: =LOOKUP($V59,Data!$A$6:$A$1806,Data!$H$6:$H$1806) -> 10 | AD59: =LOOKUP($V59,Data!$A$6:$A$1806,Data!$I$6:$I$1806) -> 15 | AE59: =IF(LOOKUP($V59,Data!$A$6:$A$1806,Data!$J$6:$J$1806)>0,(LOOKUP($V59,Data!$A$6:$A$1806,Data!$J$6:$J$1806)*-1),LOOKUP($V59,Data!$A$6:$A$1806,Data!$J$6:$J$1806)) -> -103 | AF59: =LOOKUP($V59,Data!$A$6:$A$1806,Data!$K$6:$K$1806) -> 7646.19 | AG59: -38.10871124 | AH59: T-40 sec | AI59: 40098.10192 | AX59: 0.03699874878 | AY59: -103
A60: T-38 sec | B60: 40098.10194 | C60: =LOOKUP(B60,Data!$A$6:$A$1806,Data!B$6:B$1806) -> 60.03699875 | D60: =LOOKUP(B60,Data!$A$6:$A$1806,Data!C$6:C$1806) -> 3663.758057 | G60: 3090 | H60: -38.10871124 | I60: -32.45237142 | L60: -0.1017396906 | M60: 3652.615772 | U60: T-38 sec | V60: 40098.10194 | W60: =LOOKUP($V60,Data!$A$6:$A$1806,Data!$B$6:$B$1806) -> 60.03699875 | X60: =LOOKUP($V60,Data!$A$6:$A$1806,Data!$C$6:$C$1806) -> 3663.758057 | Y60: =LOOKUP($V60,Data!$A$6:$A$1806,Data!$D$6:$D$1806) -> 350 | Z60: =IF($Z$1="+",LOOKUP($V60,Data!$A$6:$A$1806,Data!$E$6:$E$1806)*-1,LOOKUP($V60,Data!$A$6:$A$1806,Data!$E$6:$E$1806)) -> 166.0724487 | AA60: =LOOKUP($V60,Data!$A$6:$A$1806,Data!$F$6:$F$1806) -> 0 | AC60: =LOOKUP($V60,Data!$A$6:$A$1806,Data!$H$6:$H$1806) -> 10 | AD60: =LOOKUP($V60,Data!$A$6:$A$1806,Data!$I$6:$I$1806) -> 15 | AE60: =IF(LOOKUP($V60,Data!$A$6:$A$1806,Data!$J$6:$J$1806)>0,(LOOKUP($V60,Data!$A$6:$A$1806,Data!$J$6:$J$1806)*-1),LOOKUP($V60,Data!$A$6:$A$1806,Data!$J$6:$J$1806)) -> -103 | AF60: =LOOKUP($V60,Data!$A$6:$A$1806,Data!$K$6:$K$1806) -> 7646.52 | AG60: -38.10871124 | AH60: T-38 sec | AI60: 40098.10194 | AX60: 0.03699874878 | AY60: -103
A61: T-36 sec | B61: 40098.10197 | C61: =LOOKUP(B61,Data!$A$6:$A$1806,Data!B$6:B$1806) -> 60.0359993 | D61: =LOOKUP(B61,Data!$A$6:$A$1806,Data!C$6:C$1806) -> 3661.599121 | G61: 3090 | H61: -37.07927704 | I61: -34.07178839 | L61: -0.1017396906 | M61: 3650.894616 | U61: T-36 sec | V61: 40098.10197 | W61: =LOOKUP($V61,Data!$A$6:$A$1806,Data!$B$6:$B$1806) -> 60.0359993 | X61: =LOOKUP($V61,Data!$A$6:$A$1806,Data!$C$6:$C$1806) -> 3661.599121 | Y61: =LOOKUP($V61,Data!$A$6:$A$1806,Data!$D$6:$D$1806) -> 350 | Z61: =IF($Z$1="+",LOOKUP($V61,Data!$A$6:$A$1806,Data!$E$6:$E$1806)*-1,LOOKUP($V61,Data!$A$6:$A$1806,Data!$E$6:$E$1806)) -> 166.0724487 | AA61: =LOOKUP($V61,Data!$A$6:$A$1806,Data!$F$6:$F$1806) -> 0 | AC61: =LOOKUP($V61,Data!$A$6:$A$1806,Data!$H$6:$H$1806) -> 10 | AD61: =LOOKUP($V61,Data!$A$6:$A$1806,Data!$I$6:$I$1806) -> 15 | AE61: =IF(LOOKUP($V61,Data!$A$6:$A$1806,Data!$J$6:$J$1806)>0,(LOOKUP($V61,Data!$A$6:$A$1806,Data!$J$6:$J$1806)*-1),LOOKUP($V61,Data!$A$6:$A$1806,Data!$J$6:$J$1806)) -> -103 | AF61: =LOOKUP($V61,Data!$A$6:$A$1806,Data!$K$6:$K$1806) -> 7646.85 | AG61: -37.07927704 | AH61: T-36 sec | AI61: 40098.10197 | AX61: 0.0359992981
A62: T-34 sec | B62: 40098.10199 | C62: =LOOKUP(B62,Data!$A$6:$A$1806,Data!B$6:B$1806) -> 60.03699875 | D62: =LOOKUP(B62,Data!$A$6:$A$1806,Data!C$6:C$1806) -> 3660.672363 | G62: 3090 | H62: -38.10871124 | I62: -35.48471139 | L62: -0.1017396906 | M62: 3649.379953 | U62: T-34 sec | V62: 40098.10199 | W62: =LOOKUP($V62,Data!$A$6:$A$1806,Data!$B$6:$B$1806) -> 60.03699875 | X62: =LOOKUP($V62,Data!$A$6:$A$1806,Data!$C$6:$C$1806) -> 3660.672363 | Y62: =LOOKUP($V62,Data!$A$6:$A$1806,Data!$D$6:$D$1806) -> 350 | Z62: =IF($Z$1="+",LOOKUP($V62,Data!$A$6:$A$1806,Data!$E$6:$E$1806)*-1,LOOKUP($V62,Data!$A$6:$A$1806,Data!$E$6:$E$1806)) -> 166.0724487 | AA62: =LOOKUP($V62,Data!$A$6:$A$1806,Data!$F$6:$F$1806) -> 0 | AC62: =LOOKUP($V62,Data!$A$6:$A$1806,Data!$H$6:$H$1806) -> 10 | AD62: =LOOKUP($V62,Data!$A$6:$A$1806,Data!$I$6:$I$1806) -> 15 | AE62: =IF(LOOKUP($V62,Data!$A$6:$A$1806,Data!$J$6:$J$1806)>0,(LOOKUP($V62,Data!$A$6:$A$1806,Data!$J$6:$J$1806)*-1),LOOKUP($V62,Data!$A$6:$A$1806,Data!$J$6:$J$1806)) -> -103 | AF62: =LOOKUP($V62,Data!$A$6:$A$1806,Data!$K$6:$K$1806) -> 7647.18 | AG62: -38.10871124 | AH62: T-34 sec | AI62: 40098.10199 | AX62: 0.03699874878 | AY62: -103
A63: T-32 sec | B63: 40098.10201 | C63: =LOOKUP(B63,Data!$A$6:$A$1806,Data!B$6:B$1806) -> 60.04600143 | D63: =LOOKUP(B63,Data!$A$6:$A$1806,Data!C$6:C$1806) -> 3651.491699 | G63: 3090 | H63: -47.38147736 | I63: -39.64857948 | L63: -0.1017396906 | M63: 3645.114345 | U63: T-32 sec | V63: 40098.10201 | W63: =LOOKUP($V63,Data!$A$6:$A$1806,Data!$B$6:$B$1806) -> 60.04600143 | X63: =LOOKUP($V63,Data!$A$6:$A$1806,Data!$C$6:$C$1806) -> 3651.491699 | Y63: =LOOKUP($V63,Data!$A$6:$A$1806,Data!$D$6:$D$1806) -> 350 | Z63: =IF($Z$1="+",LOOKUP($V63,Data!$A$6:$A$1806,Data!$E$6:$E$1806)*-1,LOOKUP($V63,Data!$A$6:$A$1806,Data!$E$6:$E$1806)) -> 166.0724487 | AA63: =LOOKUP($V63,Data!$A$6:$A$1806,Data!$F$6:$F$1806) -> 0 | AC63: =LOOKUP($V63,Data!$A$6:$A$1806,Data!$H$6:$H$1806) -> 10 | AD63: =LOOKUP($V63,Data!$A$6:$A$1806,Data!$I$6:$I$1806) -> 15 | AE63: =IF(LOOKUP($V63,Data!$A$6:$A$1806,Data!$J$6:$J$1806)>0,(LOOKUP($V63,Data!$A$6:$A$1806,Data!$J$6:$J$1806)*-1),LOOKUP($V63,Data!$A$6:$A$1806,Data!$J$6:$J$1806)) -> -103 | AF63: =LOOKUP($V63,Data!$A$6:$A$1806,Data!$K$6:$K$1806) -> 7647.51 | AG63: -47.38147736 | AH63: T-32 sec | AI63: 40098.10201 | AX63: 0.04600143433 | AY63: -103
A64: T-30 sec | B64: 40098.10204 | C64: =LOOKUP(B64,Data!$A$6:$A$1806,Data!B$6:B$1806) -> 60.04800034 | D64: =LOOKUP(B64,Data!$A$6:$A$1806,Data!C$6:C$1806) -> 3649.19043 | G64: 3090 | H64: -49.44034576 | I64: -43.07569768 | L64: -0.1017396906 | M64: 3641.585487 | U64: T-30 sec | V64: 40098.10204 | W64: =LOOKUP($V64,Data!$A$6:$A$1806,Data!$B$6:$B$1806) -> 60.04800034 | X64: =LOOKUP($V64,Data!$A$6:$A$1806,Data!$C$6:$C$1806) -> 3649.19043 | Y64: =LOOKUP($V64,Data!$A$6:$A$1806,Data!$D$6:$D$1806) -> 350 | Z64: =IF($Z$1="+",LOOKUP($V64,Data!$A$6:$A$1806,Data!$E$6:$E$1806)*-1,LOOKUP($V64,Data!$A$6:$A$1806,Data!$E$6:$E$1806)) -> 163.7665863 | AA64: =LOOKUP($V64,Data!$A$6:$A$1806,Data!$F$6:$F$1806) -> 0 | AC64: =LOOKUP($V64,Data!$A$6:$A$1806,Data!$H$6:$H$1806) -> 10 | AD64: =LOOKUP($V64,Data!$A$6:$A$1806,Data!$I$6:$I$1806) -> 15 | AE64: =IF(LOOKUP($V64,Data!$A$6:$A$1806,Data!$J$6:$J$1806)>0,(LOOKUP($V64,Data!$A$6:$A$1806,Data!$J$6:$J$1806)*-1),LOOKUP($V64,Data!$A$6:$A$1806,Data!$J$6:$J$1806)) -> -103 | AF64: =LOOKUP($V64,Data!$A$6:$A$1806,Data!$K$6:$K$1806) -> 7647.84 | AG64: -49.44034576 | AH64: T-30 sec | AI64: 40098.10204 | AX64: 0.04800033569 | AY64: -103
A65: T-28 sec | B65: 40098.10206 | C65: =LOOKUP(B65,Data!$A$6:$A$1806,Data!B$6:B$1806) -> 60.04800034 | D65: =LOOKUP(B65,Data!$A$6:$A$1806,Data!C$6:C$1806) -> 3650.025146 | G65: 3090 | H65: -49.44034576 | I65: -45.30332451 | L65: -0.1017396906 | M65: 3639.256121 | U65: T-28 sec | V65: 40098.10206 | W65: =LOOKUP($V65,Data!$A$6:$A$1806,Data!$B$6:$B$1806) -> 60.04800034 | X65: =LOOKUP($V65,Data!$A$6:$A$1806,Data!$C$6:$C$1806) -> 3650.025146 | Y65: =LOOKUP($V65,Data!$A$6:$A$1806,Data!$D$6:$D$1806) -> 350 | Z65: =IF($Z$1="+",LOOKUP($V65,Data!$A$6:$A$1806,Data!$E$6:$E$1806)*-1,LOOKUP($V65,Data!$A$6:$A$1806,Data!$E$6:$E$1806)) -> 163.7665863 | AA65: =LOOKUP($V65,Data!$A$6:$A$1806,Data!$F$6:$F$1806) -> 0 | AC65: =LOOKUP($V65,Data!$A$6:$A$1806,Data!$H$6:$H$1806) -> 10 | AD65: =LOOKUP($V65,Data!$A$6:$A$1806,Data!$I$6:$I$1806) -> 15 | AE65: =IF(LOOKUP($V65,Data!$A$6:$A$1806,Data!$J$6:$J$1806)>0,(LOOKUP($V65,Data!$A$6:$A$1806,Data!$J$6:$J$1806)*-1),LOOKUP($V65,Data!$A$6:$A$1806,Data!$J$6:$J$1806)) -> -103 | AF65: =LOOKUP($V65,Data!$A$6:$A$1806,Data!$K$6:$K$1806) -> 7648.17 | AG65: -49.44034576 | AH65: T-28 sec | AI65: 40098.10206 | AX65: 0.04800033569 | AY65: -103
A66: T-26 sec | B66: 40098.10208 | C66: =LOOKUP(B66,Data!$A$6:$A$1806,Data!B$6:B$1806) -> 60.04299927 | D66: =LOOKUP(B66,Data!$A$6:$A$1806,Data!C$6:C$1806) -> 3648.246338 | G66: 3090 | H66: -44.28924561 | I66: -44.94839689 | L66: -0.1017396906 | M66: 3639.509309 | U66: T-26 sec | V66: 40098.10208 | W66: =LOOKUP($V66,Data!$A$6:$A$1806,Data!$B$6:$B$1806) -> 60.04299927 | X66: =LOOKUP($V66,Data!$A$6:$A$1806,Data!$C$6:$C$1806) -> 3648.246338 | Y66: =LOOKUP($V66,Data!$A$6:$A$1806,Data!$D$6:$D$1806) -> 350 | Z66: =IF($Z$1="+",LOOKUP($V66,Data!$A$6:$A$1806,Data!$E$6:$E$1806)*-1,LOOKUP($V66,Data!$A$6:$A$1806,Data!$E$6:$E$1806)) -> 163.7665863 | AA66: =LOOKUP($V66,Data!$A$6:$A$1806,Data!$F$6:$F$1806) -> 0 | AC66: =LOOKUP($V66,Data!$A$6:$A$1806,Data!$H$6:$H$1806) -> 10 | AD66: =LOOKUP($V66,Data!$A$6:$A$1806,Data!$I$6:$I$1806) -> 15 | AE66: =IF(LOOKUP($V66,Data!$A$6:$A$1806,Data!$J$6:$J$1806)>0,(LOOKUP($V66,Data!$A$6:$A$1806,Data!$J$6:$J$1806)*-1),LOOKUP($V66,Data!$A$6:$A$1806,Data!$J$6:$J$1806)) -> -103 | AF66: =LOOKUP($V66,Data!$A$6:$A$1806,Data!$K$6:$K$1806) -> 7648.5 | AG66: -44.28924561 | AH66: T-26 sec | AI66: 40098.10208 | AX66: 0.04299926758 | AY66: -103
A67: T-24 sec | B67: 40098.10211 | C67: =LOOKUP(B67,Data!$A$6:$A$1806,Data!B$6:B$1806) -> 60.04100037 | D67: =LOOKUP(B67,Data!$A$6:$A$1806,Data!C$6:C$1806) -> 3649.511963 | G67: 3090 | H67: -42.2303772 | I67: -43.99709 | L67: -0.1017396906 | M67: 3640.358876 | U67: T-24 sec | V67: 40098.10211 | W67: =LOOKUP($V67,Data!$A$6:$A$1806,Data!$B$6:$B$1806) -> 60.04100037 | X67: =LOOKUP($V67,Data!$A$6:$A$1806,Data!$C$6:$C$1806) -> 3649.511963 | Y67: =LOOKUP($V67,Data!$A$6:$A$1806,Data!$D$6:$D$1806) -> 350 | Z67: =IF($Z$1="+",LOOKUP($V67,Data!$A$6:$A$1806,Data!$E$6:$E$1806)*-1,LOOKUP($V67,Data!$A$6:$A$1806,Data!$E$6:$E$1806)) -> 163.7665863 | AA67: =LOOKUP($V67,Data!$A$6:$A$1806,Data!$F$6:$F$1806) -> 0 | AC67: =LOOKUP($V67,Data!$A$6:$A$1806,Data!$H$6:$H$1806) -> 10 | AD67: =LOOKUP($V67,Data!$A$6:$A$1806,Data!$I$6:$I$1806) -> 15 | AE67: =IF(LOOKUP($V67,Data!$A$6:$A$1806,Data!$J$6:$J$1806)>0,(LOOKUP($V67,Data!$A$6:$A$1806,Data!$J$6:$J$1806)*-1),LOOKUP($V67,Data!$A$6:$A$1806,Data!$J$6:$J$1806)) -> -103 | AF67: =LOOKUP($V67,Data!$A$6:$A$1806,Data!$K$6:$K$1806) -> 7648.83 | AG67: -42.2303772 | AH67: T-24 sec | AI67: 40098.10211 | AX67: 0.04100036621 | AY67: -103
A68: T-22 sec | B68: 40098.10213 | C68: =LOOKUP(B68,Data!$A$6:$A$1806,Data!B$6:B$1806) -> 60.04100037 | D68: =LOOKUP(B68,Data!$A$6:$A$1806,Data!C$6:C$1806) -> 3654.294434 | G68: 3090 | H68: -42.2303772 | I68: -43.37874052 | L68: -0.1017396906 | M68: 3640.875486 | U68: T-22 sec | V68: 40098.10213 | W68: =LOOKUP($V68,Data!$A$6:$A$1806,Data!$B$6:$B$1806) -> 60.04100037 | X68: =LOOKUP($V68,Data!$A$6:$A$1806,Data!$C$6:$C$1806) -> 3654.294434 | Y68: =LOOKUP($V68,Data!$A$6:$A$1806,Data!$D$6:$D$1806) -> 350 | Z68: =IF($Z$1="+",LOOKUP($V68,Data!$A$6:$A$1806,Data!$E$6:$E$1806)*-1,LOOKUP($V68,Data!$A$6:$A$1806,Data!$E$6:$E$1806)) -> 163.7665863 | AA68: =LOOKUP($V68,Data!$A$6:$A$1806,Data!$F$6:$F$1806) -> 0 | AC68: =LOOKUP($V68,Data!$A$6:$A$1806,Data!$H$6:$H$1806) -> 10 | AD68: =LOOKUP($V68,Data!$A$6:$A$1806,Data!$I$6:$I$1806) -> 15 | AE68: =IF(LOOKUP($V68,Data!$A$6:$A$1806,Data!$J$6:$J$1806)>0,(LOOKUP($V68,Data!$A$6:$A$1806,Data!$J$6:$J$1806)*-1),LOOKUP($V68,Data!$A$6:$A$1806,Data!$J$6:$J$1806)) -> -103 | AF68: =LOOKUP($V68,Data!$A$6:$A$1806,Data!$K$6:$K$1806) -> 7649.16 | AG68: -42.2303772 | AH68: T-22 sec | AI68: 40098.10213 | AX68: 0.04100036621 | AY68: -103
A69: T-20 sec | B69: 40098.10215 | C69: =LOOKUP(B69,Data!$A$6:$A$1806,Data!B$6:B$1806) -> 60.04100037 | D69: =LOOKUP(B69,Data!$A$6:$A$1806,Data!C$6:C$1806) -> 3655.006836 | G69: 3090 | H69: -42.2303772 | I69: -42.97681336 | L69: -0.1017396906 | M69: 3641.175673 | U69: T-20 sec | V69: 40098.10215 | W69: =LOOKUP($V69,Data!$A$6:$A$1806,Data!$B$6:$B$1806) -> 60.04100037 | X69: =LOOKUP($V69,Data!$A$6:$A$1806,Data!$C$6:$C$1806) -> 3655.006836 | Y69: =LOOKUP($V69,Data!$A$6:$A$1806,Data!$D$6:$D$1806) -> 350 | Z69: =IF($Z$1="+",LOOKUP($V69,Data!$A$6:$A$1806,Data!$E$6:$E$1806)*-1,LOOKUP($V69,Data!$A$6:$A$1806,Data!$E$6:$E$1806)) -> 165.1016846 | AA69: =LOOKUP($V69,Data!$A$6:$A$1806,Data!$F$6:$F$1806) -> 0 | AC69: =LOOKUP($V69,Data!$A$6:$A$1806,Data!$H$6:$H$1806) -> 10 | AD69: =LOOKUP($V69,Data!$A$6:$A$1806,Data!$I$6:$I$1806) -> 15 | AE69: =IF(LOOKUP($V69,Data!$A$6:$A$1806,Data!$J$6:$J$1806)>0,(LOOKUP($V69,Data!$A$6:$A$1806,Data!$J$6:$J$1806)*-1),LOOKUP($V69,Data!$A$6:$A$1806,Data!$J$6:$J$1806)) -> -103 | AF69: =LOOKUP($V69,Data!$A$6:$A$1806,Data!$K$6:$K$1806) -> 7649.49 | AG69: -42.2303772 | AH69: T-20 sec | AI69: 40098.10215 | AX69: 0.04100036621 | AY69: -103
A70: T-18 sec | B70: 40098.10218 | C70: =LOOKUP(B70,Data!$A$6:$A$1806,Data!B$6:B$1806) -> 60.03900146 | D70: =LOOKUP(B70,Data!$A$6:$A$1806,Data!C$6:C$1806) -> 3651.874268 | G70: 3090 | H70: -40.17150879 | I70: -41.99495676 | L70: -0.1017396906 | M70: 3642.05579 | U70: T-18 sec | V70: 40098.10218 | W70: =LOOKUP($V70,Data!$A$6:$A$1806,Data!$B$6:$B$1806) -> 60.03900146 | X70: =LOOKUP($V70,Data!$A$6:$A$1806,Data!$C$6:$C$1806) -> 3651.874268 | Y70: =LOOKUP($V70,Data!$A$6:$A$1806,Data!$D$6:$D$1806) -> 350 | Z70: =IF($Z$1="+",LOOKUP($V70,Data!$A$6:$A$1806,Data!$E$6:$E$1806)*-1,LOOKUP($V70,Data!$A$6:$A$1806,Data!$E$6:$E$1806)) -> 165.1016846 | AA70: =LOOKUP($V70,Data!$A$6:$A$1806,Data!$F$6:$F$1806) -> 0 | AC70: =LOOKUP($V70,Data!$A$6:$A$1806,Data!$H$6:$H$1806) -> 10 | AD70: =LOOKUP($V70,Data!$A$6:$A$1806,Data!$I$6:$I$1806) -> 15 | AE70: =IF(LOOKUP($V70,Data!$A$6:$A$1806,Data!$J$6:$J$1806)>0,(LOOKUP($V70,Data!$A$6:$A$1806,Data!$J$6:$J$1806)*-1),LOOKUP($V70,Data!$A$6:$A$1806,Data!$J$6:$J$1806)) -> -103 | AF70: =LOOKUP($V70,Data!$A$6:$A$1806,Data!$K$6:$K$1806) -> 7649.82 | AG70: -40.17150879 | AH70: T-18 sec | AI70: 40098.10218 | AX70: 0.03900146484 | AY70: -103
A71: T-16 sec | B71: 40098.1022 | C71: =LOOKUP(B71,Data!$A$6:$A$1806,Data!B$6:B$1806) -> 60.04100037 | D71: =LOOKUP(B71,Data!$A$6:$A$1806,Data!C$6:C$1806) -> 3651.059326 | E71: =AVERAGE($C$71:$C$78) -> 60.04212523 | F71: =AVERAGE($D$71:$D$78) -> 3645.727051 | G71: 3090 | H71: -42.2303772 | I71: -42.07735391 | L71: -0.1017396906 | M71: 3641.871653 | U71: T-16 sec | V71: 40098.1022 | W71: =LOOKUP($V71,Data!$A$6:$A$1806,Data!$B$6:$B$1806) -> 60.04100037 | X71: =LOOKUP($V71,Data!$A$6:$A$1806,Data!$C$6:$C$1806) -> 3651.059326 | Y71: =LOOKUP($V71,Data!$A$6:$A$1806,Data!$D$6:$D$1806) -> 350 | Z71: =IF($Z$1="+",LOOKUP($V71,Data!$A$6:$A$1806,Data!$E$6:$E$1806)*-1,LOOKUP($V71,Data!$A$6:$A$1806,Data!$E$6:$E$1806)) -> 165.1016846 | AA71: =LOOKUP($V71,Data!$A$6:$A$1806,Data!$F$6:$F$1806) -> 0 | AC71: =LOOKUP($V71,Data!$A$6:$A$1806,Data!$H$6:$H$1806) -> 10 | AD71: =LOOKUP($V71,Data!$A$6:$A$1806,Data!$I$6:$I$1806) -> 15 | AE71: =IF(LOOKUP($V71,Data!$A$6:$A$1806,Data!$J$6:$J$1806)>0,(LOOKUP($V71,Data!$A$6:$A$1806,Data!$J$6:$J$1806)*-1),LOOKUP($V71,Data!$A$6:$A$1806,Data!$J$6:$J$1806)) -> -103 | AF71: =LOOKUP($V71,Data!$A$6:$A$1806,Data!$K$6:$K$1806) -> 7650.15 | AG71: -42.2303772 | AH71: T-16 sec | AI71: 40098.1022 | AJ71: =AVERAGE($W$71:$W$78) -> 60.04212523 | AK71: =AVERAGE($X$71:$X$78) -> 3645.727051 | AL71: =AVERAGE($Y$71:$Y$78) -> 350 | AM71: =AVERAGE($Z$71:$Z$78) -> 165.3358784 | AN71: =AVERAGE($AA$71:$AA$78) -> 0 | AP71: =AVERAGE($AC$71:$AC$78) -> 10 | AQ71: =AVERAGE($AD$71:$AD$78) -> 15 | AR71: =AVERAGE($AE$71:$AE$78) -> -103 | AS71: =AVERAGE($AF$71:$AF$78) -> 7651.305 | AT71: =AVERAGE($AG$71:$AG$78) -> -43.38898182 | AX71: 0.04100036621 | AY71: -103
A72: T-14 sec | B72: 40098.10222 | C72: =LOOKUP(B72,Data!$A$6:$A$1806,Data!B$6:B$1806) -> 60.04299927 | D72: =LOOKUP(B72,Data!$A$6:$A$1806,Data!C$6:C$1806) -> 3649.187012 | E72: =AVERAGE($C$71:$C$78) -> 60.04212523 | F72: =AVERAGE($D$71:$D$78) -> 3645.727051 | G72: 3090 | H72: -44.28924561 | I72: -42.851516 | L72: -0.1017396906 | M72: 3640.995751 | U72: T-14 sec | V72: 40098.10222 | W72: =LOOKUP($V72,Data!$A$6:$A$1806,Data!$B$6:$B$1806) -> 60.04299927 | X72: =LOOKUP($V72,Data!$A$6:$A$1806,Data!$C$6:$C$1806) -> 3649.187012 | Y72: =LOOKUP($V72,Data!$A$6:$A$1806,Data!$D$6:$D$1806) -> 350 | Z72: =IF($Z$1="+",LOOKUP($V72,Data!$A$6:$A$1806,Data!$E$6:$E$1806)*-1,LOOKUP($V72,Data!$A$6:$A$1806,Data!$E$6:$E$1806)) -> 165.1016846 | AA72: =LOOKUP($V72,Data!$A$6:$A$1806,Data!$F$6:$F$1806) -> 0 | AC72: =LOOKUP($V72,Data!$A$6:$A$1806,Data!$H$6:$H$1806) -> 10 | AD72: =LOOKUP($V72,Data!$A$6:$A$1806,Data!$I$6:$I$1806) -> 15 | AE72: =IF(LOOKUP($V72,Data!$A$6:$A$1806,Data!$J$6:$J$1806)>0,(LOOKUP($V72,Data!$A$6:$A$1806,Data!$J$6:$J$1806)*-1),LOOKUP($V72,Data!$A$6:$A$1806,Data!$J$6:$J$1806)) -> -103 | AF72: =LOOKUP($V72,Data!$A$6:$A$1806,Data!$K$6:$K$1806) -> 7650.48 | AG72: -44.28924561 | AH72: T-14 sec | AI72: 40098.10222 | AJ72: =AVERAGE($W$71:$W$78) -> 60.04212523 | AK72: =AVERAGE($X$71:$X$78) -> 3645.727051 | AL72: =AVERAGE($Y$71:$Y$78) -> 350 | AM72: =AVERAGE($Z$71:$Z$78) -> 165.3358784 | AN72: =AVERAGE($AA$71:$AA$78) -> 0 | AP72: =AVERAGE($AC$71:$AC$78) -> 10 | AQ72: =AVERAGE($AD$71:$AD$78) -> 15 | AR72: =AVERAGE($AE$71:$AE$78) -> -103 | AS72: =AVERAGE($AF$71:$AF$78) -> 7651.305 | AT72: =AVERAGE($AG$71:$AG$78) -> -43.38898182 | AX72: 0.04299926758 | AY72: -103
A73: T-12 sec | B73: 40098.10225 | C73: =LOOKUP(B73,Data!$A$6:$A$1806,Data!B$6:B$1806) -> 60.04499817 | D73: =LOOKUP(B73,Data!$A$6:$A$1806,Data!C$6:C$1806) -> 3648.236328 | E73: 60.04212523 | F73: 3645.727051 | G73: 3090 | H73: -46.34811401 | I73: -44.07532531 | L73: -0.1017396906 | M73: 3639.670202 | U73: T-12 sec | V73: 40098.10225 | W73: =LOOKUP($V73,Data!$A$6:$A$1806,Data!$B$6:$B$1806) -> 60.04499817 | X73: =LOOKUP($V73,Data!$A$6:$A$1806,Data!$C$6:$C$1806) -> 3648.236328 | Y73: =LOOKUP($V73,Data!$A$6:$A$1806,Data!$D$6:$D$1806) -> 350 | Z73: =IF($Z$1="+",LOOKUP($V73,Data!$A$6:$A$1806,Data!$E$6:$E$1806)*-1,LOOKUP($V73,Data!$A$6:$A$1806,Data!$E$6:$E$1806)) -> 165.1016846 | AA73: =LOOKUP($V73,Data!$A$6:$A$1806,Data!$F$6:$F$1806) -> 0 | AC73: =LOOKUP($V73,Data!$A$6:$A$1806,Data!$H$6:$H$1806) -> 10 | AD73: =LOOKUP($V73,Data!$A$6:$A$1806,Data!$I$6:$I$1806) -> 15 | AE73: =IF(LOOKUP($V73,Data!$A$6:$A$1806,Data!$J$6:$J$1806)>0,(LOOKUP($V73,Data!$A$6:$A$1806,Data!$J$6:$J$1806)*-1),LOOKUP($V73,Data!$A$6:$A$1806,Data!$J$6:$J$1806)) -> -103 | AF73: =LOOKUP($V73,Data!$A$6:$A$1806,Data!$K$6:$K$1806) -> 7650.81 | AG73: -46.34811401 | AH73: T-12 sec | AI73: 40098.10225 | AJ73: 60.04212523 | AK73: 3645.727051 | AL73: 350 | AM73: 165.3358784 | AN73: 0 | AP73: 10 | AQ73: 15 | AR73: -103 | AS73: 7651.305 | AT73: -43.38898182 | AX73: 0.04499816895 | AY73: -103
A74: T-10 sec | B74: 40098.10227 | C74: =LOOKUP(B74,Data!$A$6:$A$1806,Data!B$6:B$1806) -> 60.04600143 | D74: =LOOKUP(B74,Data!$A$6:$A$1806,Data!C$6:C$1806) -> 3645.386963 | E74: 60.04212523 | F74: 3645.727051 | G74: 3090 | H74: -47.38147736 | I74: -45.23247852 | L74: -0.1017396906 | M74: 3638.411309 | U74: T-10 sec | V74: 40098.10227 | W74: =LOOKUP($V74,Data!$A$6:$A$1806,Data!$B$6:$B$1806) -> 60.04600143 | X74: =LOOKUP($V74,Data!$A$6:$A$1806,Data!$C$6:$C$1806) -> 3645.386963 | Y74: =LOOKUP($V74,Data!$A$6:$A$1806,Data!$D$6:$D$1806) -> 350 | Z74: =IF($Z$1="+",LOOKUP($V74,Data!$A$6:$A$1806,Data!$E$6:$E$1806)*-1,LOOKUP($V74,Data!$A$6:$A$1806,Data!$E$6:$E$1806)) -> 165.4763947 | AA74: =LOOKUP($V74,Data!$A$6:$A$1806,Data!$F$6:$F$1806) -> 0 | AC74: =LOOKUP($V74,Data!$A$6:$A$1806,Data!$H$6:$H$1806) -> 10 | AD74: =LOOKUP($V74,Data!$A$6:$A$1806,Data!$I$6:$I$1806) -> 15 | AE74: =IF(LOOKUP($V74,Data!$A$6:$A$1806,Data!$J$6:$J$1806)>0,(LOOKUP($V74,Data!$A$6:$A$1806,Data!$J$6:$J$1806)*-1),LOOKUP($V74,Data!$A$6:$A$1806,Data!$J$6:$J$1806)) -> -103 | AF74: =LOOKUP($V74,Data!$A$6:$A$1806,Data!$K$6:$K$1806) -> 7651.14 | AG74: -47.38147736 | AH74: T-10 sec | AI74: 40098.10227 | AJ74: 60.04212523 | AK74: 3645.727051 | AL74: 350 | AM74: 165.3358784 | AN74: 0 | AP74: 10 | AQ74: 15 | AR74: -103 | AS74: 7651.305 | AT74: -43.38898182 | AX74: 0.04600143433 | AY74: -103
A75: T-08 sec | B75: 40098.10229 | C75: =LOOKUP(B75,Data!$A$6:$A$1806,Data!B$6:B$1806) -> 60.04100037 | D75: =LOOKUP(B75,Data!$A$6:$A$1806,Data!C$6:C$1806) -> 3644.627686 | E75: 60.04212523 | F75: 3645.727051 | G75: 3090 | H75: -42.2303772 | I75: -44.18174306 | L75: -0.1017396906 | M75: 3639.360305 | U75: T-08 sec | V75: 40098.10229 | W75: =LOOKUP($V75,Data!$A$6:$A$1806,Data!$B$6:$B$1806) -> 60.04100037 | X75: =LOOKUP($V75,Data!$A$6:$A$1806,Data!$C$6:$C$1806) -> 3644.627686 | Y75: =LOOKUP($V75,Data!$A$6:$A$1806,Data!$D$6:$D$1806) -> 350 | Z75: =IF($Z$1="+",LOOKUP($V75,Data!$A$6:$A$1806,Data!$E$6:$E$1806)*-1,LOOKUP($V75,Data!$A$6:$A$1806,Data!$E$6:$E$1806)) -> 165.4763947 | AA75: =LOOKUP($V75,Data!$A$6:$A$1806,Data!$F$6:$F$1806) -> 0 | AC75: =LOOKUP($V75,Data!$A$6:$A$1806,Data!$H$6:$H$1806) -> 10 | AD75: =LOOKUP($V75,Data!$A$6:$A$1806,Data!$I$6:$I$1806) -> 15 | AE75: =IF(LOOKUP($V75,Data!$A$6:$A$1806,Data!$J$6:$J$1806)>0,(LOOKUP($V75,Data!$A$6:$A$1806,Data!$J$6:$J$1806)*-1),LOOKUP($V75,Data!$A$6:$A$1806,Data!$J$6:$J$1806)) -> -103 | AF75: =LOOKUP($V75,Data!$A$6:$A$1806,Data!$K$6:$K$1806) -> 7651.47 | AG75: -42.2303772 | AH75: T-08 sec | AI75: 40098.10229 | AJ75: 60.04212523 | AK75: 3645.727051 | AL75: 350 | AM75: 165.3358784 | AN75: 0 | AP75: 10 | AQ75: 15 | AR75: -103 | AS75: 7651.305 | AT75: -43.38898182 | AX75: 0.04100036621 | AY75: -103
A76: T-06 sec | B76: 40098.10231 | C76: =LOOKUP(B76,Data!$A$6:$A$1806,Data!B$6:B$1806) -> 60.04100037 | D76: =LOOKUP(B76,Data!$A$6:$A$1806,Data!C$6:C$1806) -> 3645.445801 | E76: 60.04212523 | F76: 3645.727051 | G76: 3090 | H76: -42.2303772 | I76: -43.49876501 | L76: -0.1017396906 | M76: 3639.941544 | U76: T-06 sec | V76: 40098.10231 | W76: =LOOKUP($V76,Data!$A$6:$A$1806,Data!$B$6:$B$1806) -> 60.04100037 | X76: =LOOKUP($V76,Data!$A$6:$A$1806,Data!$C$6:$C$1806) -> 3645.445801 | Y76: =LOOKUP($V76,Data!$A$6:$A$1806,Data!$D$6:$D$1806) -> 350 | Z76: =IF($Z$1="+",LOOKUP($V76,Data!$A$6:$A$1806,Data!$E$6:$E$1806)*-1,LOOKUP($V76,Data!$A$6:$A$1806,Data!$E$6:$E$1806)) -> 165.4763947 | AA76: =LOOKUP($V76,Data!$A$6:$A$1806,Data!$F$6:$F$1806) -> 0 | AC76: =LOOKUP($V76,Data!$A$6:$A$1806,Data!$H$6:$H$1806) -> 10 | AD76: =LOOKUP($V76,Data!$A$6:$A$1806,Data!$I$6:$I$1806) -> 15 | AE76: =IF(LOOKUP($V76,Data!$A$6:$A$1806,Data!$J$6:$J$1806)>0,(LOOKUP($V76,Data!$A$6:$A$1806,Data!$J$6:$J$1806)*-1),LOOKUP($V76,Data!$A$6:$A$1806,Data!$J$6:$J$1806)) -> -103 | AF76: =LOOKUP($V76,Data!$A$6:$A$1806,Data!$K$6:$K$1806) -> 7651.8 | AG76: -42.2303772 | AH76: T-06 sec | AI76: 40098.10231 | AJ76: 60.04212523 | AK76: 3645.727051 | AL76: 350 | AM76: 165.3358784 | AN76: 0 | AP76: 10 | AQ76: 15 | AR76: -103 | AS76: 7651.305 | AT76: -43.38898182 | AX76: 0.04100036621 | AY76: -103
A77: T-04 sec | B77: 40098.10234 | C77: =LOOKUP(B77,Data!$A$6:$A$1806,Data!B$6:B$1806) -> 60.04100037 | D77: =LOOKUP(B77,Data!$A$6:$A$1806,Data!C$6:C$1806) -> 3640.682129 | E77: 60.04212523 | F77: 3645.727051 | G77: 3090 | H77: -42.2303772 | I77: -43.05482927 | L77: -0.1017396906 | M77: 3640.28374 | U77: T-04 sec | V77: 40098.10234 | W77: =LOOKUP($V77,Data!$A$6:$A$1806,Data!$B$6:$B$1806) -> 60.04100037 | X77: =LOOKUP($V77,Data!$A$6:$A$1806,Data!$C$6:$C$1806) -> 3640.682129 | Y77: =LOOKUP($V77,Data!$A$6:$A$1806,Data!$D$6:$D$1806) -> 350 | Z77: =IF($Z$1="+",LOOKUP($V77,Data!$A$6:$A$1806,Data!$E$6:$E$1806)*-1,LOOKUP($V77,Data!$A$6:$A$1806,Data!$E$6:$E$1806)) -> 165.4763947 | AA77: =LOOKUP($V77,Data!$A$6:$A$1806,Data!$F$6:$F$1806) -> 0 | AC77: =LOOKUP($V77,Data!$A$6:$A$1806,Data!$H$6:$H$1806) -> 10 | AD77: =LOOKUP($V77,Data!$A$6:$A$1806,Data!$I$6:$I$1806) -> 15 | AE77: =IF(LOOKUP($V77,Data!$A$6:$A$1806,Data!$J$6:$J$1806)>0,(LOOKUP($V77,Data!$A$6:$A$1806,Data!$J$6:$J$1806)*-1),LOOKUP($V77,Data!$A$6:$A$1806,Data!$J$6:$J$1806)) -> -103 | AF77: =LOOKUP($V77,Data!$A$6:$A$1806,Data!$K$6:$K$1806) -> 7652.13 | AG77: -42.2303772 | AH77: T-04 sec | AI77: 40098.10234 | AJ77: 60.04212523 | AK77: 3645.727051 | AL77: 350 | AM77: 165.3358784 | AN77: 0 | AP77: 10 | AQ77: 15 | AR77: -103 | AS77: 7651.305 | AT77: -43.38898182 | AX77: 0.04100036621 | AY77: -103
A78: T-02 sec | B78: =B79-TIME(0,0,$B$1) -> 40098.10236 | C78: =LOOKUP(B78,Data!$A$6:$A$1806,Data!B$6:B$1806) -> 60.03900146 | D78: =LOOKUP(B78,Data!$A$6:$A$1806,Data!C$6:C$1806) -> 3641.191162 | E78: 60.04212523 | F78: 3645.727051 | G78: 3090 | H78: -40.17150879 | I78: -42.0456671 | L78: -0.1017396906 | M78: =D78 -> 3641.191162 | U78: T-02 sec | V78: =V79-TIME(0,0,$B$1) -> 40098.10236 | W78: =LOOKUP($V78,Data!$A$6:$A$1806,Data!$B$6:$B$1806) -> 60.03900146 | X78: =LOOKUP($V78,Data!$A$6:$A$1806,Data!$C$6:$C$1806) -> 3641.191162 | Y78: =LOOKUP($V78,Data!$A$6:$A$1806,Data!$D$6:$D$1806) -> 350 | Z78: =IF($Z$1="+",LOOKUP($V78,Data!$A$6:$A$1806,Data!$E$6:$E$1806)*-1,LOOKUP($V78,Data!$A$6:$A$1806,Data!$E$6:$E$1806)) -> 165.4763947 | AA78: =LOOKUP($V78,Data!$A$6:$A$1806,Data!$F$6:$F$1806) -> 0 | AC78: =LOOKUP($V78,Data!$A$6:$A$1806,Data!$H$6:$H$1806) -> 10 | AD78: =LOOKUP($V78,Data!$A$6:$A$1806,Data!$I$6:$I$1806) -> 15 | AE78: =IF(LOOKUP($V78,Data!$A$6:$A$1806,Data!$J$6:$J$1806)>0,(LOOKUP($V78,Data!$A$6:$A$1806,Data!$J$6:$J$1806)*-1),LOOKUP($V78,Data!$A$6:$A$1806,Data!$J$6:$J$1806)) -> -103 | AF78: =LOOKUP($V78,Data!$A$6:$A$1806,Data!$K$6:$K$1806) -> 7652.46 | AG78: -40.17150879 | AH78: T-02 sec | AI78: =AI79-TIME(0,0,$B$1) -> 40098.10236 | AJ78: 60.04212523 | AK78: 3645.727051 | AL78: 350 | AM78: 165.3358784 | AN78: 0 | AP78: 10 | AQ78: 15 | AR78: -103 | AS78: 7651.305 | AT78: -43.38898182 | AX78: 0.03900146484 | AY78: -103
A79: T+0 sec | B79: =G2 -> 40098.10238 | C79: =LOOKUP(B79,Data!$A$6:$A$1806,Data!B$6:B$1806) -> 59.97800064 | D79: =LOOKUP(B79,Data!$A$6:$A$1806,Data!C$6:C$1806) -> 3659.464844 | G79: 3090 | H79: 22.6593399 | I79: -19.39891465 | L79: 0 | M79: =M78+L79+(I79-I78) -> 3663.837915 | U79: T+0 sec | V79: =$G2 -> 40098.10238 | W79: =LOOKUP($V79,Data!$A$6:$A$1806,Data!$B$6:$B$1806) -> 59.97800064 | X79: =LOOKUP($V79,Data!$A$6:$A$1806,Data!$C$6:$C$1806) -> 3659.464844 | Y79: =LOOKUP($V79,Data!$A$6:$A$1806,Data!$D$6:$D$1806) -> 350 | Z79: =IF($Z$1="+",LOOKUP($V79,Data!$A$6:$A$1806,Data!$E$6:$E$1806)*-1,LOOKUP($V79,Data!$A$6:$A$1806,Data!$E$6:$E$1806)) -> 206.4591064 | AA79: =LOOKUP($V79,Data!$A$6:$A$1806,Data!$F$6:$F$1806) -> 0 | AC79: =LOOKUP($V79,Data!$A$6:$A$1806,Data!$H$6:$H$1806) -> 10 | AD79: =LOOKUP($V79,Data!$A$6:$A$1806,Data!$I$6:$I$1806) -> 15 | AE79: =IF(LOOKUP($V79,Data!$A$6:$A$1806,Data!$J$6:$J$1806)>0,(LOOKUP($V79,Data!$A$6:$A$1806,Data!$J$6:$J$1806)*-1),LOOKUP($V79,Data!$A$6:$A$1806,Data!$J$6:$J$1806)) -> -103 | AF79: =LOOKUP($V79,Data!$A$6:$A$1806,Data!$K$6:$K$1806) -> 7652.79 | AG79: 22.6593399 | AH79: T+0 sec | AI79: =$G2 -> 40098.10238 | AX79: 0.02199935913
A80: T+02 sec | B80: =B79+TIME(0,0,$B$1) -> 40098.10241 | C80: =LOOKUP(B80,Data!$A$6:$A$1806,Data!B$6:B$1806) -> 59.85200119 | D80: =LOOKUP(B80,Data!$A$6:$A$1806,Data!C$6:C$1806) -> 3696.362305 | G80: 3090 | H80: =(IF((C80-L$2)>0,(IF(C80<'Copy Results'!$C$3,((C80-L$2-L$5)/((L$4*L$2)-L$5)*G80*-1),(('Copy Results'!$C$3-L$2-L$5)/((L$4*L$2)-L$5)*G80*-1))),IF(C80>'Copy Results'!$C$2,((C80-L$2+L$5)/((L$4*L$2)-L$5)*G80*-1),(('Copy Results'!$C$2-L$2+L$5)/((L$4*L$2)-L$5)*G80*-1)))) -> 152.4387741 | I80: 40.74427641 | L80: =IF(B80>G$3,0,(K$21*0.000023148/K$22)) -> 0.6169724721 | M80: =M79+L80+(I80-I79)+AD81 -> 3724.598078 | N80: =AVERAGE(D$79:D80) -> 3677.913574 | O80: =AVERAGE(M$79:M80) -> 3694.217996 | P80: =K20+L78-I77+AN28-AN20 -> 3668.635218 | Q80: =AVERAGE(P$79:P80) -> 3668.635218 | U80: T+02 sec | V80: =V79+TIME(0,0,$B$1) -> 40098.10241 | W80: =LOOKUP($V80,Data!$A$6:$A$1806,Data!$B$6:$B$1806) -> 59.85200119 | X80: =LOOKUP($V80,Data!$A$6:$A$1806,Data!$C$6:$C$1806) -> 3696.362305 | Y80: =LOOKUP($V80,Data!$A$6:$A$1806,Data!$D$6:$D$1806) -> 350 | Z80: =IF($Z$1="+",LOOKUP($V80,Data!$A$6:$A$1806,Data!$E$6:$E$1806)*-1,LOOKUP($V80,Data!$A$6:$A$1806,Data!$E$6:$E$1806)) -> 206.4591064 | AA80: =LOOKUP($V80,Data!$A$6:$A$1806,Data!$F$6:$F$1806) -> 0 | AC80: =LOOKUP($V80,Data!$A$6:$A$1806,Data!$H$6:$H$1806) -> 10 | AD80: =LOOKUP($V80,Data!$A$6:$A$1806,Data!$I$6:$I$1806) -> 0 | AE80: =IF(LOOKUP($V80,Data!$A$6:$A$1806,Data!$J$6:$J$1806)>0,(LOOKUP($V80,Data!$A$6:$A$1806,Data!$J$6:$J$1806)*-1),LOOKUP($V80,Data!$A$6:$A$1806,Data!$J$6:$J$1806)) -> -103 | AF80: =LOOKUP($V80,Data!$A$6:$A$1806,Data!$K$6:$K$1806) -> 7616 | AG80: 152.4387741 | AH80: T+02 sec | AI80: =AI79+TIME(0,0,$B$1) -> 40098.10241 | AV80: =D80-F$78+L80 -> 51.25222638 | AW80: =AV80/((C80-E$78)*10) -> -26.95725788 | AX80: 0.1479988098 | AY80: -103
A81: T+04 sec | B81: =B80+TIME(0,0,$B$1) -> 40098.10243 | C81: =LOOKUP(B81,Data!$A$6:$A$1806,Data!B$6:B$1806) -> 59.83599854 | D81: =LOOKUP(B81,Data!$A$6:$A$1806,Data!C$6:C$1806) -> 3734.904297 | G81: 3090 | H81: =(IF((C81-L$2)>0,(IF(C81<'Copy Results'!$C$3,((C81-L$2-L$5)/((L$4*L$2)-L$5)*G81*-1),(('Copy Results'!$C$3-L$2-L$5)/((L$4*L$2)-L$5)*G81*-1))),IF(C81>'Copy Results'!$C$2,((C81-L$2+L$5)/((L$4*L$2)-L$5)*G81*-1),(('Copy Results'!$C$2-L$2+L$5)/((L$4*L$2)-L$5)*G81*-1)))) -> 168.9215088 | I81: 85.60630775 | L81: 0.6169724721 | M81: =M80+L81+(I81-I80) -> 3770.077082 | N81: =AVERAGE(D$79:D81) -> 3696.910482 | O81: =AVERAGE(M$79:M81) -> 3719.504358 | P81: =P80+L81 -> 3669.252191 | Q81: =AVERAGE(P$79:P81) -> 3668.943705 | U81: T+04 sec | V81: =V80+TIME(0,0,$B$1) -> 40098.10243 | W81: =LOOKUP($V81,Data!$A$6:$A$1806,Data!$B$6:$B$1806) -> 59.83599854 | X81: =LOOKUP($V81,Data!$A$6:$A$1806,Data!$C$6:$C$1806) -> 3734.904297 | Y81: =LOOKUP($V81,Data!$A$6:$A$1806,Data!$D$6:$D$1806) -> 335 | Z81: =IF($Z$1="+",LOOKUP($V81,Data!$A$6:$A$1806,Data!$E$6:$E$1806)*-1,LOOKUP($V81,Data!$A$6:$A$1806,Data!$E$6:$E$1806)) -> 206.4591064 | AA81: =LOOKUP($V81,Data!$A$6:$A$1806,Data!$F$6:$F$1806) -> 0 | AC81: =LOOKUP($V81,Data!$A$6:$A$1806,Data!$H$6:$H$1806) -> 10 | AD81: =LOOKUP($V81,Data!$A$6:$A$1806,Data!$I$6:$I$1806) -> 0 | AE81: =IF(LOOKUP($V81,Data!$A$6:$A$1806,Data!$J$6:$J$1806)>0,(LOOKUP($V81,Data!$A$6:$A$1806,Data!$J$6:$J$1806)*-1),LOOKUP($V81,Data!$A$6:$A$1806,Data!$J$6:$J$1806)) -> -103 | AF81: =LOOKUP($V81,Data!$A$6:$A$1806,Data!$K$6:$K$1806) -> 7626 | AG81: 168.9215088 | AH81: T+04 sec | AI81: =AI80+TIME(0,0,$B$1) -> 40098.10243 | AV81: =D81-F$78+L81-AD81 -> 89.79421857 | AW81: =IF(AW80=" "," ",IF(L81=L80,AV81/((C81-E$78)*10)," ")) -> -43.56263549 | AX81: 0.1640014648 | AY81: -103
A82: T+06 sec | B82: 40098.10245 | C82: =LOOKUP(B82,Data!$A$6:$A$1806,Data!B$6:B$1806) -> 59.86899948 | D82: =LOOKUP(B82,Data!$A$6:$A$1806,Data!C$6:C$1806) -> 3734.672607 | G82: 3090 | H82: =(IF((C82-L$2)>0,(IF(C82<'Copy Results'!$C$3,((C82-L$2-L$5)/((L$4*L$2)-L$5)*G82*-1),(('Copy Results'!$C$3-L$2-L$5)/((L$4*L$2)-L$5)*G82*-1))),IF(C82>'Copy Results'!$C$2,((C82-L$2+L$5)/((L$4*L$2)-L$5)*G82*-1),(('Copy Results'!$C$2-L$2+L$5)/((L$4*L$2)-L$5)*G82*-1)))) -> 134.9305344 | I82: 102.8697871 | L82: 0.6169724721 | M82: 3787.957534 | N82: =AVERAGE(D$79:D82) -> 3706.351013 | O82: =AVERAGE(M$79:M82) -> 3736.617652 | P82: =P81+L82 -> 3669.869163 | Q82: =AVERAGE(P$79:P82) -> 3669.252191 | U82: T+06 sec | V82: 40098.10245 | W82: =LOOKUP($V82,Data!$A$6:$A$1806,Data!$B$6:$B$1806) -> 59.86899948 | X82: =LOOKUP($V82,Data!$A$6:$A$1806,Data!$C$6:$C$1806) -> 3734.672607 | Y82: =LOOKUP($V82,Data!$A$6:$A$1806,Data!$D$6:$D$1806) -> 335 | Z82: =IF($Z$1="+",LOOKUP($V82,Data!$A$6:$A$1806,Data!$E$6:$E$1806)*-1,LOOKUP($V82,Data!$A$6:$A$1806,Data!$E$6:$E$1806)) -> 206.4591064 | AA82: =LOOKUP($V82,Data!$A$6:$A$1806,Data!$F$6:$F$1806) -> 0 | AC82: =LOOKUP($V82,Data!$A$6:$A$1806,Data!$H$6:$H$1806) -> 10 | AD82: =LOOKUP($V82,Data!$A$6:$A$1806,Data!$I$6:$I$1806) -> 0 | AE82: =IF(LOOKUP($V82,Data!$A$6:$A$1806,Data!$J$6:$J$1806)>0,(LOOKUP($V82,Data!$A$6:$A$1806,Data!$J$6:$J$1806)*-1),LOOKUP($V82,Data!$A$6:$A$1806,Data!$J$6:$J$1806)) -> -103 | AF82: =LOOKUP($V82,Data!$A$6:$A$1806,Data!$K$6:$K$1806) -> 7632 | AG82: 134.9305344 | AH82: T+06 sec | AI82: 40098.10245 | AV82: =D82-F$78+L82-AD82 -> 89.56252911 | AW82: =IF(AW81=" "," ",IF(L82=L81,AV82/((C82-E$78)*10)," ")) -> -51.73264652 | AX82: 0.1310005188 | AY82: -103
A83: T+08 sec | B83: 40098.10248 | C83: =LOOKUP(B83,Data!$A$6:$A$1806,Data!B$6:B$1806) -> 59.86899948 | D83: =LOOKUP(B83,Data!$A$6:$A$1806,Data!C$6:C$1806) -> 3734.672607 | G83: 3090 | H83: =(IF((C83-L$2)>0,(IF(C83<'Copy Results'!$C$3,((C83-L$2-L$5)/((L$4*L$2)-L$5)*G83*-1),(('Copy Results'!$C$3-L$2-L$5)/((L$4*L$2)-L$5)*G83*-1))),IF(C83>'Copy Results'!$C$2,((C83-L$2+L$5)/((L$4*L$2)-L$5)*G83*-1),(('Copy Results'!$C$2-L$2+L$5)/((L$4*L$2)-L$5)*G83*-1)))) -> 134.9305344 | I83: 114.0910486 | L83: 0.6169724721 | M83: 3799.795768 | N83: =AVERAGE(D$79:D83) -> 3712.015332 | O83: =AVERAGE(M$79:M83) -> 3749.253275 | P83: 3670.486136 | Q83: =AVERAGE(P$79:P83) -> 3669.560677 | U83: T+08 sec | V83: 40098.10248 | W83: =LOOKUP($V83,Data!$A$6:$A$1806,Data!$B$6:$B$1806) -> 59.86899948 | X83: =LOOKUP($V83,Data!$A$6:$A$1806,Data!$C$6:$C$1806) -> 3734.672607 | Y83: =LOOKUP($V83,Data!$A$6:$A$1806,Data!$D$6:$D$1806) -> 335 | Z83: =IF($Z$1="+",LOOKUP($V83,Data!$A$6:$A$1806,Data!$E$6:$E$1806)*-1,LOOKUP($V83,Data!$A$6:$A$1806,Data!$E$6:$E$1806)) -> 206.4591064 | AA83: =LOOKUP($V83,Data!$A$6:$A$1806,Data!$F$6:$F$1806) -> 0 | AC83: =LOOKUP($V83,Data!$A$6:$A$1806,Data!$H$6:$H$1806) -> 10 | AD83: =LOOKUP($V83,Data!$A$6:$A$1806,Data!$I$6:$I$1806) -> 0 | AE83: =IF(LOOKUP($V83,Data!$A$6:$A$1806,Data!$J$6:$J$1806)>0,(LOOKUP($V83,Data!$A$6:$A$1806,Data!$J$6:$J$1806)*-1),LOOKUP($V83,Data!$A$6:$A$1806,Data!$J$6:$J$1806)) -> -103 | AF83: =LOOKUP($V83,Data!$A$6:$A$1806,Data!$K$6:$K$1806) -> 7632 | AG83: 134.9305344 | AH83: T+08 sec | AI83: 40098.10248 | AV83: 89.56252911 | AW83: -51.73264652 | AX83: 0.1310005188 | AY83: -103
A84: T+10 sec | B84: 40098.1025 | C84: =LOOKUP(B84,Data!$A$6:$A$1806,Data!B$6:B$1806) -> 59.89199829 | D84: =LOOKUP(B84,Data!$A$6:$A$1806,Data!C$6:C$1806) -> 3737.156738 | G84: 3090 | H84: =(IF((C84-L$2)>0,(IF(C84<'Copy Results'!$C$3,((C84-L$2-L$5)/((L$4*L$2)-L$5)*G84*-1),(('Copy Results'!$C$3-L$2-L$5)/((L$4*L$2)-L$5)*G84*-1))),IF(C84>'Copy Results'!$C$2,((C84-L$2+L$5)/((L$4*L$2)-L$5)*G84*-1),(('Copy Results'!$C$2-L$2+L$5)/((L$4*L$2)-L$5)*G84*-1)))) -> 111.2417603 | I84: 113.0937977 | L84: 0.6169724721 | M84: 3799.415489 | N84: =AVERAGE(D$79:D84) -> 3716.205566 | O84: =AVERAGE(M$79:M84) -> 3757.613644 | P84: 3671.103108 | Q84: =AVERAGE(P$79:P84) -> 3669.869163 | U84: T+10 sec | V84: 40098.1025 | W84: =LOOKUP($V84,Data!$A$6:$A$1806,Data!$B$6:$B$1806) -> 59.89199829 | X84: =LOOKUP($V84,Data!$A$6:$A$1806,Data!$C$6:$C$1806) -> 3737.156738 | Y84: =LOOKUP($V84,Data!$A$6:$A$1806,Data!$D$6:$D$1806) -> 335 | Z84: =IF($Z$1="+",LOOKUP($V84,Data!$A$6:$A$1806,Data!$E$6:$E$1806)*-1,LOOKUP($V84,Data!$A$6:$A$1806,Data!$E$6:$E$1806)) -> 206.4591064 | AA84: =LOOKUP($V84,Data!$A$6:$A$1806,Data!$F$6:$F$1806) -> 0 | AC84: =LOOKUP($V84,Data!$A$6:$A$1806,Data!$H$6:$H$1806) -> 10 | AD84: =LOOKUP($V84,Data!$A$6:$A$1806,Data!$I$6:$I$1806) -> 0 | AE84: =IF(LOOKUP($V84,Data!$A$6:$A$1806,Data!$J$6:$J$1806)>0,(LOOKUP($V84,Data!$A$6:$A$1806,Data!$J$6:$J$1806)*-1),LOOKUP($V84,Data!$A$6:$A$1806,Data!$J$6:$J$1806)) -> -103 | AF84: =LOOKUP($V84,Data!$A$6:$A$1806,Data!$K$6:$K$1806) -> 7632 | AG84: 111.2417603 | AH84: T+10 sec | AI84: 40098.1025 | AV84: 92.04665997 | AW84: -61.31255564 | AX84: 0.108001709 | AY84: -103
A85: T+12 sec | B85: 40098.10252 | C85: =LOOKUP(B85,Data!$A$6:$A$1806,Data!B$6:B$1806) -> 59.89099884 | D85: =LOOKUP(B85,Data!$A$6:$A$1806,Data!C$6:C$1806) -> 3761.249512 | G85: 3090 | H85: =(IF((C85-L$2)>0,(IF(C85<'Copy Results'!$C$3,((C85-L$2-L$5)/((L$4*L$2)-L$5)*G85*-1),(('Copy Results'!$C$3-L$2-L$5)/((L$4*L$2)-L$5)*G85*-1))),IF(C85>'Copy Results'!$C$2,((C85-L$2+L$5)/((L$4*L$2)-L$5)*G85*-1),(('Copy Results'!$C$2-L$2+L$5)/((L$4*L$2)-L$5)*G85*-1)))) -> 112.2711945 | I85: 112.8058866 | L85: 0.6169724721 | M85: 3799.744551 | N85: =AVERAGE(D$79:D85) -> 3722.640416 | O85: =AVERAGE(M$79:M85) -> 3763.632345 | P85: 3671.720081 | Q85: =AVERAGE(P$79:P85) -> 3670.17765 | U85: T+12 sec | V85: 40098.10252 | W85: =LOOKUP($V85,Data!$A$6:$A$1806,Data!$B$6:$B$1806) -> 59.89099884 | X85: =LOOKUP($V85,Data!$A$6:$A$1806,Data!$C$6:$C$1806) -> 3761.249512 | Y85: =LOOKUP($V85,Data!$A$6:$A$1806,Data!$D$6:$D$1806) -> 335 | Z85: =IF($Z$1="+",LOOKUP($V85,Data!$A$6:$A$1806,Data!$E$6:$E$1806)*-1,LOOKUP($V85,Data!$A$6:$A$1806,Data!$E$6:$E$1806)) -> 211.2560425 | AA85: =LOOKUP($V85,Data!$A$6:$A$1806,Data!$F$6:$F$1806) -> 0 | AC85: =LOOKUP($V85,Data!$A$6:$A$1806,Data!$H$6:$H$1806) -> 10 | AD85: =LOOKUP($V85,Data!$A$6:$A$1806,Data!$I$6:$I$1806) -> 0 | AE85: =IF(LOOKUP($V85,Data!$A$6:$A$1806,Data!$J$6:$J$1806)>0,(LOOKUP($V85,Data!$A$6:$A$1806,Data!$J$6:$J$1806)*-1),LOOKUP($V85,Data!$A$6:$A$1806,Data!$J$6:$J$1806)) -> -103 | AF85: =LOOKUP($V85,Data!$A$6:$A$1806,Data!$K$6:$K$1806) -> 7632 | AG85: 112.2711945 | AH85: T+12 sec | AI85: 40098.10252 | AV85: 116.1394334 | AW85: -76.84921042 | AX85: 0.1090011597 | AY85: -103
A86: T+14 sec | B86: 40098.10255 | C86: =LOOKUP(B86,Data!$A$6:$A$1806,Data!B$6:B$1806) -> 59.88000107 | D86: =LOOKUP(B86,Data!$A$6:$A$1806,Data!C$6:C$1806) -> 3766.113037 | G86: 3090 | H86: =(IF((C86-L$2)>0,(IF(C86<'Copy Results'!$C$3,((C86-L$2-L$5)/((L$4*L$2)-L$5)*G86*-1),(('Copy Results'!$C$3-L$2-L$5)/((L$4*L$2)-L$5)*G86*-1))),IF(C86>'Copy Results'!$C$2,((C86-L$2+L$5)/((L$4*L$2)-L$5)*G86*-1),(('Copy Results'!$C$2-L$2+L$5)/((L$4*L$2)-L$5)*G86*-1)))) -> 123.5988998 | I86: 116.5834412 | L86: 0.6169724721 | M86: 3804.139078 | N86: =AVERAGE(D$79:D86) -> 3728.074493 | O86: =AVERAGE(M$79:M86) -> 3768.695687 | P86: 3672.337053 | Q86: =AVERAGE(P$79:P86) -> 3670.486136 | U86: T+14 sec | V86: 40098.10255 | W86: =LOOKUP($V86,Data!$A$6:$A$1806,Data!$B$6:$B$1806) -> 59.88000107 | X86: =LOOKUP($V86,Data!$A$6:$A$1806,Data!$C$6:$C$1806) -> 3766.113037 | Y86: =LOOKUP($V86,Data!$A$6:$A$1806,Data!$D$6:$D$1806) -> 335 | Z86: =IF($Z$1="+",LOOKUP($V86,Data!$A$6:$A$1806,Data!$E$6:$E$1806)*-1,LOOKUP($V86,Data!$A$6:$A$1806,Data!$E$6:$E$1806)) -> 211.2560425 | AA86: =LOOKUP($V86,Data!$A$6:$A$1806,Data!$F$6:$F$1806) -> 1 | AC86: =LOOKUP($V86,Data!$A$6:$A$1806,Data!$H$6:$H$1806) -> 10 | AD86: =LOOKUP($V86,Data!$A$6:$A$1806,Data!$I$6:$I$1806) -> 0 | AE86: =IF(LOOKUP($V86,Data!$A$6:$A$1806,Data!$J$6:$J$1806)>0,(LOOKUP($V86,Data!$A$6:$A$1806,Data!$J$6:$J$1806)*-1),LOOKUP($V86,Data!$A$6:$A$1806,Data!$J$6:$J$1806)) -> -103 | AF86: =LOOKUP($V86,Data!$A$6:$A$1806,Data!$K$6:$K$1806) -> 7632 | AG86: 123.5988998 | AH86: T+14 sec | AI86: 40098.10255 | AV86: 121.0029588 | AW86: -74.63598336 | AX86: 0.1199989319 | AY86: -103
A87: T+16 sec | B87: 40098.10257 | C87: =LOOKUP(B87,Data!$A$6:$A$1806,Data!B$6:B$1806) -> 59.87599945 | D87: =LOOKUP(B87,Data!$A$6:$A$1806,Data!C$6:C$1806) -> 3766.193848 | G87: 3090 | H87: =(IF((C87-L$2)>0,(IF(C87<'Copy Results'!$C$3,((C87-L$2-L$5)/((L$4*L$2)-L$5)*G87*-1),(('Copy Results'!$C$3-L$2-L$5)/((L$4*L$2)-L$5)*G87*-1))),IF(C87>'Copy Results'!$C$2,((C87-L$2+L$5)/((L$4*L$2)-L$5)*G87*-1),(('Copy Results'!$C$2-L$2+L$5)/((L$4*L$2)-L$5)*G87*-1)))) -> 127.7205658 | I87: 120.4814348 | L87: 0.6169724721 | M87: 3808.654044 | N87: =AVERAGE(D$79:D87) -> 3732.309977 | O87: =AVERAGE(M$79:M87) -> 3773.135504 | P87: 3672.954026 | Q87: =AVERAGE(P$79:P87) -> 3670.794622 | U87: T+16 sec | V87: 40098.10257 | W87: =LOOKUP($V87,Data!$A$6:$A$1806,Data!$B$6:$B$1806) -> 59.87599945 | X87: =LOOKUP($V87,Data!$A$6:$A$1806,Data!$C$6:$C$1806) -> 3766.193848 | Y87: =LOOKUP($V87,Data!$A$6:$A$1806,Data!$D$6:$D$1806) -> 335 | Z87: =IF($Z$1="+",LOOKUP($V87,Data!$A$6:$A$1806,Data!$E$6:$E$1806)*-1,LOOKUP($V87,Data!$A$6:$A$1806,Data!$E$6:$E$1806)) -> 211.2560425 | AA87: =LOOKUP($V87,Data!$A$6:$A$1806,Data!$F$6:$F$1806) -> 1 | AC87: =LOOKUP($V87,Data!$A$6:$A$1806,Data!$H$6:$H$1806) -> 10 | AD87: =LOOKUP($V87,Data!$A$6:$A$1806,Data!$I$6:$I$1806) -> 0 | AE87: =IF(LOOKUP($V87,Data!$A$6:$A$1806,Data!$J$6:$J$1806)>0,(LOOKUP($V87,Data!$A$6:$A$1806,Data!$J$6:$J$1806)*-1),LOOKUP($V87,Data!$A$6:$A$1806,Data!$J$6:$J$1806)) -> -103 | AF87: =LOOKUP($V87,Data!$A$6:$A$1806,Data!$K$6:$K$1806) -> 7632 | AG87: 127.7205658 | AH87: T+16 sec | AI87: 40098.10257 | AV87: 121.0837693 | AW87: -72.88680507 | AX87: 0.1240005493 | AY87: -103
A88: T+18 sec | B88: 40098.10259 | C88: =LOOKUP(B88,Data!$A$6:$A$1806,Data!B$6:B$1806) -> 59.875 | D88: =LOOKUP(B88,Data!$A$6:$A$1806,Data!C$6:C$1806) -> 3768.876953 | G88: 3090 | H88: =(IF((C88-L$2)>0,(IF(C88<'Copy Results'!$C$3,((C88-L$2-L$5)/((L$4*L$2)-L$5)*G88*-1),(('Copy Results'!$C$3-L$2-L$5)/((L$4*L$2)-L$5)*G88*-1))),IF(C88>'Copy Results'!$C$2,((C88-L$2+L$5)/((L$4*L$2)-L$5)*G88*-1),(('Copy Results'!$C$2-L$2+L$5)/((L$4*L$2)-L$5)*G88*-1)))) -> 128.75 | I88: 123.3754326 | L88: 0.6169724721 | M88: 3812.165014 | N88: =AVERAGE(D$79:D88) -> 3735.966675 | O88: =AVERAGE(M$79:M88) -> 3777.038455 | P88: 3673.570998 | Q88: =AVERAGE(P$79:P88) -> 3671.103108 | U88: T+18 sec | V88: 40098.10259 | W88: =LOOKUP($V88,Data!$A$6:$A$1806,Data!$B$6:$B$1806) -> 59.875 | X88: =LOOKUP($V88,Data!$A$6:$A$1806,Data!$C$6:$C$1806) -> 3768.876953 | Y88: =LOOKUP($V88,Data!$A$6:$A$1806,Data!$D$6:$D$1806) -> 335 | Z88: =IF($Z$1="+",LOOKUP($V88,Data!$A$6:$A$1806,Data!$E$6:$E$1806)*-1,LOOKUP($V88,Data!$A$6:$A$1806,Data!$E$6:$E$1806)) -> 211.2560425 | AA88: =LOOKUP($V88,Data!$A$6:$A$1806,Data!$F$6:$F$1806) -> 1 | AC88: =LOOKUP($V88,Data!$A$6:$A$1806,Data!$H$6:$H$1806) -> 10 | AD88: =LOOKUP($V88,Data!$A$6:$A$1806,Data!$I$6:$I$1806) -> 0 | AE88: =IF(LOOKUP($V88,Data!$A$6:$A$1806,Data!$J$6:$J$1806)>0,(LOOKUP($V88,Data!$A$6:$A$1806,Data!$J$6:$J$1806)*-1),LOOKUP($V88,Data!$A$6:$A$1806,Data!$J$6:$J$1806)) -> -103 | AF88: =LOOKUP($V88,Data!$A$6:$A$1806,Data!$K$6:$K$1806) -> 7632 | AG88: 128.75 | AH88: T+18 sec | AI88: 40098.10259 | AV88: 123.7668748 | AW88: -74.05636987 | AX88: 0.125 | AY88: -103
A89: T+20 sec | B89: 40098.10262 | C89: =LOOKUP(B89,Data!$A$6:$A$1806,Data!B$6:B$1806) -> 59.88299942 | D89: =LOOKUP(B89,Data!$A$6:$A$1806,Data!C$6:C$1806) -> 3769.925049 | E89: =AVERAGE($C$89:$C$105) -> 59.88911775 | F89: =AVERAGE($D$89:$D$105) -> 3788.354507 | G89: 3090 | H89: =(IF((C89-L$2)>0,(IF(C89<'Copy Results'!$C$3,((C89-L$2-L$5)/((L$4*L$2)-L$5)*G89*-1),(('Copy Results'!$C$3-L$2-L$5)/((L$4*L$2)-L$5)*G89*-1))),IF(C89>'Copy Results'!$C$2,((C89-L$2+L$5)/((L$4*L$2)-L$5)*G89*-1),(('Copy Results'!$C$2-L$2+L$5)/((L$4*L$2)-L$5)*G89*-1)))) -> 120.5105972 | I89: 122.3727402 | K89: =G$13+G$7 -> 3803.324754 | L89: 0.6169724721 | M89: 3811.779294 | N89: =AVERAGE(D$79:D89) -> 3739.0538 | O89: =AVERAGE(M$79:M89) -> 3780.196713 | P89: 3674.187971 | Q89: =AVERAGE(P$79:P89) -> 3671.411595 | U89: T+20 sec | V89: 40098.10262 | W89: =LOOKUP($V89,Data!$A$6:$A$1806,Data!$B$6:$B$1806) -> 59.88299942 | X89: =LOOKUP($V89,Data!$A$6:$A$1806,Data!$C$6:$C$1806) -> 3769.925049 | Y89: =LOOKUP($V89,Data!$A$6:$A$1806,Data!$D$6:$D$1806) -> 335 | Z89: =IF($Z$1="+",LOOKUP($V89,Data!$A$6:$A$1806,Data!$E$6:$E$1806)*-1,LOOKUP($V89,Data!$A$6:$A$1806,Data!$E$6:$E$1806)) -> 211.2560425 | AA89: =LOOKUP($V89,Data!$A$6:$A$1806,Data!$F$6:$F$1806) -> 1 | AC89: =LOOKUP($V89,Data!$A$6:$A$1806,Data!$H$6:$H$1806) -> 10 | AD89: =LOOKUP($V89,Data!$A$6:$A$1806,Data!$I$6:$I$1806) -> 0 | AE89: =IF(LOOKUP($V89,Data!$A$6:$A$1806,Data!$J$6:$J$1806)>0,(LOOKUP($V89,Data!$A$6:$A$1806,Data!$J$6:$J$1806)*-1),LOOKUP($V89,Data!$A$6:$A$1806,Data!$J$6:$J$1806)) -> -103 | AF89: =LOOKUP($V89,Data!$A$6:$A$1806,Data!$K$6:$K$1806) -> 7632 | AG89: 120.5105972 | AH89: T+20 sec | AI89: 40098.10262 | AJ89: =AVERAGE($W$89:$W$105) -> 59.88911775 | AK89: =AVERAGE($X$89:$X$105) -> 3788.354507 | AL89: =AVERAGE($Y$89:$Y$105) -> 335 | AM89: =AVERAGE($Z$89:$Z$105) -> 214.1277143 | AN89: =AVERAGE($AA$89:$AA$105) -> 6.352941176 | AP89: =AVERAGE($AC$89:$AC$105) -> 10 | AQ89: =AVERAGE($AD$89:$AD$105) -> 0 | AR89: =AVERAGE($AE$89:$AE$105) -> -103 | AS89: =AVERAGE($AF$89:$AF$105) -> 7632 | AT89: =AVERAGE($AG$89:$AG$105) -> 114.2087218 | AU89: =AN$7+AN$14 -> 3843.770279 | AV89: 124.8149705 | AW89: -78.43791935 | AX89: 0.1170005798 | AY89: -103
A90: T+22 sec | B90: 40098.10264 | C90: =LOOKUP(B90,Data!$A$6:$A$1806,Data!B$6:B$1806) -> 59.88700104 | D90: =LOOKUP(B90,Data!$A$6:$A$1806,Data!C$6:C$1806) -> 3780.620605 | E90: =AVERAGE($C$89:$C$105) -> 59.88911775 | F90: =AVERAGE($D$89:$D$105) -> 3788.354507 | G90: 3090 | H90: =(IF((C90-L$2)>0,(IF(C90<'Copy Results'!$C$3,((C90-L$2-L$5)/((L$4*L$2)-L$5)*G90*-1),(('Copy Results'!$C$3-L$2-L$5)/((L$4*L$2)-L$5)*G90*-1))),IF(C90>'Copy Results'!$C$2,((C90-L$2+L$5)/((L$4*L$2)-L$5)*G90*-1),(('Copy Results'!$C$2-L$2+L$5)/((L$4*L$2)-L$5)*G90*-1)))) -> 116.3889313 | I90: 120.2784071 | K90: =G$13+G$7 -> 3803.324754 | L90: 0.6169724721 | M90: 3810.301934 | N90: =AVERAGE(D$79:D90) -> 3742.5177 | O90: =AVERAGE(M$79:M90) -> 3782.705482 | P90: 3674.804943 | Q90: =AVERAGE(P$79:P90) -> 3671.720081 | U90: T+22 sec | V90: 40098.10264 | W90: =LOOKUP($V90,Data!$A$6:$A$1806,Data!$B$6:$B$1806) -> 59.88700104 | X90: =LOOKUP($V90,Data!$A$6:$A$1806,Data!$C$6:$C$1806) -> 3780.620605 | Y90: =LOOKUP($V90,Data!$A$6:$A$1806,Data!$D$6:$D$1806) -> 335 | Z90: =IF($Z$1="+",LOOKUP($V90,Data!$A$6:$A$1806,Data!$E$6:$E$1806)*-1,LOOKUP($V90,Data!$A$6:$A$1806,Data!$E$6:$E$1806)) -> 214.3466949 | AA90: =LOOKUP($V90,Data!$A$6:$A$1806,Data!$F$6:$F$1806) -> 1 | AC90: =LOOKUP($V90,Data!$A$6:$A$1806,Data!$H$6:$H$1806) -> 10 | AD90: =LOOKUP($V90,Data!$A$6:$A$1806,Data!$I$6:$I$1806) -> 0 | AE90: =IF(LOOKUP($V90,Data!$A$6:$A$1806,Data!$J$6:$J$1806)>0,(LOOKUP($V90,Data!$A$6:$A$1806,Data!$J$6:$J$1806)*-1),LOOKUP($V90,Data!$A$6:$A$1806,Data!$J$6:$J$1806)) -> -103 | AF90: =LOOKUP($V90,Data!$A$6:$A$1806,Data!$K$6:$K$1806) -> 7632 | AG90: 116.3889313 | AH90: T+22 sec | AI90: 40098.10264 | AJ90: =AVERAGE($W$89:$W$105) -> 59.88911775 | AK90: =AVERAGE($X$89:$X$105) -> 3788.354507 | AL90: =AVERAGE($Y$89:$Y$105) -> 335 | AM90: =AVERAGE($Z$89:$Z$105) -> 214.1277143 | AN90: =AVERAGE($AA$89:$AA$105) -> 6.352941176 | AP90: =AVERAGE($AC$89:$AC$105) -> 10 | AQ90: =AVERAGE($AD$89:$AD$105) -> 0 | AR90: =AVERAGE($AE$89:$AE$105) -> -103 | AS90: =AVERAGE($AF$89:$AF$105) -> 7632 | AT90: =AVERAGE($AG$89:$AG$105) -> 114.2087218 | AU90: =AN$7+AN$14 -> 3843.770279 | AV90: 135.5105272 | AW90: -87.35615597 | AX90: 0.1129989624 | AY90: -103
A91: T+24 sec | B91: 40098.10266 | C91: =LOOKUP(B91,Data!$A$6:$A$1806,Data!B$6:B$1806) -> 59.88600159 | D91: =LOOKUP(B91,Data!$A$6:$A$1806,Data!C$6:C$1806) -> 3781.591797 | E91: 59.88911775 | F91: 3788.354507 | G91: 3090 | H91: =(IF((C91-L$2)>0,(IF(C91<'Copy Results'!$C$3,((C91-L$2-L$5)/((L$4*L$2)-L$5)*G91*-1),(('Copy Results'!$C$3-L$2-L$5)/((L$4*L$2)-L$5)*G91*-1))),IF(C91>'Copy Results'!$C$2,((C91-L$2+L$5)/((L$4*L$2)-L$5)*G91*-1),(('Copy Results'!$C$2-L$2+L$5)/((L$4*L$2)-L$5)*G91*-1)))) -> 117.4183655 | I91: 119.2773925 | K91: 3803.324754 | L91: 0.6169724721 | M91: 3809.917891 | N91: =AVERAGE(D$79:D91) -> 3745.5234 | O91: =AVERAGE(M$79:M91) -> 3784.798744 | P91: 3675.421916 | Q91: =AVERAGE(P$79:P91) -> 3672.028567 | U91: T+24 sec | V91: 40098.10266 | W91: =LOOKUP($V91,Data!$A$6:$A$1806,Data!$B$6:$B$1806) -> 59.88600159 | X91: =LOOKUP($V91,Data!$A$6:$A$1806,Data!$C$6:$C$1806) -> 3781.591797 | Y91: =LOOKUP($V91,Data!$A$6:$A$1806,Data!$D$6:$D$1806) -> 335 | Z91: =IF($Z$1="+",LOOKUP($V91,Data!$A$6:$A$1806,Data!$E$6:$E$1806)*-1,LOOKUP($V91,Data!$A$6:$A$1806,Data!$E$6:$E$1806)) -> 214.3466949 | AA91: =LOOKUP($V91,Data!$A$6:$A$1806,Data!$F$6:$F$1806) -> 1 | AC91: =LOOKUP($V91,Data!$A$6:$A$1806,Data!$H$6:$H$1806) -> 10 | AD91: =LOOKUP($V91,Data!$A$6:$A$1806,Data!$I$6:$I$1806) -> 0 | AE91: =IF(LOOKUP($V91,Data!$A$6:$A$1806,Data!$J$6:$J$1806)>0,(LOOKUP($V91,Data!$A$6:$A$1806,Data!$J$6:$J$1806)*-1),LOOKUP($V91,Data!$A$6:$A$1806,Data!$J$6:$J$1806)) -> -103 | AF91: =LOOKUP($V91,Data!$A$6:$A$1806,Data!$K$6:$K$1806) -> 7632 | AG91: 117.4183655 | AH91: T+24 sec | AI91: 40098.10266 | AJ91: 59.88911775 | AK91: 3788.354507 | AL91: 335 | AM91: 214.1277143 | AN91: 6.352941176 | AP91: 10 | AQ91: 0 | AR91: -103 | AS91: 7632 | AT91: 114.2087218 | AU91: 3843.770279 | AV91: 136.4817186 | AW91: -87.41899701 | AX91: 0.1139984131 | AY91: -103
A92: T+26 sec | B92: 40098.10269 | C92: =LOOKUP(B92,Data!$A$6:$A$1806,Data!B$6:B$1806) -> 59.88499832 | D92: =LOOKUP(B92,Data!$A$6:$A$1806,Data!C$6:C$1806) -> 3782.499512 | E92: 59.88911775 | F92: 3788.354507 | G92: 3090 | H92: =(IF((C92-L$2)>0,(IF(C92<'Copy Results'!$C$3,((C92-L$2-L$5)/((L$4*L$2)-L$5)*G92*-1),(('Copy Results'!$C$3-L$2-L$5)/((L$4*L$2)-L$5)*G92*-1))),IF(C92>'Copy Results'!$C$2,((C92-L$2+L$5)/((L$4*L$2)-L$5)*G92*-1),(('Copy Results'!$C$2-L$2+L$5)/((L$4*L$2)-L$5)*G92*-1)))) -> 118.4517288 | I92: 118.9884102 | K92: 3803.324754 | L92: 0.6169724721 | M92: 3810.245882 | N92: =AVERAGE(D$79:D92) -> 3748.164551 | O92: =AVERAGE(M$79:M92) -> 3786.616397 | P92: 3676.038888 | Q92: =AVERAGE(P$79:P92) -> 3672.337053 | U92: T+26 sec | V92: 40098.10269 | W92: =LOOKUP($V92,Data!$A$6:$A$1806,Data!$B$6:$B$1806) -> 59.88499832 | X92: =LOOKUP($V92,Data!$A$6:$A$1806,Data!$C$6:$C$1806) -> 3782.499512 | Y92: =LOOKUP($V92,Data!$A$6:$A$1806,Data!$D$6:$D$1806) -> 335 | Z92: =IF($Z$1="+",LOOKUP($V92,Data!$A$6:$A$1806,Data!$E$6:$E$1806)*-1,LOOKUP($V92,Data!$A$6:$A$1806,Data!$E$6:$E$1806)) -> 214.3466949 | AA92: =LOOKUP($V92,Data!$A$6:$A$1806,Data!$F$6:$F$1806) -> 1 | AC92: =LOOKUP($V92,Data!$A$6:$A$1806,Data!$H$6:$H$1806) -> 10 | AD92: =LOOKUP($V92,Data!$A$6:$A$1806,Data!$I$6:$I$1806) -> 0 | AE92: =IF(LOOKUP($V92,Data!$A$6:$A$1806,Data!$J$6:$J$1806)>0,(LOOKUP($V92,Data!$A$6:$A$1806,Data!$J$6:$J$1806)*-1),LOOKUP($V92,Data!$A$6:$A$1806,Data!$J$6:$J$1806)) -> -103 | AF92: =LOOKUP($V92,Data!$A$6:$A$1806,Data!$K$6:$K$1806) -> 7632 | AG92: 118.4517288 | AH92: T+26 sec | AI92: 40098.10269 | AJ92: 59.88911775 | AK92: 3788.354507 | AL92: 335 | AM92: 214.1277143 | AN92: 6.352941176 | AP92: 10 | AQ92: 0 | AR92: -103 | AS92: 7632 | AT92: 114.2087218 | AU92: 3843.770279 | AV92: 137.3894334 | AW92: -87.43851646 | AX92: 0.1150016785 | AY92: -103
A93: T+28 sec | B93: 40098.10271 | C93: =LOOKUP(B93,Data!$A$6:$A$1806,Data!B$6:B$1806) -> 59.88700104 | D93: =LOOKUP(B93,Data!$A$6:$A$1806,Data!C$6:C$1806) -> 3784.961914 | E93: 59.88911775 | F93: 3788.354507 | G93: 3090 | H93: =(IF((C93-L$2)>0,(IF(C93<'Copy Results'!$C$3,((C93-L$2-L$5)/((L$4*L$2)-L$5)*G93*-1),(('Copy Results'!$C$3-L$2-L$5)/((L$4*L$2)-L$5)*G93*-1))),IF(C93>'Copy Results'!$C$2,((C93-L$2+L$5)/((L$4*L$2)-L$5)*G93*-1),(('Copy Results'!$C$2-L$2+L$5)/((L$4*L$2)-L$5)*G93*-1)))) -> 116.3889313 | I93: 118.0785926 | K93: 3803.324754 | L93: 0.6169724721 | M93: 3809.953036 | N93: =AVERAGE(D$79:D93) -> 3750.617708 | O93: =AVERAGE(M$79:M93) -> 3788.172173 | P93: 3676.655861 | Q93: =AVERAGE(P$79:P93) -> 3672.64554 | U93: T+28 sec | V93: 40098.10271 | W93: =LOOKUP($V93,Data!$A$6:$A$1806,Data!$B$6:$B$1806) -> 59.88700104 | X93: =LOOKUP($V93,Data!$A$6:$A$1806,Data!$C$6:$C$1806) -> 3784.961914 | Y93: =LOOKUP($V93,Data!$A$6:$A$1806,Data!$D$6:$D$1806) -> 335 | Z93: =IF($Z$1="+",LOOKUP($V93,Data!$A$6:$A$1806,Data!$E$6:$E$1806)*-1,LOOKUP($V93,Data!$A$6:$A$1806,Data!$E$6:$E$1806)) -> 214.3466949 | AA93: =LOOKUP($V93,Data!$A$6:$A$1806,Data!$F$6:$F$1806) -> 2 | AC93: =LOOKUP($V93,Data!$A$6:$A$1806,Data!$H$6:$H$1806) -> 10 | AD93: =LOOKUP($V93,Data!$A$6:$A$1806,Data!$I$6:$I$1806) -> 0 | AE93: =IF(LOOKUP($V93,Data!$A$6:$A$1806,Data!$J$6:$J$1806)>0,(LOOKUP($V93,Data!$A$6:$A$1806,Data!$J$6:$J$1806)*-1),LOOKUP($V93,Data!$A$6:$A$1806,Data!$J$6:$J$1806)) -> -103 | AF93: =LOOKUP($V93,Data!$A$6:$A$1806,Data!$K$6:$K$1806) -> 7632 | AG93: 116.3889313 | AH93: T+28 sec | AI93: 40098.10271 | AJ93: 59.88911775 | AK93: 3788.354507 | AL93: 335 | AM93: 214.1277143 | AN93: 6.352941176 | AP93: 10 | AQ93: 0 | AR93: -103 | AS93: 7632 | AT93: 114.2087218 | AU93: 3843.770279 | AV93: 139.8518358 | AW93: -90.15475796 | AX93: 0.1129989624 | AY93: -103
A94: T+30 sec | B94: 40098.10273 | C94: =LOOKUP(B94,Data!$A$6:$A$1806,Data!B$6:B$1806) -> 59.88800049 | D94: =LOOKUP(B94,Data!$A$6:$A$1806,Data!C$6:C$1806) -> 3784.729736 | E94: 59.88911775 | F94: 3788.354507 | G94: 3090 | H94: =(IF((C94-L$2)>0,(IF(C94<'Copy Results'!$C$3,((C94-L$2-L$5)/((L$4*L$2)-L$5)*G94*-1),(('Copy Results'!$C$3-L$2-L$5)/((L$4*L$2)-L$5)*G94*-1))),IF(C94>'Copy Results'!$C$2,((C94-L$2+L$5)/((L$4*L$2)-L$5)*G94*-1),(('Copy Results'!$C$2-L$2+L$5)/((L$4*L$2)-L$5)*G94*-1)))) -> 115.3594971 | I94: 117.1269092 | K94: 3803.324754 | L94: 0.6169724721 | M94: 3809.618325 | N94: =AVERAGE(D$79:D94) -> 3752.74971 | O94: =AVERAGE(M$79:M94) -> 3789.512557 | P94: 3677.272833 | Q94: =AVERAGE(P$79:P94) -> 3672.954026 | U94: T+30 sec | V94: 40098.10273 | W94: =LOOKUP($V94,Data!$A$6:$A$1806,Data!$B$6:$B$1806) -> 59.88800049 | X94: =LOOKUP($V94,Data!$A$6:$A$1806,Data!$C$6:$C$1806) -> 3784.729736 | Y94: =LOOKUP($V94,Data!$A$6:$A$1806,Data!$D$6:$D$1806) -> 335 | Z94: =IF($Z$1="+",LOOKUP($V94,Data!$A$6:$A$1806,Data!$E$6:$E$1806)*-1,LOOKUP($V94,Data!$A$6:$A$1806,Data!$E$6:$E$1806)) -> 214.3466949 | AA94: =LOOKUP($V94,Data!$A$6:$A$1806,Data!$F$6:$F$1806) -> 3 | AC94: =LOOKUP($V94,Data!$A$6:$A$1806,Data!$H$6:$H$1806) -> 10 | AD94: =LOOKUP($V94,Data!$A$6:$A$1806,Data!$I$6:$I$1806) -> 0 | AE94: =IF(LOOKUP($V94,Data!$A$6:$A$1806,Data!$J$6:$J$1806)>0,(LOOKUP($V94,Data!$A$6:$A$1806,Data!$J$6:$J$1806)*-1),LOOKUP($V94,Data!$A$6:$A$1806,Data!$J$6:$J$1806)) -> -103 | AF94: =LOOKUP($V94,Data!$A$6:$A$1806,Data!$K$6:$K$1806) -> 7632 | AG94: 115.3594971 | AH94: T+30 sec | AI94: 40098.10273 | AJ94: 59.88911775 | AK94: 3788.354507 | AL94: 335 | AM94: 214.1277143 | AN94: 6.352941176 | AP94: 10 | AQ94: 0 | AR94: -103 | AS94: 7632 | AT94: 114.2087218 | AU94: 3843.770279 | AV94: 139.619658 | AW94: -90.58874061 | AX94: 0.1119995117 | AY94: -103
A95: T+32 sec | B95: 40098.10275 | C95: =LOOKUP(B95,Data!$A$6:$A$1806,Data!B$6:B$1806) -> 59.88999939 | D95: =LOOKUP(B95,Data!$A$6:$A$1806,Data!C$6:C$1806) -> 3784.418945 | E95: 59.88911775 | F95: 3788.354507 | G95: 3090 | H95: =(IF((C95-L$2)>0,(IF(C95<'Copy Results'!$C$3,((C95-L$2-L$5)/((L$4*L$2)-L$5)*G95*-1),(('Copy Results'!$C$3-L$2-L$5)/((L$4*L$2)-L$5)*G95*-1))),IF(C95>'Copy Results'!$C$2,((C95-L$2+L$5)/((L$4*L$2)-L$5)*G95*-1),(('Copy Results'!$C$2-L$2+L$5)/((L$4*L$2)-L$5)*G95*-1)))) -> 113.3006287 | I95: 115.787711 | K95: 3803.324754 | L95: 0.6169724721 | M95: 3808.8961 | N95: =AVERAGE(D$79:D95) -> 3754.612606 | O95: =AVERAGE(M$79:M95) -> 3790.652766 | P95: 3677.889806 | Q95: =AVERAGE(P$79:P95) -> 3673.262512 | U95: T+32 sec | V95: 40098.10275 | W95: =LOOKUP($V95,Data!$A$6:$A$1806,Data!$B$6:$B$1806) -> 59.88999939 | X95: =LOOKUP($V95,Data!$A$6:$A$1806,Data!$C$6:$C$1806) -> 3784.418945 | Y95: =LOOKUP($V95,Data!$A$6:$A$1806,Data!$D$6:$D$1806) -> 335 | Z95: =IF($Z$1="+",LOOKUP($V95,Data!$A$6:$A$1806,Data!$E$6:$E$1806)*-1,LOOKUP($V95,Data!$A$6:$A$1806,Data!$E$6:$E$1806)) -> 212.172699 | AA95: =LOOKUP($V95,Data!$A$6:$A$1806,Data!$F$6:$F$1806) -> 4 | AC95: =LOOKUP($V95,Data!$A$6:$A$1806,Data!$H$6:$H$1806) -> 10 | AD95: =LOOKUP($V95,Data!$A$6:$A$1806,Data!$I$6:$I$1806) -> 0 | AE95: =IF(LOOKUP($V95,Data!$A$6:$A$1806,Data!$J$6:$J$1806)>0,(LOOKUP($V95,Data!$A$6:$A$1806,Data!$J$6:$J$1806)*-1),LOOKUP($V95,Data!$A$6:$A$1806,Data!$J$6:$J$1806)) -> -103 | AF95: =LOOKUP($V95,Data!$A$6:$A$1806,Data!$K$6:$K$1806) -> 7632 | AG95: 113.3006287 | AH95: T+32 sec | AI95: 40098.10275 | AJ95: 59.88911775 | AK95: 3788.354507 | AL95: 335 | AM95: 214.1277143 | AN95: 6.352941176 | AP95: 10 | AQ95: 0 | AR95: -103 | AS95: 7632 | AT95: 114.2087218 | AU95: 3843.770279 | AV95: 139.308867 | AW95: -91.5747589 | AX95: 0.1100006104 | AY95: -103
A96: T+34 sec | B96: 40098.10278 | C96: =LOOKUP(B96,Data!$A$6:$A$1806,Data!B$6:B$1806) -> 59.89500046 | D96: =LOOKUP(B96,Data!$A$6:$A$1806,Data!C$6:C$1806) -> 3788.072266 | E96: 59.88911775 | F96: 3788.354507 | G96: 3090 | H96: =(IF((C96-L$2)>0,(IF(C96<'Copy Results'!$C$3,((C96-L$2-L$5)/((L$4*L$2)-L$5)*G96*-1),(('Copy Results'!$C$3-L$2-L$5)/((L$4*L$2)-L$5)*G96*-1))),IF(C96>'Copy Results'!$C$2,((C96-L$2+L$5)/((L$4*L$2)-L$5)*G96*-1),(('Copy Results'!$C$2-L$2+L$5)/((L$4*L$2)-L$5)*G96*-1)))) -> 108.1495285 | I96: 113.1143471 | K96: 3803.324754 | L96: 0.6169724721 | M96: 3806.839708 | N96: =AVERAGE(D$79:D96) -> 3756.471476 | O96: =AVERAGE(M$79:M96) -> 3791.55204 | P96: 3678.506778 | Q96: =AVERAGE(P$79:P96) -> 3673.570998 | U96: T+34 sec | V96: 40098.10278 | W96: =LOOKUP($V96,Data!$A$6:$A$1806,Data!$B$6:$B$1806) -> 59.89500046 | X96: =LOOKUP($V96,Data!$A$6:$A$1806,Data!$C$6:$C$1806) -> 3788.072266 | Y96: =LOOKUP($V96,Data!$A$6:$A$1806,Data!$D$6:$D$1806) -> 335 | Z96: =IF($Z$1="+",LOOKUP($V96,Data!$A$6:$A$1806,Data!$E$6:$E$1806)*-1,LOOKUP($V96,Data!$A$6:$A$1806,Data!$E$6:$E$1806)) -> 212.172699 | AA96: =LOOKUP($V96,Data!$A$6:$A$1806,Data!$F$6:$F$1806) -> 5 | AC96: =LOOKUP($V96,Data!$A$6:$A$1806,Data!$H$6:$H$1806) -> 10 | AD96: =LOOKUP($V96,Data!$A$6:$A$1806,Data!$I$6:$I$1806) -> 0 | AE96: =IF(LOOKUP($V96,Data!$A$6:$A$1806,Data!$J$6:$J$1806)>0,(LOOKUP($V96,Data!$A$6:$A$1806,Data!$J$6:$J$1806)*-1),LOOKUP($V96,Data!$A$6:$A$1806,Data!$J$6:$J$1806)) -> -103 | AF96: =LOOKUP($V96,Data!$A$6:$A$1806,Data!$K$6:$K$1806) -> 7632 | AG96: 108.1495285 | AH96: T+34 sec | AI96: 40098.10278 | AJ96: 59.88911775 | AK96: 3788.354507 | AL96: 335 | AM96: 214.1277143 | AN96: 6.352941176 | AP96: 10 | AQ96: 0 | AR96: -103 | AS96: 7632 | AT96: 114.2087218 | AU96: 3843.770279 | AV96: 142.9621873 | AW96: -97.17071431 | AX96: 0.1049995422 | AY96: -103
A97: T+36 sec | B97: 40098.1028 | C97: =LOOKUP(B97,Data!$A$6:$A$1806,Data!B$6:B$1806) -> 59.89400101 | D97: =LOOKUP(B97,Data!$A$6:$A$1806,Data!C$6:C$1806) -> 3788.327637 | E97: 59.88911775 | F97: 3788.354507 | G97: 3090 | H97: =(IF((C97-L$2)>0,(IF(C97<'Copy Results'!$C$3,((C97-L$2-L$5)/((L$4*L$2)-L$5)*G97*-1),(('Copy Results'!$C$3-L$2-L$5)/((L$4*L$2)-L$5)*G97*-1))),IF(C97>'Copy Results'!$C$2,((C97-L$2+L$5)/((L$4*L$2)-L$5)*G97*-1),(('Copy Results'!$C$2-L$2+L$5)/((L$4*L$2)-L$5)*G97*-1)))) -> 109.1789627 | I97: 111.7369626 | K97: 3803.324754 | L97: 0.6169724721 | M97: 3806.079296 | N97: =AVERAGE(D$79:D97) -> 3758.148116 | O97: =AVERAGE(M$79:M97) -> 3792.316633 | P97: 3679.123751 | Q97: =AVERAGE(P$79:P97) -> 3673.879485 | U97: T+36 sec | V97: 40098.1028 | W97: =LOOKUP($V97,Data!$A$6:$A$1806,Data!$B$6:$B$1806) -> 59.89400101 | X97: =LOOKUP($V97,Data!$A$6:$A$1806,Data!$C$6:$C$1806) -> 3788.327637 | Y97: =LOOKUP($V97,Data!$A$6:$A$1806,Data!$D$6:$D$1806) -> 335 | Z97: =IF($Z$1="+",LOOKUP($V97,Data!$A$6:$A$1806,Data!$E$6:$E$1806)*-1,LOOKUP($V97,Data!$A$6:$A$1806,Data!$E$6:$E$1806)) -> 212.172699 | AA97: =LOOKUP($V97,Data!$A$6:$A$1806,Data!$F$6:$F$1806) -> 6 | AC97: =LOOKUP($V97,Data!$A$6:$A$1806,Data!$H$6:$H$1806) -> 10 | AD97: =LOOKUP($V97,Data!$A$6:$A$1806,Data!$I$6:$I$1806) -> 0 | AE97: =IF(LOOKUP($V97,Data!$A$6:$A$1806,Data!$J$6:$J$1806)>0,(LOOKUP($V97,Data!$A$6:$A$1806,Data!$J$6:$J$1806)*-1),LOOKUP($V97,Data!$A$6:$A$1806,Data!$J$6:$J$1806)) -> -103 | AF97: =LOOKUP($V97,Data!$A$6:$A$1806,Data!$K$6:$K$1806) -> 7632 | AG97: 109.1789627 | AH97: T+36 sec | AI97: 40098.1028 | AJ97: 59.88911775 | AK97: 3788.354507 | AL97: 335 | AM97: 214.1277143 | AN97: 6.352941176 | AP97: 10 | AQ97: 0 | AR97: -103 | AS97: 7632 | AT97: 114.2087218 | AU97: 3843.770279 | AV97: 143.2175584 | AW97: -96.68746972 | AX97: 0.1059989929 | AY97: -103
A98: T+38 sec | B98: 40098.10282 | C98: =LOOKUP(B98,Data!$A$6:$A$1806,Data!B$6:B$1806) -> 59.89300156 | D98: =LOOKUP(B98,Data!$A$6:$A$1806,Data!C$6:C$1806) -> 3788.868408 | E98: 59.88911775 | F98: 3788.354507 | G98: 3090 | H98: =(IF((C98-L$2)>0,(IF(C98<'Copy Results'!$C$3,((C98-L$2-L$5)/((L$4*L$2)-L$5)*G98*-1),(('Copy Results'!$C$3-L$2-L$5)/((L$4*L$2)-L$5)*G98*-1))),IF(C98>'Copy Results'!$C$2,((C98-L$2+L$5)/((L$4*L$2)-L$5)*G98*-1),(('Copy Results'!$C$2-L$2+L$5)/((L$4*L$2)-L$5)*G98*-1)))) -> 110.2083969 | I98: 111.2019646 | K98: 3803.324754 | L98: 0.6169724721 | M98: 3806.161271 | N98: =AVERAGE(D$79:D98) -> 3759.684131 | O98: =AVERAGE(M$79:M98) -> 3793.008864 | P98: 3679.740723 | Q98: =AVERAGE(P$79:P98) -> 3674.187971 | U98: T+38 sec | V98: 40098.10282 | W98: =LOOKUP($V98,Data!$A$6:$A$1806,Data!$B$6:$B$1806) -> 59.89300156 | X98: =LOOKUP($V98,Data!$A$6:$A$1806,Data!$C$6:$C$1806) -> 3788.868408 | Y98: =LOOKUP($V98,Data!$A$6:$A$1806,Data!$D$6:$D$1806) -> 335 | Z98: =IF($Z$1="+",LOOKUP($V98,Data!$A$6:$A$1806,Data!$E$6:$E$1806)*-1,LOOKUP($V98,Data!$A$6:$A$1806,Data!$E$6:$E$1806)) -> 212.172699 | AA98: =LOOKUP($V98,Data!$A$6:$A$1806,Data!$F$6:$F$1806) -> 7 | AC98: =LOOKUP($V98,Data!$A$6:$A$1806,Data!$H$6:$H$1806) -> 10 | AD98: =LOOKUP($V98,Data!$A$6:$A$1806,Data!$I$6:$I$1806) -> 0 | AE98: =IF(LOOKUP($V98,Data!$A$6:$A$1806,Data!$J$6:$J$1806)>0,(LOOKUP($V98,Data!$A$6:$A$1806,Data!$J$6:$J$1806)*-1),LOOKUP($V98,Data!$A$6:$A$1806,Data!$J$6:$J$1806)) -> -103 | AF98: =LOOKUP($V98,Data!$A$6:$A$1806,Data!$K$6:$K$1806) -> 7632 | AG98: 110.2083969 | AH98: T+38 sec | AI98: 40098.10282 | AJ98: 59.88911775 | AK98: 3788.354507 | AL98: 335 | AM98: 214.1277143 | AN98: 6.352941176 | AP98: 10 | AQ98: 0 | AR98: -103 | AS98: 7632 | AT98: 114.2087218 | AU98: 3843.770279 | AV98: 143.7583299 | AW98: -96.40208773 | AX98: 0.1069984436 | AY98: -103
A99: T+40 sec | B99: 40098.10285 | C99: =LOOKUP(B99,Data!$A$6:$A$1806,Data!B$6:B$1806) -> 59.89400101 | D99: =LOOKUP(B99,Data!$A$6:$A$1806,Data!C$6:C$1806) -> 3788.471924 | E99: 59.88911775 | F99: 3788.354507 | G99: 3090 | H99: =(IF((C99-L$2)>0,(IF(C99<'Copy Results'!$C$3,((C99-L$2-L$5)/((L$4*L$2)-L$5)*G99*-1),(('Copy Results'!$C$3-L$2-L$5)/((L$4*L$2)-L$5)*G99*-1))),IF(C99>'Copy Results'!$C$2,((C99-L$2+L$5)/((L$4*L$2)-L$5)*G99*-1),(('Copy Results'!$C$2-L$2+L$5)/((L$4*L$2)-L$5)*G99*-1)))) -> 109.1789627 | I99: 110.4939139 | K99: 3803.324754 | L99: 0.6169724721 | M99: 3806.070193 | N99: =AVERAGE(D$79:D99) -> 3761.054978 | O99: =AVERAGE(M$79:M99) -> 3793.630832 | P99: 3680.357695 | Q99: =AVERAGE(P$79:P99) -> 3674.496457 | U99: T+40 sec | V99: 40098.10285 | W99: =LOOKUP($V99,Data!$A$6:$A$1806,Data!$B$6:$B$1806) -> 59.89400101 | X99: =LOOKUP($V99,Data!$A$6:$A$1806,Data!$C$6:$C$1806) -> 3788.471924 | Y99: =LOOKUP($V99,Data!$A$6:$A$1806,Data!$D$6:$D$1806) -> 335 | Z99: =IF($Z$1="+",LOOKUP($V99,Data!$A$6:$A$1806,Data!$E$6:$E$1806)*-1,LOOKUP($V99,Data!$A$6:$A$1806,Data!$E$6:$E$1806)) -> 212.172699 | AA99: =LOOKUP($V99,Data!$A$6:$A$1806,Data!$F$6:$F$1806) -> 8 | AC99: =LOOKUP($V99,Data!$A$6:$A$1806,Data!$H$6:$H$1806) -> 10 | AD99: =LOOKUP($V99,Data!$A$6:$A$1806,Data!$I$6:$I$1806) -> 0 | AE99: =IF(LOOKUP($V99,Data!$A$6:$A$1806,Data!$J$6:$J$1806)>0,(LOOKUP($V99,Data!$A$6:$A$1806,Data!$J$6:$J$1806)*-1),LOOKUP($V99,Data!$A$6:$A$1806,Data!$J$6:$J$1806)) -> -103 | AF99: =LOOKUP($V99,Data!$A$6:$A$1806,Data!$K$6:$K$1806) -> 7632 | AG99: 109.1789627 | AH99: T+40 sec | AI99: 40098.10285 | AJ99: 59.88911775 | AK99: 3788.354507 | AL99: 335 | AM99: 214.1277143 | AN99: 6.352941176 | AP99: 10 | AQ99: 0 | AR99: -103 | AS99: 7632 | AT99: 114.2087218 | AU99: 3843.770279 | AV99: 143.3618455 | AW99: -96.78487925 | AX99: 0.1059989929 | AY99: -103
A100: T+42 sec | B100: 40098.10287 | C100: =LOOKUP(B100,Data!$A$6:$A$1806,Data!B$6:B$1806) -> 59.89400101 | D100: =LOOKUP(B100,Data!$A$6:$A$1806,Data!C$6:C$1806) -> 3792.275635 | E100: 59.88911775 | F100: 3788.354507 | G100: 3090 | H100: =(IF((C100-L$2)>0,(IF(C100<'Copy Results'!$C$3,((C100-L$2-L$5)/((L$4*L$2)-L$5)*G100*-1),(('Copy Results'!$C$3-L$2-L$5)/((L$4*L$2)-L$5)*G100*-1))),IF(C100>'Copy Results'!$C$2,((C100-L$2+L$5)/((L$4*L$2)-L$5)*G100*-1),(('Copy Results'!$C$2-L$2+L$5)/((L$4*L$2)-L$5)*G100*-1)))) -> 109.1789627 | I100: 110.033681 | K100: 3803.324754 | L100: 0.6169724721 | M100: 3806.226932 | N100: =AVERAGE(D$79:D100) -> 3762.474099 | O100: =AVERAGE(M$79:M100) -> 3794.203382 | P100: 3680.974668 | Q100: =AVERAGE(P$79:P100) -> 3674.804943 | U100: T+42 sec | V100: 40098.10287 | W100: =LOOKUP($V100,Data!$A$6:$A$1806,Data!$B$6:$B$1806) -> 59.89400101 | X100: =LOOKUP($V100,Data!$A$6:$A$1806,Data!$C$6:$C$1806) -> 3792.275635 | Y100: =LOOKUP($V100,Data!$A$6:$A$1806,Data!$D$6:$D$1806) -> 335 | Z100: =IF($Z$1="+",LOOKUP($V100,Data!$A$6:$A$1806,Data!$E$6:$E$1806)*-1,LOOKUP($V100,Data!$A$6:$A$1806,Data!$E$6:$E$1806)) -> 215.598175 | AA100: =LOOKUP($V100,Data!$A$6:$A$1806,Data!$F$6:$F$1806) -> 9 | AC100: =LOOKUP($V100,Data!$A$6:$A$1806,Data!$H$6:$H$1806) -> 10 | AD100: =LOOKUP($V100,Data!$A$6:$A$1806,Data!$I$6:$I$1806) -> 0 | AE100: =IF(LOOKUP($V100,Data!$A$6:$A$1806,Data!$J$6:$J$1806)>0,(LOOKUP($V100,Data!$A$6:$A$1806,Data!$J$6:$J$1806)*-1),LOOKUP($V100,Data!$A$6:$A$1806,Data!$J$6:$J$1806)) -> -103 | AF100: =LOOKUP($V100,Data!$A$6:$A$1806,Data!$K$6:$K$1806) -> 7632 | AG100: 109.1789627 | AH100: T+42 sec | AI100: 40098.10287 | AJ100: 59.88911775 | AK100: 3788.354507 | AL100: 335 | AM100: 214.1277143 | AN100: 6.352941176 | AP100: 10 | AQ100: 0 | AR100: -103 | AS100: 7632 | AT100: 114.2087218 | AU100: 3843.770279 | AV100: 147.1655565 | AW100: -99.35279893 | AX100: 0.1059989929 | AY100: -103
A101: T+44 sec | B101: 40098.10289 | C101: =LOOKUP(B101,Data!$A$6:$A$1806,Data!B$6:B$1806) -> 59.89099884 | D101: =LOOKUP(B101,Data!$A$6:$A$1806,Data!C$6:C$1806) -> 3793.074463 | E101: 59.88911775 | F101: 3788.354507 | G101: 3090 | H101: =(IF((C101-L$2)>0,(IF(C101<'Copy Results'!$C$3,((C101-L$2-L$5)/((L$4*L$2)-L$5)*G101*-1),(('Copy Results'!$C$3-L$2-L$5)/((L$4*L$2)-L$5)*G101*-1))),IF(C101>'Copy Results'!$C$2,((C101-L$2+L$5)/((L$4*L$2)-L$5)*G101*-1),(('Copy Results'!$C$2-L$2+L$5)/((L$4*L$2)-L$5)*G101*-1)))) -> 112.2711945 | I101: 110.8168107 | K101: 3803.324754 | L101: 0.6169724721 | M101: 3807.627034 | N101: =AVERAGE(D$79:D101) -> 3763.80455 | O101: =AVERAGE(M$79:M101) -> 3794.787019 | P101: 3681.59164 | Q101: =AVERAGE(P$79:P101) -> 3675.113429 | U101: T+44 sec | V101: 40098.10289 | W101: =LOOKUP($V101,Data!$A$6:$A$1806,Data!$B$6:$B$1806) -> 59.89099884 | X101: =LOOKUP($V101,Data!$A$6:$A$1806,Data!$C$6:$C$1806) -> 3793.074463 | Y101: =LOOKUP($V101,Data!$A$6:$A$1806,Data!$D$6:$D$1806) -> 335 | Z101: =IF($Z$1="+",LOOKUP($V101,Data!$A$6:$A$1806,Data!$E$6:$E$1806)*-1,LOOKUP($V101,Data!$A$6:$A$1806,Data!$E$6:$E$1806)) -> 215.598175 | AA101: =LOOKUP($V101,Data!$A$6:$A$1806,Data!$F$6:$F$1806) -> 10 | AC101: =LOOKUP($V101,Data!$A$6:$A$1806,Data!$H$6:$H$1806) -> 10 | AD101: =LOOKUP($V101,Data!$A$6:$A$1806,Data!$I$6:$I$1806) -> 0 | AE101: =IF(LOOKUP($V101,Data!$A$6:$A$1806,Data!$J$6:$J$1806)>0,(LOOKUP($V101,Data!$A$6:$A$1806,Data!$J$6:$J$1806)*-1),LOOKUP($V101,Data!$A$6:$A$1806,Data!$J$6:$J$1806)) -> -103 | AF101: =LOOKUP($V101,Data!$A$6:$A$1806,Data!$K$6:$K$1806) -> 7632 | AG101: 112.2711945 | AH101: T+44 sec | AI101: 40098.10289 | AJ101: 59.88911775 | AK101: 3788.354507 | AL101: 335 | AM101: 214.1277143 | AN101: 6.352941176 | AP101: 10 | AQ101: 0 | AR101: -103 | AS101: 7632 | AT101: 114.2087218 | AU101: 3843.770279 | AV101: 147.9643846 | AW101: -97.90771138 | AX101: 0.1090011597 | AY101: -103
A102: T+46 sec | B102: 40098.10292 | C102: =LOOKUP(B102,Data!$A$6:$A$1806,Data!B$6:B$1806) -> 59.88999939 | D102: =LOOKUP(B102,Data!$A$6:$A$1806,Data!C$6:C$1806) -> 3794.374268 | E102: 59.88911775 | F102: 3788.354507 | G102: 3090 | H102: =(IF((C102-L$2)>0,(IF(C102<'Copy Results'!$C$3,((C102-L$2-L$5)/((L$4*L$2)-L$5)*G102*-1),(('Copy Results'!$C$3-L$2-L$5)/((L$4*L$2)-L$5)*G102*-1))),IF(C102>'Copy Results'!$C$2,((C102-L$2+L$5)/((L$4*L$2)-L$5)*G102*-1),(('Copy Results'!$C$2-L$2+L$5)/((L$4*L$2)-L$5)*G102*-1)))) -> 113.3006287 | I102: 111.686147 | K102: 3803.324754 | L102: 0.6169724721 | M102: 3809.113343 | N102: =AVERAGE(D$79:D102) -> 3765.078288 | O102: =AVERAGE(M$79:M102) -> 3795.38395 | P102: 3682.208613 | Q102: =AVERAGE(P$79:P102) -> 3675.421916 | U102: T+46 sec | V102: 40098.10292 | W102: =LOOKUP($V102,Data!$A$6:$A$1806,Data!$B$6:$B$1806) -> 59.88999939 | X102: =LOOKUP($V102,Data!$A$6:$A$1806,Data!$C$6:$C$1806) -> 3794.374268 | Y102: =LOOKUP($V102,Data!$A$6:$A$1806,Data!$D$6:$D$1806) -> 335 | Z102: =IF($Z$1="+",LOOKUP($V102,Data!$A$6:$A$1806,Data!$E$6:$E$1806)*-1,LOOKUP($V102,Data!$A$6:$A$1806,Data!$E$6:$E$1806)) -> 215.598175 | AA102: =LOOKUP($V102,Data!$A$6:$A$1806,Data!$F$6:$F$1806) -> 11 | AC102: =LOOKUP($V102,Data!$A$6:$A$1806,Data!$H$6:$H$1806) -> 10 | AD102: =LOOKUP($V102,Data!$A$6:$A$1806,Data!$I$6:$I$1806) -> 0 | AE102: =IF(LOOKUP($V102,Data!$A$6:$A$1806,Data!$J$6:$J$1806)>0,(LOOKUP($V102,Data!$A$6:$A$1806,Data!$J$6:$J$1806)*-1),LOOKUP($V102,Data!$A$6:$A$1806,Data!$J$6:$J$1806)) -> -103 | AF102: =LOOKUP($V102,Data!$A$6:$A$1806,Data!$K$6:$K$1806) -> 7632 | AG102: 113.3006287 | AH102: T+46 sec | AI102: 40098.10292 | AJ102: 59.88911775 | AK102: 3788.354507 | AL102: 335 | AM102: 214.1277143 | AN102: 6.352941176 | AP102: 10 | AQ102: 0 | AR102: -103 | AS102: 7632 | AT102: 114.2087218 | AU102: 3843.770279 | AV102: 149.2641893 | AW102: -98.11889536 | AX102: 0.1100006104 | AY102: -103
A103: T+48 sec | B103: 40098.10294 | C103: =LOOKUP(B103,Data!$A$6:$A$1806,Data!B$6:B$1806) -> 59.88499832 | D103: =LOOKUP(B103,Data!$A$6:$A$1806,Data!C$6:C$1806) -> 3799.427734 | E103: 59.88911775 | F103: 3788.354507 | G103: 3090 | H103: =(IF((C103-L$2)>0,(IF(C103<'Copy Results'!$C$3,((C103-L$2-L$5)/((L$4*L$2)-L$5)*G103*-1),(('Copy Results'!$C$3-L$2-L$5)/((L$4*L$2)-L$5)*G103*-1))),IF(C103>'Copy Results'!$C$2,((C103-L$2+L$5)/((L$4*L$2)-L$5)*G103*-1),(('Copy Results'!$C$2-L$2+L$5)/((L$4*L$2)-L$5)*G103*-1)))) -> 118.4517288 | I103: 114.0541006 | K103: 3803.324754 | L103: 0.6169724721 | M103: 3812.098269 | N103: =AVERAGE(D$79:D103) -> 3766.452266 | O103: =AVERAGE(M$79:M103) -> 3796.052522 | P103: 3682.825585 | Q103: =AVERAGE(P$79:P103) -> 3675.730402 | U103: T+48 sec | V103: 40098.10294 | W103: =LOOKUP($V103,Data!$A$6:$A$1806,Data!$B$6:$B$1806) -> 59.88499832 | X103: =LOOKUP($V103,Data!$A$6:$A$1806,Data!$C$6:$C$1806) -> 3799.427734 | Y103: =LOOKUP($V103,Data!$A$6:$A$1806,Data!$D$6:$D$1806) -> 335 | Z103: =IF($Z$1="+",LOOKUP($V103,Data!$A$6:$A$1806,Data!$E$6:$E$1806)*-1,LOOKUP($V103,Data!$A$6:$A$1806,Data!$E$6:$E$1806)) -> 215.598175 | AA103: =LOOKUP($V103,Data!$A$6:$A$1806,Data!$F$6:$F$1806) -> 12 | AC103: =LOOKUP($V103,Data!$A$6:$A$1806,Data!$H$6:$H$1806) -> 10 | AD103: =LOOKUP($V103,Data!$A$6:$A$1806,Data!$I$6:$I$1806) -> 0 | AE103: =IF(LOOKUP($V103,Data!$A$6:$A$1806,Data!$J$6:$J$1806)>0,(LOOKUP($V103,Data!$A$6:$A$1806,Data!$J$6:$J$1806)*-1),LOOKUP($V103,Data!$A$6:$A$1806,Data!$J$6:$J$1806)) -> -103 | AF103: =LOOKUP($V103,Data!$A$6:$A$1806,Data!$K$6:$K$1806) -> 7632 | AG103: 118.4517288 | AH103: T+48 sec | AI103: 40098.10294 | AJ103: 59.88911775 | AK103: 3788.354507 | AL103: 335 | AM103: 214.1277143 | AN103: 6.352941176 | AP103: 10 | AQ103: 0 | AR103: -103 | AS103: 7632 | AT103: 114.2087218 | AU103: 3843.770279 | AV103: 154.3176561 | AW103: -98.21211555 | AX103: 0.1150016785 | AY103: -103
A104: T+50 sec | B104: 40098.10296 | C104: =LOOKUP(B104,Data!$A$6:$A$1806,Data!B$6:B$1806) -> 59.88499832 | D104: =LOOKUP(B104,Data!$A$6:$A$1806,Data!C$6:C$1806) -> 3800.42749 | E104: 59.88911775 | F104: 3788.354507 | G104: 3090 | H104: =(IF((C104-L$2)>0,(IF(C104<'Copy Results'!$C$3,((C104-L$2-L$5)/((L$4*L$2)-L$5)*G104*-1),(('Copy Results'!$C$3-L$2-L$5)/((L$4*L$2)-L$5)*G104*-1))),IF(C104>'Copy Results'!$C$2,((C104-L$2+L$5)/((L$4*L$2)-L$5)*G104*-1),(('Copy Results'!$C$2-L$2+L$5)/((L$4*L$2)-L$5)*G104*-1)))) -> 118.4517288 | I104: 115.5932705 | K104: 3803.324754 | L104: 0.6169724721 | M104: 3814.254412 | N104: =AVERAGE(D$79:D104) -> 3767.759005 | O104: =AVERAGE(M$79:M104) -> 3796.752595 | P104: 3683.442558 | Q104: =AVERAGE(P$79:P104) -> 3676.038888 | U104: T+50 sec | V104: 40098.10296 | W104: =LOOKUP($V104,Data!$A$6:$A$1806,Data!$B$6:$B$1806) -> 59.88499832 | X104: =LOOKUP($V104,Data!$A$6:$A$1806,Data!$C$6:$C$1806) -> 3800.42749 | Y104: =LOOKUP($V104,Data!$A$6:$A$1806,Data!$D$6:$D$1806) -> 335 | Z104: =IF($Z$1="+",LOOKUP($V104,Data!$A$6:$A$1806,Data!$E$6:$E$1806)*-1,LOOKUP($V104,Data!$A$6:$A$1806,Data!$E$6:$E$1806)) -> 215.598175 | AA104: =LOOKUP($V104,Data!$A$6:$A$1806,Data!$F$6:$F$1806) -> 13 | AC104: =LOOKUP($V104,Data!$A$6:$A$1806,Data!$H$6:$H$1806) -> 10 | AD104: =LOOKUP($V104,Data!$A$6:$A$1806,Data!$I$6:$I$1806) -> 0 | AE104: =IF(LOOKUP($V104,Data!$A$6:$A$1806,Data!$J$6:$J$1806)>0,(LOOKUP($V104,Data!$A$6:$A$1806,Data!$J$6:$J$1806)*-1),LOOKUP($V104,Data!$A$6:$A$1806,Data!$J$6:$J$1806)) -> -103 | AF104: =LOOKUP($V104,Data!$A$6:$A$1806,Data!$K$6:$K$1806) -> 7632 | AG104: 118.4517288 | AH104: T+50 sec | AI104: 40098.10296 | AJ104: 59.88911775 | AK104: 3788.354507 | AL104: 335 | AM104: 214.1277143 | AN104: 6.352941176 | AP104: 10 | AQ104: 0 | AR104: -103 | AS104: 7632 | AT104: 114.2087218 | AU104: 3843.770279 | AV104: 155.3174119 | AW104: -98.84838842 | AX104: 0.1150016785 | AY104: -103
A105: T+52 sec | B105: 40098.10299 | C105: =LOOKUP(B105,Data!$A$6:$A$1806,Data!B$6:B$1806) -> 59.88800049 | D105: =LOOKUP(B105,Data!$A$6:$A$1806,Data!C$6:C$1806) -> 3799.959229 | E105: 59.88911775 | F105: 3788.354507 | G105: 3090 | H105: =(IF((C105-L$2)>0,(IF(C105<'Copy Results'!$C$3,((C105-L$2-L$5)/((L$4*L$2)-L$5)*G105*-1),(('Copy Results'!$C$3-L$2-L$5)/((L$4*L$2)-L$5)*G105*-1))),IF(C105>'Copy Results'!$C$2,((C105-L$2+L$5)/((L$4*L$2)-L$5)*G105*-1),(('Copy Results'!$C$2-L$2+L$5)/((L$4*L$2)-L$5)*G105*-1)))) -> 115.3594971 | I105: 115.5114498 | K105: 3803.324754 | L105: 0.6169724721 | M105: 3814.789563 | N105: =AVERAGE(D$79:D105) -> 3768.951606 | O105: =AVERAGE(M$79:M105) -> 3797.420631 | P105: 3684.05953 | Q105: =AVERAGE(P$79:P105) -> 3676.347374 | U105: T+52 sec | V105: 40098.10299 | W105: =LOOKUP($V105,Data!$A$6:$A$1806,Data!$B$6:$B$1806) -> 59.88800049 | X105: =LOOKUP($V105,Data!$A$6:$A$1806,Data!$C$6:$C$1806) -> 3799.959229 | Y105: =LOOKUP($V105,Data!$A$6:$A$1806,Data!$D$6:$D$1806) -> 335 | Z105: =IF($Z$1="+",LOOKUP($V105,Data!$A$6:$A$1806,Data!$E$6:$E$1806)*-1,LOOKUP($V105,Data!$A$6:$A$1806,Data!$E$6:$E$1806)) -> 218.3272552 | AA105: =LOOKUP($V105,Data!$A$6:$A$1806,Data!$F$6:$F$1806) -> 14 | AC105: =LOOKUP($V105,Data!$A$6:$A$1806,Data!$H$6:$H$1806) -> 10 | AD105: =LOOKUP($V105,Data!$A$6:$A$1806,Data!$I$6:$I$1806) -> 0 | AE105: =IF(LOOKUP($V105,Data!$A$6:$A$1806,Data!$J$6:$J$1806)>0,(LOOKUP($V105,Data!$A$6:$A$1806,Data!$J$6:$J$1806)*-1),LOOKUP($V105,Data!$A$6:$A$1806,Data!$J$6:$J$1806)) -> -103 | AF105: =LOOKUP($V105,Data!$A$6:$A$1806,Data!$K$6:$K$1806) -> 7632 | AG105: 115.3594971 | AH105: T+52 sec | AI105: 40098.10299 | AJ105: 59.88911775 | AK105: 3788.354507 | AL105: 335 | AM105: 214.1277143 | AN105: 6.352941176 | AP105: 10 | AQ105: 0 | AR105: -103 | AS105: 7632 | AT105: 114.2087218 | AU105: 3843.770279 | AV105: 154.8491502 | AW105: -100.4700176 | AX105: 0.1119995117 | AY105: -103
A106: T+54 sec | B106: 40098.10301 | C106: =LOOKUP(B106,Data!$A$6:$A$1806,Data!B$6:B$1806) -> 59.88700104 | D106: =LOOKUP(B106,Data!$A$6:$A$1806,Data!C$6:C$1806) -> 3803.625 | G106: 3090 | H106: =(IF((C106-L$2)>0,(IF(C106<'Copy Results'!$C$3,((C106-L$2-L$5)/((L$4*L$2)-L$5)*G106*-1),(('Copy Results'!$C$3-L$2-L$5)/((L$4*L$2)-L$5)*G106*-1))),IF(C106>'Copy Results'!$C$2,((C106-L$2+L$5)/((L$4*L$2)-L$5)*G106*-1),(('Copy Results'!$C$2-L$2+L$5)/((L$4*L$2)-L$5)*G106*-1)))) -> 116.3889313 | I106: 115.8185683 | L106: 0.6169724721 | M106: 3815.713654 | N106: =AVERAGE(D$79:D106) -> 3770.189941 | O106: =AVERAGE(M$79:M106) -> 3798.073953 | P106: 3684.676503 | Q106: =AVERAGE(P$79:P106) -> 3676.655861 | U106: T+54 sec | V106: 40098.10301 | W106: =LOOKUP($V106,Data!$A$6:$A$1806,Data!$B$6:$B$1806) -> 59.88700104 | X106: =LOOKUP($V106,Data!$A$6:$A$1806,Data!$C$6:$C$1806) -> 3803.625 | Y106: =LOOKUP($V106,Data!$A$6:$A$1806,Data!$D$6:$D$1806) -> 335 | Z106: =IF($Z$1="+",LOOKUP($V106,Data!$A$6:$A$1806,Data!$E$6:$E$1806)*-1,LOOKUP($V106,Data!$A$6:$A$1806,Data!$E$6:$E$1806)) -> 218.3272552 | AA106: =LOOKUP($V106,Data!$A$6:$A$1806,Data!$F$6:$F$1806) -> 15 | AC106: =LOOKUP($V106,Data!$A$6:$A$1806,Data!$H$6:$H$1806) -> 10 | AD106: =LOOKUP($V106,Data!$A$6:$A$1806,Data!$I$6:$I$1806) -> 0 | AE106: =IF(LOOKUP($V106,Data!$A$6:$A$1806,Data!$J$6:$J$1806)>0,(LOOKUP($V106,Data!$A$6:$A$1806,Data!$J$6:$J$1806)*-1),LOOKUP($V106,Data!$A$6:$A$1806,Data!$J$6:$J$1806)) -> -103 | AF106: =LOOKUP($V106,Data!$A$6:$A$1806,Data!$K$6:$K$1806) -> 7632 | AG106: 116.3889313 | AH106: T+54 sec | AI106: 40098.10301 | AV106: 158.5149217 | AW106: -102.1858192 | AX106: 0.1129989624 | AY106: -103
A107: T+56 sec | B107: 40098.10303 | C107: =LOOKUP(B107,Data!$A$6:$A$1806,Data!B$6:B$1806) -> 59.88800049 | D107: =LOOKUP(B107,Data!$A$6:$A$1806,Data!C$6:C$1806) -> 3802.925049 | G107: 3090 | H107: =(IF((C107-L$2)>0,(IF(C107<'Copy Results'!$C$3,((C107-L$2-L$5)/((L$4*L$2)-L$5)*G107*-1),(('Copy Results'!$C$3-L$2-L$5)/((L$4*L$2)-L$5)*G107*-1))),IF(C107>'Copy Results'!$C$2,((C107-L$2+L$5)/((L$4*L$2)-L$5)*G107*-1),(('Copy Results'!$C$2-L$2+L$5)/((L$4*L$2)-L$5)*G107*-1)))) -> 115.3594971 | I107: =L$13*H107+(1-L$13)*I106 -> 115.6578934 | L107: 0.6169724721 | M107: 3816.169952 | N107: =AVERAGE(D$79:D107) -> 3771.318738 | O107: =AVERAGE(M$79:M107) -> 3798.697953 | P107: 3685.293475 | Q107: =AVERAGE(P$79:P107) -> 3676.964347 | U107: T+56 sec | V107: 40098.10303 | W107: =LOOKUP($V107,Data!$A$6:$A$1806,Data!$B$6:$B$1806) -> 59.88800049 | X107: =LOOKUP($V107,Data!$A$6:$A$1806,Data!$C$6:$C$1806) -> 3802.925049 | Y107: =LOOKUP($V107,Data!$A$6:$A$1806,Data!$D$6:$D$1806) -> 335 | Z107: =IF($Z$1="+",LOOKUP($V107,Data!$A$6:$A$1806,Data!$E$6:$E$1806)*-1,LOOKUP($V107,Data!$A$6:$A$1806,Data!$E$6:$E$1806)) -> 218.3272552 | AA107: =LOOKUP($V107,Data!$A$6:$A$1806,Data!$F$6:$F$1806) -> 16 | AC107: =LOOKUP($V107,Data!$A$6:$A$1806,Data!$H$6:$H$1806) -> 10 | AD107: =LOOKUP($V107,Data!$A$6:$A$1806,Data!$I$6:$I$1806) -> 0 | AE107: =IF(LOOKUP($V107,Data!$A$6:$A$1806,Data!$J$6:$J$1806)>0,(LOOKUP($V107,Data!$A$6:$A$1806,Data!$J$6:$J$1806)*-1),LOOKUP($V107,Data!$A$6:$A$1806,Data!$J$6:$J$1806)) -> -103 | AF107: =LOOKUP($V107,Data!$A$6:$A$1806,Data!$K$6:$K$1806) -> 7632 | AG107: 115.3594971 | AH107: T+56 sec | AI107: 40098.10303 | AV107: 157.8149705 | AW107: -102.3943163 | AX107: 0.1119995117 | AY107: -103
A108: T+58 sec | B108: 40098.10306 | C108: =LOOKUP(B108,Data!$A$6:$A$1806,Data!B$6:B$1806) -> 59.88800049 | D108: =LOOKUP(B108,Data!$A$6:$A$1806,Data!C$6:C$1806) -> 3802.950928 | G108: =AE108*-M$4*10 -> 3090 | H108: =(IF((C108-L$2)>0,(IF(C108<'Copy Results'!$C$3,((C108-L$2-L$5)/((L$4*L$2)-L$5)*G108*-1),(('Copy Results'!$C$3-L$2-L$5)/((L$4*L$2)-L$5)*G108*-1))),IF(C108>'Copy Results'!$C$2,((C108-L$2+L$5)/((L$4*L$2)-L$5)*G108*-1),(('Copy Results'!$C$2-L$2+L$5)/((L$4*L$2)-L$5)*G108*-1)))) -> 115.3594971 | I108: 115.5534547 | L108: 0.6169724721 | M108: 3816.682486 | N108: =AVERAGE(D$79:D108) -> 3772.373145 | O108: =AVERAGE(M$79:M108) -> 3799.297438 | P108: 3685.910448 | Q108: =AVERAGE(P$79:P108) -> 3677.272833 | U108: T+58 sec | V108: 40098.10306 | W108: =LOOKUP($V108,Data!$A$6:$A$1806,Data!$B$6:$B$1806) -> 59.88800049 | X108: =LOOKUP($V108,Data!$A$6:$A$1806,Data!$C$6:$C$1806) -> 3802.950928 | Y108: =LOOKUP($V108,Data!$A$6:$A$1806,Data!$D$6:$D$1806) -> 335 | Z108: =IF($Z$1="+",LOOKUP($V108,Data!$A$6:$A$1806,Data!$E$6:$E$1806)*-1,LOOKUP($V108,Data!$A$6:$A$1806,Data!$E$6:$E$1806)) -> 218.3272552 | AA108: =LOOKUP($V108,Data!$A$6:$A$1806,Data!$F$6:$F$1806) -> 16 | AC108: =LOOKUP($V108,Data!$A$6:$A$1806,Data!$H$6:$H$1806) -> 10 | AD108: =LOOKUP($V108,Data!$A$6:$A$1806,Data!$I$6:$I$1806) -> 0 | AE108: =IF(LOOKUP($V108,Data!$A$6:$A$1806,Data!$J$6:$J$1806)>0,(LOOKUP($V108,Data!$A$6:$A$1806,Data!$J$6:$J$1806)*-1),LOOKUP($V108,Data!$A$6:$A$1806,Data!$J$6:$J$1806)) -> -103 | AF108: =LOOKUP($V108,Data!$A$6:$A$1806,Data!$K$6:$K$1806) -> 7632 | AG108: =(IF((W108-$L$2)>0,((W108-$L$2-$L$5)/(($L$4*$L$2)-$L$5)*G108*-1),((W108-$L$2+$L$5)/(($L$4*$L$2)-$L$5)*G108*-1))) -> 115.3594971 | AH108: T+58 sec | AI108: 40098.10306 | AV108: 157.8408494 | AW108: -102.4111072 | AX108: =ABS(C108-60) -> 0.1119995117 | AY108: =IF(AX108>0.036,AE108," ") -> -103
A109: T+60 sec | B109: 40098.10308 | C109: =LOOKUP(B109,Data!$A$6:$A$1806,Data!B$6:B$1806) -> 59.88999939 | D109: =LOOKUP(B109,Data!$A$6:$A$1806,Data!C$6:C$1806) -> 3804.387939 | G109: 3090 | H109: =(IF((C109-L$2)>0,(IF(C109<'Copy Results'!$C$3,((C109-L$2-L$5)/((L$4*L$2)-L$5)*G109*-1),(('Copy Results'!$C$3-L$2-L$5)/((L$4*L$2)-L$5)*G109*-1))),IF(C109>'Copy Results'!$C$2,((C109-L$2+L$5)/((L$4*L$2)-L$5)*G109*-1),(('Copy Results'!$C$2-L$2+L$5)/((L$4*L$2)-L$5)*G109*-1)))) -> 113.3006287 | I109: 114.7649656 | L109: 0.6169724721 | M109: 3816.510969 | N109: =AVERAGE(D$79:D109) -> 3773.40588 | O109: =AVERAGE(M$79:M109) -> 3799.852713 | P109: 3686.52742 | Q109: =AVERAGE(P$79:P109) -> 3677.581319 | U109: T+60 sec | V109: 40098.10308 | W109: =LOOKUP($V109,Data!$A$6:$A$1806,Data!$B$6:$B$1806) -> 59.88999939 | X109: =LOOKUP($V109,Data!$A$6:$A$1806,Data!$C$6:$C$1806) -> 3804.387939 | Y109: =LOOKUP($V109,Data!$A$6:$A$1806,Data!$D$6:$D$1806) -> 335 | Z109: =IF($Z$1="+",LOOKUP($V109,Data!$A$6:$A$1806,Data!$E$6:$E$1806)*-1,LOOKUP($V109,Data!$A$6:$A$1806,Data!$E$6:$E$1806)) -> 218.3272552 | AA109: =LOOKUP($V109,Data!$A$6:$A$1806,Data!$F$6:$F$1806) -> 16 | AC109: =LOOKUP($V109,Data!$A$6:$A$1806,Data!$H$6:$H$1806) -> 10 | AD109: =LOOKUP($V109,Data!$A$6:$A$1806,Data!$I$6:$I$1806) -> 0 | AE109: =IF(LOOKUP($V109,Data!$A$6:$A$1806,Data!$J$6:$J$1806)>0,(LOOKUP($V109,Data!$A$6:$A$1806,Data!$J$6:$J$1806)*-1),LOOKUP($V109,Data!$A$6:$A$1806,Data!$J$6:$J$1806)) -> -103 | AF109: =LOOKUP($V109,Data!$A$6:$A$1806,Data!$K$6:$K$1806) -> 7632 | AG109: 113.3006287 | AH109: T+60 sec | AI109: 40098.10308 | AV109: 159.2778611 | AW109: -104.701388 | AX109: 0.1100006104 | AY109: -103
A110: T+62 sec | B110: =B109+TIME(0,0,$B$1) -> 40098.1031 | C110: =LOOKUP(B110,Data!$A$6:$A$1806,Data!B$6:B$1806) -> 59.889 | D110: =LOOKUP(B110,Data!$A$6:$A$1806,Data!C$6:C$1806) -> 3805.496094 | G110: 3090 | H110: =(IF((C110-L$2)>0,(IF(C110<'Copy Results'!$C$3,((C110-L$2-L$5)/((L$4*L$2)-L$5)*G110*-1),(('Copy Results'!$C$3-L$2-L$5)/((L$4*L$2)-L$5)*G110*-1))),IF(C110>'Copy Results'!$C$2,((C110-L$2+L$5)/((L$4*L$2)-L$5)*G110*-1),(('Copy Results'!$C$2-L$2+L$5)/((L$4*L$2)-L$5)*G110*-1)))) -> 114.33 | I110: 114.6127276 | L110: 0.6169724721 | M110: 3816.975703 | N110: =AVERAGE(D$79:D110) -> 3774.408699 | O110: =AVERAGE(M$79:M110) -> 3800.387806 | P110: 3687.144393 | Q110: =AVERAGE(P$79:P110) -> 3677.889806 | U110: T+62 sec | V110: 40098.1031 | W110: =LOOKUP($V110,Data!$A$6:$A$1806,Data!$B$6:$B$1806) -> 59.889 | X110: =LOOKUP($V110,Data!$A$6:$A$1806,Data!$C$6:$C$1806) -> 3805.496094 | Y110: =LOOKUP($V110,Data!$A$6:$A$1806,Data!$D$6:$D$1806) -> 335 | Z110: =IF($Z$1="+",LOOKUP($V110,Data!$A$6:$A$1806,Data!$E$6:$E$1806)*-1,LOOKUP($V110,Data!$A$6:$A$1806,Data!$E$6:$E$1806)) -> 217.379425 | AA110: =LOOKUP($V110,Data!$A$6:$A$1806,Data!$F$6:$F$1806) -> 16 | AC110: =LOOKUP($V110,Data!$A$6:$A$1806,Data!$H$6:$H$1806) -> 10 | AD110: =LOOKUP($V110,Data!$A$6:$A$1806,Data!$I$6:$I$1806) -> 0 | AE110: =IF(LOOKUP($V110,Data!$A$6:$A$1806,Data!$J$6:$J$1806)>0,(LOOKUP($V110,Data!$A$6:$A$1806,Data!$J$6:$J$1806)*-1),LOOKUP($V110,Data!$A$6:$A$1806,Data!$J$6:$J$1806)) -> -103 | AF110: =LOOKUP($V110,Data!$A$6:$A$1806,Data!$K$6:$K$1806) -> 7632 | AG110: 114.33 | AH110: T+62 sec | AI110: 40098.1031 | AV110: 160.3860154 | AW110: -104.7417337 | AX110: 0.111 | AY110: -103
A111: T+64 sec | B111: 40098.10312 | C111: =LOOKUP(B111,Data!$A$6:$A$1806,Data!B$6:B$1806) -> 59.882 | D111: =LOOKUP(B111,Data!$A$6:$A$1806,Data!C$6:C$1806) -> 3805.616699 | G111: 3090 | H111: =(IF((C111-L$2)>0,(IF(C111<'Copy Results'!$C$3,((C111-L$2-L$5)/((L$4*L$2)-L$5)*G111*-1),(('Copy Results'!$C$3-L$2-L$5)/((L$4*L$2)-L$5)*G111*-1))),IF(C111>'Copy Results'!$C$2,((C111-L$2+L$5)/((L$4*L$2)-L$5)*G111*-1),(('Copy Results'!$C$2-L$2+L$5)/((L$4*L$2)-L$5)*G111*-1)))) -> 121.54 | I111: 117.037273 | L111: 0.6169724721 | M111: 3820.017221 | N111: =AVERAGE(D$79:D111) -> 3775.354396 | O111: =AVERAGE(M$79:M111) -> 3800.982637 | P111: 3687.761365 | Q111: =AVERAGE(P$79:P111) -> 3678.198292 | U111: T+64 sec | V111: 40098.10312 | W111: =LOOKUP($V111,Data!$A$6:$A$1806,Data!$B$6:$B$1806) -> 59.882 | X111: =LOOKUP($V111,Data!$A$6:$A$1806,Data!$C$6:$C$1806) -> 3805.616699 | Y111: =LOOKUP($V111,Data!$A$6:$A$1806,Data!$D$6:$D$1806) -> 335 | Z111: =IF($Z$1="+",LOOKUP($V111,Data!$A$6:$A$1806,Data!$E$6:$E$1806)*-1,LOOKUP($V111,Data!$A$6:$A$1806,Data!$E$6:$E$1806)) -> 217.379425 | AA111: =LOOKUP($V111,Data!$A$6:$A$1806,Data!$F$6:$F$1806) -> 16 | AC111: =LOOKUP($V111,Data!$A$6:$A$1806,Data!$H$6:$H$1806) -> 10 | AD111: =LOOKUP($V111,Data!$A$6:$A$1806,Data!$I$6:$I$1806) -> 0 | AE111: =IF(LOOKUP($V111,Data!$A$6:$A$1806,Data!$J$6:$J$1806)>0,(LOOKUP($V111,Data!$A$6:$A$1806,Data!$J$6:$J$1806)*-1),LOOKUP($V111,Data!$A$6:$A$1806,Data!$J$6:$J$1806)) -> -103 | AF111: =LOOKUP($V111,Data!$A$6:$A$1806,Data!$K$6:$K$1806) -> 7632 | AG111: 121.54 | AH111: T+64 sec | AI111: 40098.10312 | AV111: 160.5066209 | AW111: -100.238186 | AX111: 0.118 | AY111: -103
A112: T+66 sec | B112: 40098.10315 | C112: =LOOKUP(B112,Data!$A$6:$A$1806,Data!B$6:B$1806) -> 59.8730011 | D112: =LOOKUP(B112,Data!$A$6:$A$1806,Data!C$6:C$1806) -> 3809.237305 | G112: 3090 | H112: =(IF((C112-L$2)>0,(IF(C112<'Copy Results'!$C$3,((C112-L$2-L$5)/((L$4*L$2)-L$5)*G112*-1),(('Copy Results'!$C$3-L$2-L$5)/((L$4*L$2)-L$5)*G112*-1))),IF(C112>'Copy Results'!$C$2,((C112-L$2+L$5)/((L$4*L$2)-L$5)*G112*-1),(('Copy Results'!$C$2-L$2+L$5)/((L$4*L$2)-L$5)*G112*-1)))) -> 130.8088684 | I112: 121.8573314 | L112: 0.6169724721 | M112: 3825.454252 | N112: =AVERAGE(D$79:D112) -> 3776.350952 | O112: =AVERAGE(M$79:M112) -> 3801.70239 | P112: 3688.378338 | Q112: =AVERAGE(P$79:P112) -> 3678.506778 | U112: T+66 sec | V112: 40098.10315 | W112: =LOOKUP($V112,Data!$A$6:$A$1806,Data!$B$6:$B$1806) -> 59.8730011 | X112: =LOOKUP($V112,Data!$A$6:$A$1806,Data!$C$6:$C$1806) -> 3809.237305 | Y112: =LOOKUP($V112,Data!$A$6:$A$1806,Data!$D$6:$D$1806) -> 335 | Z112: =IF($Z$1="+",LOOKUP($V112,Data!$A$6:$A$1806,Data!$E$6:$E$1806)*-1,LOOKUP($V112,Data!$A$6:$A$1806,Data!$E$6:$E$1806)) -> 217.379425 | AA112: =LOOKUP($V112,Data!$A$6:$A$1806,Data!$F$6:$F$1806) -> 16 | AC112: =LOOKUP($V112,Data!$A$6:$A$1806,Data!$H$6:$H$1806) -> 10 | AD112: =LOOKUP($V112,Data!$A$6:$A$1806,Data!$I$6:$I$1806) -> 0 | AE112: =IF(LOOKUP($V112,Data!$A$6:$A$1806,Data!$J$6:$J$1806)>0,(LOOKUP($V112,Data!$A$6:$A$1806,Data!$J$6:$J$1806)*-1),LOOKUP($V112,Data!$A$6:$A$1806,Data!$J$6:$J$1806)) -> -103 | AF112: =LOOKUP($V112,Data!$A$6:$A$1806,Data!$K$6:$K$1806) -> 7631 | AG112: 130.8088684 | AH112: T+66 sec | AI112: 40098.10315 | AV112: 164.1272264 | AW112: -97.04542447 | AX112: 0.1269989014 | AY112: -103
A113: T+68 sec | B113: 40098.10317 | C113: =LOOKUP(B113,Data!$A$6:$A$1806,Data!B$6:B$1806) -> 59.85699844 | D113: =LOOKUP(B113,Data!$A$6:$A$1806,Data!C$6:C$1806) -> 3811.50293 | G113: 3090 | H113: =(IF((C113-L$2)>0,(IF(C113<'Copy Results'!$C$3,((C113-L$2-L$5)/((L$4*L$2)-L$5)*G113*-1),(('Copy Results'!$C$3-L$2-L$5)/((L$4*L$2)-L$5)*G113*-1))),IF(C113>'Copy Results'!$C$2,((C113-L$2+L$5)/((L$4*L$2)-L$5)*G113*-1),(('Copy Results'!$C$2-L$2+L$5)/((L$4*L$2)-L$5)*G113*-1)))) -> 147.2916031 | I113: 130.7593265 | L113: 0.6169724721 | M113: 3834.97322 | N113: =AVERAGE(D$79:D113) -> 3777.355294 | O113: =AVERAGE(M$79:M113) -> 3802.652985 | P113: 3688.99531 | Q113: =AVERAGE(P$79:P113) -> 3678.815264 | U113: T+68 sec | V113: 40098.10317 | W113: =LOOKUP($V113,Data!$A$6:$A$1806,Data!$B$6:$B$1806) -> 59.85699844 | X113: =LOOKUP($V113,Data!$A$6:$A$1806,Data!$C$6:$C$1806) -> 3811.50293 | Y113: =LOOKUP($V113,Data!$A$6:$A$1806,Data!$D$6:$D$1806) -> 335 | Z113: =IF($Z$1="+",LOOKUP($V113,Data!$A$6:$A$1806,Data!$E$6:$E$1806)*-1,LOOKUP($V113,Data!$A$6:$A$1806,Data!$E$6:$E$1806)) -> 217.379425 | AA113: =LOOKUP($V113,Data!$A$6:$A$1806,Data!$F$6:$F$1806) -> 16 | AC113: =LOOKUP($V113,Data!$A$6:$A$1806,Data!$H$6:$H$1806) -> 10 | AD113: =LOOKUP($V113,Data!$A$6:$A$1806,Data!$I$6:$I$1806) -> 0 | AE113: =IF(LOOKUP($V113,Data!$A$6:$A$1806,Data!$J$6:$J$1806)>0,(LOOKUP($V113,Data!$A$6:$A$1806,Data!$J$6:$J$1806)*-1),LOOKUP($V113,Data!$A$6:$A$1806,Data!$J$6:$J$1806)) -> -103 | AF113: =LOOKUP($V113,Data!$A$6:$A$1806,Data!$K$6:$K$1806) -> 7625 | AG113: 147.2916031 | AH113: T+68 sec | AI113: 40098.10317 | AV113: 166.3928514 | AW113: -89.88048626 | AX113: 0.1430015564 | AY113: -103
A114: T+70 sec | B114: 40098.10319 | C114: =LOOKUP(B114,Data!$A$6:$A$1806,Data!B$6:B$1806) -> 59.84899902 | D114: =LOOKUP(B114,Data!$A$6:$A$1806,Data!C$6:C$1806) -> 3814.862305 | G114: 3090 | H114: =(IF((C114-L$2)>0,(IF(C114<'Copy Results'!$C$3,((C114-L$2-L$5)/((L$4*L$2)-L$5)*G114*-1),(('Copy Results'!$C$3-L$2-L$5)/((L$4*L$2)-L$5)*G114*-1))),IF(C114>'Copy Results'!$C$2,((C114-L$2+L$5)/((L$4*L$2)-L$5)*G114*-1),(('Copy Results'!$C$2-L$2+L$5)/((L$4*L$2)-L$5)*G114*-1)))) -> 155.5310059 | I114: 139.4294143 | L114: 0.6169724721 | M114: 3844.26028 | N114: =AVERAGE(D$79:D114) -> 3778.397156 | O114: =AVERAGE(M$79:M114) -> 3803.808744 | P114: 3689.612283 | Q114: =AVERAGE(P$79:P114) -> 3679.123751 | U114: T+70 sec | V114: 40098.10319 | W114: =LOOKUP($V114,Data!$A$6:$A$1806,Data!$B$6:$B$1806) -> 59.84899902 | X114: =LOOKUP($V114,Data!$A$6:$A$1806,Data!$C$6:$C$1806) -> 3814.862305 | Y114: =LOOKUP($V114,Data!$A$6:$A$1806,Data!$D$6:$D$1806) -> 335 | Z114: =IF($Z$1="+",LOOKUP($V114,Data!$A$6:$A$1806,Data!$E$6:$E$1806)*-1,LOOKUP($V114,Data!$A$6:$A$1806,Data!$E$6:$E$1806)) -> 217.379425 | AA114: =LOOKUP($V114,Data!$A$6:$A$1806,Data!$F$6:$F$1806) -> 16 | AC114: =LOOKUP($V114,Data!$A$6:$A$1806,Data!$H$6:$H$1806) -> 10 | AD114: =LOOKUP($V114,Data!$A$6:$A$1806,Data!$I$6:$I$1806) -> 0 | AE114: =IF(LOOKUP($V114,Data!$A$6:$A$1806,Data!$J$6:$J$1806)>0,(LOOKUP($V114,Data!$A$6:$A$1806,Data!$J$6:$J$1806)*-1),LOOKUP($V114,Data!$A$6:$A$1806,Data!$J$6:$J$1806)) -> -103 | AF114: =LOOKUP($V114,Data!$A$6:$A$1806,Data!$K$6:$K$1806) -> 7623 | AG114: 155.5310059 | AH114: T+70 sec | AI114: 40098.10319 | AV114: 169.7522264 | AW114: -87.89704605 | AX114: 0.1510009766 | AY114: -103
A115: T+72 sec | B115: 40098.10322 | C115: =LOOKUP(B115,Data!$A$6:$A$1806,Data!B$6:B$1806) -> 59.85200119 | D115: =LOOKUP(B115,Data!$A$6:$A$1806,Data!C$6:C$1806) -> 3815.888916 | G115: 3090 | H115: =(IF((C115-L$2)>0,(IF(C115<'Copy Results'!$C$3,((C115-L$2-L$5)/((L$4*L$2)-L$5)*G115*-1),(('Copy Results'!$C$3-L$2-L$5)/((L$4*L$2)-L$5)*G115*-1))),IF(C115>'Copy Results'!$C$2,((C115-L$2+L$5)/((L$4*L$2)-L$5)*G115*-1),(('Copy Results'!$C$2-L$2+L$5)/((L$4*L$2)-L$5)*G115*-1)))) -> 152.4387741 | I115: 143.9826902 | L115: 0.6169724721 | M115: 3849.430528 | N115: =AVERAGE(D$79:D115) -> 3779.410447 | O115: =AVERAGE(M$79:M115) -> 3805.041765 | P115: 3690.229255 | Q115: =AVERAGE(P$79:P115) -> 3679.432237 | U115: T+72 sec | V115: 40098.10322 | W115: =LOOKUP($V115,Data!$A$6:$A$1806,Data!$B$6:$B$1806) -> 59.85200119 | X115: =LOOKUP($V115,Data!$A$6:$A$1806,Data!$C$6:$C$1806) -> 3815.888916 | Y115: =LOOKUP($V115,Data!$A$6:$A$1806,Data!$D$6:$D$1806) -> 335 | Z115: =IF($Z$1="+",LOOKUP($V115,Data!$A$6:$A$1806,Data!$E$6:$E$1806)*-1,LOOKUP($V115,Data!$A$6:$A$1806,Data!$E$6:$E$1806)) -> 214.8303528 | AA115: =LOOKUP($V115,Data!$A$6:$A$1806,Data!$F$6:$F$1806) -> 16 | AC115: =LOOKUP($V115,Data!$A$6:$A$1806,Data!$H$6:$H$1806) -> 10 | AD115: =LOOKUP($V115,Data!$A$6:$A$1806,Data!$I$6:$I$1806) -> 0 | AE115: =IF(LOOKUP($V115,Data!$A$6:$A$1806,Data!$J$6:$J$1806)>0,(LOOKUP($V115,Data!$A$6:$A$1806,Data!$J$6:$J$1806)*-1),LOOKUP($V115,Data!$A$6:$A$1806,Data!$J$6:$J$1806)) -> -103 | AF115: =LOOKUP($V115,Data!$A$6:$A$1806,Data!$K$6:$K$1806) -> 7621 | AG115: 152.4387741 | AH115: T+72 sec | AI115: 40098.10322 | AV115: 170.7788377 | AW115: -89.8249597 | AX115: 0.1479988098 | AY115: -103
A116: T+74 sec | B116: 40098.10324 | C116: =LOOKUP(B116,Data!$A$6:$A$1806,Data!B$6:B$1806) -> 59.85800171 | D116: =LOOKUP(B116,Data!$A$6:$A$1806,Data!C$6:C$1806) -> 3825.642578 | G116: 3090 | H116: =(IF((C116-L$2)>0,(IF(C116<'Copy Results'!$C$3,((C116-L$2-L$5)/((L$4*L$2)-L$5)*G116*-1),(('Copy Results'!$C$3-L$2-L$5)/((L$4*L$2)-L$5)*G116*-1))),IF(C116>'Copy Results'!$C$2,((C116-L$2+L$5)/((L$4*L$2)-L$5)*G116*-1),(('Copy Results'!$C$2-L$2+L$5)/((L$4*L$2)-L$5)*G116*-1)))) -> 146.2582397 | I116: 144.7791325 | L116: 0.6169724721 | M116: 3850.843943 | N116: =AVERAGE(D$79:D116) -> 3780.627082 | O116: =AVERAGE(M$79:M116) -> 3806.247085 | P116: 3690.846227 | Q116: =AVERAGE(P$79:P116) -> 3679.740723 | U116: T+74 sec | V116: 40098.10324 | W116: =LOOKUP($V116,Data!$A$6:$A$1806,Data!$B$6:$B$1806) -> 59.85800171 | X116: =LOOKUP($V116,Data!$A$6:$A$1806,Data!$C$6:$C$1806) -> 3825.642578 | Y116: =LOOKUP($V116,Data!$A$6:$A$1806,Data!$D$6:$D$1806) -> 335 | Z116: =IF($Z$1="+",LOOKUP($V116,Data!$A$6:$A$1806,Data!$E$6:$E$1806)*-1,LOOKUP($V116,Data!$A$6:$A$1806,Data!$E$6:$E$1806)) -> 214.8303528 | AA116: =LOOKUP($V116,Data!$A$6:$A$1806,Data!$F$6:$F$1806) -> 16 | AC116: =LOOKUP($V116,Data!$A$6:$A$1806,Data!$H$6:$H$1806) -> 10 | AD116: =LOOKUP($V116,Data!$A$6:$A$1806,Data!$I$6:$I$1806) -> 0 | AE116: =IF(LOOKUP($V116,Data!$A$6:$A$1806,Data!$J$6:$J$1806)>0,(LOOKUP($V116,Data!$A$6:$A$1806,Data!$J$6:$J$1806)*-1),LOOKUP($V116,Data!$A$6:$A$1806,Data!$J$6:$J$1806)) -> -103 | AF116: =LOOKUP($V116,Data!$A$6:$A$1806,Data!$K$6:$K$1806) -> 7623 | AG116: 146.2582397 | AH116: T+74 sec | AI116: 40098.10324 | AV116: 180.5324998 | AW116: -98.04966995 | AX116: 0.141998291 | AY116: -103
A117: T+76 sec | B117: 40098.10326 | C117: =LOOKUP(B117,Data!$A$6:$A$1806,Data!B$6:B$1806) -> 59.86299896 | D117: =LOOKUP(B117,Data!$A$6:$A$1806,Data!C$6:C$1806) -> 3826.053223 | G117: 3090 | H117: =(IF((C117-L$2)>0,(IF(C117<'Copy Results'!$C$3,((C117-L$2-L$5)/((L$4*L$2)-L$5)*G117*-1),(('Copy Results'!$C$3-L$2-L$5)/((L$4*L$2)-L$5)*G117*-1))),IF(C117>'Copy Results'!$C$2,((C117-L$2+L$5)/((L$4*L$2)-L$5)*G117*-1),(('Copy Results'!$C$2-L$2+L$5)/((L$4*L$2)-L$5)*G117*-1)))) -> 141.1110687 | I117: 143.4953102 | L117: 0.6169724721 | M117: 3850.177093 | N117: =AVERAGE(D$79:D117) -> 3781.791854 | O117: =AVERAGE(M$79:M117) -> 3807.373496 | P117: 3691.4632 | Q117: =AVERAGE(P$79:P117) -> 3680.049209 | U117: T+76 sec | V117: 40098.10326 | W117: =LOOKUP($V117,Data!$A$6:$A$1806,Data!$B$6:$B$1806) -> 59.86299896 | X117: =LOOKUP($V117,Data!$A$6:$A$1806,Data!$C$6:$C$1806) -> 3826.053223 | Y117: =LOOKUP($V117,Data!$A$6:$A$1806,Data!$D$6:$D$1806) -> 335 | Z117: =IF($Z$1="+",LOOKUP($V117,Data!$A$6:$A$1806,Data!$E$6:$E$1806)*-1,LOOKUP($V117,Data!$A$6:$A$1806,Data!$E$6:$E$1806)) -> 214.8303528 | AA117: =LOOKUP($V117,Data!$A$6:$A$1806,Data!$F$6:$F$1806) -> 16 | AC117: =LOOKUP($V117,Data!$A$6:$A$1806,Data!$H$6:$H$1806) -> 10 | AD117: =LOOKUP($V117,Data!$A$6:$A$1806,Data!$I$6:$I$1806) -> 0 | AE117: =IF(LOOKUP($V117,Data!$A$6:$A$1806,Data!$J$6:$J$1806)>0,(LOOKUP($V117,Data!$A$6:$A$1806,Data!$J$6:$J$1806)*-1),LOOKUP($V117,Data!$A$6:$A$1806,Data!$J$6:$J$1806)) -> -103 | AF117: =LOOKUP($V117,Data!$A$6:$A$1806,Data!$K$6:$K$1806) -> 7625 | AG117: 141.1110687 | AH117: T+76 sec | AI117: 40098.10326 | AV117: 180.9431443 | AW117: -101.0143022 | AX117: 0.1370010376 | AY117: -103
A118: T+78 sec | B118: 40098.10329 | C118: =LOOKUP(B118,Data!$A$6:$A$1806,Data!B$6:B$1806) -> 59.86600113 | D118: =LOOKUP(B118,Data!$A$6:$A$1806,Data!C$6:C$1806) -> 3826.002441 | G118: 3090 | H118: =(IF((C118-L$2)>0,(IF(C118<'Copy Results'!$C$3,((C118-L$2-L$5)/((L$4*L$2)-L$5)*G118*-1),(('Copy Results'!$C$3-L$2-L$5)/((L$4*L$2)-L$5)*G118*-1))),IF(C118>'Copy Results'!$C$2,((C118-L$2+L$5)/((L$4*L$2)-L$5)*G118*-1),(('Copy Results'!$C$2-L$2+L$5)/((L$4*L$2)-L$5)*G118*-1)))) -> 138.018837 | I118: 141.5785446 | L118: 0.6169724721 | M118: 3848.8773 | N118: =AVERAGE(D$79:D118) -> 3782.897119 | O118: =AVERAGE(M$79:M118) -> 3808.411091 | P118: 3692.080172 | Q118: =AVERAGE(P$79:P118) -> 3680.357695 | U118: T+78 sec | V118: 40098.10329 | W118: =LOOKUP($V118,Data!$A$6:$A$1806,Data!$B$6:$B$1806) -> 59.86600113 | X118: =LOOKUP($V118,Data!$A$6:$A$1806,Data!$C$6:$C$1806) -> 3826.002441 | Y118: =LOOKUP($V118,Data!$A$6:$A$1806,Data!$D$6:$D$1806) -> 335 | Z118: =IF($Z$1="+",LOOKUP($V118,Data!$A$6:$A$1806,Data!$E$6:$E$1806)*-1,LOOKUP($V118,Data!$A$6:$A$1806,Data!$E$6:$E$1806)) -> 214.8303528 | AA118: =LOOKUP($V118,Data!$A$6:$A$1806,Data!$F$6:$F$1806) -> 16 | AC118: =LOOKUP($V118,Data!$A$6:$A$1806,Data!$H$6:$H$1806) -> 10 | AD118: =LOOKUP($V118,Data!$A$6:$A$1806,Data!$I$6:$I$1806) -> 0 | AE118: =IF(LOOKUP($V118,Data!$A$6:$A$1806,Data!$J$6:$J$1806)>0,(LOOKUP($V118,Data!$A$6:$A$1806,Data!$J$6:$J$1806)*-1),LOOKUP($V118,Data!$A$6:$A$1806,Data!$J$6:$J$1806)) -> -103 | AF118: =LOOKUP($V118,Data!$A$6:$A$1806,Data!$K$6:$K$1806) -> 7627 | AG118: 138.018837 | AH118: T+78 sec | AI118: 40098.10329 | AV118: 180.8923631 | AW118: -102.7073338 | AX118: 0.1339988708 | AY118: -103
A119: T+80 sec | B119: 40098.10331 | C119: =LOOKUP(B119,Data!$A$6:$A$1806,Data!B$6:B$1806) -> 59.86500168 | D119: =LOOKUP(B119,Data!$A$6:$A$1806,Data!C$6:C$1806) -> 3827.523926 | G119: 3090 | H119: =(IF((C119-L$2)>0,(IF(C119<'Copy Results'!$C$3,((C119-L$2-L$5)/((L$4*L$2)-L$5)*G119*-1),(('Copy Results'!$C$3-L$2-L$5)/((L$4*L$2)-L$5)*G119*-1))),IF(C119>'Copy Results'!$C$2,((C119-L$2+L$5)/((L$4*L$2)-L$5)*G119*-1),(('Copy Results'!$C$2-L$2+L$5)/((L$4*L$2)-L$5)*G119*-1)))) -> 139.0482712 | I119: 140.6929489 | L119: 0.6169724721 | M119: 3848.608677 | N119: =AVERAGE(D$79:D119) -> 3783.985578 | O119: =AVERAGE(M$79:M119) -> 3809.39152 | P119: 3692.697145 | Q119: =AVERAGE(P$79:P119) -> 3680.666182 | U119: T+80 sec | V119: 40098.10331 | W119: =LOOKUP($V119,Data!$A$6:$A$1806,Data!$B$6:$B$1806) -> 59.86500168 | X119: =LOOKUP($V119,Data!$A$6:$A$1806,Data!$C$6:$C$1806) -> 3827.523926 | Y119: =LOOKUP($V119,Data!$A$6:$A$1806,Data!$D$6:$D$1806) -> 335 | Z119: =IF($Z$1="+",LOOKUP($V119,Data!$A$6:$A$1806,Data!$E$6:$E$1806)*-1,LOOKUP($V119,Data!$A$6:$A$1806,Data!$E$6:$E$1806)) -> 214.8303528 | AA119: =LOOKUP($V119,Data!$A$6:$A$1806,Data!$F$6:$F$1806) -> 16 | AC119: =LOOKUP($V119,Data!$A$6:$A$1806,Data!$H$6:$H$1806) -> 10 | AD119: =LOOKUP($V119,Data!$A$6:$A$1806,Data!$I$6:$I$1806) -> 0 | AE119: =IF(LOOKUP($V119,Data!$A$6:$A$1806,Data!$J$6:$J$1806)>0,(LOOKUP($V119,Data!$A$6:$A$1806,Data!$J$6:$J$1806)*-1),LOOKUP($V119,Data!$A$6:$A$1806,Data!$J$6:$J$1806)) -> -103 | AF119: =LOOKUP($V119,Data!$A$6:$A$1806,Data!$K$6:$K$1806) -> 7628 | AG119: 139.0482712 | AH119: T+80 sec | AI119: 40098.10331 | AV119: 182.4138475 | AW119: -102.9867858 | AX119: 0.1349983215 | AY119: -103
A120: T+82 sec | B120: 40098.10333 | C120: =LOOKUP(B120,Data!$A$6:$A$1806,Data!B$6:B$1806) -> 59.86700058 | D120: =LOOKUP(B120,Data!$A$6:$A$1806,Data!C$6:C$1806) -> 3826.753174 | G120: 3090 | H120: =(IF((C120-L$2)>0,(IF(C120<'Copy Results'!$C$3,((C120-L$2-L$5)/((L$4*L$2)-L$5)*G120*-1),(('Copy Results'!$C$3-L$2-L$5)/((L$4*L$2)-L$5)*G120*-1))),IF(C120>'Copy Results'!$C$2,((C120-L$2+L$5)/((L$4*L$2)-L$5)*G120*-1),(('Copy Results'!$C$2-L$2+L$5)/((L$4*L$2)-L$5)*G120*-1)))) -> 136.9894028 | I120: 139.3967077 | L120: 0.6169724721 | M120: 3847.929408 | N120: =AVERAGE(D$79:D120) -> 3785.003854 | O120: =AVERAGE(M$79:M120) -> 3810.309089 | P120: 3693.314117 | Q120: =AVERAGE(P$79:P120) -> 3680.974668 | U120: T+82 sec | V120: 40098.10333 | W120: =LOOKUP($V120,Data!$A$6:$A$1806,Data!$B$6:$B$1806) -> 59.86700058 | X120: =LOOKUP($V120,Data!$A$6:$A$1806,Data!$C$6:$C$1806) -> 3826.753174 | Y120: =LOOKUP($V120,Data!$A$6:$A$1806,Data!$D$6:$D$1806) -> 335 | Z120: =IF($Z$1="+",LOOKUP($V120,Data!$A$6:$A$1806,Data!$E$6:$E$1806)*-1,LOOKUP($V120,Data!$A$6:$A$1806,Data!$E$6:$E$1806)) -> 227.6559143 | AA120: =LOOKUP($V120,Data!$A$6:$A$1806,Data!$F$6:$F$1806) -> 16 | AC120: =LOOKUP($V120,Data!$A$6:$A$1806,Data!$H$6:$H$1806) -> 10 | AD120: =LOOKUP($V120,Data!$A$6:$A$1806,Data!$I$6:$I$1806) -> 0 | AE120: =IF(LOOKUP($V120,Data!$A$6:$A$1806,Data!$J$6:$J$1806)>0,(LOOKUP($V120,Data!$A$6:$A$1806,Data!$J$6:$J$1806)*-1),LOOKUP($V120,Data!$A$6:$A$1806,Data!$J$6:$J$1806)) -> -103 | AF120: =LOOKUP($V120,Data!$A$6:$A$1806,Data!$K$6:$K$1806) -> 7628 | AG120: 136.9894028 | AH120: T+82 sec | AI120: 40098.10333 | AV120: 181.6430955 | AW120: -103.7221776 | AX120: 0.1329994202 | AY120: -103
A121: T+84 sec | B121: 40098.10336 | C121: =LOOKUP(B121,Data!$A$6:$A$1806,Data!B$6:B$1806) -> 59.86600113 | D121: =LOOKUP(B121,Data!$A$6:$A$1806,Data!C$6:C$1806) -> 3826.783447 | G121: 3090 | H121: =(IF((C121-L$2)>0,(IF(C121<'Copy Results'!$C$3,((C121-L$2-L$5)/((L$4*L$2)-L$5)*G121*-1),(('Copy Results'!$C$3-L$2-L$5)/((L$4*L$2)-L$5)*G121*-1))),IF(C121>'Copy Results'!$C$2,((C121-L$2+L$5)/((L$4*L$2)-L$5)*G121*-1),(('Copy Results'!$C$2-L$2+L$5)/((L$4*L$2)-L$5)*G121*-1)))) -> 138.018837 | I121: 138.914453 | L121: 0.6169724721 | M121: 3848.064126 | N121: =AVERAGE(D$79:D121) -> 3785.975472 | O121: =AVERAGE(M$79:M121) -> 3811.187113 | P121: 3693.93109 | Q121: =AVERAGE(P$79:P121) -> 3681.283154 | U121: T+84 sec | V121: 40098.10336 | W121: =LOOKUP($V121,Data!$A$6:$A$1806,Data!$B$6:$B$1806) -> 59.86600113 | X121: =LOOKUP($V121,Data!$A$6:$A$1806,Data!$C$6:$C$1806) -> 3826.783447 | Y121: =LOOKUP($V121,Data!$A$6:$A$1806,Data!$D$6:$D$1806) -> 335 | Z121: =IF($Z$1="+",LOOKUP($V121,Data!$A$6:$A$1806,Data!$E$6:$E$1806)*-1,LOOKUP($V121,Data!$A$6:$A$1806,Data!$E$6:$E$1806)) -> 227.6559143 | AA121: =LOOKUP($V121,Data!$A$6:$A$1806,Data!$F$6:$F$1806) -> 16 | AC121: =LOOKUP($V121,Data!$A$6:$A$1806,Data!$H$6:$H$1806) -> 10 | AD121: =LOOKUP($V121,Data!$A$6:$A$1806,Data!$I$6:$I$1806) -> 0 | AE121: =IF(LOOKUP($V121,Data!$A$6:$A$1806,Data!$J$6:$J$1806)>0,(LOOKUP($V121,Data!$A$6:$A$1806,Data!$J$6:$J$1806)*-1),LOOKUP($V121,Data!$A$6:$A$1806,Data!$J$6:$J$1806)) -> -103 | AF121: =LOOKUP($V121,Data!$A$6:$A$1806,Data!$K$6:$K$1806) -> 7629 | AG121: 138.018837 | AH121: T+84 sec | AI121: 40098.10336 | AV121: 181.673369 | AW121: -103.1507745 | AX121: 0.1339988708 | AY121: -103
A122: T+86 sec | B122: 40098.10338 | C122: =LOOKUP(B122,Data!$A$6:$A$1806,Data!B$6:B$1806) -> 59.87099838 | D122: =LOOKUP(B122,Data!$A$6:$A$1806,Data!C$6:C$1806) -> 3826.453613 | G122: 3090 | H122: =(IF((C122-L$2)>0,(IF(C122<'Copy Results'!$C$3,((C122-L$2-L$5)/((L$4*L$2)-L$5)*G122*-1),(('Copy Results'!$C$3-L$2-L$5)/((L$4*L$2)-L$5)*G122*-1))),IF(C122>'Copy Results'!$C$2,((C122-L$2+L$5)/((L$4*L$2)-L$5)*G122*-1),(('Copy Results'!$C$2-L$2+L$5)/((L$4*L$2)-L$5)*G122*-1)))) -> 132.871666 | I122: 136.7994775 | L122: 0.6169724721 | M122: 3846.566123 | N122: =AVERAGE(D$79:D122) -> 3786.89543 | O122: =AVERAGE(M$79:M122) -> 3811.991181 | P122: 3694.548062 | Q122: =AVERAGE(P$79:P122) -> 3681.59164 | U122: T+86 sec | V122: 40098.10338 | W122: =LOOKUP($V122,Data!$A$6:$A$1806,Data!$B$6:$B$1806) -> 59.87099838 | X122: =LOOKUP($V122,Data!$A$6:$A$1806,Data!$C$6:$C$1806) -> 3826.453613 | Y122: =LOOKUP($V122,Data!$A$6:$A$1806,Data!$D$6:$D$1806) -> 335 | Z122: =IF($Z$1="+",LOOKUP($V122,Data!$A$6:$A$1806,Data!$E$6:$E$1806)*-1,LOOKUP($V122,Data!$A$6:$A$1806,Data!$E$6:$E$1806)) -> 227.6559143 | AA122: =LOOKUP($V122,Data!$A$6:$A$1806,Data!$F$6:$F$1806) -> 16 | AC122: =LOOKUP($V122,Data!$A$6:$A$1806,Data!$H$6:$H$1806) -> 10 | AD122: =LOOKUP($V122,Data!$A$6:$A$1806,Data!$I$6:$I$1806) -> 0 | AE122: =IF(LOOKUP($V122,Data!$A$6:$A$1806,Data!$J$6:$J$1806)>0,(LOOKUP($V122,Data!$A$6:$A$1806,Data!$J$6:$J$1806)*-1),LOOKUP($V122,Data!$A$6:$A$1806,Data!$J$6:$J$1806)) -> -103 | AF122: =LOOKUP($V122,Data!$A$6:$A$1806,Data!$K$6:$K$1806) -> 7630 | AG122: 132.871666 | AH122: T+86 sec | AI122: 40098.10338 | AV122: 181.343535 | AW122: -105.9702454 | AX122: 0.1290016174 | AY122: -103
A123: T+88 sec | B123: 40098.1034 | C123: =LOOKUP(B123,Data!$A$6:$A$1806,Data!B$6:B$1806) -> 59.87400055 | D123: =LOOKUP(B123,Data!$A$6:$A$1806,Data!C$6:C$1806) -> 3825.713379 | G123: 3090 | H123: =(IF((C123-L$2)>0,(IF(C123<'Copy Results'!$C$3,((C123-L$2-L$5)/((L$4*L$2)-L$5)*G123*-1),(('Copy Results'!$C$3-L$2-L$5)/((L$4*L$2)-L$5)*G123*-1))),IF(C123>'Copy Results'!$C$2,((C123-L$2+L$5)/((L$4*L$2)-L$5)*G123*-1),(('Copy Results'!$C$2-L$2+L$5)/((L$4*L$2)-L$5)*G123*-1)))) -> 129.7794342 | I123: 134.3424624 | L123: 0.6169724721 | M123: 3844.72608 | N123: =AVERAGE(D$79:D123) -> 3787.758051 | O123: =AVERAGE(M$79:M123) -> 3812.718623 | P123: 3695.165035 | Q123: =AVERAGE(P$79:P123) -> 3681.900127 | U123: T+88 sec | V123: 40098.1034 | W123: =LOOKUP($V123,Data!$A$6:$A$1806,Data!$B$6:$B$1806) -> 59.87400055 | X123: =LOOKUP($V123,Data!$A$6:$A$1806,Data!$C$6:$C$1806) -> 3825.713379 | Y123: =LOOKUP($V123,Data!$A$6:$A$1806,Data!$D$6:$D$1806) -> 335 | Z123: =IF($Z$1="+",LOOKUP($V123,Data!$A$6:$A$1806,Data!$E$6:$E$1806)*-1,LOOKUP($V123,Data!$A$6:$A$1806,Data!$E$6:$E$1806)) -> 227.6559143 | AA123: =LOOKUP($V123,Data!$A$6:$A$1806,Data!$F$6:$F$1806) -> 16 | AC123: =LOOKUP($V123,Data!$A$6:$A$1806,Data!$H$6:$H$1806) -> 10 | AD123: =LOOKUP($V123,Data!$A$6:$A$1806,Data!$I$6:$I$1806) -> 0 | AE123: =IF(LOOKUP($V123,Data!$A$6:$A$1806,Data!$J$6:$J$1806)>0,(LOOKUP($V123,Data!$A$6:$A$1806,Data!$J$6:$J$1806)*-1),LOOKUP($V123,Data!$A$6:$A$1806,Data!$J$6:$J$1806)) -> -103 | AF123: =LOOKUP($V123,Data!$A$6:$A$1806,Data!$K$6:$K$1806) -> 7631 | AG123: 129.7794342 | AH123: T+88 sec | AI123: 40098.1034 | AV123: 180.6033006 | AW123: -107.4222447 | AX123: 0.1259994507 | AY123: -103
A124: T+90 sec | B124: 40098.10343 | C124: =LOOKUP(B124,Data!$A$6:$A$1806,Data!B$6:B$1806) -> 59.87900162 | D124: =LOOKUP(B124,Data!$A$6:$A$1806,Data!C$6:C$1806) -> 3823.825684 | G124: 3090 | H124: =(IF((C124-L$2)>0,(IF(C124<'Copy Results'!$C$3,((C124-L$2-L$5)/((L$4*L$2)-L$5)*G124*-1),(('Copy Results'!$C$3-L$2-L$5)/((L$4*L$2)-L$5)*G124*-1))),IF(C124>'Copy Results'!$C$2,((C124-L$2+L$5)/((L$4*L$2)-L$5)*G124*-1),(('Copy Results'!$C$2-L$2+L$5)/((L$4*L$2)-L$5)*G124*-1)))) -> 124.628334 | I124: 130.9425174 | L124: 0.6169724721 | M124: 3841.943108 | N124: =AVERAGE(D$79:D124) -> 3788.54213 | O124: =AVERAGE(M$79:M124) -> 3813.353938 | P124: 3695.782007 | Q124: =AVERAGE(P$79:P124) -> 3682.208613 | U124: T+90 sec | V124: 40098.10343 | W124: =LOOKUP($V124,Data!$A$6:$A$1806,Data!$B$6:$B$1806) -> 59.87900162 | X124: =LOOKUP($V124,Data!$A$6:$A$1806,Data!$C$6:$C$1806) -> 3823.825684 | Y124: =LOOKUP($V124,Data!$A$6:$A$1806,Data!$D$6:$D$1806) -> 335 | Z124: =IF($Z$1="+",LOOKUP($V124,Data!$A$6:$A$1806,Data!$E$6:$E$1806)*-1,LOOKUP($V124,Data!$A$6:$A$1806,Data!$E$6:$E$1806)) -> 227.6559143 | AA124: =LOOKUP($V124,Data!$A$6:$A$1806,Data!$F$6:$F$1806) -> 16 | AC124: =LOOKUP($V124,Data!$A$6:$A$1806,Data!$H$6:$H$1806) -> 10 | AD124: =LOOKUP($V124,Data!$A$6:$A$1806,Data!$I$6:$I$1806) -> 0 | AE124: =IF(LOOKUP($V124,Data!$A$6:$A$1806,Data!$J$6:$J$1806)>0,(LOOKUP($V124,Data!$A$6:$A$1806,Data!$J$6:$J$1806)*-1),LOOKUP($V124,Data!$A$6:$A$1806,Data!$J$6:$J$1806)) -> -103 | AF124: =LOOKUP($V124,Data!$A$6:$A$1806,Data!$K$6:$K$1806) -> 7635 | AG124: 124.628334 | AH124: T+90 sec | AI124: 40098.10343 | AV124: 178.7156053 | AW124: -109.5583943 | AX124: 0.1209983826 | AY124: -103
A125: T+92 sec | B125: 40098.10345 | C125: =LOOKUP(B125,Data!$A$6:$A$1806,Data!B$6:B$1806) -> 59.88000107 | D125: =LOOKUP(B125,Data!$A$6:$A$1806,Data!C$6:C$1806) -> 3822.505371 | G125: 3090 | H125: =(IF((C125-L$2)>0,(IF(C125<'Copy Results'!$C$3,((C125-L$2-L$5)/((L$4*L$2)-L$5)*G125*-1),(('Copy Results'!$C$3-L$2-L$5)/((L$4*L$2)-L$5)*G125*-1))),IF(C125>'Copy Results'!$C$2,((C125-L$2+L$5)/((L$4*L$2)-L$5)*G125*-1),(('Copy Results'!$C$2-L$2+L$5)/((L$4*L$2)-L$5)*G125*-1)))) -> 123.5988998 | I125: 128.3722513 | L125: 0.6169724721 | M125: 3839.989814 | N125: =AVERAGE(D$79:D125) -> 3789.264752 | O125: =AVERAGE(M$79:M125) -> 3813.920659 | P125: 3696.39898 | Q125: =AVERAGE(P$79:P125) -> 3682.517099 | U125: T+92 sec | V125: 40098.10345 | W125: =LOOKUP($V125,Data!$A$6:$A$1806,Data!$B$6:$B$1806) -> 59.88000107 | X125: =LOOKUP($V125,Data!$A$6:$A$1806,Data!$C$6:$C$1806) -> 3822.505371 | Y125: =LOOKUP($V125,Data!$A$6:$A$1806,Data!$D$6:$D$1806) -> 335 | Z125: =IF($Z$1="+",LOOKUP($V125,Data!$A$6:$A$1806,Data!$E$6:$E$1806)*-1,LOOKUP($V125,Data!$A$6:$A$1806,Data!$E$6:$E$1806)) -> 225.0180817 | AA125: =LOOKUP($V125,Data!$A$6:$A$1806,Data!$F$6:$F$1806) -> 16 | AC125: =LOOKUP($V125,Data!$A$6:$A$1806,Data!$H$6:$H$1806) -> 10 | AD125: =LOOKUP($V125,Data!$A$6:$A$1806,Data!$I$6:$I$1806) -> 0 | AE125: =IF(LOOKUP($V125,Data!$A$6:$A$1806,Data!$J$6:$J$1806)>0,(LOOKUP($V125,Data!$A$6:$A$1806,Data!$J$6:$J$1806)*-1),LOOKUP($V125,Data!$A$6:$A$1806,Data!$J$6:$J$1806)) -> -103 | AF125: =LOOKUP($V125,Data!$A$6:$A$1806,Data!$K$6:$K$1806) -> 7638 | AG125: 123.5988998 | AH125: T+92 sec | AI125: 40098.10345 | AV125: 177.3952928 | AW125: -109.419408 | AX125: 0.1199989319 | AY125: -103
A126: T+94 sec | B126: 40098.10347 | C126: =LOOKUP(B126,Data!$A$6:$A$1806,Data!B$6:B$1806) -> 59.88299942 | D126: =LOOKUP(B126,Data!$A$6:$A$1806,Data!C$6:C$1806) -> 3819.081055 | G126: 3090 | H126: =(IF((C126-L$2)>0,(IF(C126<'Copy Results'!$C$3,((C126-L$2-L$5)/((L$4*L$2)-L$5)*G126*-1),(('Copy Results'!$C$3-L$2-L$5)/((L$4*L$2)-L$5)*G126*-1))),IF(C126>'Copy Results'!$C$2,((C126-L$2+L$5)/((L$4*L$2)-L$5)*G126*-1),(('Copy Results'!$C$2-L$2+L$5)/((L$4*L$2)-L$5)*G126*-1)))) -> 120.5105972 | I126: 125.6206724 | L126: 0.6169724721 | M126: 3837.855208 | N126: =AVERAGE(D$79:D126) -> 3789.885925 | O126: =AVERAGE(M$79:M126) -> 3814.419295 | P126: 3697.015952 | Q126: =AVERAGE(P$79:P126) -> 3682.825585 | U126: T+94 sec | V126: 40098.10347 | W126: =LOOKUP($V126,Data!$A$6:$A$1806,Data!$B$6:$B$1806) -> 59.88299942 | X126: =LOOKUP($V126,Data!$A$6:$A$1806,Data!$C$6:$C$1806) -> 3819.081055 | Y126: =LOOKUP($V126,Data!$A$6:$A$1806,Data!$D$6:$D$1806) -> 335 | Z126: =IF($Z$1="+",LOOKUP($V126,Data!$A$6:$A$1806,Data!$E$6:$E$1806)*-1,LOOKUP($V126,Data!$A$6:$A$1806,Data!$E$6:$E$1806)) -> 225.0180817 | AA126: =LOOKUP($V126,Data!$A$6:$A$1806,Data!$F$6:$F$1806) -> 16 | AC126: =LOOKUP($V126,Data!$A$6:$A$1806,Data!$H$6:$H$1806) -> 10 | AD126: =LOOKUP($V126,Data!$A$6:$A$1806,Data!$I$6:$I$1806) -> 0 | AE126: =IF(LOOKUP($V126,Data!$A$6:$A$1806,Data!$J$6:$J$1806)>0,(LOOKUP($V126,Data!$A$6:$A$1806,Data!$J$6:$J$1806)*-1),LOOKUP($V126,Data!$A$6:$A$1806,Data!$J$6:$J$1806)) -> -103 | AF126: =LOOKUP($V126,Data!$A$6:$A$1806,Data!$K$6:$K$1806) -> 7639 | AG126: 120.5105972 | AH126: T+94 sec | AI126: 40098.10347 | AV126: 173.9709764 | AW126: -109.3292043 | AX126: 0.1170005798 | AY126: -103
A127: T+96 sec | B127: 40098.1035 | C127: =LOOKUP(B127,Data!$A$6:$A$1806,Data!B$6:B$1806) -> 59.88600159 | D127: =LOOKUP(B127,Data!$A$6:$A$1806,Data!C$6:C$1806) -> 3818.055176 | G127: 3090 | H127: =(IF((C127-L$2)>0,(IF(C127<'Copy Results'!$C$3,((C127-L$2-L$5)/((L$4*L$2)-L$5)*G127*-1),(('Copy Results'!$C$3-L$2-L$5)/((L$4*L$2)-L$5)*G127*-1))),IF(C127>'Copy Results'!$C$2,((C127-L$2+L$5)/((L$4*L$2)-L$5)*G127*-1),(('Copy Results'!$C$2-L$2+L$5)/((L$4*L$2)-L$5)*G127*-1)))) -> 117.4183655 | I127: 122.749865 | L127: 0.6169724721 | M127: 3835.601373 | N127: =AVERAGE(D$79:D127) -> 3790.460808 | O127: =AVERAGE(M$79:M127) -> 3814.851583 | P127: 3697.632925 | Q127: =AVERAGE(P$79:P127) -> 3683.134072 | U127: T+96 sec | V127: 40098.1035 | W127: =LOOKUP($V127,Data!$A$6:$A$1806,Data!$B$6:$B$1806) -> 59.88600159 | X127: =LOOKUP($V127,Data!$A$6:$A$1806,Data!$C$6:$C$1806) -> 3818.055176 | Y127: =LOOKUP($V127,Data!$A$6:$A$1806,Data!$D$6:$D$1806) -> 335 | Z127: =IF($Z$1="+",LOOKUP($V127,Data!$A$6:$A$1806,Data!$E$6:$E$1806)*-1,LOOKUP($V127,Data!$A$6:$A$1806,Data!$E$6:$E$1806)) -> 225.0180817 | AA127: =LOOKUP($V127,Data!$A$6:$A$1806,Data!$F$6:$F$1806) -> 16 | AC127: =LOOKUP($V127,Data!$A$6:$A$1806,Data!$H$6:$H$1806) -> 10 | AD127: =LOOKUP($V127,Data!$A$6:$A$1806,Data!$I$6:$I$1806) -> 0 | AE127: =IF(LOOKUP($V127,Data!$A$6:$A$1806,Data!$J$6:$J$1806)>0,(LOOKUP($V127,Data!$A$6:$A$1806,Data!$J$6:$J$1806)*-1),LOOKUP($V127,Data!$A$6:$A$1806,Data!$J$6:$J$1806)) -> -103 | AF127: =LOOKUP($V127,Data!$A$6:$A$1806,Data!$K$6:$K$1806) -> 7642 | AG127: 117.4183655 | AH127: T+96 sec | AI127: 40098.1035 | AV127: 172.9450975 | AW127: -110.7744474 | AX127: 0.1139984131 | AY127: -103
A128: T+98 sec | B128: 40098.10352 | C128: =LOOKUP(B128,Data!$A$6:$A$1806,Data!B$6:B$1806) -> 59.88999939 | D128: =LOOKUP(B128,Data!$A$6:$A$1806,Data!C$6:C$1806) -> 3816.814697 | G128: 3090 | H128: =(IF((C128-L$2)>0,(IF(C128<'Copy Results'!$C$3,((C128-L$2-L$5)/((L$4*L$2)-L$5)*G128*-1),(('Copy Results'!$C$3-L$2-L$5)/((L$4*L$2)-L$5)*G128*-1))),IF(C128>'Copy Results'!$C$2,((C128-L$2+L$5)/((L$4*L$2)-L$5)*G128*-1),(('Copy Results'!$C$2-L$2+L$5)/((L$4*L$2)-L$5)*G128*-1)))) -> 113.3006287 | I128: 119.4426323 | L128: 0.6169724721 | M128: 3832.911113 | N128: =AVERAGE(D$79:D128) -> 3790.987886 | O128: =AVERAGE(M$79:M128) -> 3815.212773 | P128: 3698.249897 | Q128: =AVERAGE(P$79:P128) -> 3683.442558 | U128: T+98 sec | V128: 40098.10352 | W128: =LOOKUP($V128,Data!$A$6:$A$1806,Data!$B$6:$B$1806) -> 59.88999939 | X128: =LOOKUP($V128,Data!$A$6:$A$1806,Data!$C$6:$C$1806) -> 3816.814697 | Y128: =LOOKUP($V128,Data!$A$6:$A$1806,Data!$D$6:$D$1806) -> 335 | Z128: =IF($Z$1="+",LOOKUP($V128,Data!$A$6:$A$1806,Data!$E$6:$E$1806)*-1,LOOKUP($V128,Data!$A$6:$A$1806,Data!$E$6:$E$1806)) -> 225.0180817 | AA128: =LOOKUP($V128,Data!$A$6:$A$1806,Data!$F$6:$F$1806) -> 16 | AC128: =LOOKUP($V128,Data!$A$6:$A$1806,Data!$H$6:$H$1806) -> 10 | AD128: =LOOKUP($V128,Data!$A$6:$A$1806,Data!$I$6:$I$1806) -> 0 | AE128: =IF(LOOKUP($V128,Data!$A$6:$A$1806,Data!$J$6:$J$1806)>0,(LOOKUP($V128,Data!$A$6:$A$1806,Data!$J$6:$J$1806)*-1),LOOKUP($V128,Data!$A$6:$A$1806,Data!$J$6:$J$1806)) -> -103 | AF128: =LOOKUP($V128,Data!$A$6:$A$1806,Data!$K$6:$K$1806) -> 7644 | AG128: 113.3006287 | AH128: T+98 sec | AI128: 40098.10352 | AV128: 171.704619 | AW128: -112.8701239 | AX128: 0.1100006104 | AY128: -103
A129: T+100 sec | B129: 40098.10354 | C129: =LOOKUP(B129,Data!$A$6:$A$1806,Data!B$6:B$1806) -> 59.89199829 | D129: =LOOKUP(B129,Data!$A$6:$A$1806,Data!C$6:C$1806) -> 3815.009766 | G129: 3090 | H129: =(IF((C129-L$2)>0,(IF(C129<'Copy Results'!$C$3,((C129-L$2-L$5)/((L$4*L$2)-L$5)*G129*-1),(('Copy Results'!$C$3-L$2-L$5)/((L$4*L$2)-L$5)*G129*-1))),IF(C129>'Copy Results'!$C$2,((C129-L$2+L$5)/((L$4*L$2)-L$5)*G129*-1),(('Copy Results'!$C$2-L$2+L$5)/((L$4*L$2)-L$5)*G129*-1)))) -> 111.2417603 | I129: 116.5723271 | L129: 0.6169724721 | M129: 3830.65778 | N129: =AVERAGE(D$79:D129) -> 3791.458903 | O129: =AVERAGE(M$79:M129) -> 3815.515617 | P129: 3698.86687 | Q129: =AVERAGE(P$79:P129) -> 3683.751044 | U129: T+100 sec | V129: 40098.10354 | W129: =LOOKUP($V129,Data!$A$6:$A$1806,Data!$B$6:$B$1806) -> 59.89199829 | X129: =LOOKUP($V129,Data!$A$6:$A$1806,Data!$C$6:$C$1806) -> 3815.009766 | Y129: =LOOKUP($V129,Data!$A$6:$A$1806,Data!$D$6:$D$1806) -> 335 | Z129: =IF($Z$1="+",LOOKUP($V129,Data!$A$6:$A$1806,Data!$E$6:$E$1806)*-1,LOOKUP($V129,Data!$A$6:$A$1806,Data!$E$6:$E$1806)) -> 225.0180817 | AA129: =LOOKUP($V129,Data!$A$6:$A$1806,Data!$F$6:$F$1806) -> 16 | AC129: =LOOKUP($V129,Data!$A$6:$A$1806,Data!$H$6:$H$1806) -> 10 | AD129: =LOOKUP($V129,Data!$A$6:$A$1806,Data!$I$6:$I$1806) -> 0 | AE129: =IF(LOOKUP($V129,Data!$A$6:$A$1806,Data!$J$6:$J$1806)>0,(LOOKUP($V129,Data!$A$6:$A$1806,Data!$J$6:$J$1806)*-1),LOOKUP($V129,Data!$A$6:$A$1806,Data!$J$6:$J$1806)) -> -103 | AF129: =LOOKUP($V129,Data!$A$6:$A$1806,Data!$K$6:$K$1806) -> 7645 | AG129: 111.2417603 | AH129: T+100 sec | AI129: 40098.10354 | AV129: 169.8996873 | AW129: -113.1706901 | AX129: 0.108001709 | AY129: -103
A130: T+102 sec | B130: 40098.10356 | C130: =LOOKUP(B130,Data!$A$6:$A$1806,Data!B$6:B$1806) -> 59.88899994 | D130: =LOOKUP(B130,Data!$A$6:$A$1806,Data!C$6:C$1806) -> 3813.782715 | G130: 3090 | H130: =(IF((C130-L$2)>0,(IF(C130<'Copy Results'!$C$3,((C130-L$2-L$5)/((L$4*L$2)-L$5)*G130*-1),(('Copy Results'!$C$3-L$2-L$5)/((L$4*L$2)-L$5)*G130*-1))),IF(C130>'Copy Results'!$C$2,((C130-L$2+L$5)/((L$4*L$2)-L$5)*G130*-1),(('Copy Results'!$C$2-L$2+L$5)/((L$4*L$2)-L$5)*G130*-1)))) -> 114.3300629 | I130: 115.7875346 | L130: 0.6169724721 | M130: 3830.48996 | N130: =AVERAGE(D$79:D130) -> 3791.888207 | O130: =AVERAGE(M$79:M130) -> 3815.803585 | P130: 3699.483842 | Q130: =AVERAGE(P$79:P130) -> 3684.05953 | U130: T+102 sec | V130: 40098.10356 | W130: =LOOKUP($V130,Data!$A$6:$A$1806,Data!$B$6:$B$1806) -> 59.88899994 | X130: =LOOKUP($V130,Data!$A$6:$A$1806,Data!$C$6:$C$1806) -> 3813.782715 | Y130: =LOOKUP($V130,Data!$A$6:$A$1806,Data!$D$6:$D$1806) -> 335 | Z130: =IF($Z$1="+",LOOKUP($V130,Data!$A$6:$A$1806,Data!$E$6:$E$1806)*-1,LOOKUP($V130,Data!$A$6:$A$1806,Data!$E$6:$E$1806)) -> 228.3651581 | AA130: =LOOKUP($V130,Data!$A$6:$A$1806,Data!$F$6:$F$1806) -> 16 | AC130: =LOOKUP($V130,Data!$A$6:$A$1806,Data!$H$6:$H$1806) -> 10 | AD130: =LOOKUP($V130,Data!$A$6:$A$1806,Data!$I$6:$I$1806) -> 0 | AE130: =IF(LOOKUP($V130,Data!$A$6:$A$1806,Data!$J$6:$J$1806)>0,(LOOKUP($V130,Data!$A$6:$A$1806,Data!$J$6:$J$1806)*-1),LOOKUP($V130,Data!$A$6:$A$1806,Data!$J$6:$J$1806)) -> -103 | AF130: =LOOKUP($V130,Data!$A$6:$A$1806,Data!$K$6:$K$1806) -> 7647 | AG130: 114.3300629 | AH130: T+102 sec | AI130: 40098.10356 | AV130: 168.6726365 | AW130: -110.1533527 | AX130: 0.111000061 | AY130: -103
A131: T+104 sec | B131: 40098.10359 | C131: =LOOKUP(B131,Data!$A$6:$A$1806,Data!B$6:B$1806) -> 59.89300156 | D131: =LOOKUP(B131,Data!$A$6:$A$1806,Data!C$6:C$1806) -> 3811.838379 | G131: 3090 | H131: =(IF((C131-L$2)>0,(IF(C131<'Copy Results'!$C$3,((C131-L$2-L$5)/((L$4*L$2)-L$5)*G131*-1),(('Copy Results'!$C$3-L$2-L$5)/((L$4*L$2)-L$5)*G131*-1))),IF(C131>'Copy Results'!$C$2,((C131-L$2+L$5)/((L$4*L$2)-L$5)*G131*-1),(('Copy Results'!$C$2-L$2+L$5)/((L$4*L$2)-L$5)*G131*-1)))) -> 110.2083969 | I131: 113.8348364 | L131: 0.6169724721 | M131: 3829.154234 | N131: =AVERAGE(D$79:D131) -> 3792.264625 | O131: =AVERAGE(M$79:M131) -> 3816.055484 | P131: 3700.100815 | Q131: =AVERAGE(P$79:P131) -> 3684.368017 | U131: T+104 sec | V131: 40098.10359 | W131: =LOOKUP($V131,Data!$A$6:$A$1806,Data!$B$6:$B$1806) -> 59.89300156 | X131: =LOOKUP($V131,Data!$A$6:$A$1806,Data!$C$6:$C$1806) -> 3811.838379 | Y131: =LOOKUP($V131,Data!$A$6:$A$1806,Data!$D$6:$D$1806) -> 335 | Z131: =IF($Z$1="+",LOOKUP($V131,Data!$A$6:$A$1806,Data!$E$6:$E$1806)*-1,LOOKUP($V131,Data!$A$6:$A$1806,Data!$E$6:$E$1806)) -> 228.3651581 | AA131: =LOOKUP($V131,Data!$A$6:$A$1806,Data!$F$6:$F$1806) -> 16 | AC131: =LOOKUP($V131,Data!$A$6:$A$1806,Data!$H$6:$H$1806) -> 10 | AD131: =LOOKUP($V131,Data!$A$6:$A$1806,Data!$I$6:$I$1806) -> 0 | AE131: =IF(LOOKUP($V131,Data!$A$6:$A$1806,Data!$J$6:$J$1806)>0,(LOOKUP($V131,Data!$A$6:$A$1806,Data!$J$6:$J$1806)*-1),LOOKUP($V131,Data!$A$6:$A$1806,Data!$J$6:$J$1806)) -> -103 | AF131: =LOOKUP($V131,Data!$A$6:$A$1806,Data!$K$6:$K$1806) -> 7648 | AG131: 110.2083969 | AH131: T+104 sec | AI131: 40098.10359 | AV131: 166.7283006 | AW131: -111.8053908 | AX131: 0.1069984436 | AY131: -103
A132: T+106 sec | B132: 40098.10361 | C132: =LOOKUP(B132,Data!$A$6:$A$1806,Data!B$6:B$1806) -> 59.89899826 | D132: =LOOKUP(B132,Data!$A$6:$A$1806,Data!C$6:C$1806) -> 3809.651855 | G132: 3090 | H132: =(IF((C132-L$2)>0,(IF(C132<'Copy Results'!$C$3,((C132-L$2-L$5)/((L$4*L$2)-L$5)*G132*-1),(('Copy Results'!$C$3-L$2-L$5)/((L$4*L$2)-L$5)*G132*-1))),IF(C132>'Copy Results'!$C$2,((C132-L$2+L$5)/((L$4*L$2)-L$5)*G132*-1),(('Copy Results'!$C$2-L$2+L$5)/((L$4*L$2)-L$5)*G132*-1)))) -> 104.0317917 | I132: 110.4037708 | L132: 0.6169724721 | M132: 3826.340141 | N132: =AVERAGE(D$79:D132) -> 3792.586611 | O132: =AVERAGE(M$79:M132) -> 3816.24594 | P132: 3700.717787 | Q132: =AVERAGE(P$79:P132) -> 3684.676503 | U132: T+106 sec | V132: 40098.10361 | W132: =LOOKUP($V132,Data!$A$6:$A$1806,Data!$B$6:$B$1806) -> 59.89899826 | X132: =LOOKUP($V132,Data!$A$6:$A$1806,Data!$C$6:$C$1806) -> 3809.651855 | Y132: =LOOKUP($V132,Data!$A$6:$A$1806,Data!$D$6:$D$1806) -> 335 | Z132: =IF($Z$1="+",LOOKUP($V132,Data!$A$6:$A$1806,Data!$E$6:$E$1806)*-1,LOOKUP($V132,Data!$A$6:$A$1806,Data!$E$6:$E$1806)) -> 228.3651581 | AA132: =LOOKUP($V132,Data!$A$6:$A$1806,Data!$F$6:$F$1806) -> 16 | AC132: =LOOKUP($V132,Data!$A$6:$A$1806,Data!$H$6:$H$1806) -> 10 | AD132: =LOOKUP($V132,Data!$A$6:$A$1806,Data!$I$6:$I$1806) -> 0 | AE132: =IF(LOOKUP($V132,Data!$A$6:$A$1806,Data!$J$6:$J$1806)>0,(LOOKUP($V132,Data!$A$6:$A$1806,Data!$J$6:$J$1806)*-1),LOOKUP($V132,Data!$A$6:$A$1806,Data!$J$6:$J$1806)) -> -103 | AF132: =LOOKUP($V132,Data!$A$6:$A$1806,Data!$K$6:$K$1806) -> 7649 | AG132: 104.0317917 | AH132: T+106 sec | AI132: 40098.10361 | AV132: 164.5417772 | AW132: -114.9621091 | AX132: 0.1010017395 | AY132: -103
A133: T+108 sec | B133: 40098.10363 | C133: =LOOKUP(B133,Data!$A$6:$A$1806,Data!B$6:B$1806) -> 59.90299988 | D133: =LOOKUP(B133,Data!$A$6:$A$1806,Data!C$6:C$1806) -> 3806.972168 | G133: 3090 | H133: =(IF((C133-L$2)>0,(IF(C133<'Copy Results'!$C$3,((C133-L$2-L$5)/((L$4*L$2)-L$5)*G133*-1),(('Copy Results'!$C$3-L$2-L$5)/((L$4*L$2)-L$5)*G133*-1))),IF(C133>'Copy Results'!$C$2,((C133-L$2+L$5)/((L$4*L$2)-L$5)*G133*-1),(('Copy Results'!$C$2-L$2+L$5)/((L$4*L$2)-L$5)*G133*-1)))) -> 99.91012573 | I133: 106.730995 | L133: 0.6169724721 | M133: 3823.284338 | N133: =AVERAGE(D$79:D133) -> 3792.848167 | O133: =AVERAGE(M$79:M133) -> 3816.373911 | P133: 3701.33476 | Q133: =AVERAGE(P$79:P133) -> 3684.984989 | U133: T+108 sec | V133: 40098.10363 | W133: =LOOKUP($V133,Data!$A$6:$A$1806,Data!$B$6:$B$1806) -> 59.90299988 | X133: =LOOKUP($V133,Data!$A$6:$A$1806,Data!$C$6:$C$1806) -> 3806.972168 | Y133: =LOOKUP($V133,Data!$A$6:$A$1806,Data!$D$6:$D$1806) -> 335 | Z133: =IF($Z$1="+",LOOKUP($V133,Data!$A$6:$A$1806,Data!$E$6:$E$1806)*-1,LOOKUP($V133,Data!$A$6:$A$1806,Data!$E$6:$E$1806)) -> 228.3651581 | AA133: =LOOKUP($V133,Data!$A$6:$A$1806,Data!$F$6:$F$1806) -> 16 | AC133: =LOOKUP($V133,Data!$A$6:$A$1806,Data!$H$6:$H$1806) -> 10 | AD133: =LOOKUP($V133,Data!$A$6:$A$1806,Data!$I$6:$I$1806) -> 0 | AE133: =IF(LOOKUP($V133,Data!$A$6:$A$1806,Data!$J$6:$J$1806)>0,(LOOKUP($V133,Data!$A$6:$A$1806,Data!$J$6:$J$1806)*-1),LOOKUP($V133,Data!$A$6:$A$1806,Data!$J$6:$J$1806)) -> -103 | AF133: =LOOKUP($V133,Data!$A$6:$A$1806,Data!$K$6:$K$1806) -> 7650 | AG133: 99.91012573 | AH133: T+108 sec | AI133: 40098.10363 | AV133: 161.8620897 | AW133: -116.3426313 | AX133: 0.09700012207 | AY133: -103
A134: T+110 sec | B134: 40098.10366 | C134: =LOOKUP(B134,Data!$A$6:$A$1806,Data!B$6:B$1806) -> 59.90200043 | D134: =LOOKUP(B134,Data!$A$6:$A$1806,Data!C$6:C$1806) -> 3805.593262 | G134: 3090 | H134: =(IF((C134-L$2)>0,(IF(C134<'Copy Results'!$C$3,((C134-L$2-L$5)/((L$4*L$2)-L$5)*G134*-1),(('Copy Results'!$C$3-L$2-L$5)/((L$4*L$2)-L$5)*G134*-1))),IF(C134>'Copy Results'!$C$2,((C134-L$2+L$5)/((L$4*L$2)-L$5)*G134*-1),(('Copy Results'!$C$2-L$2+L$5)/((L$4*L$2)-L$5)*G134*-1)))) -> 100.9395599 | I134: 104.7039927 | L134: 0.6169724721 | M134: 3821.874308 | N134: =AVERAGE(D$79:D134) -> 3793.075758 | O134: =AVERAGE(M$79:M134) -> 3816.472133 | P134: 3701.951732 | Q134: =AVERAGE(P$79:P134) -> 3685.293475 | U134: T+110 sec | V134: 40098.10366 | W134: =LOOKUP($V134,Data!$A$6:$A$1806,Data!$B$6:$B$1806) -> 59.90200043 | X134: =LOOKUP($V134,Data!$A$6:$A$1806,Data!$C$6:$C$1806) -> 3805.593262 | Y134: =LOOKUP($V134,Data!$A$6:$A$1806,Data!$D$6:$D$1806) -> 335 | Z134: =IF($Z$1="+",LOOKUP($V134,Data!$A$6:$A$1806,Data!$E$6:$E$1806)*-1,LOOKUP($V134,Data!$A$6:$A$1806,Data!$E$6:$E$1806)) -> 228.3651581 | AA134: =LOOKUP($V134,Data!$A$6:$A$1806,Data!$F$6:$F$1806) -> 16 | AC134: =LOOKUP($V134,Data!$A$6:$A$1806,Data!$H$6:$H$1806) -> 10 | AD134: =LOOKUP($V134,Data!$A$6:$A$1806,Data!$I$6:$I$1806) -> 0 | AE134: =IF(LOOKUP($V134,Data!$A$6:$A$1806,Data!$J$6:$J$1806)>0,(LOOKUP($V134,Data!$A$6:$A$1806,Data!$J$6:$J$1806)*-1),LOOKUP($V134,Data!$A$6:$A$1806,Data!$J$6:$J$1806)) -> -103 | AF134: =LOOKUP($V134,Data!$A$6:$A$1806,Data!$K$6:$K$1806) -> 7651 | AG134: 100.9395599 | AH134: T+110 sec | AI134: 40098.10366 | AV134: 160.4831834 | AW134: -114.5287529 | AX134: 0.09799957275 | AY134: -103
A135: T+112 sec | B135: 40098.10368 | C135: =LOOKUP(B135,Data!$A$6:$A$1806,Data!B$6:B$1806) -> 59.90200043 | D135: =LOOKUP(B135,Data!$A$6:$A$1806,Data!C$6:C$1806) -> 3804.188477 | G135: 3090 | H135: =(IF((C135-L$2)>0,(IF(C135<'Copy Results'!$C$3,((C135-L$2-L$5)/((L$4*L$2)-L$5)*G135*-1),(('Copy Results'!$C$3-L$2-L$5)/((L$4*L$2)-L$5)*G135*-1))),IF(C135>'Copy Results'!$C$2,((C135-L$2+L$5)/((L$4*L$2)-L$5)*G135*-1),(('Copy Results'!$C$2-L$2+L$5)/((L$4*L$2)-L$5)*G135*-1)))) -> 100.9395599 | I135: 103.3864412 | L135: 0.6169724721 | M135: 3821.173729 | N135: =AVERAGE(D$79:D135) -> 3793.270718 | O135: =AVERAGE(M$79:M135) -> 3816.554617 | P135: 3702.568704 | Q135: =AVERAGE(P$79:P135) -> 3685.601961 | U135: T+112 sec | V135: 40098.10368 | W135: =LOOKUP($V135,Data!$A$6:$A$1806,Data!$B$6:$B$1806) -> 59.90200043 | X135: =LOOKUP($V135,Data!$A$6:$A$1806,Data!$C$6:$C$1806) -> 3804.188477 | Y135: =LOOKUP($V135,Data!$A$6:$A$1806,Data!$D$6:$D$1806) -> 335 | Z135: =IF($Z$1="+",LOOKUP($V135,Data!$A$6:$A$1806,Data!$E$6:$E$1806)*-1,LOOKUP($V135,Data!$A$6:$A$1806,Data!$E$6:$E$1806)) -> 234.0753326 | AA135: =LOOKUP($V135,Data!$A$6:$A$1806,Data!$F$6:$F$1806) -> 16 | AC135: =LOOKUP($V135,Data!$A$6:$A$1806,Data!$H$6:$H$1806) -> 10 | AD135: =LOOKUP($V135,Data!$A$6:$A$1806,Data!$I$6:$I$1806) -> 0 | AE135: =IF(LOOKUP($V135,Data!$A$6:$A$1806,Data!$J$6:$J$1806)>0,(LOOKUP($V135,Data!$A$6:$A$1806,Data!$J$6:$J$1806)*-1),LOOKUP($V135,Data!$A$6:$A$1806,Data!$J$6:$J$1806)) -> -103 | AF135: =LOOKUP($V135,Data!$A$6:$A$1806,Data!$K$6:$K$1806) -> 7652 | AG135: 100.9395599 | AH135: T+112 sec | AI135: 40098.10368 | AV135: 159.0783983 | AW135: -113.5262286 | AX135: 0.09799957275 | AY135: -103
A136: T+114 sec | B136: 40098.1037 | C136: =LOOKUP(B136,Data!$A$6:$A$1806,Data!B$6:B$1806) -> 59.90399933 | D136: =LOOKUP(B136,Data!$A$6:$A$1806,Data!C$6:C$1806) -> 3796.077637 | G136: 3090 | H136: =(IF((C136-L$2)>0,(IF(C136<'Copy Results'!$C$3,((C136-L$2-L$5)/((L$4*L$2)-L$5)*G136*-1),(('Copy Results'!$C$3-L$2-L$5)/((L$4*L$2)-L$5)*G136*-1))),IF(C136>'Copy Results'!$C$2,((C136-L$2+L$5)/((L$4*L$2)-L$5)*G136*-1),(('Copy Results'!$C$2-L$2+L$5)/((L$4*L$2)-L$5)*G136*-1)))) -> 98.88069153 | I136: 101.8094288 | L136: 0.6169724721 | M136: 3820.213689 | N136: =AVERAGE(D$79:D136) -> 3793.319113 | O136: =AVERAGE(M$79:M136) -> 3816.617704 | P136: 3703.185677 | Q136: =AVERAGE(P$79:P136) -> 3685.910448 | U136: T+114 sec | V136: 40098.1037 | W136: =LOOKUP($V136,Data!$A$6:$A$1806,Data!$B$6:$B$1806) -> 59.90399933 | X136: =LOOKUP($V136,Data!$A$6:$A$1806,Data!$C$6:$C$1806) -> 3796.077637 | Y136: =LOOKUP($V136,Data!$A$6:$A$1806,Data!$D$6:$D$1806) -> 335 | Z136: =IF($Z$1="+",LOOKUP($V136,Data!$A$6:$A$1806,Data!$E$6:$E$1806)*-1,LOOKUP($V136,Data!$A$6:$A$1806,Data!$E$6:$E$1806)) -> 234.0753326 | AA136: =LOOKUP($V136,Data!$A$6:$A$1806,Data!$F$6:$F$1806) -> 16 | AC136: =LOOKUP($V136,Data!$A$6:$A$1806,Data!$H$6:$H$1806) -> 10 | AD136: =LOOKUP($V136,Data!$A$6:$A$1806,Data!$I$6:$I$1806) -> 0 | AE136: =IF(LOOKUP($V136,Data!$A$6:$A$1806,Data!$J$6:$J$1806)>0,(LOOKUP($V136,Data!$A$6:$A$1806,Data!$J$6:$J$1806)*-1),LOOKUP($V136,Data!$A$6:$A$1806,Data!$J$6:$J$1806)) -> -103 | AF136: =LOOKUP($V136,Data!$A$6:$A$1806,Data!$K$6:$K$1806) -> 7653 | AG136: 98.88069153 | AH136: T+114 sec | AI136: 40098.1037 | AV136: 150.9675584 | AW136: -109.2970705 | AX136: 0.09600067139 | AY136: -103
A137: T+116 sec | B137: 40098.10373 | C137: =LOOKUP(B137,Data!$A$6:$A$1806,Data!B$6:B$1806) -> 59.9070015 | D137: =LOOKUP(B137,Data!$A$6:$A$1806,Data!C$6:C$1806) -> 3793.975098 | G137: 3090 | H137: =(IF((C137-L$2)>0,(IF(C137<'Copy Results'!$C$3,((C137-L$2-L$5)/((L$4*L$2)-L$5)*G137*-1),(('Copy Results'!$C$3-L$2-L$5)/((L$4*L$2)-L$5)*G137*-1))),IF(C137>'Copy Results'!$C$2,((C137-L$2+L$5)/((L$4*L$2)-L$5)*G137*-1),(('Copy Results'!$C$2-L$2+L$5)/((L$4*L$2)-L$5)*G137*-1)))) -> 95.78845978 | I137: 99.70208967 | L137: 0.6169724721 | M137: 3818.723322 | N137: =AVERAGE(D$79:D137) -> 3793.330231 | O137: =AVERAGE(M$79:M137) -> 3816.653393 | P137: 3703.802649 | Q137: =AVERAGE(P$79:P137) -> 3686.218934 | U137: T+116 sec | V137: 40098.10373 | W137: =LOOKUP($V137,Data!$A$6:$A$1806,Data!$B$6:$B$1806) -> 59.9070015 | X137: =LOOKUP($V137,Data!$A$6:$A$1806,Data!$C$6:$C$1806) -> 3793.975098 | Y137: =LOOKUP($V137,Data!$A$6:$A$1806,Data!$D$6:$D$1806) -> 335 | Z137: =IF($Z$1="+",LOOKUP($V137,Data!$A$6:$A$1806,Data!$E$6:$E$1806)*-1,LOOKUP($V137,Data!$A$6:$A$1806,Data!$E$6:$E$1806)) -> 234.0753326 | AA137: =LOOKUP($V137,Data!$A$6:$A$1806,Data!$F$6:$F$1806) -> 16 | AC137: =LOOKUP($V137,Data!$A$6:$A$1806,Data!$H$6:$H$1806) -> 10 | AD137: =LOOKUP($V137,Data!$A$6:$A$1806,Data!$I$6:$I$1806) -> 0 | AE137: =IF(LOOKUP($V137,Data!$A$6:$A$1806,Data!$J$6:$J$1806)>0,(LOOKUP($V137,Data!$A$6:$A$1806,Data!$J$6:$J$1806)*-1),LOOKUP($V137,Data!$A$6:$A$1806,Data!$J$6:$J$1806)) -> -103 | AF137: =LOOKUP($V137,Data!$A$6:$A$1806,Data!$K$6:$K$1806) -> 7654 | AG137: 95.78845978 | AH137: T+116 sec | AI137: 40098.10373 | AV137: 148.8650193 | AW137: -110.1694126 | AX137: 0.09299850464 | AY137: -103
A138: T+118 sec | B138: 40098.10375 | C138: =LOOKUP(B138,Data!$A$6:$A$1806,Data!B$6:B$1806) -> 59.9109993 | D138: =LOOKUP(B138,Data!$A$6:$A$1806,Data!C$6:C$1806) -> 3792.169434 | G138: 3090 | H138: =(IF((C138-L$2)>0,(IF(C138<'Copy Results'!$C$3,((C138-L$2-L$5)/((L$4*L$2)-L$5)*G138*-1),(('Copy Results'!$C$3-L$2-L$5)/((L$4*L$2)-L$5)*G138*-1))),IF(C138>'Copy Results'!$C$2,((C138-L$2+L$5)/((L$4*L$2)-L$5)*G138*-1),(('Copy Results'!$C$2-L$2+L$5)/((L$4*L$2)-L$5)*G138*-1)))) -> 91.67072296 | I138: 96.89111132 | L138: 0.6169724721 | M138: 3816.529316 | N138: =AVERAGE(D$79:D138) -> 3793.310885 | O138: =AVERAGE(M$79:M138) -> 3816.651325 | P138: 3704.419622 | Q138: =AVERAGE(P$79:P138) -> 3686.52742 | U138: T+118 sec | V138: 40098.10375 | W138: =LOOKUP($V138,Data!$A$6:$A$1806,Data!$B$6:$B$1806) -> 59.9109993 | X138: =LOOKUP($V138,Data!$A$6:$A$1806,Data!$C$6:$C$1806) -> 3792.169434 | Y138: =LOOKUP($V138,Data!$A$6:$A$1806,Data!$D$6:$D$1806) -> 335 | Z138: =IF($Z$1="+",LOOKUP($V138,Data!$A$6:$A$1806,Data!$E$6:$E$1806)*-1,LOOKUP($V138,Data!$A$6:$A$1806,Data!$E$6:$E$1806)) -> 234.0753326 | AA138: =LOOKUP($V138,Data!$A$6:$A$1806,Data!$F$6:$F$1806) -> 16 | AC138: =LOOKUP($V138,Data!$A$6:$A$1806,Data!$H$6:$H$1806) -> 10 | AD138: =LOOKUP($V138,Data!$A$6:$A$1806,Data!$I$6:$I$1806) -> 0 | AE138: =IF(LOOKUP($V138,Data!$A$6:$A$1806,Data!$J$6:$J$1806)>0,(LOOKUP($V138,Data!$A$6:$A$1806,Data!$J$6:$J$1806)*-1),LOOKUP($V138,Data!$A$6:$A$1806,Data!$J$6:$J$1806)) -> -103 | AF138: =LOOKUP($V138,Data!$A$6:$A$1806,Data!$K$6:$K$1806) -> 7655 | AG138: 91.67072296 | AH138: T+118 sec | AI138: 40098.10375 | AV138: 147.0593553 | AW138: -112.1512417 | AX138: 0.0890007019 | AY138: -103
A139: T+120 sec | B139: 40098.10377 | C139: =LOOKUP(B139,Data!$A$6:$A$1806,Data!B$6:B$1806) -> 59.91600037 | D139: =LOOKUP(B139,Data!$A$6:$A$1806,Data!C$6:C$1806) -> 3791.501953 | G139: 3090 | H139: =(IF((C139-L$2)>0,(IF(C139<'Copy Results'!$C$3,((C139-L$2-L$5)/((L$4*L$2)-L$5)*G139*-1),(('Copy Results'!$C$3-L$2-L$5)/((L$4*L$2)-L$5)*G139*-1))),IF(C139>'Copy Results'!$C$2,((C139-L$2+L$5)/((L$4*L$2)-L$5)*G139*-1),(('Copy Results'!$C$2-L$2+L$5)/((L$4*L$2)-L$5)*G139*-1)))) -> 86.5196228 | I139: 93.26109034 | L139: 0.6169724721 | M139: 3813.516268 | N139: =AVERAGE(D$79:D139) -> 3793.28123 | O139: =AVERAGE(M$79:M139) -> 3816.59993 | P139: 3705.036594 | Q139: =AVERAGE(P$79:P139) -> 3686.835906 | U139: T+120 sec | V139: 40098.10377 | W139: =LOOKUP($V139,Data!$A$6:$A$1806,Data!$B$6:$B$1806) -> 59.91600037 | X139: =LOOKUP($V139,Data!$A$6:$A$1806,Data!$C$6:$C$1806) -> 3791.501953 | Y139: =LOOKUP($V139,Data!$A$6:$A$1806,Data!$D$6:$D$1806) -> 335 | Z139: =IF($Z$1="+",LOOKUP($V139,Data!$A$6:$A$1806,Data!$E$6:$E$1806)*-1,LOOKUP($V139,Data!$A$6:$A$1806,Data!$E$6:$E$1806)) -> 234.0753326 | AA139: =LOOKUP($V139,Data!$A$6:$A$1806,Data!$F$6:$F$1806) -> 16 | AC139: =LOOKUP($V139,Data!$A$6:$A$1806,Data!$H$6:$H$1806) -> 10 | AD139: =LOOKUP($V139,Data!$A$6:$A$1806,Data!$I$6:$I$1806) -> 0 | AE139: =IF(LOOKUP($V139,Data!$A$6:$A$1806,Data!$J$6:$J$1806)>0,(LOOKUP($V139,Data!$A$6:$A$1806,Data!$J$6:$J$1806)*-1),LOOKUP($V139,Data!$A$6:$A$1806,Data!$J$6:$J$1806)) -> -103 | AF139: =LOOKUP($V139,Data!$A$6:$A$1806,Data!$K$6:$K$1806) -> 7655 | AG139: 86.5196228 | AH139: T+120 sec | AI139: 40098.10377 | AV139: 146.3918748 | AW139: -116.0690098 | AX139: 0.08399963379 | AY139: -103
A140: T+122 sec | B140: 40098.1038 | C140: =LOOKUP(B140,Data!$A$6:$A$1806,Data!B$6:B$1806) -> 59.91600037 | D140: =LOOKUP(B140,Data!$A$6:$A$1806,Data!C$6:C$1806) -> 3789.533691 | G140: 3090 | H140: =(IF((C140-L$2)>0,(IF(C140<'Copy Results'!$C$3,((C140-L$2-L$5)/((L$4*L$2)-L$5)*G140*-1),(('Copy Results'!$C$3-L$2-L$5)/((L$4*L$2)-L$5)*G140*-1))),IF(C140>'Copy Results'!$C$2,((C140-L$2+L$5)/((L$4*L$2)-L$5)*G140*-1),(('Copy Results'!$C$2-L$2+L$5)/((L$4*L$2)-L$5)*G140*-1)))) -> 86.5196228 | I140: 90.9015767 | L140: 0.6169724721 | M140: 3811.773727 | N140: =AVERAGE(D$79:D140) -> 3793.220786 | O140: =AVERAGE(M$79:M140) -> 3816.522088 | P140: 3705.653567 | Q140: =AVERAGE(P$79:P140) -> 3687.144393 | U140: T+122 sec | V140: 40098.1038 | W140: =LOOKUP($V140,Data!$A$6:$A$1806,Data!$B$6:$B$1806) -> 59.91600037 | X140: =LOOKUP($V140,Data!$A$6:$A$1806,Data!$C$6:$C$1806) -> 3789.533691 | Y140: =LOOKUP($V140,Data!$A$6:$A$1806,Data!$D$6:$D$1806) -> 335 | Z140: =IF($Z$1="+",LOOKUP($V140,Data!$A$6:$A$1806,Data!$E$6:$E$1806)*-1,LOOKUP($V140,Data!$A$6:$A$1806,Data!$E$6:$E$1806)) -> 228.7981567 | AA140: =LOOKUP($V140,Data!$A$6:$A$1806,Data!$F$6:$F$1806) -> 16 | AC140: =LOOKUP($V140,Data!$A$6:$A$1806,Data!$H$6:$H$1806) -> 10 | AD140: =LOOKUP($V140,Data!$A$6:$A$1806,Data!$I$6:$I$1806) -> 0 | AE140: =IF(LOOKUP($V140,Data!$A$6:$A$1806,Data!$J$6:$J$1806)>0,(LOOKUP($V140,Data!$A$6:$A$1806,Data!$J$6:$J$1806)*-1),LOOKUP($V140,Data!$A$6:$A$1806,Data!$J$6:$J$1806)) -> -103 | AF140: =LOOKUP($V140,Data!$A$6:$A$1806,Data!$K$6:$K$1806) -> 7656 | AG140: 86.5196228 | AH140: T+122 sec | AI140: 40098.1038 | AV140: 144.4236131 | AW140: -114.5084438 | AX140: 0.08399963379 | AY140: -103
A141: T+124 sec | B141: 40098.10382 | C141: =LOOKUP(B141,Data!$A$6:$A$1806,Data!B$6:B$1806) -> 59.91699982 | D141: =LOOKUP(B141,Data!$A$6:$A$1806,Data!C$6:C$1806) -> 3788.13208 | G141: 3090 | H141: =(IF((C141-L$2)>0,(IF(C141<'Copy Results'!$C$3,((C141-L$2-L$5)/((L$4*L$2)-L$5)*G141*-1),(('Copy Results'!$C$3-L$2-L$5)/((L$4*L$2)-L$5)*G141*-1))),IF(C141>'Copy Results'!$C$2,((C141-L$2+L$5)/((L$4*L$2)-L$5)*G141*-1),(('Copy Results'!$C$2-L$2+L$5)/((L$4*L$2)-L$5)*G141*-1)))) -> 85.4901886 | I141: 89.00759087 | L141: 0.6169724721 | M141: 3810.496713 | N141: =AVERAGE(D$79:D141) -> 3793.140013 | O141: =AVERAGE(M$79:M141) -> 3816.426448 | P141: 3706.270539 | Q141: =AVERAGE(P$79:P141) -> 3687.452879 | U141: T+124 sec | V141: 40098.10382 | W141: =LOOKUP($V141,Data!$A$6:$A$1806,Data!$B$6:$B$1806) -> 59.91699982 | X141: =LOOKUP($V141,Data!$A$6:$A$1806,Data!$C$6:$C$1806) -> 3788.13208 | Y141: =LOOKUP($V141,Data!$A$6:$A$1806,Data!$D$6:$D$1806) -> 335 | Z141: =IF($Z$1="+",LOOKUP($V141,Data!$A$6:$A$1806,Data!$E$6:$E$1806)*-1,LOOKUP($V141,Data!$A$6:$A$1806,Data!$E$6:$E$1806)) -> 228.7981567 | AA141: =LOOKUP($V141,Data!$A$6:$A$1806,Data!$F$6:$F$1806) -> 16 | AC141: =LOOKUP($V141,Data!$A$6:$A$1806,Data!$H$6:$H$1806) -> 10 | AD141: =LOOKUP($V141,Data!$A$6:$A$1806,Data!$I$6:$I$1806) -> 0 | AE141: =IF(LOOKUP($V141,Data!$A$6:$A$1806,Data!$J$6:$J$1806)>0,(LOOKUP($V141,Data!$A$6:$A$1806,Data!$J$6:$J$1806)*-1),LOOKUP($V141,Data!$A$6:$A$1806,Data!$J$6:$J$1806)) -> -103 | AF141: =LOOKUP($V141,Data!$A$6:$A$1806,Data!$K$6:$K$1806) -> 7656 | AG141: 85.4901886 | AH141: T+124 sec | AI141: 40098.10382 | AV141: 143.0220018 | AW141: -114.3029252 | AX141: 0.08300018311 | AY141: -103
A142: T+126 sec | B142: 40098.10384 | C142: =LOOKUP(B142,Data!$A$6:$A$1806,Data!B$6:B$1806) -> 59.91799927 | D142: =LOOKUP(B142,Data!$A$6:$A$1806,Data!C$6:C$1806) -> 3784.563477 | G142: 3090 | H142: =(IF((C142-L$2)>0,(IF(C142<'Copy Results'!$C$3,((C142-L$2-L$5)/((L$4*L$2)-L$5)*G142*-1),(('Copy Results'!$C$3-L$2-L$5)/((L$4*L$2)-L$5)*G142*-1))),IF(C142>'Copy Results'!$C$2,((C142-L$2+L$5)/((L$4*L$2)-L$5)*G142*-1),(('Copy Results'!$C$2-L$2+L$5)/((L$4*L$2)-L$5)*G142*-1)))) -> 84.46075439 | I142: 87.4161981 | L142: 0.6169724721 | M142: 3809.522293 | N142: =AVERAGE(D$79:D142) -> 3793.006004 | O142: =AVERAGE(M$79:M142) -> 3816.31857 | P142: 3706.887512 | Q142: =AVERAGE(P$79:P142) -> 3687.761365 | U142: T+126 sec | V142: 40098.10384 | W142: =LOOKUP($V142,Data!$A$6:$A$1806,Data!$B$6:$B$1806) -> 59.91799927 | X142: =LOOKUP($V142,Data!$A$6:$A$1806,Data!$C$6:$C$1806) -> 3784.563477 | Y142: =LOOKUP($V142,Data!$A$6:$A$1806,Data!$D$6:$D$1806) -> 335 | Z142: =IF($Z$1="+",LOOKUP($V142,Data!$A$6:$A$1806,Data!$E$6:$E$1806)*-1,LOOKUP($V142,Data!$A$6:$A$1806,Data!$E$6:$E$1806)) -> 228.7981567 | AA142: =LOOKUP($V142,Data!$A$6:$A$1806,Data!$F$6:$F$1806) -> 16 | AC142: =LOOKUP($V142,Data!$A$6:$A$1806,Data!$H$6:$H$1806) -> 10 | AD142: =LOOKUP($V142,Data!$A$6:$A$1806,Data!$I$6:$I$1806) -> 0 | AE142: =IF(LOOKUP($V142,Data!$A$6:$A$1806,Data!$J$6:$J$1806)>0,(LOOKUP($V142,Data!$A$6:$A$1806,Data!$J$6:$J$1806)*-1),LOOKUP($V142,Data!$A$6:$A$1806,Data!$J$6:$J$1806)) -> -103 | AF142: =LOOKUP($V142,Data!$A$6:$A$1806,Data!$K$6:$K$1806) -> 7657 | AG142: 84.46075439 | AH142: T+126 sec | AI142: 40098.10384 | AV142: 139.4533983 | AW142: -112.3482961 | AX142: 0.08200073242 | AY142: -103
A143: T+128 sec | B143: 40098.10387 | C143: =LOOKUP(B143,Data!$A$6:$A$1806,Data!B$6:B$1806) -> 59.91999817 | D143: =LOOKUP(B143,Data!$A$6:$A$1806,Data!C$6:C$1806) -> 3783.02832 | G143: 3090 | H143: =(IF((C143-L$2)>0,(IF(C143<'Copy Results'!$C$3,((C143-L$2-L$5)/((L$4*L$2)-L$5)*G143*-1),(('Copy Results'!$C$3-L$2-L$5)/((L$4*L$2)-L$5)*G143*-1))),IF(C143>'Copy Results'!$C$2,((C143-L$2+L$5)/((L$4*L$2)-L$5)*G143*-1),(('Copy Results'!$C$2-L$2+L$5)/((L$4*L$2)-L$5)*G143*-1)))) -> 82.40188599 | I143: 85.66118886 | L143: 0.6169724721 | M143: 3808.384256 | N143: =AVERAGE(D$79:D143) -> 3792.852502 | O143: =AVERAGE(M$79:M143) -> 3816.196504 | P143: 3707.504484 | Q143: =AVERAGE(P$79:P143) -> 3688.069851 | U143: T+128 sec | V143: 40098.10387 | W143: =LOOKUP($V143,Data!$A$6:$A$1806,Data!$B$6:$B$1806) -> 59.91999817 | X143: =LOOKUP($V143,Data!$A$6:$A$1806,Data!$C$6:$C$1806) -> 3783.02832 | Y143: =LOOKUP($V143,Data!$A$6:$A$1806,Data!$D$6:$D$1806) -> 335 | Z143: =IF($Z$1="+",LOOKUP($V143,Data!$A$6:$A$1806,Data!$E$6:$E$1806)*-1,LOOKUP($V143,Data!$A$6:$A$1806,Data!$E$6:$E$1806)) -> 228.7981567 | AA143: =LOOKUP($V143,Data!$A$6:$A$1806,Data!$F$6:$F$1806) -> 16 | AC143: =LOOKUP($V143,Data!$A$6:$A$1806,Data!$H$6:$H$1806) -> 10 | AD143: =LOOKUP($V143,Data!$A$6:$A$1806,Data!$I$6:$I$1806) -> 0 | AE143: =IF(LOOKUP($V143,Data!$A$6:$A$1806,Data!$J$6:$J$1806)>0,(LOOKUP($V143,Data!$A$6:$A$1806,Data!$J$6:$J$1806)*-1),LOOKUP($V143,Data!$A$6:$A$1806,Data!$J$6:$J$1806)) -> -103 | AF143: =LOOKUP($V143,Data!$A$6:$A$1806,Data!$K$6:$K$1806) -> 7657 | AG143: 82.40188599 | AH143: T+128 sec | AI143: 40098.10387 | AV143: 137.918242 | AW143: -112.930129 | AX143: 0.08000183105 | AY143: -103
A144: T+130 sec | B144: 40098.10389 | C144: =LOOKUP(B144,Data!$A$6:$A$1806,Data!B$6:B$1806) -> 59.92100143 | D144: =LOOKUP(B144,Data!$A$6:$A$1806,Data!C$6:C$1806) -> 3781.701172 | G144: 3090 | H144: =(IF((C144-L$2)>0,(IF(C144<'Copy Results'!$C$3,((C144-L$2-L$5)/((L$4*L$2)-L$5)*G144*-1),(('Copy Results'!$C$3-L$2-L$5)/((L$4*L$2)-L$5)*G144*-1))),IF(C144>'Copy Results'!$C$2,((C144-L$2+L$5)/((L$4*L$2)-L$5)*G144*-1),(('Copy Results'!$C$2-L$2+L$5)/((L$4*L$2)-L$5)*G144*-1)))) -> 81.36852264 | I144: 84.15875569 | L144: =IF(B144>G$3,0,(K$21*0.000023148/K$22)) -> 0.6169724721 | M144: =M143+L144+(I144-I143) -> 3807.498796 | N144: =AVERAGE(D$79:D144) -> 3792.683542 | O144: =AVERAGE(M$79:M144) -> 3816.06472 | P144: 3708.121457 | Q144: =AVERAGE(P$79:P144) -> 3688.378338 | U144: T+130 sec | V144: 40098.10389 | W144: =LOOKUP($V144,Data!$A$6:$A$1806,Data!$B$6:$B$1806) -> 59.92100143 | X144: =LOOKUP($V144,Data!$A$6:$A$1806,Data!$C$6:$C$1806) -> 3781.701172 | Y144: =LOOKUP($V144,Data!$A$6:$A$1806,Data!$D$6:$D$1806) -> 335 | Z144: =IF($Z$1="+",LOOKUP($V144,Data!$A$6:$A$1806,Data!$E$6:$E$1806)*-1,LOOKUP($V144,Data!$A$6:$A$1806,Data!$E$6:$E$1806)) -> 228.7981567 | AA144: =LOOKUP($V144,Data!$A$6:$A$1806,Data!$F$6:$F$1806) -> 16 | AC144: =LOOKUP($V144,Data!$A$6:$A$1806,Data!$H$6:$H$1806) -> 10 | AD144: =LOOKUP($V144,Data!$A$6:$A$1806,Data!$I$6:$I$1806) -> 0 | AE144: =IF(LOOKUP($V144,Data!$A$6:$A$1806,Data!$J$6:$J$1806)>0,(LOOKUP($V144,Data!$A$6:$A$1806,Data!$J$6:$J$1806)*-1),LOOKUP($V144,Data!$A$6:$A$1806,Data!$J$6:$J$1806)) -> -103 | AF144: =LOOKUP($V144,Data!$A$6:$A$1806,Data!$K$6:$K$1806) -> 7658 | AG144: 81.36852264 | AH144: T+130 sec | AI144: 40098.10389 | AV144: 136.5910936 | AW144: -112.7698305 | AX144: 0.07899856567 | AY144: -103
A145: T+132 sec | B145: 40098.10391 | C145: =LOOKUP(B145,Data!$A$6:$A$1806,Data!B$6:B$1806) -> 59.91999817 | D145: =LOOKUP(B145,Data!$A$6:$A$1806,Data!C$6:C$1806) -> 3776.358398 | G145: 3090 | H145: =(IF((C145-L$2)>0,(IF(C145<'Copy Results'!$C$3,((C145-L$2-L$5)/((L$4*L$2)-L$5)*G145*-1),(('Copy Results'!$C$3-L$2-L$5)/((L$4*L$2)-L$5)*G145*-1))),IF(C145>'Copy Results'!$C$2,((C145-L$2+L$5)/((L$4*L$2)-L$5)*G145*-1),(('Copy Results'!$C$2-L$2+L$5)/((L$4*L$2)-L$5)*G145*-1)))) -> 82.40188599 | I145: 83.54385129 | L145: 0.6169724721 | M145: 3807.500864 | N145: =AVERAGE(D$79:D145) -> 3792.439883 | O145: =AVERAGE(M$79:M145) -> 3815.936902 | P145: 3708.738429 | Q145: =AVERAGE(P$79:P145) -> 3688.686824 | U145: T+132 sec | V145: =V144+TIME(0,0,$B$1) -> 40098.10391 | W145: =LOOKUP($V145,Data!$A$6:$A$1806,Data!$B$6:$B$1806) -> 59.91999817 | X145: =LOOKUP($V145,Data!$A$6:$A$1806,Data!$C$6:$C$1806) -> 3776.358398 | Y145: =LOOKUP($V145,Data!$A$6:$A$1806,Data!$D$6:$D$1806) -> 335 | Z145: =IF($Z$1="+",LOOKUP($V145,Data!$A$6:$A$1806,Data!$E$6:$E$1806)*-1,LOOKUP($V145,Data!$A$6:$A$1806,Data!$E$6:$E$1806)) -> 229.4669647 | AA145: =LOOKUP($V145,Data!$A$6:$A$1806,Data!$F$6:$F$1806) -> 16 | AC145: =LOOKUP($V145,Data!$A$6:$A$1806,Data!$H$6:$H$1806) -> 10 | AD145: =LOOKUP($V145,Data!$A$6:$A$1806,Data!$I$6:$I$1806) -> 0 | AE145: =IF(LOOKUP($V145,Data!$A$6:$A$1806,Data!$J$6:$J$1806)>0,(LOOKUP($V145,Data!$A$6:$A$1806,Data!$J$6:$J$1806)*-1),LOOKUP($V145,Data!$A$6:$A$1806,Data!$J$6:$J$1806)) -> -103 | AF145: =LOOKUP($V145,Data!$A$6:$A$1806,Data!$K$6:$K$1806) -> 7658 | AG145: 82.40188599 | AH145: T+132 sec | AI145: =AI144+TIME(0,0,$B$1) -> 40098.10391 | AV145: 131.2483201 | AW145: -107.4686677 | AX145: 0.08000183105 | AY145: -103
A146: T+134 sec | B146: 40098.10394 | C146: =LOOKUP(B146,Data!$A$6:$A$1806,Data!B$6:B$1806) -> 59.91699982 | D146: =LOOKUP(B146,Data!$A$6:$A$1806,Data!C$6:C$1806) -> 3775.635498 | G146: 3090 | H146: =(IF((C146-L$2)>0,(IF(C146<'Copy Results'!$C$3,((C146-L$2-L$5)/((L$4*L$2)-L$5)*G146*-1),(('Copy Results'!$C$3-L$2-L$5)/((L$4*L$2)-L$5)*G146*-1))),IF(C146>'Copy Results'!$C$2,((C146-L$2+L$5)/((L$4*L$2)-L$5)*G146*-1),(('Copy Results'!$C$2-L$2+L$5)/((L$4*L$2)-L$5)*G146*-1)))) -> 85.4901886 | I146: 84.22506935 | L146: 0.6169724721 | M146: 3808.799054 | N146: =AVERAGE(D$79:D146) -> 3792.19276 | O146: =AVERAGE(M$79:M146) -> 3815.831933 | P146: =P145+L146 -> 3709.355402 | Q146: =AVERAGE(P$79:P146) -> 3688.99531 | U146: T+134 sec | V146: 40098.10394 | W146: =LOOKUP($V146,Data!$A$6:$A$1806,Data!$B$6:$B$1806) -> 59.91699982 | X146: =LOOKUP($V146,Data!$A$6:$A$1806,Data!$C$6:$C$1806) -> 3775.635498 | Y146: =LOOKUP($V146,Data!$A$6:$A$1806,Data!$D$6:$D$1806) -> 335 | Z146: =IF($Z$1="+",LOOKUP($V146,Data!$A$6:$A$1806,Data!$E$6:$E$1806)*-1,LOOKUP($V146,Data!$A$6:$A$1806,Data!$E$6:$E$1806)) -> 229.4669647 | AA146: =LOOKUP($V146,Data!$A$6:$A$1806,Data!$F$6:$F$1806) -> 16 | AC146: =LOOKUP($V146,Data!$A$6:$A$1806,Data!$H$6:$H$1806) -> 10 | AD146: =LOOKUP($V146,Data!$A$6:$A$1806,Data!$I$6:$I$1806) -> 0 | AE146: =IF(LOOKUP($V146,Data!$A$6:$A$1806,Data!$J$6:$J$1806)>0,(LOOKUP($V146,Data!$A$6:$A$1806,Data!$J$6:$J$1806)*-1),LOOKUP($V146,Data!$A$6:$A$1806,Data!$J$6:$J$1806)) -> -103 | AF146: =LOOKUP($V146,Data!$A$6:$A$1806,Data!$K$6:$K$1806) -> 7659 | AG146: 85.4901886 | AH146: T+134 sec | AI146: 40098.10394 | AV146: =D146-F$78+L146-AD146 -> 130.5254197 | AW146: =IF(AW145=" "," ",IF(L146=L145,AV146/((C146-E$78)*10)," ")) -> -104.3156795 | AX146: 0.08300018311 | AY146: -103
A147: T+136 sec | B147: 40098.10396 | C147: =LOOKUP(B147,Data!$A$6:$A$1806,Data!B$6:B$1806) -> 59.91999817 | D147: =LOOKUP(B147,Data!$A$6:$A$1806,Data!C$6:C$1806) -> 3774.604248 | G147: 3090 | H147: =(IF((C147-L$2)>0,(IF(C147<'Copy Results'!$C$3,((C147-L$2-L$5)/((L$4*L$2)-L$5)*G147*-1),(('Copy Results'!$C$3-L$2-L$5)/((L$4*L$2)-L$5)*G147*-1))),IF(C147>'Copy Results'!$C$2,((C147-L$2+L$5)/((L$4*L$2)-L$5)*G147*-1),(('Copy Results'!$C$2-L$2+L$5)/((L$4*L$2)-L$5)*G147*-1)))) -> 82.40188599 | I147: 83.58695517 | L147: 0.6169724721 | M147: 3808.777912 | N147: =AVERAGE(D$79:D147) -> 3791.937854 | O147: =AVERAGE(M$79:M147) -> 3815.729701 | P147: 3709.972374 | Q147: =AVERAGE(P$79:P147) -> 3689.303796 | U147: T+136 sec | V147: 40098.10396 | W147: =LOOKUP($V147,Data!$A$6:$A$1806,Data!$B$6:$B$1806) -> 59.91999817 | X147: =LOOKUP($V147,Data!$A$6:$A$1806,Data!$C$6:$C$1806) -> 3774.604248 | Y147: =LOOKUP($V147,Data!$A$6:$A$1806,Data!$D$6:$D$1806) -> 335 | Z147: =IF($Z$1="+",LOOKUP($V147,Data!$A$6:$A$1806,Data!$E$6:$E$1806)*-1,LOOKUP($V147,Data!$A$6:$A$1806,Data!$E$6:$E$1806)) -> 229.4669647 | AA147: =LOOKUP($V147,Data!$A$6:$A$1806,Data!$F$6:$F$1806) -> 16 | AC147: =LOOKUP($V147,Data!$A$6:$A$1806,Data!$H$6:$H$1806) -> 10 | AD147: =LOOKUP($V147,Data!$A$6:$A$1806,Data!$I$6:$I$1806) -> 0 | AE147: =IF(LOOKUP($V147,Data!$A$6:$A$1806,Data!$J$6:$J$1806)>0,(LOOKUP($V147,Data!$A$6:$A$1806,Data!$J$6:$J$1806)*-1),LOOKUP($V147,Data!$A$6:$A$1806,Data!$J$6:$J$1806)) -> -103 | AF147: =LOOKUP($V147,Data!$A$6:$A$1806,Data!$K$6:$K$1806) -> 7659 | AG147: 82.40188599 | AH147: T+136 sec | AI147: 40098.10396 | AV147: 129.4941697 | AW147: -106.0323354 | AX147: 0.08000183105 | AY147: -103
A148: T+138 sec | B148: 40098.10398 | C148: =LOOKUP(B148,Data!$A$6:$A$1806,Data!B$6:B$1806) -> 59.92100143 | D148: =LOOKUP(B148,Data!$A$6:$A$1806,Data!C$6:C$1806) -> 3773.33374 | G148: 3090 | H148: =(IF((C148-L$2)>0,(IF(C148<'Copy Results'!$C$3,((C148-L$2-L$5)/((L$4*L$2)-L$5)*G148*-1),(('Copy Results'!$C$3-L$2-L$5)/((L$4*L$2)-L$5)*G148*-1))),IF(C148>'Copy Results'!$C$2,((C148-L$2+L$5)/((L$4*L$2)-L$5)*G148*-1),(('Copy Results'!$C$2-L$2+L$5)/((L$4*L$2)-L$5)*G148*-1)))) -> 81.36852264 | I148: 82.81050379 | L148: 0.6169724721 | M148: 3808.618434 | N148: =AVERAGE(D$79:D148) -> 3791.672081 | O148: =AVERAGE(M$79:M148) -> 3815.628111 | P148: 3710.589347 | Q148: =AVERAGE(P$79:P148) -> 3689.612283 | U148: T+138 sec | V148: 40098.10398 | W148: =LOOKUP($V148,Data!$A$6:$A$1806,Data!$B$6:$B$1806) -> 59.92100143 | X148: =LOOKUP($V148,Data!$A$6:$A$1806,Data!$C$6:$C$1806) -> 3773.33374 | Y148: =LOOKUP($V148,Data!$A$6:$A$1806,Data!$D$6:$D$1806) -> 335 | Z148: =IF($Z$1="+",LOOKUP($V148,Data!$A$6:$A$1806,Data!$E$6:$E$1806)*-1,LOOKUP($V148,Data!$A$6:$A$1806,Data!$E$6:$E$1806)) -> 229.4669647 | AA148: =LOOKUP($V148,Data!$A$6:$A$1806,Data!$F$6:$F$1806) -> 16 | AC148: =LOOKUP($V148,Data!$A$6:$A$1806,Data!$H$6:$H$1806) -> 10 | AD148: =LOOKUP($V148,Data!$A$6:$A$1806,Data!$I$6:$I$1806) -> 0 | AE148: =IF(LOOKUP($V148,Data!$A$6:$A$1806,Data!$J$6:$J$1806)>0,(LOOKUP($V148,Data!$A$6:$A$1806,Data!$J$6:$J$1806)*-1),LOOKUP($V148,Data!$A$6:$A$1806,Data!$J$6:$J$1806)) -> -103 | AF148: =LOOKUP($V148,Data!$A$6:$A$1806,Data!$K$6:$K$1806) -> 7659 | AG148: 81.36852264 | AH148: T+138 sec | AI148: 40098.10398 | AV148: 128.2236619 | AW148: -105.8616653 | AX148: 0.07899856567 | AY148: -103
A149: T+140 sec | B149: 40098.104 | C149: =LOOKUP(B149,Data!$A$6:$A$1806,Data!B$6:B$1806) -> 59.92300034 | D149: =LOOKUP(B149,Data!$A$6:$A$1806,Data!C$6:C$1806) -> 3773.957764 | G149: 3090 | H149: =(IF((C149-L$2)>0,(IF(C149<'Copy Results'!$C$3,((C149-L$2-L$5)/((L$4*L$2)-L$5)*G149*-1),(('Copy Results'!$C$3-L$2-L$5)/((L$4*L$2)-L$5)*G149*-1))),IF(C149>'Copy Results'!$C$2,((C149-L$2+L$5)/((L$4*L$2)-L$5)*G149*-1),(('Copy Results'!$C$2-L$2+L$5)/((L$4*L$2)-L$5)*G149*-1)))) -> 79.30965424 | I149: 81.58520644 | L149: 0.6169724721 | M149: 3808.010109 | N149: =AVERAGE(D$79:D149) -> 3791.422583 | O149: =AVERAGE(M$79:M149) -> 3815.520816 | P149: 3711.206319 | Q149: =AVERAGE(P$79:P149) -> 3689.920769 | U149: T+140 sec | V149: 40098.104 | W149: =LOOKUP($V149,Data!$A$6:$A$1806,Data!$B$6:$B$1806) -> 59.92300034 | X149: =LOOKUP($V149,Data!$A$6:$A$1806,Data!$C$6:$C$1806) -> 3773.957764 | Y149: =LOOKUP($V149,Data!$A$6:$A$1806,Data!$D$6:$D$1806) -> 335 | Z149: =IF($Z$1="+",LOOKUP($V149,Data!$A$6:$A$1806,Data!$E$6:$E$1806)*-1,LOOKUP($V149,Data!$A$6:$A$1806,Data!$E$6:$E$1806)) -> 229.4669647 | AA149: =LOOKUP($V149,Data!$A$6:$A$1806,Data!$F$6:$F$1806) -> 16 | AC149: =LOOKUP($V149,Data!$A$6:$A$1806,Data!$H$6:$H$1806) -> 10 | AD149: =LOOKUP($V149,Data!$A$6:$A$1806,Data!$I$6:$I$1806) -> 0 | AE149: =IF(LOOKUP($V149,Data!$A$6:$A$1806,Data!$J$6:$J$1806)>0,(LOOKUP($V149,Data!$A$6:$A$1806,Data!$J$6:$J$1806)*-1),LOOKUP($V149,Data!$A$6:$A$1806,Data!$J$6:$J$1806)) -> -103 | AF149: =LOOKUP($V149,Data!$A$6:$A$1806,Data!$K$6:$K$1806) -> 7660 | AG149: 79.30965424 | AH149: T+140 sec | AI149: 40098.104 | AV149: 128.8476854 | AW149: -108.161851 | AX149: 0.07699966431 | AY149: -103
A150: T+142 sec | B150: 40098.10403 | C150: =LOOKUP(B150,Data!$A$6:$A$1806,Data!B$6:B$1806) -> 59.92599869 | D150: =LOOKUP(B150,Data!$A$6:$A$1806,Data!C$6:C$1806) -> 3772.722412 | G150: 3090 | H150: =(IF((C150-L$2)>0,(IF(C150<'Copy Results'!$C$3,((C150-L$2-L$5)/((L$4*L$2)-L$5)*G150*-1),(('Copy Results'!$C$3-L$2-L$5)/((L$4*L$2)-L$5)*G150*-1))),IF(C150>'Copy Results'!$C$2,((C150-L$2+L$5)/((L$4*L$2)-L$5)*G150*-1),(('Copy Results'!$C$2-L$2+L$5)/((L$4*L$2)-L$5)*G150*-1)))) -> 76.22135162 | I150: 79.70785726 | L150: 0.6169724721 | M150: 3806.749732 | N150: =AVERAGE(D$79:D150) -> 3791.162859 | O150: =AVERAGE(M$79:M150) -> 3815.398995 | P150: 3711.823292 | Q150: =AVERAGE(P$79:P150) -> 3690.229255 | U150: T+142 sec | V150: 40098.10403 | W150: =LOOKUP($V150,Data!$A$6:$A$1806,Data!$B$6:$B$1806) -> 59.92599869 | X150: =LOOKUP($V150,Data!$A$6:$A$1806,Data!$C$6:$C$1806) -> 3772.722412 | Y150: =LOOKUP($V150,Data!$A$6:$A$1806,Data!$D$6:$D$1806) -> 335 | Z150: =IF($Z$1="+",LOOKUP($V150,Data!$A$6:$A$1806,Data!$E$6:$E$1806)*-1,LOOKUP($V150,Data!$A$6:$A$1806,Data!$E$6:$E$1806)) -> 228.9801636 | AA150: =LOOKUP($V150,Data!$A$6:$A$1806,Data!$F$6:$F$1806) -> 16 | AC150: =LOOKUP($V150,Data!$A$6:$A$1806,Data!$H$6:$H$1806) -> 10 | AD150: =LOOKUP($V150,Data!$A$6:$A$1806,Data!$I$6:$I$1806) -> 0 | AE150: =IF(LOOKUP($V150,Data!$A$6:$A$1806,Data!$J$6:$J$1806)>0,(LOOKUP($V150,Data!$A$6:$A$1806,Data!$J$6:$J$1806)*-1),LOOKUP($V150,Data!$A$6:$A$1806,Data!$J$6:$J$1806)) -> -103 | AF150: =LOOKUP($V150,Data!$A$6:$A$1806,Data!$K$6:$K$1806) -> 7660 | AG150: 76.22135162 | AH150: T+142 sec | AI150: 40098.10403 | AV150: 127.6123338 | AW150: -109.8907595 | AX150: 0.07400131226 | AY150: -103
A151: T+144 sec | B151: 40098.10405 | C151: =LOOKUP(B151,Data!$A$6:$A$1806,Data!B$6:B$1806) -> 59.92499924 | D151: =LOOKUP(B151,Data!$A$6:$A$1806,Data!C$6:C$1806) -> 3771.67041 | G151: 3090 | H151: =(IF((C151-L$2)>0,(IF(C151<'Copy Results'!$C$3,((C151-L$2-L$5)/((L$4*L$2)-L$5)*G151*-1),(('Copy Results'!$C$3-L$2-L$5)/((L$4*L$2)-L$5)*G151*-1))),IF(C151>'Copy Results'!$C$2,((C151-L$2+L$5)/((L$4*L$2)-L$5)*G151*-1),(('Copy Results'!$C$2-L$2+L$5)/((L$4*L$2)-L$5)*G151*-1)))) -> 77.25078583 | I151: 78.84788226 | L151: 0.6169724721 | M151: 3806.506729 | N151: =AVERAGE(D$79:D151) -> 3790.895839 | O151: =AVERAGE(M$79:M151) -> 3815.277183 | P151: 3712.440264 | Q151: =AVERAGE(P$79:P151) -> 3690.537741 | U151: T+144 sec | V151: 40098.10405 | W151: =LOOKUP($V151,Data!$A$6:$A$1806,Data!$B$6:$B$1806) -> 59.92499924 | X151: =LOOKUP($V151,Data!$A$6:$A$1806,Data!$C$6:$C$1806) -> 3771.67041 | Y151: =LOOKUP($V151,Data!$A$6:$A$1806,Data!$D$6:$D$1806) -> 335 | Z151: =IF($Z$1="+",LOOKUP($V151,Data!$A$6:$A$1806,Data!$E$6:$E$1806)*-1,LOOKUP($V151,Data!$A$6:$A$1806,Data!$E$6:$E$1806)) -> 228.9801636 | AA151: =LOOKUP($V151,Data!$A$6:$A$1806,Data!$F$6:$F$1806) -> 16 | AC151: =LOOKUP($V151,Data!$A$6:$A$1806,Data!$H$6:$H$1806) -> 10 | AD151: =LOOKUP($V151,Data!$A$6:$A$1806,Data!$I$6:$I$1806) -> 0 | AE151: =IF(LOOKUP($V151,Data!$A$6:$A$1806,Data!$J$6:$J$1806)>0,(LOOKUP($V151,Data!$A$6:$A$1806,Data!$J$6:$J$1806)*-1),LOOKUP($V151,Data!$A$6:$A$1806,Data!$J$6:$J$1806)) -> -103 | AF151: =LOOKUP($V151,Data!$A$6:$A$1806,Data!$K$6:$K$1806) -> 7661 | AG151: 77.25078583 | AH151: T+144 sec | AI151: 40098.10405 | AV151: 126.5603318 | AW151: -108.0548681 | AX151: 0.07500076294 | AY151: -103
A152: T+146 sec | B152: 40098.10407 | C152: =LOOKUP(B152,Data!$A$6:$A$1806,Data!B$6:B$1806) -> 59.9280014 | D152: =LOOKUP(B152,Data!$A$6:$A$1806,Data!C$6:C$1806) -> 3769.629639 | G152: 3090 | H152: =(IF((C152-L$2)>0,(IF(C152<'Copy Results'!$C$3,((C152-L$2-L$5)/((L$4*L$2)-L$5)*G152*-1),(('Copy Results'!$C$3-L$2-L$5)/((L$4*L$2)-L$5)*G152*-1))),IF(C152>'Copy Results'!$C$2,((C152-L$2+L$5)/((L$4*L$2)-L$5)*G152*-1),(('Copy Results'!$C$2-L$2+L$5)/((L$4*L$2)-L$5)*G152*-1)))) -> 74.15855408 | I152: 77.20661739 | L152: 0.6169724721 | M152: 3805.482437 | N152: =AVERAGE(D$79:D152) -> 3790.608458 | O152: =AVERAGE(M$79:M152) -> 3815.144822 | P152: 3713.057236 | Q152: =AVERAGE(P$79:P152) -> 3690.846227 | U152: T+146 sec | V152: 40098.10407 | W152: =LOOKUP($V152,Data!$A$6:$A$1806,Data!$B$6:$B$1806) -> 59.9280014 | X152: =LOOKUP($V152,Data!$A$6:$A$1806,Data!$C$6:$C$1806) -> 3769.629639 | Y152: =LOOKUP($V152,Data!$A$6:$A$1806,Data!$D$6:$D$1806) -> 335 | Z152: =IF($Z$1="+",LOOKUP($V152,Data!$A$6:$A$1806,Data!$E$6:$E$1806)*-1,LOOKUP($V152,Data!$A$6:$A$1806,Data!$E$6:$E$1806)) -> 228.9801636 | AA152: =LOOKUP($V152,Data!$A$6:$A$1806,Data!$F$6:$F$1806) -> 16 | AC152: =LOOKUP($V152,Data!$A$6:$A$1806,Data!$H$6:$H$1806) -> 10 | AD152: =LOOKUP($V152,Data!$A$6:$A$1806,Data!$I$6:$I$1806) -> 0 | AE152: =IF(LOOKUP($V152,Data!$A$6:$A$1806,Data!$J$6:$J$1806)>0,(LOOKUP($V152,Data!$A$6:$A$1806,Data!$J$6:$J$1806)*-1),LOOKUP($V152,Data!$A$6:$A$1806,Data!$J$6:$J$1806)) -> -103 | AF152: =LOOKUP($V152,Data!$A$6:$A$1806,Data!$K$6:$K$1806) -> 7661 | AG152: 74.15855408 | AH152: T+146 sec | AI152: 40098.10407 | AV152: 124.5195604 | AW152: -109.1091754 | AX152: 0.07199859619 | AY152: -103
A153: T+148 sec | B153: 40098.1041 | C153: =LOOKUP(B153,Data!$A$6:$A$1806,Data!B$6:B$1806) -> 59.92699814 | D153: =LOOKUP(B153,Data!$A$6:$A$1806,Data!C$6:C$1806) -> 3768.707031 | G153: 3090 | H153: =(IF((C153-L$2)>0,(IF(C153<'Copy Results'!$C$3,((C153-L$2-L$5)/((L$4*L$2)-L$5)*G153*-1),(('Copy Results'!$C$3-L$2-L$5)/((L$4*L$2)-L$5)*G153*-1))),IF(C153>'Copy Results'!$C$2,((C153-L$2+L$5)/((L$4*L$2)-L$5)*G153*-1),(('Copy Results'!$C$2-L$2+L$5)/((L$4*L$2)-L$5)*G153*-1)))) -> 75.19191742 | I153: 76.5014724 | L153: 0.6169724721 | M153: 3805.394265 | N153: =AVERAGE(D$79:D153) -> 3790.316439 | O153: =AVERAGE(M$79:M153) -> 3815.014814 | P153: 3713.674209 | Q153: =AVERAGE(P$79:P153) -> 3691.154714 | U153: T+148 sec | V153: 40098.1041 | W153: =LOOKUP($V153,Data!$A$6:$A$1806,Data!$B$6:$B$1806) -> 59.92699814 | X153: =LOOKUP($V153,Data!$A$6:$A$1806,Data!$C$6:$C$1806) -> 3768.707031 | Y153: =LOOKUP($V153,Data!$A$6:$A$1806,Data!$D$6:$D$1806) -> 335 | Z153: =IF($Z$1="+",LOOKUP($V153,Data!$A$6:$A$1806,Data!$E$6:$E$1806)*-1,LOOKUP($V153,Data!$A$6:$A$1806,Data!$E$6:$E$1806)) -> 228.9801636 | AA153: =LOOKUP($V153,Data!$A$6:$A$1806,Data!$F$6:$F$1806) -> 16 | AC153: =LOOKUP($V153,Data!$A$6:$A$1806,Data!$H$6:$H$1806) -> 10 | AD153: =LOOKUP($V153,Data!$A$6:$A$1806,Data!$I$6:$I$1806) -> 0 | AE153: =IF(LOOKUP($V153,Data!$A$6:$A$1806,Data!$J$6:$J$1806)>0,(LOOKUP($V153,Data!$A$6:$A$1806,Data!$J$6:$J$1806)*-1),LOOKUP($V153,Data!$A$6:$A$1806,Data!$J$6:$J$1806)) -> -103 | AF153: =LOOKUP($V153,Data!$A$6:$A$1806,Data!$K$6:$K$1806) -> 7662 | AG153: 75.19191742 | AH153: T+148 sec | AI153: 40098.1041 | AV153: 123.5969529 | AW153: -107.3569709 | AX153: 0.07300186157 | AY153: -103
A154: T+150 sec | B154: 40098.10412 | C154: =LOOKUP(B154,Data!$A$6:$A$1806,Data!B$6:B$1806) -> 59.93199921 | D154: =LOOKUP(B154,Data!$A$6:$A$1806,Data!C$6:C$1806) -> 3767.642822 | G154: 3090 | H154: =(IF((C154-L$2)>0,(IF(C154<'Copy Results'!$C$3,((C154-L$2-L$5)/((L$4*L$2)-L$5)*G154*-1),(('Copy Results'!$C$3-L$2-L$5)/((L$4*L$2)-L$5)*G154*-1))),IF(C154>'Copy Results'!$C$2,((C154-L$2+L$5)/((L$4*L$2)-L$5)*G154*-1),(('Copy Results'!$C$2-L$2+L$5)/((L$4*L$2)-L$5)*G154*-1)))) -> 70.04081726 | I154: 74.2402431 | L154: 0.6169724721 | M154: 3803.750008 | N154: =AVERAGE(D$79:D154) -> 3790.018102 | O154: =AVERAGE(M$79:M154) -> 3814.866593 | P154: 3714.291181 | Q154: =AVERAGE(P$79:P154) -> 3691.4632 | U154: T+150 sec | V154: 40098.10412 | W154: =LOOKUP($V154,Data!$A$6:$A$1806,Data!$B$6:$B$1806) -> 59.93199921 | X154: =LOOKUP($V154,Data!$A$6:$A$1806,Data!$C$6:$C$1806) -> 3767.642822 | Y154: =LOOKUP($V154,Data!$A$6:$A$1806,Data!$D$6:$D$1806) -> 335 | Z154: =IF($Z$1="+",LOOKUP($V154,Data!$A$6:$A$1806,Data!$E$6:$E$1806)*-1,LOOKUP($V154,Data!$A$6:$A$1806,Data!$E$6:$E$1806)) -> 228.9801636 | AA154: =LOOKUP($V154,Data!$A$6:$A$1806,Data!$F$6:$F$1806) -> 16 | AC154: =LOOKUP($V154,Data!$A$6:$A$1806,Data!$H$6:$H$1806) -> 10 | AD154: =LOOKUP($V154,Data!$A$6:$A$1806,Data!$I$6:$I$1806) -> 0 | AE154: =IF(LOOKUP($V154,Data!$A$6:$A$1806,Data!$J$6:$J$1806)>0,(LOOKUP($V154,Data!$A$6:$A$1806,Data!$J$6:$J$1806)*-1),LOOKUP($V154,Data!$A$6:$A$1806,Data!$J$6:$J$1806)) -> -103 | AF154: =LOOKUP($V154,Data!$A$6:$A$1806,Data!$K$6:$K$1806) -> 7662 | AG154: 70.04081726 | AH154: T+150 sec | AI154: 40098.10412 | AV154: 122.532744 | AW154: -111.2659348 | AX154: 0.06800079346 | AY154: -103
A155: T+152 sec | B155: 40098.10414 | C155: =LOOKUP(B155,Data!$A$6:$A$1806,Data!B$6:B$1806) -> 59.92699814 | D155: =LOOKUP(B155,Data!$A$6:$A$1806,Data!C$6:C$1806) -> 3767.020996 | G155: 3090 | H155: =(IF((C155-L$2)>0,(IF(C155<'Copy Results'!$C$3,((C155-L$2-L$5)/((L$4*L$2)-L$5)*G155*-1),(('Copy Results'!$C$3-L$2-L$5)/((L$4*L$2)-L$5)*G155*-1))),IF(C155>'Copy Results'!$C$2,((C155-L$2+L$5)/((L$4*L$2)-L$5)*G155*-1),(('Copy Results'!$C$2-L$2+L$5)/((L$4*L$2)-L$5)*G155*-1)))) -> 75.19191742 | I155: 74.57332911 | L155: 0.6169724721 | M155: 3804.700066 | N155: =AVERAGE(D$79:D155) -> 3789.719438 | O155: =AVERAGE(M$79:M155) -> 3814.73456 | P155: 3714.908154 | Q155: =AVERAGE(P$79:P155) -> 3691.771686 | U155: T+152 sec | V155: 40098.10414 | W155: =LOOKUP($V155,Data!$A$6:$A$1806,Data!$B$6:$B$1806) -> 59.92699814 | X155: =LOOKUP($V155,Data!$A$6:$A$1806,Data!$C$6:$C$1806) -> 3767.020996 | Y155: =LOOKUP($V155,Data!$A$6:$A$1806,Data!$D$6:$D$1806) -> 335 | Z155: =IF($Z$1="+",LOOKUP($V155,Data!$A$6:$A$1806,Data!$E$6:$E$1806)*-1,LOOKUP($V155,Data!$A$6:$A$1806,Data!$E$6:$E$1806)) -> 219.9755554 | AA155: =LOOKUP($V155,Data!$A$6:$A$1806,Data!$F$6:$F$1806) -> 16 | AC155: =LOOKUP($V155,Data!$A$6:$A$1806,Data!$H$6:$H$1806) -> 10 | AD155: =LOOKUP($V155,Data!$A$6:$A$1806,Data!$I$6:$I$1806) -> 0 | AE155: =IF(LOOKUP($V155,Data!$A$6:$A$1806,Data!$J$6:$J$1806)>0,(LOOKUP($V155,Data!$A$6:$A$1806,Data!$J$6:$J$1806)*-1),LOOKUP($V155,Data!$A$6:$A$1806,Data!$J$6:$J$1806)) -> -103 | AF155: =LOOKUP($V155,Data!$A$6:$A$1806,Data!$K$6:$K$1806) -> 7663 | AG155: 75.19191742 | AH155: T+152 sec | AI155: 40098.10414 | AV155: 121.9109178 | AW155: -105.8924718 | AX155: 0.07300186157 | AY155: -103
A156: T+154 sec | B156: 40098.10417 | C156: =LOOKUP(B156,Data!$A$6:$A$1806,Data!B$6:B$1806) -> 59.9280014 | D156: =LOOKUP(B156,Data!$A$6:$A$1806,Data!C$6:C$1806) -> 3767.407959 | G156: 3090 | H156: =(IF((C156-L$2)>0,(IF(C156<'Copy Results'!$C$3,((C156-L$2-L$5)/((L$4*L$2)-L$5)*G156*-1),(('Copy Results'!$C$3-L$2-L$5)/((L$4*L$2)-L$5)*G156*-1))),IF(C156>'Copy Results'!$C$2,((C156-L$2+L$5)/((L$4*L$2)-L$5)*G156*-1),(('Copy Results'!$C$2-L$2+L$5)/((L$4*L$2)-L$5)*G156*-1)))) -> 74.15855408 | I156: 74.42815785 | L156: 0.6169724721 | M156: 3805.171867 | N156: =AVERAGE(D$79:D156) -> 3789.433393 | O156: =AVERAGE(M$79:M156) -> 3814.611962 | P156: 3715.525126 | Q156: =AVERAGE(P$79:P156) -> 3692.080172 | U156: T+154 sec | V156: 40098.10417 | W156: =LOOKUP($V156,Data!$A$6:$A$1806,Data!$B$6:$B$1806) -> 59.9280014 | X156: =LOOKUP($V156,Data!$A$6:$A$1806,Data!$C$6:$C$1806) -> 3767.407959 | Y156: =LOOKUP($V156,Data!$A$6:$A$1806,Data!$D$6:$D$1806) -> 335 | Z156: =IF($Z$1="+",LOOKUP($V156,Data!$A$6:$A$1806,Data!$E$6:$E$1806)*-1,LOOKUP($V156,Data!$A$6:$A$1806,Data!$E$6:$E$1806)) -> 219.9755554 | AA156: =LOOKUP($V156,Data!$A$6:$A$1806,Data!$F$6:$F$1806) -> 16 | AC156: =LOOKUP($V156,Data!$A$6:$A$1806,Data!$H$6:$H$1806) -> 10 | AD156: =LOOKUP($V156,Data!$A$6:$A$1806,Data!$I$6:$I$1806) -> 0 | AE156: =IF(LOOKUP($V156,Data!$A$6:$A$1806,Data!$J$6:$J$1806)>0,(LOOKUP($V156,Data!$A$6:$A$1806,Data!$J$6:$J$1806)*-1),LOOKUP($V156,Data!$A$6:$A$1806,Data!$J$6:$J$1806)) -> -103 | AF156: =LOOKUP($V156,Data!$A$6:$A$1806,Data!$K$6:$K$1806) -> 7663 | AG156: 74.15855408 | AH156: T+154 sec | AI156: 40098.10417 | AV156: 122.2978807 | AW156: -107.1624481 | AX156: 0.07199859619 | AY156: -103
A157: T+156 sec | B157: 40098.10419 | C157: =LOOKUP(B157,Data!$A$6:$A$1806,Data!B$6:B$1806) -> 59.93099976 | D157: =LOOKUP(B157,Data!$A$6:$A$1806,Data!C$6:C$1806) -> 3766.788086 | G157: 3090 | H157: =(IF((C157-L$2)>0,(IF(C157<'Copy Results'!$C$3,((C157-L$2-L$5)/((L$4*L$2)-L$5)*G157*-1),(('Copy Results'!$C$3-L$2-L$5)/((L$4*L$2)-L$5)*G157*-1))),IF(C157>'Copy Results'!$C$2,((C157-L$2+L$5)/((L$4*L$2)-L$5)*G157*-1),(('Copy Results'!$C$2-L$2+L$5)/((L$4*L$2)-L$5)*G157*-1)))) -> 71.07025146 | I157: 73.25289062 | L157: 0.6169724721 | M157: 3804.613573 | N157: =AVERAGE(D$79:D157) -> 3789.146744 | O157: =AVERAGE(M$79:M157) -> 3814.4854 | P157: 3716.142099 | Q157: =AVERAGE(P$79:P157) -> 3692.388659 | U157: T+156 sec | V157: 40098.10419 | W157: =LOOKUP($V157,Data!$A$6:$A$1806,Data!$B$6:$B$1806) -> 59.93099976 | X157: =LOOKUP($V157,Data!$A$6:$A$1806,Data!$C$6:$C$1806) -> 3766.788086 | Y157: =LOOKUP($V157,Data!$A$6:$A$1806,Data!$D$6:$D$1806) -> 335 | Z157: =IF($Z$1="+",LOOKUP($V157,Data!$A$6:$A$1806,Data!$E$6:$E$1806)*-1,LOOKUP($V157,Data!$A$6:$A$1806,Data!$E$6:$E$1806)) -> 219.9755554 | AA157: =LOOKUP($V157,Data!$A$6:$A$1806,Data!$F$6:$F$1806) -> 16 | AC157: =LOOKUP($V157,Data!$A$6:$A$1806,Data!$H$6:$H$1806) -> 10 | AD157: =LOOKUP($V157,Data!$A$6:$A$1806,Data!$I$6:$I$1806) -> 0 | AE157: =IF(LOOKUP($V157,Data!$A$6:$A$1806,Data!$J$6:$J$1806)>0,(LOOKUP($V157,Data!$A$6:$A$1806,Data!$J$6:$J$1806)*-1),LOOKUP($V157,Data!$A$6:$A$1806,Data!$J$6:$J$1806)) -> -103 | AF157: =LOOKUP($V157,Data!$A$6:$A$1806,Data!$K$6:$K$1806) -> 7664 | AG157: 71.07025146 | AH157: T+156 sec | AI157: 40098.10419 | AV157: 121.6780076 | AW157: -109.4960575 | AX157: 0.06900024414 | AY157: -103
A158: T+158 sec | B158: 40098.10421 | C158: =LOOKUP(B158,Data!$A$6:$A$1806,Data!B$6:B$1806) -> 59.92900085 | D158: =LOOKUP(B158,Data!$A$6:$A$1806,Data!C$6:C$1806) -> 3766.259033 | G158: 3090 | H158: =(IF((C158-L$2)>0,(IF(C158<'Copy Results'!$C$3,((C158-L$2-L$5)/((L$4*L$2)-L$5)*G158*-1),(('Copy Results'!$C$3-L$2-L$5)/((L$4*L$2)-L$5)*G158*-1))),IF(C158>'Copy Results'!$C$2,((C158-L$2+L$5)/((L$4*L$2)-L$5)*G158*-1),(('Copy Results'!$C$2-L$2+L$5)/((L$4*L$2)-L$5)*G158*-1)))) -> 73.12911987 | I158: 73.20957086 | L158: 0.6169724721 | M158: 3805.187225 | N158: =AVERAGE(D$79:D158) -> 3788.860648 | O158: =AVERAGE(M$79:M158) -> 3814.369173 | P158: 3716.759071 | Q158: =AVERAGE(P$79:P158) -> 3692.697145 | U158: T+158 sec | V158: 40098.10421 | W158: =LOOKUP($V158,Data!$A$6:$A$1806,Data!$B$6:$B$1806) -> 59.92900085 | X158: =LOOKUP($V158,Data!$A$6:$A$1806,Data!$C$6:$C$1806) -> 3766.259033 | Y158: =LOOKUP($V158,Data!$A$6:$A$1806,Data!$D$6:$D$1806) -> 335 | Z158: =IF($Z$1="+",LOOKUP($V158,Data!$A$6:$A$1806,Data!$E$6:$E$1806)*-1,LOOKUP($V158,Data!$A$6:$A$1806,Data!$E$6:$E$1806)) -> 219.9755554 | AA158: =LOOKUP($V158,Data!$A$6:$A$1806,Data!$F$6:$F$1806) -> 16 | AC158: =LOOKUP($V158,Data!$A$6:$A$1806,Data!$H$6:$H$1806) -> 10 | AD158: =LOOKUP($V158,Data!$A$6:$A$1806,Data!$I$6:$I$1806) -> 0 | AE158: =IF(LOOKUP($V158,Data!$A$6:$A$1806,Data!$J$6:$J$1806)>0,(LOOKUP($V158,Data!$A$6:$A$1806,Data!$J$6:$J$1806)*-1),LOOKUP($V158,Data!$A$6:$A$1806,Data!$J$6:$J$1806)) -> -103 | AF158: =LOOKUP($V158,Data!$A$6:$A$1806,Data!$K$6:$K$1806) -> 7664 | AG158: 73.12911987 | AH158: T+158 sec | AI158: 40098.10421 | AV158: 121.1489549 | AW158: -107.0935947 | AX158: 0.07099914551 | AY158: -103
A159: T+160 sec | B159: 40098.10424 | C159: =LOOKUP(B159,Data!$A$6:$A$1806,Data!B$6:B$1806) -> 59.93099976 | D159: =LOOKUP(B159,Data!$A$6:$A$1806,Data!C$6:C$1806) -> 3765.671631 | G159: 3090 | H159: =(IF((C159-L$2)>0,(IF(C159<'Copy Results'!$C$3,((C159-L$2-L$5)/((L$4*L$2)-L$5)*G159*-1),(('Copy Results'!$C$3-L$2-L$5)/((L$4*L$2)-L$5)*G159*-1))),IF(C159>'Copy Results'!$C$2,((C159-L$2+L$5)/((L$4*L$2)-L$5)*G159*-1),(('Copy Results'!$C$2-L$2+L$5)/((L$4*L$2)-L$5)*G159*-1)))) -> 71.07025146 | I159: 72.46080907 | L159: 0.6169724721 | M159: 3805.055436 | N159: =AVERAGE(D$79:D159) -> 3788.574363 | O159: =AVERAGE(M$79:M159) -> 3814.254188 | P159: 3717.376044 | Q159: =AVERAGE(P$79:P159) -> 3693.005631 | U159: T+160 sec | V159: 40098.10424 | W159: =LOOKUP($V159,Data!$A$6:$A$1806,Data!$B$6:$B$1806) -> 59.93099976 | X159: =LOOKUP($V159,Data!$A$6:$A$1806,Data!$C$6:$C$1806) -> 3765.671631 | Y159: =LOOKUP($V159,Data!$A$6:$A$1806,Data!$D$6:$D$1806) -> 335 | Z159: =IF($Z$1="+",LOOKUP($V159,Data!$A$6:$A$1806,Data!$E$6:$E$1806)*-1,LOOKUP($V159,Data!$A$6:$A$1806,Data!$E$6:$E$1806)) -> 219.9755554 | AA159: =LOOKUP($V159,Data!$A$6:$A$1806,Data!$F$6:$F$1806) -> 16 | AC159: =LOOKUP($V159,Data!$A$6:$A$1806,Data!$H$6:$H$1806) -> 10 | AD159: =LOOKUP($V159,Data!$A$6:$A$1806,Data!$I$6:$I$1806) -> 0 | AE159: =IF(LOOKUP($V159,Data!$A$6:$A$1806,Data!$J$6:$J$1806)>0,(LOOKUP($V159,Data!$A$6:$A$1806,Data!$J$6:$J$1806)*-1),LOOKUP($V159,Data!$A$6:$A$1806,Data!$J$6:$J$1806)) -> -103 | AF159: =LOOKUP($V159,Data!$A$6:$A$1806,Data!$K$6:$K$1806) -> 7665 | AG159: 71.07025146 | AH159: T+160 sec | AI159: 40098.10424 | AV159: 120.5615526 | AW159: -108.4913777 | AX159: 0.06900024414 | AY159: -103
A160: T+162 sec | B160: 40098.10426 | C160: =LOOKUP(B160,Data!$A$6:$A$1806,Data!B$6:B$1806) -> 59.93299866 | D160: =LOOKUP(B160,Data!$A$6:$A$1806,Data!C$6:C$1806) -> 3766.122559 | G160: 3090 | H160: =(IF((C160-L$2)>0,(IF(C160<'Copy Results'!$C$3,((C160-L$2-L$5)/((L$4*L$2)-L$5)*G160*-1),(('Copy Results'!$C$3-L$2-L$5)/((L$4*L$2)-L$5)*G160*-1))),IF(C160>'Copy Results'!$C$2,((C160-L$2+L$5)/((L$4*L$2)-L$5)*G160*-1),(('Copy Results'!$C$2-L$2+L$5)/((L$4*L$2)-L$5)*G160*-1)))) -> 69.01138306 | I160: 71.25350996 | L160: 0.6169724721 | M160: 3804.465109 | N160: =AVERAGE(D$79:D160) -> 3788.300561 | O160: =AVERAGE(M$79:M160) -> 3814.134809 | P160: 3717.993016 | Q160: =AVERAGE(P$79:P160) -> 3693.314117 | U160: T+162 sec | V160: 40098.10426 | W160: =LOOKUP($V160,Data!$A$6:$A$1806,Data!$B$6:$B$1806) -> 59.93299866 | X160: =LOOKUP($V160,Data!$A$6:$A$1806,Data!$C$6:$C$1806) -> 3766.122559 | Y160: =LOOKUP($V160,Data!$A$6:$A$1806,Data!$D$6:$D$1806) -> 335 | Z160: =IF($Z$1="+",LOOKUP($V160,Data!$A$6:$A$1806,Data!$E$6:$E$1806)*-1,LOOKUP($V160,Data!$A$6:$A$1806,Data!$E$6:$E$1806)) -> 229.0892487 | AA160: =LOOKUP($V160,Data!$A$6:$A$1806,Data!$F$6:$F$1806) -> 16 | AC160: =LOOKUP($V160,Data!$A$6:$A$1806,Data!$H$6:$H$1806) -> 10 | AD160: =LOOKUP($V160,Data!$A$6:$A$1806,Data!$I$6:$I$1806) -> 0 | AE160: =IF(LOOKUP($V160,Data!$A$6:$A$1806,Data!$J$6:$J$1806)>0,(LOOKUP($V160,Data!$A$6:$A$1806,Data!$J$6:$J$1806)*-1),LOOKUP($V160,Data!$A$6:$A$1806,Data!$J$6:$J$1806)) -> -103 | AF160: =LOOKUP($V160,Data!$A$6:$A$1806,Data!$K$6:$K$1806) -> 7666 | AG160: 69.01138306 | AH160: T+162 sec | AI160: 40098.10426 | AV160: 121.0124803 | AW160: -110.8918595 | AX160: 0.06700134277 | AY160: -103
A161: T+164 sec | B161: 40098.10428 | C161: =LOOKUP(B161,Data!$A$6:$A$1806,Data!B$6:B$1806) -> 59.93700027 | D161: =LOOKUP(B161,Data!$A$6:$A$1806,Data!C$6:C$1806) -> 3764.242676 | G161: 3090 | H161: =(IF((C161-L$2)>0,(IF(C161<'Copy Results'!$C$3,((C161-L$2-L$5)/((L$4*L$2)-L$5)*G161*-1),(('Copy Results'!$C$3-L$2-L$5)/((L$4*L$2)-L$5)*G161*-1))),IF(C161>'Copy Results'!$C$2,((C161-L$2+L$5)/((L$4*L$2)-L$5)*G161*-1),(('Copy Results'!$C$2-L$2+L$5)/((L$4*L$2)-L$5)*G161*-1)))) -> 64.8897171 | I161: 69.02618246 | L161: 0.6169724721 | M161: 3802.854754 | N161: =AVERAGE(D$79:D161) -> 3788.010707 | O161: =AVERAGE(M$79:M161) -> 3813.998905 | P161: 3718.609989 | Q161: =AVERAGE(P$79:P161) -> 3693.622604 | U161: T+164 sec | V161: 40098.10428 | W161: =LOOKUP($V161,Data!$A$6:$A$1806,Data!$B$6:$B$1806) -> 59.93700027 | X161: =LOOKUP($V161,Data!$A$6:$A$1806,Data!$C$6:$C$1806) -> 3764.242676 | Y161: =LOOKUP($V161,Data!$A$6:$A$1806,Data!$D$6:$D$1806) -> 335 | Z161: =IF($Z$1="+",LOOKUP($V161,Data!$A$6:$A$1806,Data!$E$6:$E$1806)*-1,LOOKUP($V161,Data!$A$6:$A$1806,Data!$E$6:$E$1806)) -> 229.0892487 | AA161: =LOOKUP($V161,Data!$A$6:$A$1806,Data!$F$6:$F$1806) -> 16 | AC161: =LOOKUP($V161,Data!$A$6:$A$1806,Data!$H$6:$H$1806) -> 10 | AD161: =LOOKUP($V161,Data!$A$6:$A$1806,Data!$I$6:$I$1806) -> 0 | AE161: =IF(LOOKUP($V161,Data!$A$6:$A$1806,Data!$J$6:$J$1806)>0,(LOOKUP($V161,Data!$A$6:$A$1806,Data!$J$6:$J$1806)*-1),LOOKUP($V161,Data!$A$6:$A$1806,Data!$J$6:$J$1806)) -> -103 | AF161: =LOOKUP($V161,Data!$A$6:$A$1806,Data!$K$6:$K$1806) -> 7666 | AG161: 64.8897171 | AH161: T+164 sec | AI161: 40098.10428 | AV161: 119.1325975 | AW161: -113.3247597 | AX161: 0.06299972534 | AY161: -103
A162: T+166 sec | B162: 40098.10431 | C162: =LOOKUP(B162,Data!$A$6:$A$1806,Data!B$6:B$1806) -> 59.93700027 | D162: =LOOKUP(B162,Data!$A$6:$A$1806,Data!C$6:C$1806) -> 3765.10498 | G162: 3090 | H162: =(IF((C162-L$2)>0,(IF(C162<'Copy Results'!$C$3,((C162-L$2-L$5)/((L$4*L$2)-L$5)*G162*-1),(('Copy Results'!$C$3-L$2-L$5)/((L$4*L$2)-L$5)*G162*-1))),IF(C162>'Copy Results'!$C$2,((C162-L$2+L$5)/((L$4*L$2)-L$5)*G162*-1),(('Copy Results'!$C$2-L$2+L$5)/((L$4*L$2)-L$5)*G162*-1)))) -> 64.8897171 | I162: 67.57841959 | L162: 0.6169724721 | M162: 3802.023964 | N162: =AVERAGE(D$79:D162) -> 3787.73802 | O162: =AVERAGE(M$79:M162) -> 3813.856346 | P162: 3719.226961 | Q162: =AVERAGE(P$79:P162) -> 3693.93109 | U162: T+166 sec | V162: 40098.10431 | W162: =LOOKUP($V162,Data!$A$6:$A$1806,Data!$B$6:$B$1806) -> 59.93700027 | X162: =LOOKUP($V162,Data!$A$6:$A$1806,Data!$C$6:$C$1806) -> 3765.10498 | Y162: =LOOKUP($V162,Data!$A$6:$A$1806,Data!$D$6:$D$1806) -> 335 | Z162: =IF($Z$1="+",LOOKUP($V162,Data!$A$6:$A$1806,Data!$E$6:$E$1806)*-1,LOOKUP($V162,Data!$A$6:$A$1806,Data!$E$6:$E$1806)) -> 229.0892487 | AA162: =LOOKUP($V162,Data!$A$6:$A$1806,Data!$F$6:$F$1806) -> 16 | AC162: =LOOKUP($V162,Data!$A$6:$A$1806,Data!$H$6:$H$1806) -> 10 | AD162: =LOOKUP($V162,Data!$A$6:$A$1806,Data!$I$6:$I$1806) -> 0 | AE162: =IF(LOOKUP($V162,Data!$A$6:$A$1806,Data!$J$6:$J$1806)>0,(LOOKUP($V162,Data!$A$6:$A$1806,Data!$J$6:$J$1806)*-1),LOOKUP($V162,Data!$A$6:$A$1806,Data!$J$6:$J$1806)) -> -103 | AF162: =LOOKUP($V162,Data!$A$6:$A$1806,Data!$K$6:$K$1806) -> 7667 | AG162: 64.8897171 | AH162: T+166 sec | AI162: 40098.10431 | AV162: 119.9949022 | AW162: -114.1450262 | AX162: 0.06299972534 | AY162: -103
A163: T+168 sec | B163: 40098.10433 | C163: =LOOKUP(B163,Data!$A$6:$A$1806,Data!B$6:B$1806) -> 59.94499969 | D163: =LOOKUP(B163,Data!$A$6:$A$1806,Data!C$6:C$1806) -> 3762.935303 | G163: 3090 | H163: =(IF((C163-L$2)>0,(IF(C163<'Copy Results'!$C$3,((C163-L$2-L$5)/((L$4*L$2)-L$5)*G163*-1),(('Copy Results'!$C$3-L$2-L$5)/((L$4*L$2)-L$5)*G163*-1))),IF(C163>'Copy Results'!$C$2,((C163-L$2+L$5)/((L$4*L$2)-L$5)*G163*-1),(('Copy Results'!$C$2-L$2+L$5)/((L$4*L$2)-L$5)*G163*-1)))) -> 56.65031433 | I163: 63.75358275 | L163: 0.6169724721 | M163: 3798.8161 | N163: =AVERAGE(D$79:D163) -> 3787.446223 | O163: =AVERAGE(M$79:M163) -> 3813.679402 | P163: 3719.843934 | Q163: =AVERAGE(P$79:P163) -> 3694.239576 | U163: T+168 sec | V163: 40098.10433 | W163: =LOOKUP($V163,Data!$A$6:$A$1806,Data!$B$6:$B$1806) -> 59.94499969 | X163: =LOOKUP($V163,Data!$A$6:$A$1806,Data!$C$6:$C$1806) -> 3762.935303 | Y163: =LOOKUP($V163,Data!$A$6:$A$1806,Data!$D$6:$D$1806) -> 335 | Z163: =IF($Z$1="+",LOOKUP($V163,Data!$A$6:$A$1806,Data!$E$6:$E$1806)*-1,LOOKUP($V163,Data!$A$6:$A$1806,Data!$E$6:$E$1806)) -> 229.0892487 | AA163: =LOOKUP($V163,Data!$A$6:$A$1806,Data!$F$6:$F$1806) -> 16 | AC163: =LOOKUP($V163,Data!$A$6:$A$1806,Data!$H$6:$H$1806) -> 10 | AD163: =LOOKUP($V163,Data!$A$6:$A$1806,Data!$I$6:$I$1806) -> 0 | AE163: =IF(LOOKUP($V163,Data!$A$6:$A$1806,Data!$J$6:$J$1806)>0,(LOOKUP($V163,Data!$A$6:$A$1806,Data!$J$6:$J$1806)*-1),LOOKUP($V163,Data!$A$6:$A$1806,Data!$J$6:$J$1806)) -> -103 | AF163: =LOOKUP($V163,Data!$A$6:$A$1806,Data!$K$6:$K$1806) -> 7668 | AG163: 56.65031433 | AH163: T+168 sec | AI163: 40098.10433 | AV163: 117.8252244 | AW163: -121.3123101 | AX163: 0.05500030518 | AY163: -103
A164: T+170 sec | B164: 40098.10435 | C164: =LOOKUP(B164,Data!$A$6:$A$1806,Data!B$6:B$1806) -> 59.94900131 | D164: =LOOKUP(B164,Data!$A$6:$A$1806,Data!C$6:C$1806) -> 3758.387207 | G164: 3090 | H164: =(IF((C164-L$2)>0,(IF(C164<'Copy Results'!$C$3,((C164-L$2-L$5)/((L$4*L$2)-L$5)*G164*-1),(('Copy Results'!$C$3-L$2-L$5)/((L$4*L$2)-L$5)*G164*-1))),IF(C164>'Copy Results'!$C$2,((C164-L$2+L$5)/((L$4*L$2)-L$5)*G164*-1),(('Copy Results'!$C$2-L$2+L$5)/((L$4*L$2)-L$5)*G164*-1)))) -> 52.52864838 | I164: 59.82485572 | L164: 0.6169724721 | M164: 3795.504345 | N164: =AVERAGE(D$79:D164) -> 3787.108327 | O164: =AVERAGE(M$79:M164) -> 3813.468064 | P164: 3720.460906 | Q164: =AVERAGE(P$79:P164) -> 3694.548062 | U164: T+170 sec | V164: 40098.10435 | W164: =LOOKUP($V164,Data!$A$6:$A$1806,Data!$B$6:$B$1806) -> 59.94900131 | X164: =LOOKUP($V164,Data!$A$6:$A$1806,Data!$C$6:$C$1806) -> 3758.387207 | Y164: =LOOKUP($V164,Data!$A$6:$A$1806,Data!$D$6:$D$1806) -> 335 | Z164: =IF($Z$1="+",LOOKUP($V164,Data!$A$6:$A$1806,Data!$E$6:$E$1806)*-1,LOOKUP($V164,Data!$A$6:$A$1806,Data!$E$6:$E$1806)) -> 229.0892487 | AA164: =LOOKUP($V164,Data!$A$6:$A$1806,Data!$F$6:$F$1806) -> 16 | AC164: =LOOKUP($V164,Data!$A$6:$A$1806,Data!$H$6:$H$1806) -> 10 | AD164: =LOOKUP($V164,Data!$A$6:$A$1806,Data!$I$6:$I$1806) -> 0 | AE164: =IF(LOOKUP($V164,Data!$A$6:$A$1806,Data!$J$6:$J$1806)>0,(LOOKUP($V164,Data!$A$6:$A$1806,Data!$J$6:$J$1806)*-1),LOOKUP($V164,Data!$A$6:$A$1806,Data!$J$6:$J$1806)) -> -103 | AF164: =LOOKUP($V164,Data!$A$6:$A$1806,Data!$K$6:$K$1806) -> 7668 | AG164: 52.52864838 | AH164: T+170 sec | AI164: 40098.10435 | AV164: 113.2771287 | AW164: -121.6412899 | AX164: 0.05099868774 | AY164: -103
A165: T+172 sec | B165: 40098.10437 | C165: =LOOKUP(B165,Data!$A$6:$A$1806,Data!B$6:B$1806) -> 59.9469986 | D165: =LOOKUP(B165,Data!$A$6:$A$1806,Data!C$6:C$1806) -> 3753.922363 | G165: 3090 | H165: =(IF((C165-L$2)>0,(IF(C165<'Copy Results'!$C$3,((C165-L$2-L$5)/((L$4*L$2)-L$5)*G165*-1),(('Copy Results'!$C$3-L$2-L$5)/((L$4*L$2)-L$5)*G165*-1))),IF(C165>'Copy Results'!$C$2,((C165-L$2+L$5)/((L$4*L$2)-L$5)*G165*-1),(('Copy Results'!$C$2-L$2+L$5)/((L$4*L$2)-L$5)*G165*-1)))) -> 54.59144592 | I165: 57.99316229 | L165: 0.6169724721 | M165: 3794.289624 | N165: =AVERAGE(D$79:D165) -> 3786.72688 | O165: =AVERAGE(M$79:M165) -> 3813.247622 | P165: 3721.077879 | Q165: =AVERAGE(P$79:P165) -> 3694.856549 | U165: T+172 sec | V165: 40098.10437 | W165: =LOOKUP($V165,Data!$A$6:$A$1806,Data!$B$6:$B$1806) -> 59.9469986 | X165: =LOOKUP($V165,Data!$A$6:$A$1806,Data!$C$6:$C$1806) -> 3753.922363 | Y165: =LOOKUP($V165,Data!$A$6:$A$1806,Data!$D$6:$D$1806) -> 335 | Z165: =IF($Z$1="+",LOOKUP($V165,Data!$A$6:$A$1806,Data!$E$6:$E$1806)*-1,LOOKUP($V165,Data!$A$6:$A$1806,Data!$E$6:$E$1806)) -> 229.663269 | AA165: =LOOKUP($V165,Data!$A$6:$A$1806,Data!$F$6:$F$1806) -> 16 | AC165: =LOOKUP($V165,Data!$A$6:$A$1806,Data!$H$6:$H$1806) -> 10 | AD165: =LOOKUP($V165,Data!$A$6:$A$1806,Data!$I$6:$I$1806) -> 0 | AE165: =IF(LOOKUP($V165,Data!$A$6:$A$1806,Data!$J$6:$J$1806)>0,(LOOKUP($V165,Data!$A$6:$A$1806,Data!$J$6:$J$1806)*-1),LOOKUP($V165,Data!$A$6:$A$1806,Data!$J$6:$J$1806)) -> -103 | AF165: =LOOKUP($V165,Data!$A$6:$A$1806,Data!$K$6:$K$1806) -> 7669 | AG165: 54.59144592 | AH165: T+172 sec | AI165: 40098.10437 | AV165: 108.812285 | AW165: -114.3867771 | AX165: 0.05300140381 | AY165: -103
A166: T+174 sec | B166: 40098.1044 | C166: =LOOKUP(B166,Data!$A$6:$A$1806,Data!B$6:B$1806) -> 59.94200134 | D166: =LOOKUP(B166,Data!$A$6:$A$1806,Data!C$6:C$1806) -> 3749.867188 | G166: 3090 | H166: =(IF((C166-L$2)>0,(IF(C166<'Copy Results'!$C$3,((C166-L$2-L$5)/((L$4*L$2)-L$5)*G166*-1),(('Copy Results'!$C$3-L$2-L$5)/((L$4*L$2)-L$5)*G166*-1))),IF(C166>'Copy Results'!$C$2,((C166-L$2+L$5)/((L$4*L$2)-L$5)*G166*-1),(('Copy Results'!$C$2-L$2+L$5)/((L$4*L$2)-L$5)*G166*-1)))) -> 59.73861694 | I166: 58.60407142 | L166: 0.6169724721 | M166: 3795.517506 | N166: =AVERAGE(D$79:D166) -> 3786.308019 | O166: =AVERAGE(M$79:M166) -> 3813.046144 | P166: 3721.694851 | Q166: =AVERAGE(P$79:P166) -> 3695.165035 | U166: T+174 sec | V166: 40098.1044 | W166: =LOOKUP($V166,Data!$A$6:$A$1806,Data!$B$6:$B$1806) -> 59.94200134 | X166: =LOOKUP($V166,Data!$A$6:$A$1806,Data!$C$6:$C$1806) -> 3749.867188 | Y166: =LOOKUP($V166,Data!$A$6:$A$1806,Data!$D$6:$D$1806) -> 335 | Z166: =IF($Z$1="+",LOOKUP($V166,Data!$A$6:$A$1806,Data!$E$6:$E$1806)*-1,LOOKUP($V166,Data!$A$6:$A$1806,Data!$E$6:$E$1806)) -> 229.663269 | AA166: =LOOKUP($V166,Data!$A$6:$A$1806,Data!$F$6:$F$1806) -> 16 | AC166: =LOOKUP($V166,Data!$A$6:$A$1806,Data!$H$6:$H$1806) -> 10 | AD166: =LOOKUP($V166,Data!$A$6:$A$1806,Data!$I$6:$I$1806) -> 0 | AE166: =IF(LOOKUP($V166,Data!$A$6:$A$1806,Data!$J$6:$J$1806)>0,(LOOKUP($V166,Data!$A$6:$A$1806,Data!$J$6:$J$1806)*-1),LOOKUP($V166,Data!$A$6:$A$1806,Data!$J$6:$J$1806)) -> -103 | AF166: =LOOKUP($V166,Data!$A$6:$A$1806,Data!$K$6:$K$1806) -> 7669 | AG166: 59.73861694 | AH166: T+174 sec | AI166: 40098.1044 | AV166: 104.7571092 | AW166: -104.6274943 | AX166: 0.05799865723 | AY166: -103
A167: T+176 sec | B167: 40098.10442 | C167: =LOOKUP(B167,Data!$A$6:$A$1806,Data!B$6:B$1806) -> 59.94100189 | D167: =LOOKUP(B167,Data!$A$6:$A$1806,Data!C$6:C$1806) -> 3746.888672 | G167: 3090 | H167: =(IF((C167-L$2)>0,(IF(C167<'Copy Results'!$C$3,((C167-L$2-L$5)/((L$4*L$2)-L$5)*G167*-1),(('Copy Results'!$C$3-L$2-L$5)/((L$4*L$2)-L$5)*G167*-1))),IF(C167>'Copy Results'!$C$2,((C167-L$2+L$5)/((L$4*L$2)-L$5)*G167*-1),(('Copy Results'!$C$2-L$2+L$5)/((L$4*L$2)-L$5)*G167*-1)))) -> 60.76805115 | I167: 59.36146432 | L167: 0.6169724721 | M167: 3796.891871 | N167: =AVERAGE(D$79:D167) -> 3785.865105 | O167: =AVERAGE(M$79:M167) -> 3812.864635 | P167: 3722.311824 | Q167: =AVERAGE(P$79:P167) -> 3695.473521 | U167: T+176 sec | V167: 40098.10442 | W167: =LOOKUP($V167,Data!$A$6:$A$1806,Data!$B$6:$B$1806) -> 59.94100189 | X167: =LOOKUP($V167,Data!$A$6:$A$1806,Data!$C$6:$C$1806) -> 3746.888672 | Y167: =LOOKUP($V167,Data!$A$6:$A$1806,Data!$D$6:$D$1806) -> 335 | Z167: =IF($Z$1="+",LOOKUP($V167,Data!$A$6:$A$1806,Data!$E$6:$E$1806)*-1,LOOKUP($V167,Data!$A$6:$A$1806,Data!$E$6:$E$1806)) -> 229.663269 | AA167: =LOOKUP($V167,Data!$A$6:$A$1806,Data!$F$6:$F$1806) -> 16 | AC167: =LOOKUP($V167,Data!$A$6:$A$1806,Data!$H$6:$H$1806) -> 10 | AD167: =LOOKUP($V167,Data!$A$6:$A$1806,Data!$I$6:$I$1806) -> 0 | AE167: =IF(LOOKUP($V167,Data!$A$6:$A$1806,Data!$J$6:$J$1806)>0,(LOOKUP($V167,Data!$A$6:$A$1806,Data!$J$6:$J$1806)*-1),LOOKUP($V167,Data!$A$6:$A$1806,Data!$J$6:$J$1806)) -> -103 | AF167: =LOOKUP($V167,Data!$A$6:$A$1806,Data!$K$6:$K$1806) -> 7670 | AG167: 60.76805115 | AH167: T+176 sec | AI167: 40098.10442 | AV167: 101.7785936 | AW167: -100.6479816 | AX167: 0.05899810791 | AY167: -103
A168: T+178 sec | B168: 40098.10444 | C168: =LOOKUP(B168,Data!$A$6:$A$1806,Data!B$6:B$1806) -> 59.94200134 | D168: =LOOKUP(B168,Data!$A$6:$A$1806,Data!C$6:C$1806) -> 3747.875488 | G168: 3090 | H168: =(IF((C168-L$2)>0,(IF(C168<'Copy Results'!$C$3,((C168-L$2-L$5)/((L$4*L$2)-L$5)*G168*-1),(('Copy Results'!$C$3-L$2-L$5)/((L$4*L$2)-L$5)*G168*-1))),IF(C168>'Copy Results'!$C$2,((C168-L$2+L$5)/((L$4*L$2)-L$5)*G168*-1),(('Copy Results'!$C$2-L$2+L$5)/((L$4*L$2)-L$5)*G168*-1)))) -> 59.73861694 | I168: 59.49346774 | L168: 0.6169724721 | M168: 3797.640847 | N168: =AVERAGE(D$79:D168) -> 3785.442999 | O168: =AVERAGE(M$79:M168) -> 3812.695482 | P168: 3722.928796 | Q168: =AVERAGE(P$79:P168) -> 3695.782007 | U168: T+178 sec | V168: 40098.10444 | W168: =LOOKUP($V168,Data!$A$6:$A$1806,Data!$B$6:$B$1806) -> 59.94200134 | X168: =LOOKUP($V168,Data!$A$6:$A$1806,Data!$C$6:$C$1806) -> 3747.875488 | Y168: =LOOKUP($V168,Data!$A$6:$A$1806,Data!$D$6:$D$1806) -> 335 | Z168: =IF($Z$1="+",LOOKUP($V168,Data!$A$6:$A$1806,Data!$E$6:$E$1806)*-1,LOOKUP($V168,Data!$A$6:$A$1806,Data!$E$6:$E$1806)) -> 229.663269 | AA168: =LOOKUP($V168,Data!$A$6:$A$1806,Data!$F$6:$F$1806) -> 16 | AC168: =LOOKUP($V168,Data!$A$6:$A$1806,Data!$H$6:$H$1806) -> 10 | AD168: =LOOKUP($V168,Data!$A$6:$A$1806,Data!$I$6:$I$1806) -> 0 | AE168: =IF(LOOKUP($V168,Data!$A$6:$A$1806,Data!$J$6:$J$1806)>0,(LOOKUP($V168,Data!$A$6:$A$1806,Data!$J$6:$J$1806)*-1),LOOKUP($V168,Data!$A$6:$A$1806,Data!$J$6:$J$1806)) -> -103 | AF168: =LOOKUP($V168,Data!$A$6:$A$1806,Data!$K$6:$K$1806) -> 7670 | AG168: 59.73861694 | AH168: T+178 sec | AI168: 40098.10444 | AV168: 102.76541 | AW168: -102.6382593 | AX168: 0.05799865723 | AY168: -103
A169: T+180 sec | B169: 40098.10447 | C169: =LOOKUP(B169,Data!$A$6:$A$1806,Data!B$6:B$1806) -> 59.94499969 | D169: =LOOKUP(B169,Data!$A$6:$A$1806,Data!C$6:C$1806) -> 3749.593262 | G169: 3090 | H169: =(IF((C169-L$2)>0,(IF(C169<'Copy Results'!$C$3,((C169-L$2-L$5)/((L$4*L$2)-L$5)*G169*-1),(('Copy Results'!$C$3-L$2-L$5)/((L$4*L$2)-L$5)*G169*-1))),IF(C169>'Copy Results'!$C$2,((C169-L$2+L$5)/((L$4*L$2)-L$5)*G169*-1),(('Copy Results'!$C$2-L$2+L$5)/((L$4*L$2)-L$5)*G169*-1)))) -> 56.65031433 | I169: 58.49836405 | L169: 0.6169724721 | M169: 3797.262716 | N169: =AVERAGE(D$79:D169) -> 3785.049045 | O169: =AVERAGE(M$79:M169) -> 3812.525891 | P169: 3723.545769 | Q169: =AVERAGE(P$79:P169) -> 3696.090493 | U169: T+180 sec | V169: 40098.10447 | W169: =LOOKUP($V169,Data!$A$6:$A$1806,Data!$B$6:$B$1806) -> 59.94499969 | X169: =LOOKUP($V169,Data!$A$6:$A$1806,Data!$C$6:$C$1806) -> 3749.593262 | Y169: =LOOKUP($V169,Data!$A$6:$A$1806,Data!$D$6:$D$1806) -> 335 | Z169: =IF($Z$1="+",LOOKUP($V169,Data!$A$6:$A$1806,Data!$E$6:$E$1806)*-1,LOOKUP($V169,Data!$A$6:$A$1806,Data!$E$6:$E$1806)) -> 229.663269 | AA169: =LOOKUP($V169,Data!$A$6:$A$1806,Data!$F$6:$F$1806) -> 16 | AC169: =LOOKUP($V169,Data!$A$6:$A$1806,Data!$H$6:$H$1806) -> 10 | AD169: =LOOKUP($V169,Data!$A$6:$A$1806,Data!$I$6:$I$1806) -> 0 | AE169: =IF(LOOKUP($V169,Data!$A$6:$A$1806,Data!$J$6:$J$1806)>0,(LOOKUP($V169,Data!$A$6:$A$1806,Data!$J$6:$J$1806)*-1),LOOKUP($V169,Data!$A$6:$A$1806,Data!$J$6:$J$1806)) -> -103 | AF169: =LOOKUP($V169,Data!$A$6:$A$1806,Data!$K$6:$K$1806) -> 7671 | AG169: 56.65031433 | AH169: T+180 sec | AI169: 40098.10447 | AV169: 104.4831834 | AW169: -107.5754059 | AX169: 0.05500030518 | AY169: -103
B170: 40098.10449 | C170: =LOOKUP(B170,Data!$A$6:$A$1806,Data!B$6:B$1806) -> 59.94800186 | D170: =LOOKUP(B170,Data!$A$6:$A$1806,Data!C$6:C$1806) -> 3748.661133 | G170: 3090 | H170: =(IF((C170-L$2)>0,(IF(C170<'Copy Results'!$C$3,((C170-L$2-L$5)/((L$4*L$2)-L$5)*G170*-1),(('Copy Results'!$C$3-L$2-L$5)/((L$4*L$2)-L$5)*G170*-1))),IF(C170>'Copy Results'!$C$2,((C170-L$2+L$5)/((L$4*L$2)-L$5)*G170*-1),(('Copy Results'!$C$2-L$2+L$5)/((L$4*L$2)-L$5)*G170*-1)))) -> 53.55808258 | I170: 56.76926553 | L170: 0.6169724721 | M170: 3796.15059 | N170: =AVERAGE(D$79:D170) -> 3784.653525 | O170: =AVERAGE(M$79:M170) -> 3812.347899 | P170: 3724.162741 | Q170: =AVERAGE(P$79:P170) -> 3696.39898 | V170: 40098.10449 | W170: =LOOKUP($V170,Data!$A$6:$A$1806,Data!$B$6:$B$1806) -> 59.94800186 | X170: =LOOKUP($V170,Data!$A$6:$A$1806,Data!$C$6:$C$1806) -> 3748.661133 | Y170: =LOOKUP($V170,Data!$A$6:$A$1806,Data!$D$6:$D$1806) -> 335 | Z170: =IF($Z$1="+",LOOKUP($V170,Data!$A$6:$A$1806,Data!$E$6:$E$1806)*-1,LOOKUP($V170,Data!$A$6:$A$1806,Data!$E$6:$E$1806)) -> 229.2338562 | AA170: =LOOKUP($V170,Data!$A$6:$A$1806,Data!$F$6:$F$1806) -> 16 | AC170: =LOOKUP($V170,Data!$A$6:$A$1806,Data!$H$6:$H$1806) -> 10 | AD170: =LOOKUP($V170,Data!$A$6:$A$1806,Data!$I$6:$I$1806) -> 0 | AE170: =IF(LOOKUP($V170,Data!$A$6:$A$1806,Data!$J$6:$J$1806)>0,(LOOKUP($V170,Data!$A$6:$A$1806,Data!$J$6:$J$1806)*-1),LOOKUP($V170,Data!$A$6:$A$1806,Data!$J$6:$J$1806)) -> -103 | AF170: =LOOKUP($V170,Data!$A$6:$A$1806,Data!$K$6:$K$1806) -> 7671 | AG170: 53.55808258 | AV170: 103.5510545 | AW170: -110.0163133 | AX170: 0.05199813843 | AY170: -103
B171: 40098.10451 | C171: =LOOKUP(B171,Data!$A$6:$A$1806,Data!B$6:B$1806) -> 59.9469986 | D171: =LOOKUP(B171,Data!$A$6:$A$1806,Data!C$6:C$1806) -> 3746.706055 | G171: 3090 | H171: =(IF((C171-L$2)>0,(IF(C171<'Copy Results'!$C$3,((C171-L$2-L$5)/((L$4*L$2)-L$5)*G171*-1),(('Copy Results'!$C$3-L$2-L$5)/((L$4*L$2)-L$5)*G171*-1))),IF(C171>'Copy Results'!$C$2,((C171-L$2+L$5)/((L$4*L$2)-L$5)*G171*-1),(('Copy Results'!$C$2-L$2+L$5)/((L$4*L$2)-L$5)*G171*-1)))) -> 54.59144592 | I171: =L$13*H171+(1-L$13)*I170 -> 56.00702867 | L171: 0.6169724721 | M171: 3796.005325 | N171: =AVERAGE(D$79:D171) -> 3784.245487 | O171: =AVERAGE(M$79:M171) -> 3812.172172 | P171: 3724.779713 | Q171: =AVERAGE(P$79:P171) -> 3696.707466 | V171: 40098.10451 | W171: =LOOKUP($V171,Data!$A$6:$A$1806,Data!$B$6:$B$1806) -> 59.9469986 | X171: =LOOKUP($V171,Data!$A$6:$A$1806,Data!$C$6:$C$1806) -> 3746.706055 | Y171: =LOOKUP($V171,Data!$A$6:$A$1806,Data!$D$6:$D$1806) -> 335 | Z171: =IF($Z$1="+",LOOKUP($V171,Data!$A$6:$A$1806,Data!$E$6:$E$1806)*-1,LOOKUP($V171,Data!$A$6:$A$1806,Data!$E$6:$E$1806)) -> 229.2338562 | AA171: =LOOKUP($V171,Data!$A$6:$A$1806,Data!$F$6:$F$1806) -> 16 | AC171: =LOOKUP($V171,Data!$A$6:$A$1806,Data!$H$6:$H$1806) -> 10 | AD171: =LOOKUP($V171,Data!$A$6:$A$1806,Data!$I$6:$I$1806) -> 0 | AE171: =IF(LOOKUP($V171,Data!$A$6:$A$1806,Data!$J$6:$J$1806)>0,(LOOKUP($V171,Data!$A$6:$A$1806,Data!$J$6:$J$1806)*-1),LOOKUP($V171,Data!$A$6:$A$1806,Data!$J$6:$J$1806)) -> -103 | AF171: =LOOKUP($V171,Data!$A$6:$A$1806,Data!$K$6:$K$1806) -> 7672 | AG171: 54.59144592 | AV171: 101.5959764 | AW171: -106.8007745 | AX171: 0.05300140381 | AY171: -103
B172: 40098.10454 | C172: =LOOKUP(B172,Data!$A$6:$A$1806,Data!B$6:B$1806) -> 59.94900131 | D172: =LOOKUP(B172,Data!$A$6:$A$1806,Data!C$6:C$1806) -> 3749.076904 | G172: =AE172*-M$4*10 -> 3090 | H172: =(IF((C172-L$2)>0,(IF(C172<'Copy Results'!$C$3,((C172-L$2-L$5)/((L$4*L$2)-L$5)*G172*-1),(('Copy Results'!$C$3-L$2-L$5)/((L$4*L$2)-L$5)*G172*-1))),IF(C172>'Copy Results'!$C$2,((C172-L$2+L$5)/((L$4*L$2)-L$5)*G172*-1),(('Copy Results'!$C$2-L$2+L$5)/((L$4*L$2)-L$5)*G172*-1)))) -> 52.52864838 | I172: 54.78959557 | L172: 0.6169724721 | M172: 3795.404865 | N172: =AVERAGE(D$79:D172) -> 3783.871353 | O172: =AVERAGE(M$79:M172) -> 3811.993796 | P172: 3725.396686 | Q172: =AVERAGE(P$79:P172) -> 3697.015952 | V172: 40098.10454 | W172: =LOOKUP($V172,Data!$A$6:$A$1806,Data!$B$6:$B$1806) -> 59.94900131 | X172: =LOOKUP($V172,Data!$A$6:$A$1806,Data!$C$6:$C$1806) -> 3749.076904 | Y172: =LOOKUP($V172,Data!$A$6:$A$1806,Data!$D$6:$D$1806) -> 335 | Z172: =IF($Z$1="+",LOOKUP($V172,Data!$A$6:$A$1806,Data!$E$6:$E$1806)*-1,LOOKUP($V172,Data!$A$6:$A$1806,Data!$E$6:$E$1806)) -> 229.2338562 | AA172: =LOOKUP($V172,Data!$A$6:$A$1806,Data!$F$6:$F$1806) -> 16 | AC172: =LOOKUP($V172,Data!$A$6:$A$1806,Data!$H$6:$H$1806) -> 10 | AD172: =LOOKUP($V172,Data!$A$6:$A$1806,Data!$I$6:$I$1806) -> 0 | AE172: =IF(LOOKUP($V172,Data!$A$6:$A$1806,Data!$J$6:$J$1806)>0,(LOOKUP($V172,Data!$A$6:$A$1806,Data!$J$6:$J$1806)*-1),LOOKUP($V172,Data!$A$6:$A$1806,Data!$J$6:$J$1806)) -> -103 | AF172: =LOOKUP($V172,Data!$A$6:$A$1806,Data!$K$6:$K$1806) -> 7673 | AG172: =(IF((W172-$L$2)>0,((W172-$L$2-$L$5)/(($L$4*$L$2)-$L$5)*G172*-1),((W172-$L$2+$L$5)/(($L$4*$L$2)-$L$5)*G172*-1))) -> 52.52864838 | AV172: 103.966826 | AW172: -111.6435326 | AX172: =ABS(C172-60) -> 0.05099868774 | AY172: =IF(AX172>0.036,AE172," ") -> -103
B173: 40098.10456 | C173: =LOOKUP(B173,Data!$A$6:$A$1806,Data!B$6:B$1806) -> 59.95100021 | D173: =LOOKUP(B173,Data!$A$6:$A$1806,Data!C$6:C$1806) -> 3742.741455 | G173: 3090 | H173: =(IF((C173-L$2)>0,(IF(C173<'Copy Results'!$C$3,((C173-L$2-L$5)/((L$4*L$2)-L$5)*G173*-1),(('Copy Results'!$C$3-L$2-L$5)/((L$4*L$2)-L$5)*G173*-1))),IF(C173>'Copy Results'!$C$2,((C173-L$2+L$5)/((L$4*L$2)-L$5)*G173*-1),(('Copy Results'!$C$2-L$2+L$5)/((L$4*L$2)-L$5)*G173*-1)))) -> 50.46977997 | I173: 53.27766011 | L173: 0.6169724721 | M173: 3794.509902 | N173: =AVERAGE(D$79:D173) -> 3783.438407 | O173: =AVERAGE(M$79:M173) -> 3811.809755 | P173: 3726.013658 | Q173: =AVERAGE(P$79:P173) -> 3697.324438 | V173: 40098.10456 | W173: =LOOKUP($V173,Data!$A$6:$A$1806,Data!$B$6:$B$1806) -> 59.95100021 | X173: =LOOKUP($V173,Data!$A$6:$A$1806,Data!$C$6:$C$1806) -> 3742.741455 | Y173: =LOOKUP($V173,Data!$A$6:$A$1806,Data!$D$6:$D$1806) -> 335 | Z173: =IF($Z$1="+",LOOKUP($V173,Data!$A$6:$A$1806,Data!$E$6:$E$1806)*-1,LOOKUP($V173,Data!$A$6:$A$1806,Data!$E$6:$E$1806)) -> 229.2338562 | AA173: =LOOKUP($V173,Data!$A$6:$A$1806,Data!$F$6:$F$1806) -> 16 | AC173: =LOOKUP($V173,Data!$A$6:$A$1806,Data!$H$6:$H$1806) -> 10 | AD173: =LOOKUP($V173,Data!$A$6:$A$1806,Data!$I$6:$I$1806) -> 0 | AE173: =IF(LOOKUP($V173,Data!$A$6:$A$1806,Data!$J$6:$J$1806)>0,(LOOKUP($V173,Data!$A$6:$A$1806,Data!$J$6:$J$1806)*-1),LOOKUP($V173,Data!$A$6:$A$1806,Data!$J$6:$J$1806)) -> -103 | AF173: =LOOKUP($V173,Data!$A$6:$A$1806,Data!$K$6:$K$1806) -> 7673 | AG173: 50.46977997 | AV173: 97.63137677 | AW173: -107.1400434 | AX173: 0.04899978638 | AY173: -103
B174: =B173+TIME(0,0,$B$1) -> 40098.10458 | C174: =LOOKUP(B174,Data!$A$6:$A$1806,Data!B$6:B$1806) -> 59.95199966 | D174: =LOOKUP(B174,Data!$A$6:$A$1806,Data!C$6:C$1806) -> 3740.259033 | G174: 3090 | H174: =(IF((C174-L$2)>0,(IF(C174<'Copy Results'!$C$3,((C174-L$2-L$5)/((L$4*L$2)-L$5)*G174*-1),(('Copy Results'!$C$3-L$2-L$5)/((L$4*L$2)-L$5)*G174*-1))),IF(C174>'Copy Results'!$C$2,((C174-L$2+L$5)/((L$4*L$2)-L$5)*G174*-1),(('Copy Results'!$C$2-L$2+L$5)/((L$4*L$2)-L$5)*G174*-1)))) -> 49.44034576 | I174: 51.93460009 | L174: 0.6169724721 | M174: 3793.783814 | N174: =AVERAGE(D$79:D174) -> 3782.988622 | O174: =AVERAGE(M$79:M174) -> 3811.621985 | P174: 3726.630631 | Q174: =AVERAGE(P$79:P174) -> 3697.632925 | V174: 40098.10458 | W174: =LOOKUP($V174,Data!$A$6:$A$1806,Data!$B$6:$B$1806) -> 59.95199966 | X174: =LOOKUP($V174,Data!$A$6:$A$1806,Data!$C$6:$C$1806) -> 3740.259033 | Y174: =LOOKUP($V174,Data!$A$6:$A$1806,Data!$D$6:$D$1806) -> 350 | Z174: =IF($Z$1="+",LOOKUP($V174,Data!$A$6:$A$1806,Data!$E$6:$E$1806)*-1,LOOKUP($V174,Data!$A$6:$A$1806,Data!$E$6:$E$1806)) -> 229.2338562 | AA174: =LOOKUP($V174,Data!$A$6:$A$1806,Data!$F$6:$F$1806) -> 16 | AC174: =LOOKUP($V174,Data!$A$6:$A$1806,Data!$H$6:$H$1806) -> 10 | AD174: =LOOKUP($V174,Data!$A$6:$A$1806,Data!$I$6:$I$1806) -> 0 | AE174: =IF(LOOKUP($V174,Data!$A$6:$A$1806,Data!$J$6:$J$1806)>0,(LOOKUP($V174,Data!$A$6:$A$1806,Data!$J$6:$J$1806)*-1),LOOKUP($V174,Data!$A$6:$A$1806,Data!$J$6:$J$1806)) -> -103 | AF174: =LOOKUP($V174,Data!$A$6:$A$1806,Data!$K$6:$K$1806) -> 7673 | AG174: 49.44034576 | AV174: 95.14895489 | AW174: -105.573773 | AX174: 0.04800033569 | AY174: -103
B175: 40098.10461 | C175: =LOOKUP(B175,Data!$A$6:$A$1806,Data!B$6:B$1806) -> 59.95299911 | D175: =LOOKUP(B175,Data!$A$6:$A$1806,Data!C$6:C$1806) -> 3736.13916 | G175: 3090 | H175: =(IF((C175-L$2)>0,(IF(C175<'Copy Results'!$C$3,((C175-L$2-L$5)/((L$4*L$2)-L$5)*G175*-1),(('Copy Results'!$C$3-L$2-L$5)/((L$4*L$2)-L$5)*G175*-1))),IF(C175>'Copy Results'!$C$2,((C175-L$2+L$5)/((L$4*L$2)-L$5)*G175*-1),(('Copy Results'!$C$2-L$2+L$5)/((L$4*L$2)-L$5)*G175*-1)))) -> 48.41091156 | I175: 50.7013091 | L175: 0.6169724721 | M175: 3793.167496 | N175: =AVERAGE(D$79:D175) -> 3782.505638 | O175: =AVERAGE(M$79:M175) -> 3811.431733 | P175: 3727.247603 | Q175: =AVERAGE(P$79:P175) -> 3697.941411 | V175: 40098.10461 | W175: =LOOKUP($V175,Data!$A$6:$A$1806,Data!$B$6:$B$1806) -> 59.95299911 | X175: =LOOKUP($V175,Data!$A$6:$A$1806,Data!$C$6:$C$1806) -> 3736.13916 | Y175: =LOOKUP($V175,Data!$A$6:$A$1806,Data!$D$6:$D$1806) -> 350 | Z175: =IF($Z$1="+",LOOKUP($V175,Data!$A$6:$A$1806,Data!$E$6:$E$1806)*-1,LOOKUP($V175,Data!$A$6:$A$1806,Data!$E$6:$E$1806)) -> 231.4098816 | AA175: =LOOKUP($V175,Data!$A$6:$A$1806,Data!$F$6:$F$1806) -> 16 | AC175: =LOOKUP($V175,Data!$A$6:$A$1806,Data!$H$6:$H$1806) -> 10 | AD175: =LOOKUP($V175,Data!$A$6:$A$1806,Data!$I$6:$I$1806) -> 0 | AE175: =IF(LOOKUP($V175,Data!$A$6:$A$1806,Data!$J$6:$J$1806)>0,(LOOKUP($V175,Data!$A$6:$A$1806,Data!$J$6:$J$1806)*-1),LOOKUP($V175,Data!$A$6:$A$1806,Data!$J$6:$J$1806)) -> -103 | AF175: =LOOKUP($V175,Data!$A$6:$A$1806,Data!$K$6:$K$1806) -> 7673 | AG175: 48.41091156 | AV175: 91.02908185 | AW175: -102.1351451 | AX175: 0.04700088501 | AY175: -103
B176: 40098.10463 | C176: =LOOKUP(B176,Data!$A$6:$A$1806,Data!B$6:B$1806) -> 59.95100021 | D176: =LOOKUP(B176,Data!$A$6:$A$1806,Data!C$6:C$1806) -> 3731.38208 | G176: 3090 | H176: =(IF((C176-L$2)>0,(IF(C176<'Copy Results'!$C$3,((C176-L$2-L$5)/((L$4*L$2)-L$5)*G176*-1),(('Copy Results'!$C$3-L$2-L$5)/((L$4*L$2)-L$5)*G176*-1))),IF(C176>'Copy Results'!$C$2,((C176-L$2+L$5)/((L$4*L$2)-L$5)*G176*-1),(('Copy Results'!$C$2-L$2+L$5)/((L$4*L$2)-L$5)*G176*-1)))) -> 50.46977997 | I176: 50.62027391 | L176: 0.6169724721 | M176: 3793.703433 | N176: =AVERAGE(D$79:D176) -> 3781.983969 | O176: =AVERAGE(M$79:M176) -> 3811.250832 | P176: 3727.864576 | Q176: =AVERAGE(P$79:P176) -> 3698.249897 | V176: 40098.10463 | W176: =LOOKUP($V176,Data!$A$6:$A$1806,Data!$B$6:$B$1806) -> 59.95100021 | X176: =LOOKUP($V176,Data!$A$6:$A$1806,Data!$C$6:$C$1806) -> 3731.38208 | Y176: =LOOKUP($V176,Data!$A$6:$A$1806,Data!$D$6:$D$1806) -> 350 | Z176: =IF($Z$1="+",LOOKUP($V176,Data!$A$6:$A$1806,Data!$E$6:$E$1806)*-1,LOOKUP($V176,Data!$A$6:$A$1806,Data!$E$6:$E$1806)) -> 231.4098816 | AA176: =LOOKUP($V176,Data!$A$6:$A$1806,Data!$F$6:$F$1806) -> 16 | AC176: =LOOKUP($V176,Data!$A$6:$A$1806,Data!$H$6:$H$1806) -> 10 | AD176: =LOOKUP($V176,Data!$A$6:$A$1806,Data!$I$6:$I$1806) -> 0 | AE176: =IF(LOOKUP($V176,Data!$A$6:$A$1806,Data!$J$6:$J$1806)>0,(LOOKUP($V176,Data!$A$6:$A$1806,Data!$J$6:$J$1806)*-1),LOOKUP($V176,Data!$A$6:$A$1806,Data!$J$6:$J$1806)) -> -103 | AF176: =LOOKUP($V176,Data!$A$6:$A$1806,Data!$K$6:$K$1806) -> 7673 | AG176: 50.46977997 | AV176: 86.27200177 | AW176: -94.67433847 | AX176: 0.04899978638 | AY176: -103
B177: 40098.10465 | C177: =LOOKUP(B177,Data!$A$6:$A$1806,Data!B$6:B$1806) -> 59.95199966 | D177: =LOOKUP(B177,Data!$A$6:$A$1806,Data!C$6:C$1806) -> 3727.838379 | G177: 3090 | H177: =(IF((C177-L$2)>0,(IF(C177<'Copy Results'!$C$3,((C177-L$2-L$5)/((L$4*L$2)-L$5)*G177*-1),(('Copy Results'!$C$3-L$2-L$5)/((L$4*L$2)-L$5)*G177*-1))),IF(C177>'Copy Results'!$C$2,((C177-L$2+L$5)/((L$4*L$2)-L$5)*G177*-1),(('Copy Results'!$C$2-L$2+L$5)/((L$4*L$2)-L$5)*G177*-1)))) -> 49.44034576 | I177: 50.20729906 | L177: 0.6169724721 | M177: 3793.907431 | N177: =AVERAGE(D$79:D177) -> 3781.437044 | O177: =AVERAGE(M$79:M177) -> 3811.075646 | P177: 3728.481548 | Q177: =AVERAGE(P$79:P177) -> 3698.558383 | V177: 40098.10465 | W177: =LOOKUP($V177,Data!$A$6:$A$1806,Data!$B$6:$B$1806) -> 59.95199966 | X177: =LOOKUP($V177,Data!$A$6:$A$1806,Data!$C$6:$C$1806) -> 3727.838379 | Y177: =LOOKUP($V177,Data!$A$6:$A$1806,Data!$D$6:$D$1806) -> 350 | Z177: =IF($Z$1="+",LOOKUP($V177,Data!$A$6:$A$1806,Data!$E$6:$E$1806)*-1,LOOKUP($V177,Data!$A$6:$A$1806,Data!$E$6:$E$1806)) -> 231.4098816 | AA177: =LOOKUP($V177,Data!$A$6:$A$1806,Data!$F$6:$F$1806) -> 16 | AC177: =LOOKUP($V177,Data!$A$6:$A$1806,Data!$H$6:$H$1806) -> 10 | AD177: =LOOKUP($V177,Data!$A$6:$A$1806,Data!$I$6:$I$1806) -> 0 | AE177: =IF(LOOKUP($V177,Data!$A$6:$A$1806,Data!$J$6:$J$1806)>0,(LOOKUP($V177,Data!$A$6:$A$1806,Data!$J$6:$J$1806)*-1),LOOKUP($V177,Data!$A$6:$A$1806,Data!$J$6:$J$1806)) -> -103 | AF177: =LOOKUP($V177,Data!$A$6:$A$1806,Data!$K$6:$K$1806) -> 7673 | AG177: 49.44034576 | AV177: 82.7283006 | AW177: -91.7922728 | AX177: 0.04800033569 | AY177: -103
B178: 40098.10468 | C178: =LOOKUP(B178,Data!$A$6:$A$1806,Data!B$6:B$1806) -> 59.95199966 | D178: =LOOKUP(B178,Data!$A$6:$A$1806,Data!C$6:C$1806) -> 3725.95166 | G178: 3090 | H178: =(IF((C178-L$2)>0,(IF(C178<'Copy Results'!$C$3,((C178-L$2-L$5)/((L$4*L$2)-L$5)*G178*-1),(('Copy Results'!$C$3-L$2-L$5)/((L$4*L$2)-L$5)*G178*-1))),IF(C178>'Copy Results'!$C$2,((C178-L$2+L$5)/((L$4*L$2)-L$5)*G178*-1),(('Copy Results'!$C$2-L$2+L$5)/((L$4*L$2)-L$5)*G178*-1)))) -> 49.44034576 | I178: 49.9388654 | L178: 0.6169724721 | M178: 3794.255969 | N178: =AVERAGE(D$79:D178) -> 3780.88219 | O178: =AVERAGE(M$79:M178) -> 3810.907449 | P178: 3729.098521 | Q178: =AVERAGE(P$79:P178) -> 3698.86687 | V178: 40098.10468 | W178: =LOOKUP($V178,Data!$A$6:$A$1806,Data!$B$6:$B$1806) -> 59.95199966 | X178: =LOOKUP($V178,Data!$A$6:$A$1806,Data!$C$6:$C$1806) -> 3725.95166 | Y178: =LOOKUP($V178,Data!$A$6:$A$1806,Data!$D$6:$D$1806) -> 350 | Z178: =IF($Z$1="+",LOOKUP($V178,Data!$A$6:$A$1806,Data!$E$6:$E$1806)*-1,LOOKUP($V178,Data!$A$6:$A$1806,Data!$E$6:$E$1806)) -> 231.4098816 | AA178: =LOOKUP($V178,Data!$A$6:$A$1806,Data!$F$6:$F$1806) -> 16 | AC178: =LOOKUP($V178,Data!$A$6:$A$1806,Data!$H$6:$H$1806) -> 10 | AD178: =LOOKUP($V178,Data!$A$6:$A$1806,Data!$I$6:$I$1806) -> 0 | AE178: =IF(LOOKUP($V178,Data!$A$6:$A$1806,Data!$J$6:$J$1806)>0,(LOOKUP($V178,Data!$A$6:$A$1806,Data!$J$6:$J$1806)*-1),LOOKUP($V178,Data!$A$6:$A$1806,Data!$J$6:$J$1806)) -> -103 | AF178: =LOOKUP($V178,Data!$A$6:$A$1806,Data!$K$6:$K$1806) -> 7673 | AG178: 49.44034576 | AV178: 80.84158185 | AW178: -89.69883922 | AX178: 0.04800033569 | AY178: -103
B179: 40098.1047 | C179: =LOOKUP(B179,Data!$A$6:$A$1806,Data!B$6:B$1806) -> 59.95199966 | D179: =LOOKUP(B179,Data!$A$6:$A$1806,Data!C$6:C$1806) -> 3722.648926 | G179: 3090 | H179: =(IF((C179-L$2)>0,(IF(C179<'Copy Results'!$C$3,((C179-L$2-L$5)/((L$4*L$2)-L$5)*G179*-1),(('Copy Results'!$C$3-L$2-L$5)/((L$4*L$2)-L$5)*G179*-1))),IF(C179>'Copy Results'!$C$2,((C179-L$2+L$5)/((L$4*L$2)-L$5)*G179*-1),(('Copy Results'!$C$2-L$2+L$5)/((L$4*L$2)-L$5)*G179*-1)))) -> 49.44034576 | I179: 49.76438353 | L179: 0.6169724721 | M179: 3794.69846 | N179: =AVERAGE(D$79:D179) -> 3780.305623 | O179: =AVERAGE(M$79:M179) -> 3810.746964 | P179: 3729.715493 | Q179: =AVERAGE(P$79:P179) -> 3699.175356 | V179: 40098.1047 | W179: =LOOKUP($V179,Data!$A$6:$A$1806,Data!$B$6:$B$1806) -> 59.95199966 | X179: =LOOKUP($V179,Data!$A$6:$A$1806,Data!$C$6:$C$1806) -> 3722.648926 | Y179: =LOOKUP($V179,Data!$A$6:$A$1806,Data!$D$6:$D$1806) -> 350 | Z179: =IF($Z$1="+",LOOKUP($V179,Data!$A$6:$A$1806,Data!$E$6:$E$1806)*-1,LOOKUP($V179,Data!$A$6:$A$1806,Data!$E$6:$E$1806)) -> 231.4098816 | AA179: =LOOKUP($V179,Data!$A$6:$A$1806,Data!$F$6:$F$1806) -> 16 | AC179: =LOOKUP($V179,Data!$A$6:$A$1806,Data!$H$6:$H$1806) -> 10 | AD179: =LOOKUP($V179,Data!$A$6:$A$1806,Data!$I$6:$I$1806) -> 0 | AE179: =IF(LOOKUP($V179,Data!$A$6:$A$1806,Data!$J$6:$J$1806)>0,(LOOKUP($V179,Data!$A$6:$A$1806,Data!$J$6:$J$1806)*-1),LOOKUP($V179,Data!$A$6:$A$1806,Data!$J$6:$J$1806)) -> -103 | AF179: =LOOKUP($V179,Data!$A$6:$A$1806,Data!$K$6:$K$1806) -> 7673 | AG179: 49.44034576 | AV179: 77.53884747 | AW179: -86.03424691 | AX179: 0.04800033569 | AY179: -103
B180: 40098.10472 | C180: =LOOKUP(B180,Data!$A$6:$A$1806,Data!B$6:B$1806) -> 59.95500183 | D180: =LOOKUP(B180,Data!$A$6:$A$1806,Data!C$6:C$1806) -> 3720.578125 | G180: 3090 | H180: =(IF((C180-L$2)>0,(IF(C180<'Copy Results'!$C$3,((C180-L$2-L$5)/((L$4*L$2)-L$5)*G180*-1),(('Copy Results'!$C$3-L$2-L$5)/((L$4*L$2)-L$5)*G180*-1))),IF(C180>'Copy Results'!$C$2,((C180-L$2+L$5)/((L$4*L$2)-L$5)*G180*-1),(('Copy Results'!$C$2-L$2+L$5)/((L$4*L$2)-L$5)*G180*-1)))) -> 46.34811401 | I180: 48.5686892 | L180: 0.6169724721 | M180: 3794.119738 | N180: =AVERAGE(D$79:D180) -> 3779.720059 | O180: =AVERAGE(M$79:M180) -> 3810.583952 | P180: 3730.332466 | Q180: =AVERAGE(P$79:P180) -> 3699.483842 | V180: 40098.10472 | W180: =LOOKUP($V180,Data!$A$6:$A$1806,Data!$B$6:$B$1806) -> 59.95500183 | X180: =LOOKUP($V180,Data!$A$6:$A$1806,Data!$C$6:$C$1806) -> 3720.578125 | Y180: =LOOKUP($V180,Data!$A$6:$A$1806,Data!$D$6:$D$1806) -> 350 | Z180: =IF($Z$1="+",LOOKUP($V180,Data!$A$6:$A$1806,Data!$E$6:$E$1806)*-1,LOOKUP($V180,Data!$A$6:$A$1806,Data!$E$6:$E$1806)) -> 218.6222839 | AA180: =LOOKUP($V180,Data!$A$6:$A$1806,Data!$F$6:$F$1806) -> 16 | AC180: =LOOKUP($V180,Data!$A$6:$A$1806,Data!$H$6:$H$1806) -> 10 | AD180: =LOOKUP($V180,Data!$A$6:$A$1806,Data!$I$6:$I$1806) -> 0 | AE180: =IF(LOOKUP($V180,Data!$A$6:$A$1806,Data!$J$6:$J$1806)>0,(LOOKUP($V180,Data!$A$6:$A$1806,Data!$J$6:$J$1806)*-1),LOOKUP($V180,Data!$A$6:$A$1806,Data!$J$6:$J$1806)) -> -103 | AF180: =LOOKUP($V180,Data!$A$6:$A$1806,Data!$K$6:$K$1806) -> 7673 | AG180: 46.34811401 | AV180: 75.46804669 | AW180: -86.62202333 | AX180: 0.04499816895 | AY180: -103
B181: 40098.10475 | C181: =LOOKUP(B181,Data!$A$6:$A$1806,Data!B$6:B$1806) -> 59.95199966 | D181: =LOOKUP(B181,Data!$A$6:$A$1806,Data!C$6:C$1806) -> 3717.996094 | G181: 3090 | H181: =(IF((C181-L$2)>0,(IF(C181<'Copy Results'!$C$3,((C181-L$2-L$5)/((L$4*L$2)-L$5)*G181*-1),(('Copy Results'!$C$3-L$2-L$5)/((L$4*L$2)-L$5)*G181*-1))),IF(C181>'Copy Results'!$C$2,((C181-L$2+L$5)/((L$4*L$2)-L$5)*G181*-1),(('Copy Results'!$C$2-L$2+L$5)/((L$4*L$2)-L$5)*G181*-1)))) -> 49.44034576 | I181: 48.873769 | L181: 0.6169724721 | M181: 3795.04179 | N181: =AVERAGE(D$79:D181) -> 3779.120797 | O181: =AVERAGE(M$79:M181) -> 3810.433057 | P181: 3730.949438 | Q181: =AVERAGE(P$79:P181) -> 3699.792328 | V181: 40098.10475 | W181: =LOOKUP($V181,Data!$A$6:$A$1806,Data!$B$6:$B$1806) -> 59.95199966 | X181: =LOOKUP($V181,Data!$A$6:$A$1806,Data!$C$6:$C$1806) -> 3717.996094 | Y181: =LOOKUP($V181,Data!$A$6:$A$1806,Data!$D$6:$D$1806) -> 350 | Z181: =IF($Z$1="+",LOOKUP($V181,Data!$A$6:$A$1806,Data!$E$6:$E$1806)*-1,LOOKUP($V181,Data!$A$6:$A$1806,Data!$E$6:$E$1806)) -> 218.6222839 | AA181: =LOOKUP($V181,Data!$A$6:$A$1806,Data!$F$6:$F$1806) -> 16 | AC181: =LOOKUP($V181,Data!$A$6:$A$1806,Data!$H$6:$H$1806) -> 10 | AD181: =LOOKUP($V181,Data!$A$6:$A$1806,Data!$I$6:$I$1806) -> 0 | AE181: =IF(LOOKUP($V181,Data!$A$6:$A$1806,Data!$J$6:$J$1806)>0,(LOOKUP($V181,Data!$A$6:$A$1806,Data!$J$6:$J$1806)*-1),LOOKUP($V181,Data!$A$6:$A$1806,Data!$J$6:$J$1806)) -> -103 | AF181: =LOOKUP($V181,Data!$A$6:$A$1806,Data!$K$6:$K$1806) -> 7673 | AG181: 49.44034576 | AV181: 72.88601544 | AW181: -80.871636 | AX181: 0.04800033569 | AY181: -103
B182: 40098.10477 | C182: =LOOKUP(B182,Data!$A$6:$A$1806,Data!B$6:B$1806) -> 59.95399857 | D182: =LOOKUP(B182,Data!$A$6:$A$1806,Data!C$6:C$1806) -> 3718.141846 | G182: 3090 | H182: =(IF((C182-L$2)>0,(IF(C182<'Copy Results'!$C$3,((C182-L$2-L$5)/((L$4*L$2)-L$5)*G182*-1),(('Copy Results'!$C$3-L$2-L$5)/((L$4*L$2)-L$5)*G182*-1))),IF(C182>'Copy Results'!$C$2,((C182-L$2+L$5)/((L$4*L$2)-L$5)*G182*-1),(('Copy Results'!$C$2-L$2+L$5)/((L$4*L$2)-L$5)*G182*-1)))) -> 47.38147736 | I182: 48.35146692 | L182: 0.6169724721 | M182: 3795.136461 | N182: =AVERAGE(D$79:D182) -> 3778.534461 | O182: =AVERAGE(M$79:M182) -> 3810.285975 | P182: 3731.566411 | Q182: =AVERAGE(P$79:P182) -> 3700.100815 | V182: 40098.10477 | W182: =LOOKUP($V182,Data!$A$6:$A$1806,Data!$B$6:$B$1806) -> 59.95399857 | X182: =LOOKUP($V182,Data!$A$6:$A$1806,Data!$C$6:$C$1806) -> 3718.141846 | Y182: =LOOKUP($V182,Data!$A$6:$A$1806,Data!$D$6:$D$1806) -> 350 | Z182: =IF($Z$1="+",LOOKUP($V182,Data!$A$6:$A$1806,Data!$E$6:$E$1806)*-1,LOOKUP($V182,Data!$A$6:$A$1806,Data!$E$6:$E$1806)) -> 218.6222839 | AA182: =LOOKUP($V182,Data!$A$6:$A$1806,Data!$F$6:$F$1806) -> 16 | AC182: =LOOKUP($V182,Data!$A$6:$A$1806,Data!$H$6:$H$1806) -> 10 | AD182: =LOOKUP($V182,Data!$A$6:$A$1806,Data!$I$6:$I$1806) -> 0 | AE182: =IF(LOOKUP($V182,Data!$A$6:$A$1806,Data!$J$6:$J$1806)>0,(LOOKUP($V182,Data!$A$6:$A$1806,Data!$J$6:$J$1806)*-1),LOOKUP($V182,Data!$A$6:$A$1806,Data!$J$6:$J$1806)) -> -103 | AF182: =LOOKUP($V182,Data!$A$6:$A$1806,Data!$K$6:$K$1806) -> 7673 | AG182: 47.38147736 | AV182: 73.03176739 | AW182: -82.87136707 | AX182: 0.04600143433 | AY182: -103
B183: 40098.10479 | C183: =LOOKUP(B183,Data!$A$6:$A$1806,Data!B$6:B$1806) -> 59.95199966 | D183: =LOOKUP(B183,Data!$A$6:$A$1806,Data!C$6:C$1806) -> 3715.752686 | G183: 3090 | H183: =(IF((C183-L$2)>0,(IF(C183<'Copy Results'!$C$3,((C183-L$2-L$5)/((L$4*L$2)-L$5)*G183*-1),(('Copy Results'!$C$3-L$2-L$5)/((L$4*L$2)-L$5)*G183*-1))),IF(C183>'Copy Results'!$C$2,((C183-L$2+L$5)/((L$4*L$2)-L$5)*G183*-1),(('Copy Results'!$C$2-L$2+L$5)/((L$4*L$2)-L$5)*G183*-1)))) -> 49.44034576 | I183: 48.73257452 | L183: 0.6169724721 | M183: 3796.134541 | N183: =AVERAGE(D$79:D183) -> 3777.93654 | O183: =AVERAGE(M$79:M183) -> 3810.151199 | P183: 3732.183383 | Q183: =AVERAGE(P$79:P183) -> 3700.409301 | V183: 40098.10479 | W183: =LOOKUP($V183,Data!$A$6:$A$1806,Data!$B$6:$B$1806) -> 59.95199966 | X183: =LOOKUP($V183,Data!$A$6:$A$1806,Data!$C$6:$C$1806) -> 3715.752686 | Y183: =LOOKUP($V183,Data!$A$6:$A$1806,Data!$D$6:$D$1806) -> 350 | Z183: =IF($Z$1="+",LOOKUP($V183,Data!$A$6:$A$1806,Data!$E$6:$E$1806)*-1,LOOKUP($V183,Data!$A$6:$A$1806,Data!$E$6:$E$1806)) -> 218.6222839 | AA183: =LOOKUP($V183,Data!$A$6:$A$1806,Data!$F$6:$F$1806) -> 16 | AC183: =LOOKUP($V183,Data!$A$6:$A$1806,Data!$H$6:$H$1806) -> 10 | AD183: =LOOKUP($V183,Data!$A$6:$A$1806,Data!$I$6:$I$1806) -> 0 | AE183: =IF(LOOKUP($V183,Data!$A$6:$A$1806,Data!$J$6:$J$1806)>0,(LOOKUP($V183,Data!$A$6:$A$1806,Data!$J$6:$J$1806)*-1),LOOKUP($V183,Data!$A$6:$A$1806,Data!$J$6:$J$1806)) -> -103 | AF183: =LOOKUP($V183,Data!$A$6:$A$1806,Data!$K$6:$K$1806) -> 7673 | AG183: 49.44034576 | AV183: 70.64260724 | AW183: -78.38243295 | AX183: 0.04800033569 | AY183: -103
B184: 40098.10481 | C184: =LOOKUP(B184,Data!$A$6:$A$1806,Data!B$6:B$1806) -> 59.95299911 | D184: =LOOKUP(B184,Data!$A$6:$A$1806,Data!C$6:C$1806) -> 3713.693848 | G184: 3090 | H184: =(IF((C184-L$2)>0,(IF(C184<'Copy Results'!$C$3,((C184-L$2-L$5)/((L$4*L$2)-L$5)*G184*-1),(('Copy Results'!$C$3-L$2-L$5)/((L$4*L$2)-L$5)*G184*-1))),IF(C184>'Copy Results'!$C$2,((C184-L$2+L$5)/((L$4*L$2)-L$5)*G184*-1),(('Copy Results'!$C$2-L$2+L$5)/((L$4*L$2)-L$5)*G184*-1)))) -> 48.41091156 | I184: 48.61999248 | L184: 0.6169724721 | M184: 3796.638931 | N184: =AVERAGE(D$79:D184) -> 3777.330477 | O184: =AVERAGE(M$79:M184) -> 3810.023725 | P184: 3732.800356 | Q184: =AVERAGE(P$79:P184) -> 3700.717787 | V184: 40098.10481 | W184: =LOOKUP($V184,Data!$A$6:$A$1806,Data!$B$6:$B$1806) -> 59.95299911 | X184: =LOOKUP($V184,Data!$A$6:$A$1806,Data!$C$6:$C$1806) -> 3713.693848 | Y184: =LOOKUP($V184,Data!$A$6:$A$1806,Data!$D$6:$D$1806) -> 350 | Z184: =IF($Z$1="+",LOOKUP($V184,Data!$A$6:$A$1806,Data!$E$6:$E$1806)*-1,LOOKUP($V184,Data!$A$6:$A$1806,Data!$E$6:$E$1806)) -> 218.6222839 | AA184: =LOOKUP($V184,Data!$A$6:$A$1806,Data!$F$6:$F$1806) -> 16 | AC184: =LOOKUP($V184,Data!$A$6:$A$1806,Data!$H$6:$H$1806) -> 10 | AD184: =LOOKUP($V184,Data!$A$6:$A$1806,Data!$I$6:$I$1806) -> 0 | AE184: =IF(LOOKUP($V184,Data!$A$6:$A$1806,Data!$J$6:$J$1806)>0,(LOOKUP($V184,Data!$A$6:$A$1806,Data!$J$6:$J$1806)*-1),LOOKUP($V184,Data!$A$6:$A$1806,Data!$J$6:$J$1806)) -> -103 | AF184: =LOOKUP($V184,Data!$A$6:$A$1806,Data!$K$6:$K$1806) -> 7673 | AG184: 48.41091156 | AV184: 68.58376935 | AW184: -76.95137742 | AX184: 0.04700088501 | AY184: -103
B185: 40098.10484 | C185: =LOOKUP(B185,Data!$A$6:$A$1806,Data!B$6:B$1806) -> 59.95299911 | D185: =LOOKUP(B185,Data!$A$6:$A$1806,Data!C$6:C$1806) -> 3713.483643 | G185: 3090 | H185: =(IF((C185-L$2)>0,(IF(C185<'Copy Results'!$C$3,((C185-L$2-L$5)/((L$4*L$2)-L$5)*G185*-1),(('Copy Results'!$C$3-L$2-L$5)/((L$4*L$2)-L$5)*G185*-1))),IF(C185>'Copy Results'!$C$2,((C185-L$2+L$5)/((L$4*L$2)-L$5)*G185*-1),(('Copy Results'!$C$2-L$2+L$5)/((L$4*L$2)-L$5)*G185*-1)))) -> 48.41091156 | I185: 48.54681416 | L185: 0.6169724721 | M185: 3797.182725 | N185: =AVERAGE(D$79:D185) -> 3776.733777 | O185: =AVERAGE(M$79:M185) -> 3809.903715 | P185: 3733.417328 | Q185: =AVERAGE(P$79:P185) -> 3701.026273 | V185: 40098.10484 | W185: =LOOKUP($V185,Data!$A$6:$A$1806,Data!$B$6:$B$1806) -> 59.95299911 | X185: =LOOKUP($V185,Data!$A$6:$A$1806,Data!$C$6:$C$1806) -> 3713.483643 | Y185: =LOOKUP($V185,Data!$A$6:$A$1806,Data!$D$6:$D$1806) -> 350 | Z185: =IF($Z$1="+",LOOKUP($V185,Data!$A$6:$A$1806,Data!$E$6:$E$1806)*-1,LOOKUP($V185,Data!$A$6:$A$1806,Data!$E$6:$E$1806)) -> 213.5358582 | AA185: =LOOKUP($V185,Data!$A$6:$A$1806,Data!$F$6:$F$1806) -> 16 | AC185: =LOOKUP($V185,Data!$A$6:$A$1806,Data!$H$6:$H$1806) -> 10 | AD185: =LOOKUP($V185,Data!$A$6:$A$1806,Data!$I$6:$I$1806) -> 0 | AE185: =IF(LOOKUP($V185,Data!$A$6:$A$1806,Data!$J$6:$J$1806)>0,(LOOKUP($V185,Data!$A$6:$A$1806,Data!$J$6:$J$1806)*-1),LOOKUP($V185,Data!$A$6:$A$1806,Data!$J$6:$J$1806)) -> -103 | AF185: =LOOKUP($V185,Data!$A$6:$A$1806,Data!$K$6:$K$1806) -> 7673 | AG185: 48.41091156 | AV185: 68.37356427 | AW185: -76.71552613 | AX185: 0.04700088501 | AY185: -103
B186: 40098.10486 | C186: =LOOKUP(B186,Data!$A$6:$A$1806,Data!B$6:B$1806) -> 59.95199966 | D186: =LOOKUP(B186,Data!$A$6:$A$1806,Data!C$6:C$1806) -> 3710.848145 | G186: 3090 | H186: =(IF((C186-L$2)>0,(IF(C186<'Copy Results'!$C$3,((C186-L$2-L$5)/((L$4*L$2)-L$5)*G186*-1),(('Copy Results'!$C$3-L$2-L$5)/((L$4*L$2)-L$5)*G186*-1))),IF(C186>'Copy Results'!$C$2,((C186-L$2+L$5)/((L$4*L$2)-L$5)*G186*-1),(('Copy Results'!$C$2-L$2+L$5)/((L$4*L$2)-L$5)*G186*-1)))) -> 49.44034576 | I186: 48.85955022 | L186: 0.6169724721 | M186: 3798.112434 | N186: =AVERAGE(D$79:D186) -> 3776.123725 | O186: =AVERAGE(M$79:M186) -> 3809.794537 | P186: 3734.034301 | Q186: =AVERAGE(P$79:P186) -> 3701.33476 | V186: 40098.10486 | W186: =LOOKUP($V186,Data!$A$6:$A$1806,Data!$B$6:$B$1806) -> 59.95199966 | X186: =LOOKUP($V186,Data!$A$6:$A$1806,Data!$C$6:$C$1806) -> 3710.848145 | Y186: =LOOKUP($V186,Data!$A$6:$A$1806,Data!$D$6:$D$1806) -> 350 | Z186: =IF($Z$1="+",LOOKUP($V186,Data!$A$6:$A$1806,Data!$E$6:$E$1806)*-1,LOOKUP($V186,Data!$A$6:$A$1806,Data!$E$6:$E$1806)) -> 213.5358582 | AA186: =LOOKUP($V186,Data!$A$6:$A$1806,Data!$F$6:$F$1806) -> 16 | AC186: =LOOKUP($V186,Data!$A$6:$A$1806,Data!$H$6:$H$1806) -> 10 | AD186: =LOOKUP($V186,Data!$A$6:$A$1806,Data!$I$6:$I$1806) -> 0 | AE186: =IF(LOOKUP($V186,Data!$A$6:$A$1806,Data!$J$6:$J$1806)>0,(LOOKUP($V186,Data!$A$6:$A$1806,Data!$J$6:$J$1806)*-1),LOOKUP($V186,Data!$A$6:$A$1806,Data!$J$6:$J$1806)) -> -103 | AF186: =LOOKUP($V186,Data!$A$6:$A$1806,Data!$K$6:$K$1806) -> 7673 | AG186: 49.44034576 | AV186: 65.73806622 | AW186: -72.94053504 | AX186: 0.04800033569 | AY186: -103
B187: 40098.10488 | C187: =LOOKUP(B187,Data!$A$6:$A$1806,Data!B$6:B$1806) -> 59.95399857 | D187: =LOOKUP(B187,Data!$A$6:$A$1806,Data!C$6:C$1806) -> 3710.810059 | G187: 3090 | H187: =(IF((C187-L$2)>0,(IF(C187<'Copy Results'!$C$3,((C187-L$2-L$5)/((L$4*L$2)-L$5)*G187*-1),(('Copy Results'!$C$3-L$2-L$5)/((L$4*L$2)-L$5)*G187*-1))),IF(C187>'Copy Results'!$C$2,((C187-L$2+L$5)/((L$4*L$2)-L$5)*G187*-1),(('Copy Results'!$C$2-L$2+L$5)/((L$4*L$2)-L$5)*G187*-1)))) -> 47.38147736 | I187: 48.34222472 | L187: 0.6169724721 | M187: 3798.212081 | N187: =AVERAGE(D$79:D187) -> 3775.524517 | O187: =AVERAGE(M$79:M187) -> 3809.688276 | P187: 3734.651273 | Q187: =AVERAGE(P$79:P187) -> 3701.643246 | V187: 40098.10488 | W187: =LOOKUP($V187,Data!$A$6:$A$1806,Data!$B$6:$B$1806) -> 59.95399857 | X187: =LOOKUP($V187,Data!$A$6:$A$1806,Data!$C$6:$C$1806) -> 3710.810059 | Y187: =LOOKUP($V187,Data!$A$6:$A$1806,Data!$D$6:$D$1806) -> 350 | Z187: =IF($Z$1="+",LOOKUP($V187,Data!$A$6:$A$1806,Data!$E$6:$E$1806)*-1,LOOKUP($V187,Data!$A$6:$A$1806,Data!$E$6:$E$1806)) -> 213.5358582 | AA187: =LOOKUP($V187,Data!$A$6:$A$1806,Data!$F$6:$F$1806) -> 16 | AC187: =LOOKUP($V187,Data!$A$6:$A$1806,Data!$H$6:$H$1806) -> 10 | AD187: =LOOKUP($V187,Data!$A$6:$A$1806,Data!$I$6:$I$1806) -> 0 | AE187: =IF(LOOKUP($V187,Data!$A$6:$A$1806,Data!$J$6:$J$1806)>0,(LOOKUP($V187,Data!$A$6:$A$1806,Data!$J$6:$J$1806)*-1),LOOKUP($V187,Data!$A$6:$A$1806,Data!$J$6:$J$1806)) -> -103 | AF187: =LOOKUP($V187,Data!$A$6:$A$1806,Data!$K$6:$K$1806) -> 7673 | AG187: 47.38147736 | AV187: 65.69998028 | AW187: -74.55176531 | AX187: 0.04600143433 | AY187: -103
B188: 40098.10491 | C188: =LOOKUP(B188,Data!$A$6:$A$1806,Data!B$6:B$1806) -> 59.95399857 | D188: =LOOKUP(B188,Data!$A$6:$A$1806,Data!C$6:C$1806) -> 3712.091797 | G188: 3090 | H188: =(IF((C188-L$2)>0,(IF(C188<'Copy Results'!$C$3,((C188-L$2-L$5)/((L$4*L$2)-L$5)*G188*-1),(('Copy Results'!$C$3-L$2-L$5)/((L$4*L$2)-L$5)*G188*-1))),IF(C188>'Copy Results'!$C$2,((C188-L$2+L$5)/((L$4*L$2)-L$5)*G188*-1),(('Copy Results'!$C$2-L$2+L$5)/((L$4*L$2)-L$5)*G188*-1)))) -> 47.38147736 | I188: 48.00596314 | L188: 0.6169724721 | M188: 3798.492792 | N188: =AVERAGE(D$79:D188) -> 3774.947856 | O188: =AVERAGE(M$79:M188) -> 3809.586499 | P188: 3735.268245 | Q188: =AVERAGE(P$79:P188) -> 3701.951732 | V188: 40098.10491 | W188: =LOOKUP($V188,Data!$A$6:$A$1806,Data!$B$6:$B$1806) -> 59.95399857 | X188: =LOOKUP($V188,Data!$A$6:$A$1806,Data!$C$6:$C$1806) -> 3712.091797 | Y188: =LOOKUP($V188,Data!$A$6:$A$1806,Data!$D$6:$D$1806) -> 350 | Z188: =IF($Z$1="+",LOOKUP($V188,Data!$A$6:$A$1806,Data!$E$6:$E$1806)*-1,LOOKUP($V188,Data!$A$6:$A$1806,Data!$E$6:$E$1806)) -> 213.5358582 | AA188: =LOOKUP($V188,Data!$A$6:$A$1806,Data!$F$6:$F$1806) -> 16 | AC188: =LOOKUP($V188,Data!$A$6:$A$1806,Data!$H$6:$H$1806) -> 10 | AD188: =LOOKUP($V188,Data!$A$6:$A$1806,Data!$I$6:$I$1806) -> 0 | AE188: =IF(LOOKUP($V188,Data!$A$6:$A$1806,Data!$J$6:$J$1806)>0,(LOOKUP($V188,Data!$A$6:$A$1806,Data!$J$6:$J$1806)*-1),LOOKUP($V188,Data!$A$6:$A$1806,Data!$J$6:$J$1806)) -> -103 | AF188: =LOOKUP($V188,Data!$A$6:$A$1806,Data!$K$6:$K$1806) -> 7674 | AG188: 47.38147736 | AV188: 66.98171857 | AW188: -76.00619271 | AX188: 0.04600143433 | AY188: -103
B189: 40098.10493 | C189: =LOOKUP(B189,Data!$A$6:$A$1806,Data!B$6:B$1806) -> 59.95899963 | D189: =LOOKUP(B189,Data!$A$6:$A$1806,Data!C$6:C$1806) -> 3714.622559 | G189: 3090 | H189: =(IF((C189-L$2)>0,(IF(C189<'Copy Results'!$C$3,((C189-L$2-L$5)/((L$4*L$2)-L$5)*G189*-1),(('Copy Results'!$C$3-L$2-L$5)/((L$4*L$2)-L$5)*G189*-1))),IF(C189>'Copy Results'!$C$2,((C189-L$2+L$5)/((L$4*L$2)-L$5)*G189*-1),(('Copy Results'!$C$2-L$2+L$5)/((L$4*L$2)-L$5)*G189*-1)))) -> 42.2303772 | I189: 45.98450806 | L189: 0.6169724721 | M189: 3797.088309 | N189: =AVERAGE(D$79:D189) -> 3774.404385 | O189: =AVERAGE(M$79:M189) -> 3809.473902 | P189: 3735.885218 | Q189: =AVERAGE(P$79:P189) -> 3702.260218 | V189: 40098.10493 | W189: =LOOKUP($V189,Data!$A$6:$A$1806,Data!$B$6:$B$1806) -> 59.95899963 | X189: =LOOKUP($V189,Data!$A$6:$A$1806,Data!$C$6:$C$1806) -> 3714.622559 | Y189: =LOOKUP($V189,Data!$A$6:$A$1806,Data!$D$6:$D$1806) -> 350 | Z189: =IF($Z$1="+",LOOKUP($V189,Data!$A$6:$A$1806,Data!$E$6:$E$1806)*-1,LOOKUP($V189,Data!$A$6:$A$1806,Data!$E$6:$E$1806)) -> 213.5358582 | AA189: =LOOKUP($V189,Data!$A$6:$A$1806,Data!$F$6:$F$1806) -> 16 | AC189: =LOOKUP($V189,Data!$A$6:$A$1806,Data!$H$6:$H$1806) -> 10 | AD189: =LOOKUP($V189,Data!$A$6:$A$1806,Data!$I$6:$I$1806) -> 0 | AE189: =IF(LOOKUP($V189,Data!$A$6:$A$1806,Data!$J$6:$J$1806)>0,(LOOKUP($V189,Data!$A$6:$A$1806,Data!$J$6:$J$1806)*-1),LOOKUP($V189,Data!$A$6:$A$1806,Data!$J$6:$J$1806)) -> -103 | AF189: =LOOKUP($V189,Data!$A$6:$A$1806,Data!$K$6:$K$1806) -> 7675 | AG189: 42.2303772 | AV189: 69.51248028 | AW189: -83.62344161 | AX189: 0.04100036621 | AY189: -103
B190: 40098.10495 | C190: =LOOKUP(B190,Data!$A$6:$A$1806,Data!B$6:B$1806) -> 59.95700073 | D190: =LOOKUP(B190,Data!$A$6:$A$1806,Data!C$6:C$1806) -> 3715.129639 | G190: 3090 | H190: =(IF((C190-L$2)>0,(IF(C190<'Copy Results'!$C$3,((C190-L$2-L$5)/((L$4*L$2)-L$5)*G190*-1),(('Copy Results'!$C$3-L$2-L$5)/((L$4*L$2)-L$5)*G190*-1))),IF(C190>'Copy Results'!$C$2,((C190-L$2+L$5)/((L$4*L$2)-L$5)*G190*-1),(('Copy Results'!$C$2-L$2+L$5)/((L$4*L$2)-L$5)*G190*-1)))) -> 44.28924561 | I190: 45.3911662 | L190: 0.6169724721 | M190: 3797.11194 | N190: =AVERAGE(D$79:D190) -> 3773.875146 | O190: =AVERAGE(M$79:M190) -> 3809.363528 | P190: 3736.50219 | Q190: =AVERAGE(P$79:P190) -> 3702.568704 | V190: 40098.10495 | W190: =LOOKUP($V190,Data!$A$6:$A$1806,Data!$B$6:$B$1806) -> 59.95700073 | X190: =LOOKUP($V190,Data!$A$6:$A$1806,Data!$C$6:$C$1806) -> 3715.129639 | Y190: =LOOKUP($V190,Data!$A$6:$A$1806,Data!$D$6:$D$1806) -> 350 | Z190: =IF($Z$1="+",LOOKUP($V190,Data!$A$6:$A$1806,Data!$E$6:$E$1806)*-1,LOOKUP($V190,Data!$A$6:$A$1806,Data!$E$6:$E$1806)) -> 225.6518555 | AA190: =LOOKUP($V190,Data!$A$6:$A$1806,Data!$F$6:$F$1806) -> 16 | AC190: =LOOKUP($V190,Data!$A$6:$A$1806,Data!$H$6:$H$1806) -> 10 | AD190: =LOOKUP($V190,Data!$A$6:$A$1806,Data!$I$6:$I$1806) -> 0 | AE190: =IF(LOOKUP($V190,Data!$A$6:$A$1806,Data!$J$6:$J$1806)>0,(LOOKUP($V190,Data!$A$6:$A$1806,Data!$J$6:$J$1806)*-1),LOOKUP($V190,Data!$A$6:$A$1806,Data!$J$6:$J$1806)) -> -103 | AF190: =LOOKUP($V190,Data!$A$6:$A$1806,Data!$K$6:$K$1806) -> 7676 | AG190: 44.28924561 | AV190: 70.01956036 | AW190: -82.2554804 | AX190: 0.04299926758 | AY190: -103
